Workbook

Sheet Master
A1: Tournament | B1: MSC | K1: TC | L1: Dbls | M1: 1-Day | N1: 2-Day | O1: Mstrs | P1: Sr Mstrs | Q1: MSC | S1: N
A2: Date | B2: 2022-04-24 | J2: # of Games | K2: 14 | L2: 16 | M2: 8 | N2: 10 | O2: 8 | P2: 8 | Q2: 8 | R2: Y
A3: Center | B3: Cedarvale | J3: High Game | O3: Y | P3: Y | Q3: Y | R3: N
A4: Carryover | J4: Optional Qualifying | L4: 1:3 | M4: 1:3 | N4: 1:3
A5: Bet 2 Win Amount | J5: B2W | L5: Y | M5: Y | N5: Y
J6: Mini Eliminator | L6: 4-5-6 | M6: 2-3-4 | N6: 3-4-5 | O6: 2-3-4 | P6: 2-3-4 | Q6: 2-3-4
A7: MP Override # Taken | J7: Mini Eliminator | L7: 12-13-14 | M7: 5-6-7 | N7: 7-8-9 | O7: 5-6-7 | P7: 5-6-7 | Q7: 5-6-7
J8: Brackets | K8: 2-3-4 | L8: 2-3-4 | M8: 2-3-4 | N8: 2-3-4 | O8: 2-3-4 | P8: 2-3-4 | Q8: 2-3-4
J9: Brackets | K9: 5-6-7 | L9: 5-6-7 | M9: 5-6-7 | N9: 5-6-7 | O9: 5-6-7 | P9: 5-6-7 | Q9: 5-6-7
J10: Brackets | K10: 8-9-10 | L10: 10-11-12 | N10: 8-9-10
J11: Brackets | K11: 11-12-13 | L11: 13-14-15
J12: Blind Doubles | Q12: Y
J13: Match Play | M13: 8 | N13: 8
M14: 10 | N14: 10
M15: 12 | N15: 12
M16: 14 | N16: 14
M17: 16 | N17: 16
N18: 18
N19: 20
N20: 22
N21: 24

Sheet Check-In
B1: =IF(Tourn="tc","Minnesota Team Challenge", IF(Tourn="msc","Midwest Senior Classic",IF(Tourn="Sr Mstrs","Senior Masters",IF(Tourn="dbls","Central Bowlers Alliance Doubles","Central Bowlers Alliance")))) -> Midwest Senior Classic
A2: Date | B2: =Master!B2 -> 2022-04-24
A3: Center | B3: =Master!B3 -> Cedarvale
B5: Name | D5: Entry Fee | E5: Membership | F5: Non-Member | G5: Optional | H5: Bet To Win | I5: High Game | J5: 2-3-4 Brackets | K5: 5-6-7 Brackets | L5: 8-9-10 Brackets | M5: 11-12-13 Brackets | N5: 10-11-12 Brackets | O5: 13-14-15 Brackets | P5: 2-3-4 Mini-Elim | Q5: 5-6-7 Mini-Elim | R5: 4-5-6 Mini-Elim | S5: 12-13-14 Mini-Elim | T5: 3-4-5 Mini-Elim | U5: 7-8-9 Mini-Elim | V5: HI LOW DOUBLES | W5: Total
D6: $90 | E6: $45 | F6: $10 | G6: $25 | H6: =IF(Tourn="Dbls","60-40-20", "30-20-10") -> 30-20-10 | I6: $10 | J6: $5 | K6: $5 | L6: $5 | M6: $5 | N6: $5 | O6: $5 | P6: $10 | Q6: $10 | R6: $20 | S6: $20 | T6: $10 | U6: $10 | V6: $10 | X6: NOTES
A7: 1 | B7: OULMAN, DAVE | D7: X | J7: 4 | K7: 4 | P7: X | Q7: X | V7: X | W7: =IF($D7="X",$D$6,0)+IF(E7="X",$E$6,0)+IF(F7="X",$F$6,0)+IF(G7="X",$G$6,0)+ H7+($J$6*J7)+IF(I7="X",$I$6,0)+($K$6*K7)+($L$6*L7)+($M$6*M7)+($N$6*N7)+($O$6*O7)+IF(P7="X",$P$6,0)+IF(Q7="x",$Q$6,0)+IF(R7="X",$R$6,0)+IF(S7="x",$S$6,0)+IF(T7="x",$T$6,0)+IF(U7="x",$U$6,0)+IF(V7="x",$V$6,0) -> $160 | AC7: =IF(Tourn="Dbls",60,30) -> 30 | AD7: =IF(Tourn="MSC","SS","F") -> SS
A8: 2 | B8: DAVIS, SCOTT | D8: X | J8: 8 | K8: 8 | P8: X | Q8: X | V8: X | W8: =IF($D8="X",$D$6,0)+IF(E8="X",$E$6,0)+IF(F8="X",$F$6,0)+IF(G8="X",$G$6,0)+ H8+($J$6*J8)+IF(I8="X",$I$6,0)+($K$6*K8)+($L$6*L8)+($M$6*M8)+($N$6*N8)+($O$6*O8)+IF(P8="X",$P$6,0)+IF(Q8="x",$Q$6,0)+IF(R8="X",$R$6,0)+IF(S8="x",$S$6,0)+IF(T8="x",$T$6,0)+IF(U8="x",$U$6,0)+IF(V8="x",$V$6,0) -> $200 | AC8: =IF(Tourn="Dbls",40,20) -> 20 | AD8: =IF(Tourn="MSC","ROG","JR") -> ROG
A9: 3 | B9: PESCH, JOHN | D9: X | J9: 2 | K9: 2 | P9: X | Q9: X | V9: X | W9: $140 | AC9: =IF(Tourn="Dbls",20,10) -> 10 | AD9: =IF(Tourn="MSC","SDS","SR") -> SDS
A10: 4 | B10: NELSON, BILL | D10: X | J10: 4 | K10: 4 | P10: X | Q10: X | V10: X | W10: $160
A11: 5 | B11: SCHOSSOW, FRED | D11: X | J11: 9 | K11: 9 | P11: X | Q11: X | V11: X | W11: $210
A12: 6 | B12: POELZER, CLARK | C12: ROG | D12: X | J12: 5 | K12: 5 | P12: X | Q12: X | V12: X | W12: $170
A13: 7 | B13: MAGNUSON, TRACEY | D13: X | V13: X | W13: $100
A14: 8 | B14: MCKINNEY, TERRY | D14: X | J14: 20 | K14: 20 | P14: X | Q14: X | W14: $310
A15: 9 | B15: FABIN, BILL | D15: X | F15: X | W15: $100
A16: 10 | B16: WRIGHT, DANA | D16: X | J16: 8 | K16: 8 | P16: X | Q16: X | V16: X | W16: $200
A17: 11 | B17: DAVIS, BOB | D17: X | J17: 2 | K17: 2 | P17: X | Q17: X | V17: X | W17: $140
A18: 12 | B18: HAVLISH, TOM | C18: ROG | D18: X | W18: $90
A19: 13 | B19: VANSLEET, TODD | D19: X | J19: 5 | K19: 5 | P19: X | Q19: X | W19: $160
A20: 14 | B20: JENSEN, ROBERT | C20: SS | D20: X | J20: 4 | K20: 4 | P20: X | Q20: X | V20: X | W20: $160
A21: 15 | B21: REYNOLDS, TIM | D21: X | F21: X | W21: $100
A22: 16 | B22: LANGER, DAVE | D22: X | F22: X | J22: 8 | K22: 8 | P22: X | Q22: X | W22: $200
A23: 17 | B23: BLAZEJ, GEORGE | C23: ROG | D23: X | W23: $90
A24: 18 | B24: WEINKE, RON | C24: ROG | D24: X | F24: X | W24: $100
A25: 19 | B25: IRVIN, BRAD | D25: X | J25: 4 | K25: 4 | P25: X | Q25: X | V25: X | W25: $160
A26: 20 | B26: BJERKE, PAUL | D26: X | F26: X | W26: $100
A27: 21 | B27: VANWIE, MIKE | C27: SS | D27: X | F27: X | W27: $100
A28: 22 | B28: SATHER, GLEN | D28: X | F28: X | W28: $100
A29: 23 | B29: GREEN, GARY | C29: SS | D29: X | J29: 5 | K29: 5 | P29: X | Q29: X | W29: $160
A30: 24 | B30: ROBILLARD, BOB | C30: SS | D30: X | F30: X | W30: $100
A31: 25 | B31: HENK, RICK | C31: SS | D31: X | J31: 4 | K31: 4 | Q31: X | W31: $140
A32: 26 | B32: HOMMES, JOHN | C32: SS | D32: X | J32: 5 | K32: 5 | P32: X | Q32: X | V32: X | W32: $170
A33: 27 | B33: JONES, TOM | D33: X | J33: 7 | K33: 7 | P33: X | Q33: X | V33: X | W33: $190
A34: 28 | B34: WENZEL, JEFF | D34: X | J34: 10 | K34: 10 | W34: $190
A35: 29 | B35: BORDSON, DAVE | C35: SS | D35: X | P35: X | Q35: X | V35: X | W35: $120
A36: 30 | B36: HAUGAN, ERIC | D36: X | P36: X | Q36: X | V36: X | W36: $120
A37: 31 | B37: JENSEN, WAYNE | D37: X | J37: 8 | K37: 8 | P37: X | Q37: X | V37: X | W37: $200
A38: 32 | B38: SCHACHT, TERRY | C38: ROG | D38: X | F38: X | W38: $100
A39: 33 | B39: GOODWIN, CRAIG | C39: SS | D39: X | J39: 8 | K39: 8 | P39: X | Q39: X | V39: X | W39: $200
A40: 34 | B40: CLEVELAND, RON | C40: SS | D40: X | J40: 2 | K40: 2 | W40: $110
A41: 35 | B41: STOEBNER, JOHN | C41: SS | D41: X | J41: 3 | K41: 3 | V41: X | W41: $130
A42: 36 | B42: SODERGREN, SCOTT | C42: SS | D42: X | P42: X | Q42: X | W42: $110
A43: 37 | B43: MARSHALL. MAURICE | D43: X | J43: 2 | K43: 3 | W43: $115
A44: 38 | B44: SCHMID, MIKE | C44: ROG | D44: X | J44: 3 | K44: 3 | P44: X | Q44: X | V44: X | W44: $150
A45: 39 | B45: JONES, DAVE | D45: X | J45: 3 | K45: 3 | V45: X | W45: $130
A46: 40 | B46: PETERSON, ED | D46: X | J46: 5 | K46: 5 | P46: X | Q46: X | V46: X | W46: $170
A47: 41 | B47: BRUINSMA, DEAN | C47: SS | D47: X | J47: 2 | K47: 2 | P47: X | Q47: X | V47: X | W47: $140
A48: 42 | B48: CAUGHEY, STEVE | C48: SS | D48: X | W48: $90
A49: 43 | B49: WIRZ, MIKE | C49: SS | D49: X | J49: 5 | K49: 5 | P49: X | Q49: X | W49: =IF($D49="X",$D$6,0)+IF(E49="X",$E$6,0)+IF(F49="X",$F$6,0)+IF(G49="X",$G$6,0)+ H49+($J$6*J49)+IF(I49="X",$I$6,0)+($K$6*K49)+($L$6*L49)+($M$6*M49)+($N$6*N49)+($O$6*O49)+IF(P49="X",$P$6,0)+IF(Q49="x",$Q$6,0)+IF(R49="X",$R$6,0)+IF(S49="x",$S$6,0)+IF(T49="x",$T$6,0)+IF(U49="x",$U$6,0) -> $160
A50: 44 | B50: MANSKE, WARREN | C50: SS | D50: X | P50: X | Q50: X | W50: $110
A51: 45 | B51: PEARSE, MIKE | D51: X | W51: $90
A52: 46 | B52: BIRKEDAHL, LARRY | D52: X | V52: X | W52: $100
A53: 47 | B53: HALIDA, TERRY | C53: SS | D53: X | P53: X | Q53: X | W53: $110
A54: 48 | B54: HANKE, KURT | D54: X | P54: X | Q54: X | W54: $110
A55: 49 | B55: MICEK, BOB | C55: SS | D55: X | F55: X | W55: $100
A56: 50 | B56: CORBETT, TOM | C56: SS | D56: X | J56: 5 | K56: 5 | P56: X | Q56: X | W56: $160
A57: 51 | B57: SAVOY, TODD | C57: SS | D57: X | F57: X | J57: 5 | K57: 5 | P57: X | Q57: X | V57: X | W57: $180
A58: 52 | B58: ADAMS, TOM | D58: X | F58: X | W58: $100
A59: 53 | B59: DOWNER, ROB | C59: SS | D59: X | J59: 8 | K59: 8 | P59: X | Q59: X | V59: X | W59: $200
A60: 54 | B60: BOHN, STEVE | D60: X | J60: 6 | K60: 6 | P60: X | Q60: X | V60: X | W60: $180
A61: 55 | B61: URBI, GORDON | D61: X | F61: X | W61: $100
A62: 56 | B62: THOMPSON, DOUG | C62: SS | D62: X | F62: X | P62: X | Q62: X | W62: $120
A63: 57 | B63: DAVISON, PAUL | C63: SS | D63: X | F63: X | P63: X | Q63: X | W63: $120
A64: 58 | B64: HAUGH, BOB | C64: ROG | D64: X | F64: X | J64: 1 | K64: 1 | W64: $110
A65: 59 | B65: RYAN, MIKE | D65: X | J65: 2 | K65: 2 | V65: X | W65: $120
A66: 60 | B66: RACETTE, TIM | C66: SS | D66: X | J66: 4 | K66: 4 | P66: X | Q66: X | V66: X | W66: $160
A67: 61 | B67: WINTER, JIM | D67: X | J67: 2 | K67: 2 | V67: X | W67: $120
A68: 62 | B68: WORM, KEN | C68: ROG | D68: X | V68: X | W68: $100
A69: 63 | D69: =IF(COUNTA(B69)=1,"x","") ->  | W69: $0
A70: 64 | W70: $0
A71: 65 | W71: $0
A72: 66 | W72: $0
A73: 67 | W73: $0
A74: 68 | W74: $0
A75: 69 | W75: $0
A76: 70 | W76: $0
A77: 71 | W77: $0
A78: 72 | W78: $0
A79: 73 | W79: $0
A80: 74 | W80: $0
A81: 75 | W81: $0
A82: 76 | W82: $0
A83: 77 | W83: $0
A84: 78 | W84: $0
A85: 79 | W85: $0
A86: 80 | W86: $0
A87: 81 | W87: $0
A88: 82 | W88: $0
A89: 83 | W89: $0
A90: 84 | W90: $0
A91: 85 | W91: $0
A92: 86 | W92: $0
A93: 87 | W93: $0
A94: 88 | W94: $0
A95: 89 | W95: $0
A96: 90 | D96: =IF(COUNTA(B96)=1,"x","") ->  | W96: $0
A97: 91 | W97: $0
A98: 92 | W98: $0
A99: 93 | W99: $0
A100: 94 | W100: $0
A101: 95 | W101: $0
A102: 96 | W102: $0
A103: 97 | W103: $0
A104: 98 | W104: $0
A105: 99 | W105: $0
A106: 100 | W106: $0
A107: 101 | W107: $0
A108: 102 | W108: $0
A109: 103 | W109: $0
A110: 104 | W110: $0
A111: 105 | W111: $0
A112: 106 | W112: $0
A113: 107 | W113: =IF($D113="X",$D$6,0)+IF(E113="X",$E$6,0)+IF(F113="X",$F$6,0)+IF(G113="X",$G$6,0)+ H113+($J$6*J113)+IF(I113="X",$I$6,0)+($K$6*K113)+($L$6*L113)+($M$6*M113)+($N$6*N113)+($O$6*O113)+IF(P113="X",$P$6,0)+IF(Q113="x",$Q$6,0)+IF(R113="X",$R$6,0)+IF(S113="x",$S$6,0)+IF(T113="x",$T$6,0)+IF(U113="x",$U$6,0) -> $0
A114: 108 | W114: $0
A115: 109 | W115: $0
A116: 110 | W116: $0
A117: 111 | W117: $0
A118: 112 | W118: $0
A119: 113 | W119: $0
A120: 114 | W120: $0
A121: 115 | W121: $0
A122: 116 | W122: $0
A123: 117 | W123: $0
A124: 118 | W124: $0
A125: 119 | W125: $0
A126: 120 | W126: $0
A127: 121 | W127: $0
A128: 122 | W128: $0
A129: 123 | W129: $0
A130: 124 | W130: $0
A131: 125 | W131: $0
A132: 126 | W132: $0
B134: Counts per Category | D134: =COUNTA(B7:B132) -> 62 | E134: =COUNTA(E7:E132) -> 0 | F134: =COUNTA(F7:F132) -> 16 | G134: =COUNTA(G7:G132) -> 0 | H134: =COUNTA(H7:H132) -> 0 | I134: =COUNTA(I7:I132) -> 0 | J134: =SUM(J7:J132) -> 188 | K134: 189 | L134: 0 | M134: 0 | N134: 0 | O134: 0 | P134: =COUNTA(P7:P132) -> 35 | Q134: 36 | R134: 0 | S134: 0 | T134: 0 | U134: 0 | V134: 30 | W134: =SUM(W7:W132) -> $8,635
B135: Pay-Out | D135: =TRUNC(Entries/3,0) -> 20 | E135: =IF(MPOR="",Payout,MPOR) -> 20 | F135: =IF(MPOR<>"",MPOR,IF(EVEN(Entries/3)>Payout2,EVEN(Entries/3-2),EVEN(Entries/3))) -> 20 | G135: =ROUNDDOWN(G134/3,0) -> 0
B136: =IF(Tourn="msc","SS","Senior") -> SS | C136: =COUNTIF(C7:C132,IF(Tourn="MSC","SS","SR")) -> 23 | D136: =IF(Tourn="MSC",TRUNC(C136/2,0),TRUNC(C136/3,0)) -> 11 | I136: =I142/8 -> $0.00 | O136: Elimanator = # to make through 1st round | P136: =ROUNDUP(P134/2,0) -> 18 | Q136: =ROUNDUP(Q134/2,0) -> 18 | R136: 0 | S136: 0 | T136: 0 | U136: 0 | V136: =V134/2 -> 15
B137: =IF(Tourn="MSC","ROG","F") -> ROG | C137: =COUNTIF(C7:C132,IF(Tourn="MSC","ROG","F")) -> 8 | D137: =IF(Tourn="MSC",TRUNC(C136/2,0),IF(C137>=1,IF(C137/3<1,1,TRUNC(C137/3,0)),0)) -> 11 | O137: Elimanator - # in final round | P137: =ROUNDUP(P136/2,0) -> 9 | Q137: =ROUNDUP(Q136/2,0) -> 9 | R137: 0 | S137: 0 | T137: 0 | U137: 0
B138: =IF(Tourn="msc","","JR") ->  | C138: =COUNTIF(C7:C132,"JR") -> 0 | D138: =TRUNC(C138/3,0) -> 0 | P138: =ROUNDUP(P137/2,0) -> 5 | Q138: =ROUNDUP(Q137/2,0) -> 5 | R138: 0 | S138: 0 | T138: 0 | U138: 0
P139: =ROUNDUP(P137/2,0) -> 5 | Q139: =ROUNDUP(Q137/2,0) -> 5 | R139: 0 | S139: 0 | T139: 0 | U139: 0
C140: # of Brackets Filled | D140: =J134/8 -> 23.5 | E140: =K134/8 -> 23.625
B142: Amount per Category | D142: =D134*D6 -> $5,580 | E142: =E134*E6 -> $0 | F142: =F134*F6 -> $160 | G142: =G134*G6 -> $0 | H142: =SUM(H7:H132) -> $0 | I142: =I134*I6 -> $0 | J142: =J134*J6 -> $940 | K142: $945 | L142: $0 | M142: $0 | N142: $0 | O142: $0 | P142: $350 | Q142: $360 | R142: $0 | S142: $0 | T142: $0 | U142: $0 | V142: $300 | W142: =SUM(D142:Q142) -> $8,335
B144: B2WCO | C144: =B2W -> 0
B145: Total | C145: =C144+H142 -> $0 | I145: =IF(I136*0.6<10,I136,I136*0.6) -> $0.00 | P145: =IF(P$139<2,0,MROUND(P$142*$W145,5)) -> $125 | Q145: =IF(Q$139<2,0,MROUND(Q$142*$W145,5)) -> $130 | R145: $0 | S145: $0 | T145: $0 | U145: $0 | V145: =IF(V136>3,V142*0.6,V142) -> $180 | W145: 36% | X145: 1st Place Mini-Eliminator
B146: 50% | C146: =MROUND(C145*B146,5) -> 0 | D146: =C145-C146 -> $0 | I146: =IF(I136*0.6<10,0,I136*0.4) -> $0.00 | P146: =IF(P$139<2,0,MROUND(P$142*$W146,5)) -> $90 | Q146: $95 | R146: $0 | S146: $0 | T146: $0 | U146: $0 | V146: =IF(V136>3,V142*0.4,0) -> $120 | W146: 26% | X146: 2nd Place - Mini-Elimator
B147: 30% | C147: =MROUND(C145*B147,5) -> 0 | D147: =C145-C147 -> $0 | P147: $75 | Q147: $75 | R147: $0 | S147: $0 | T147: $0 | U147: $0 | W147: 21% | X147: 3rd Place Mini-Elimator
B148: 20% | C148: =MROUND(C145*B148,5) -> 0 | D148: =C145-C148 -> $0 | P148: $40 | Q148: $40 | R148: $0 | S148: $0 | T148: $0 | U148: $0 | W148: 11% | X148: 4th Place Mini-Elimator
P149: $20 | Q149: $20 | R149: $0 | S149: $0 | T149: $0 | U149: $0 | W149: 6% | X149: 5th Place Mini-Eliminator
P150: $0 | Q150: $0 | R150: $0 | S150: $0 | T150: $0 | U150: $0 | X150: 6th Place - Mini-Elimator
P151: $0 | Q151: $0 | R151: $0 | S151: $0 | T151: $0 | U151: $0 | X151: 7th Place Mini-Elimator
P152: $0 | Q152: $0 | R152: $0 | S152: $0 | T152: $0 | U152: $0 | X152: 8th Place Mini-Elimator
P153: =SUM(P145:P152) -> $350 | Q153: $360 | R153: $0 | S153: $0 | T153: $0 | U153: $0 | W153: 100%
P154: =P142-P6 -> $340 | Q154: $350 | R154: -$20 | S154: -$20 | T154: -$10 | U154: -$10
R155: =R154-R153 -> -$20 | S155: =S154-S153 -> -$20

Sheet Qual
J1: ='Check-In'!B1 -> Midwest Senior Classic
H2: ='Check-In'!B2 -> 2022-04-24
J3: ='Check-In'!B3 -> Cedarvale
J4: Results After Game: | K4: =COUNTIF(F6:U6,">0") -> 8
C6: ='Check-In'!D134 -> 62 | F6: =IF($C$6=0,0,IF(COUNTIF(F8:F133,">0")=$C$6,1,0)) -> 1 | G6: =IF($C$6=0,0,IF(COUNTIF(G8:G133,">0")=$C$6,1,0)) -> 0 | H6: 1 | I6: 0 | J6: 1 | K6: 0 | L6: 1 | M6: 0 | N6: 1 | O6: 0 | P6: 1 | Q6: 0 | R6: 1 | S6: 0 | T6: 1 | U6: 0 | V6: 1
A7: Pos | C7: Name | E7: HG | F7: G1 | G7: =IF(Tourn="MSC","B1","G2") -> B1 | H7: =IF(Tourn="MSC","G2","G3") -> G2 | I7: =IF(Tourn="MSC","B2","G4") -> B2 | J7: =IF(Tourn="MSC","G3","G5") -> G3 | K7: =IF(Tourn="MSC","B3","G6") -> B3 | L7: =IF(Tourn="MSC","G4","G7") -> G4 | M7: =IF(Tourn="MSC","B4","G8") -> B4 | N7: =IF(Tourn="MSC","G5","G9") -> G5 | O7: =IF(Tourn="MSC","B5","G10") -> B5 | P7: =IF(Tourn="MSC","G6","G11") -> G6 | Q7: =IF(Tourn="MSC","B6","G12") -> B6 | R7: =IF(Tourn="MSC","G7","G13") -> G7 | S7: =IF(Tourn="MSC","B7","G14") -> B7 | T7: =IF(Tourn="MSC","G8","G15") -> G8 | U7: =IF(Tourn="MSC","B8","G16") -> B8 | V7: Scratch Total | W7: Bonus Total | X7: Grand Total | Y7: + / - | Z7: Average | AB7: Series 1-3 | AC7: Series 4-6 | AD7: Series 7-9 | AE7: Series 10-12 | AF7: Series 13-15 | AH7: Series 9-11 | AI7: Series 12-14
A8: 1 | B8: =IF('Check-In'!A7="","",'Check-In'!A7) -> 1 | C8: =IF('Check-In'!B7="","",'Check-In'!B7) -> OULMAN, DAVE | D8: =IF('Check-In'!C7="","",'Check-In'!C7) ->  | E8: =IF('Check-In'!I7="","",'Check-In'!I7) ->  | F8: 227 | G8: 40 | H8: 265 | I8: 40 | J8: 193 | K8: 40 | L8: 234 | M8: 40 | N8: 248 | O8: 40 | P8: 213 | Q8: 40 | R8: 215 | S8: 40 | T8: 257 | U8: 40 | V8: =IF(F8="","",IF(Tourn="MSC",F8+H8+J8+L8+N8+P8+R8+T8,SUM(F8:U8))) -> 1852 | W8: =IF(F8="","",IF(Tourn="MSC",G8+I8+K8+M8+O8+Q8+S8+U8,0)) -> 320 | X8: =IF(V8="","",V8+W8) -> 2172 | Y8: =IF(F8="","",X8-$K$4*200) -> 572 | Z8: =IF(F8="","",V8/$K$4) -> 231.50 | AB8: =IF(Tourn="MSC",F8+H8+J8,SUM(F8:H8)) -> 685 | AC8: =IF(Tourn="MSC",L8+N8+P8,SUM(I8:K8)) -> 695 | AD8: =IF(OR(Tourn="MSC",Tourn="1-Day"),"",IF(N8="",0,SUM(L8:N8))) ->  | AE8: =IF(OR(Tourn="MSC",Tourn="1-Day"),"",IF(O8="",0,SUM(O8:Q8))) ->  | AF8: =IF(OR(Tourn="MSC",Tourn="1-Day"),"",IF(P8="",0,SUM(R8:T8))) ->  | AH8: =IF(Tourn="Dbls",SUM(N8:P8),"") ->  | AI8: =IF(Tourn="Dbls",SUM(Q8:S8),"") -> 
A9: 2 | B9: =IF('Check-In'!A48="","",'Check-In'!A48) -> 42 | C9: =IF('Check-In'!B48="","",'Check-In'!B48) -> CAUGHEY, STEVE | D9: =IF('Check-In'!C48="","",'Check-In'!C48) -> SS | E9: =IF('Check-In'!I48="","",'Check-In'!I48) ->  | F9: 213 | G9: 40 | H9: 210 | I9: 40 | J9: 224 | L9: 245 | M9: 40 | N9: 253 | O9: 40 | P9: 217 | Q9: 40 | R9: 223 | S9: 40 | T9: 244 | U9: 40 | V9: 1829 | W9: 280 | X9: 2109 | Y9: 509 | Z9: 228.63 | AB9: 647 | AC9: 715
A10: 3 | B10: =IF('Check-In'!A37="","",'Check-In'!A37) -> 31 | C10: =IF('Check-In'!B37="","",'Check-In'!B37) -> JENSEN, WAYNE | D10: =IF('Check-In'!C37="","",'Check-In'!C37) ->  | E10: =IF('Check-In'!I21="","",'Check-In'!I21) ->  | F10: 258 | G10: 40 | H10: 222 | I10: 40 | J10: 207 | L10: 202 | M10: 40 | N10: 223 | O10: 40 | P10: 213 | Q10: 40 | R10: 238 | S10: 40 | T10: 256 | U10: 40 | V10: 1819 | W10: 280 | X10: 2099 | Y10: 499 | Z10: 227.38 | AB10: 687 | AC10: 638
A11: 4 | B11: =IF('Check-In'!A57="","",'Check-In'!A57) -> 51 | C11: =IF('Check-In'!B57="","",'Check-In'!B57) -> SAVOY, TODD | D11: =IF('Check-In'!C57="","",'Check-In'!C57) -> SS | E11: =IF('Check-In'!I57="","",'Check-In'!I57) ->  | F11: 245 | G11: 40 | H11: 183 | I11: 40 | J11: 223 | K11: 40 | L11: 236 | M11: 40 | N11: 224 | O11: 40 | P11: 209 | R11: 215 | S11: 40 | T11: 246 | U11: 40 | V11: 1781 | W11: 280 | X11: 2061 | Y11: 461 | Z11: 222.63 | AB11: 651 | AC11: 669
A12: 5 | B12: =IF('Check-In'!A32="","",'Check-In'!A32) -> 26 | C12: =IF('Check-In'!B32="","",'Check-In'!B32) -> HOMMES, JOHN | D12: =IF('Check-In'!C32="","",'Check-In'!C32) -> SS | E12: =IF('Check-In'!I32="","",'Check-In'!I32) ->  | F12: 214 | G12: 40 | H12: 237 | I12: 40 | J12: 247 | K12: 40 | L12: 198 | M12: 40 | N12: 268 | O12: 40 | P12: 196 | R12: 235 | S12: 40 | T12: 214 | V12: 1809 | W12: 240 | X12: 2049 | Y12: 449 | Z12: 226.13 | AB12: 698 | AC12: 662
A13: 6 | B13: =IF('Check-In'!A22="","",'Check-In'!A22) -> 16 | C13: =IF('Check-In'!B22="","",'Check-In'!B22) -> LANGER, DAVE | D13: =IF('Check-In'!C22="","",'Check-In'!C22) ->  | E13: =IF('Check-In'!I22="","",'Check-In'!I22) ->  | F13: 214 | H13: 248 | I13: 40 | J13: 208 | K13: 40 | L13: 255 | M13: 40 | N13: 226 | O13: 40 | P13: 268 | Q13: 40 | R13: 200 | T13: 224 | V13: 1843 | W13: 200 | X13: 2043 | Y13: 443 | Z13: 230.38 | AB13: 670 | AC13: 749
A14: 7 | B14: =IF('Check-In'!A59="","",'Check-In'!A59) -> 53 | C14: =IF('Check-In'!B59="","",'Check-In'!B59) -> DOWNER, ROB | D14: =IF('Check-In'!C59="","",'Check-In'!C59) -> SS | E14: =IF('Check-In'!I59="","",'Check-In'!I59) ->  | F14: 209 | H14: 204 | I14: 40 | J14: 248 | K14: 40 | L14: 236 | M14: 40 | N14: 214 | O14: 40 | P14: 208 | Q14: 40 | R14: 217 | S14: 40 | T14: 247 | V14: 1783 | W14: 240 | X14: 2023 | Y14: 423 | Z14: 222.88 | AB14: 661 | AC14: 658
A15: 8 | B15: =IF('Check-In'!A33="","",'Check-In'!A33) -> 27 | C15: =IF('Check-In'!B33="","",'Check-In'!B33) -> JONES, TOM | D15: =IF('Check-In'!C33="","",'Check-In'!C33) ->  | E15: =IF('Check-In'!I33="","",'Check-In'!I33) ->  | F15: 216 | G15: 40 | H15: 194 | J15: 245 | K15: 40 | L15: 219 | M15: 40 | N15: 191 | O15: 40 | P15: 215 | Q15: 40 | R15: 228 | S15: 40 | T15: 213 | U15: 40 | V15: 1721 | W15: 280 | X15: 2001 | Y15: 401 | Z15: 215.13 | AB15: 655 | AC15: 625
A16: 9 | B16: =IF('Check-In'!A29="","",'Check-In'!A29) -> 23 | C16: =IF('Check-In'!B29="","",'Check-In'!B29) -> GREEN, GARY | D16: =IF('Check-In'!C29="","",'Check-In'!C29) -> SS | E16: =IF('Check-In'!I29="","",'Check-In'!I29) ->  | F16: 256 | G16: 40 | H16: 205 | I16: 40 | J16: 228 | L16: 193 | M16: 40 | N16: 182 | O16: 40 | P16: 245 | Q16: 40 | R16: 216 | S16: 40 | T16: 232 | V16: 1757 | W16: 240 | X16: 1997 | Y16: 397 | Z16: 219.63 | AB16: 689 | AC16: 620
A17: 10 | B17: =IF('Check-In'!A18="","",'Check-In'!A18) -> 12 | C17: =IF('Check-In'!B18="","",'Check-In'!B18) -> HAVLISH, TOM | D17: =IF('Check-In'!C18="","",'Check-In'!C18) -> ROG | E17: =IF('Check-In'!I18="","",'Check-In'!I18) ->  | F17: 212 | G17: 40 | H17: 221 | I17: 40 | J17: 236 | K17: 40 | L17: 213 | M17: 20 | N17: 213 | O17: 40 | P17: 194 | R17: 209 | S17: 40 | T17: 212 | U17: 40 | V17: 1710 | W17: 260 | X17: 1970 | Y17: 370 | Z17: 213.75 | AB17: 669 | AC17: 620
A18: 11 | B18: =IF('Check-In'!A8="","",'Check-In'!A8) -> 2 | C18: =IF('Check-In'!B8="","",'Check-In'!B8) -> DAVIS, SCOTT | D18: =IF('Check-In'!C8="","",'Check-In'!C8) ->  | E18: =IF('Check-In'!I8="","",'Check-In'!I8) ->  | F18: 187 | H18: 180 | J18: 195 | K18: 40 | L18: 235 | M18: 40 | N18: 180 | O18: 40 | P18: 244 | Q18: 40 | R18: 223 | S18: 40 | T18: 255 | U18: 40 | V18: 1699 | W18: 240 | X18: 1939 | Y18: 339 | Z18: 212.38 | AB18: 562 | AC18: 659
A19: 12 | B19: =IF('Check-In'!A52="","",'Check-In'!A52) -> 46 | C19: =IF('Check-In'!B52="","",'Check-In'!B52) -> BIRKEDAHL, LARRY | D19: =IF('Check-In'!C52="","",'Check-In'!C52) ->  | E19: =IF('Check-In'!I52="","",'Check-In'!I52) ->  | F19: 189 | H19: 209 | J19: 208 | K19: 40 | L19: 258 | M19: 40 | N19: 225 | O19: 40 | P19: 235 | R19: 198 | S19: 40 | T19: 209 | U19: 40 | V19: 1731 | W19: 200 | X19: 1931 | Y19: 331 | Z19: 216.38 | AB19: 606 | AC19: 718
A20: 13 | B20: =IF('Check-In'!A14="","",'Check-In'!A14) -> 8 | C20: =IF('Check-In'!B14="","",'Check-In'!B14) -> MCKINNEY, TERRY | D20: =IF('Check-In'!C14="","",'Check-In'!C14) ->  | E20: =IF('Check-In'!I14="","",'Check-In'!I14) ->  | F20: 199 | H20: 222 | J20: 201 | L20: 248 | M20: 40 | N20: 248 | O20: 40 | P20: 236 | Q20: 40 | R20: 225 | S20: 20 | T20: 202 | V20: 1781 | W20: 140 | X20: 1921 | Y20: 321 | Z20: 222.63 | AB20: 622 | AC20: 732
A21: 14 | B21: =IF('Check-In'!A19="","",'Check-In'!A19) -> 13 | C21: =IF('Check-In'!B19="","",'Check-In'!B19) -> VANSLEET, TODD | D21: =IF('Check-In'!C19="","",'Check-In'!C19) ->  | E21: =IF('Check-In'!I19="","",'Check-In'!I19) ->  | F21: 238 | G21: 40 | H21: 216 | I21: 40 | J21: 204 | L21: 199 | M21: 40 | N21: 225 | O21: 40 | P21: 237 | Q21: 40 | R21: 192 | T21: 200 | V21: 1711 | W21: 200 | X21: 1911 | Y21: 311 | Z21: 213.88 | AB21: 658 | AC21: 661
A22: 15 | B22: =IF('Check-In'!A45="","",'Check-In'!A45) -> 39 | C22: =IF('Check-In'!B45="","",'Check-In'!B45) -> JONES, DAVE | D22: =IF('Check-In'!C45="","",'Check-In'!C45) ->  | E22: =IF('Check-In'!I45="","",'Check-In'!I45) ->  | F22: 203 | G22: 40 | H22: 221 | I22: 40 | J22: 168 | L22: 206 | M22: 40 | N22: 177 | P22: 299 | Q22: 40 | R22: 197 | T22: 234 | U22: 40 | V22: 1705 | W22: 200 | X22: 1905 | Y22: 305 | Z22: 213.13 | AB22: 592 | AC22: 682
A23: 16 | B23: =IF('Check-In'!A9="","",'Check-In'!A9) -> 3 | C23: =IF('Check-In'!B9="","",'Check-In'!B9) -> PESCH, JOHN | D23: =IF('Check-In'!C9="","",'Check-In'!C9) ->  | E23: =IF('Check-In'!I9="","",'Check-In'!I9) ->  | F23: 170 | H23: 191 | I23: 40 | J23: 234 | K23: 40 | L23: 223 | N23: 202 | O23: 40 | P23: 268 | Q23: 40 | R23: 225 | S23: 20 | T23: 187 | V23: 1700 | W23: 180 | X23: 1880 | Y23: 280 | Z23: 212.50 | AB23: 595 | AC23: 693
A24: 17 | B24: =IF('Check-In'!A35="","",'Check-In'!A35) -> 29 | C24: =IF('Check-In'!B35="","",'Check-In'!B35) -> BORDSON, DAVE | D24: =IF('Check-In'!C35="","",'Check-In'!C35) -> SS | E24: =IF('Check-In'!I35="","",'Check-In'!I35) ->  | F24: 215 | G24: 40 | H24: 211 | I24: 40 | J24: 145 | L24: 203 | N24: 214 | O24: 40 | P24: 226 | Q24: 40 | R24: 238 | S24: 40 | T24: 226 | V24: 1678 | W24: 200 | X24: 1878 | Y24: 278 | Z24: 209.75 | AB24: 571 | AC24: 643
A25: 18 | B25: =IF('Check-In'!A16="","",'Check-In'!A16) -> 10 | C25: =IF('Check-In'!B16="","",'Check-In'!B16) -> WRIGHT, DANA | D25: =IF('Check-In'!C16="","",'Check-In'!C16) ->  | E25: =IF('Check-In'!I16="","",'Check-In'!I16) ->  | F25: 198 | H25: 269 | I25: 40 | J25: 215 | K25: 40 | L25: 219 | N25: 226 | O25: 40 | P25: 194 | R25: 172 | T25: 222 | U25: 40 | V25: 1715 | W25: 160 | X25: 1875 | Y25: 275 | Z25: 214.38 | AB25: 682 | AC25: 639
A26: 19 | B26: =IF('Check-In'!A46="","",'Check-In'!A46) -> 40 | C26: =IF('Check-In'!B46="","",'Check-In'!B46) -> PETERSON, ED | D26: =IF('Check-In'!C46="","",'Check-In'!C46) ->  | E26: =IF('Check-In'!I46="","",'Check-In'!I46) ->  | F26: 200 | G26: 40 | H26: 203 | I26: 40 | J26: 215 | K26: 40 | L26: 203 | M26: 40 | N26: 159 | P26: 170 | R26: 249 | S26: 40 | T26: 228 | U26: 40 | V26: 1627 | W26: 240 | X26: 1867 | Y26: 267 | Z26: 203.38 | AB26: 618 | AC26: 532
A27: 20 | B27: =IF('Check-In'!A41="","",'Check-In'!A41) -> 35 | C27: =IF('Check-In'!B41="","",'Check-In'!B41) -> STOEBNER, JOHN | D27: =IF('Check-In'!C41="","",'Check-In'!C41) -> SS | E27: =IF('Check-In'!I41="","",'Check-In'!I41) ->  | F27: 234 | G27: 40 | H27: 199 | I27: 40 | J27: 179 | L27: 202 | N27: 168 | O27: 40 | P27: 217 | Q27: 40 | R27: 204 | S27: 40 | T27: 224 | U27: 40 | V27: 1627 | W27: 240 | X27: 1867 | Y27: 267 | Z27: 203.38 | AB27: 612 | AC27: 587
A28: 21 | B28: =IF('Check-In'!A55="","",'Check-In'!A55) -> 49 | C28: =IF('Check-In'!B55="","",'Check-In'!B55) -> MICEK, BOB | D28: =IF('Check-In'!C55="","",'Check-In'!C55) -> SS | E28: =IF('Check-In'!I55="","",'Check-In'!I55) ->  | F28: 216 | H28: 234 | J28: 246 | K28: 40 | L28: 171 | M28: 40 | N28: 223 | O28: 40 | P28: 214 | R28: 169 | T28: 223 | U28: 40 | V28: 1696 | W28: 160 | X28: 1856 | Y28: 256 | Z28: 212.00 | AB28: 696 | AC28: 608
A29: 22 | B29: =IF('Check-In'!A25="","",'Check-In'!A25) -> 19 | C29: =IF('Check-In'!B25="","",'Check-In'!B25) -> IRVIN, BRAD | D29: =IF('Check-In'!C25="","",'Check-In'!C25) ->  | E29: =IF('Check-In'!I25="","",'Check-In'!I25) ->  | F29: 214 | G29: 40 | H29: 223 | I29: 40 | J29: 187 | K29: 40 | L29: 169 | M29: 40 | N29: 223 | P29: 190 | R29: 192 | T29: 243 | U29: 40 | V29: 1641 | W29: 200 | X29: 1841 | Y29: 241 | Z29: 205.13 | AB29: 624 | AC29: 582
A30: 23 | B30: =IF('Check-In'!A60="","",'Check-In'!A60) -> 54 | C30: =IF('Check-In'!B60="","",'Check-In'!B60) -> BOHN, STEVE | D30: =IF('Check-In'!C60="","",'Check-In'!C60) ->  | E30: =IF('Check-In'!I60="","",'Check-In'!I60) ->  | F30: 175 | G30: 40 | H30: 189 | J30: 207 | K30: 40 | L30: 183 | N30: 235 | P30: 228 | Q30: 40 | R30: 206 | S30: 40 | T30: 205 | U30: 40 | V30: 1628 | W30: 200 | X30: 1828 | Y30: 228 | Z30: 203.50 | AB30: 571 | AC30: 646
A31: 24 | B31: =IF('Check-In'!A21="","",'Check-In'!A21) -> 15 | C31: =IF('Check-In'!B21="","",'Check-In'!B21) -> REYNOLDS, TIM | D31: =IF('Check-In'!C21="","",'Check-In'!C21) ->  | E31: =IF('Check-In'!I37="","",'Check-In'!I37) ->  | F31: 212 | G31: 40 | H31: 171 | J31: 232 | K31: 40 | L31: 224 | M31: 40 | N31: 217 | P31: 198 | R31: 222 | S31: 40 | T31: 185 | V31: 1661 | W31: 160 | X31: 1821 | Y31: 221 | Z31: 207.63 | AB31: 615 | AC31: 639
A32: 25 | B32: =IF('Check-In'!A66="","",'Check-In'!A66) -> 60 | C32: =IF('Check-In'!B66="","",'Check-In'!B66) -> RACETTE, TIM | D32: =IF('Check-In'!C66="","",'Check-In'!C66) -> SS | E32: =IF('Check-In'!I66="","",'Check-In'!I66) ->  | F32: 176 | H32: 240 | I32: 40 | J32: 175 | L32: 222 | M32: 40 | N32: 179 | P32: 215 | Q32: 40 | R32: 217 | T32: 226 | U32: 40 | V32: 1650 | W32: 160 | X32: 1810 | Y32: 210 | Z32: 206.25 | AB32: 591 | AC32: 616
A33: 26 | B33: =IF('Check-In'!A54="","",'Check-In'!A54) -> 48 | C33: =IF('Check-In'!B54="","",'Check-In'!B54) -> HANKE, KURT | D33: =IF('Check-In'!C54="","",'Check-In'!C54) ->  | E33: =IF('Check-In'!I54="","",'Check-In'!I54) ->  | F33: 216 | G33: 40 | H33: 190 | J33: 196 | L33: 220 | N33: 228 | O33: 40 | P33: 257 | Q33: 40 | R33: 193 | T33: 181 | V33: 1681 | W33: 120 | X33: 1801 | Y33: 201 | Z33: 210.13 | AB33: 602 | AC33: 705
A34: 27 | B34: =IF('Check-In'!A61="","",'Check-In'!A61) -> 55 | C34: =IF('Check-In'!B61="","",'Check-In'!B61) -> URBI, GORDON | D34: =IF('Check-In'!C61="","",'Check-In'!C61) ->  | E34: =IF('Check-In'!I61="","",'Check-In'!I61) ->  | F34: 232 | G34: 40 | H34: 193 | I34: 40 | J34: 190 | K34: 40 | L34: 176 | N34: 179 | P34: 215 | Q34: 40 | R34: 222 | S34: 40 | T34: 193 | V34: 1600 | W34: 200 | X34: 1800 | Y34: 200 | Z34: 200.00 | AB34: 615 | AC34: 570
A35: 28 | B35: =IF('Check-In'!A36="","",'Check-In'!A36) -> 30 | C35: =IF('Check-In'!B36="","",'Check-In'!B36) -> HAUGAN, ERIC | D35: =IF('Check-In'!C36="","",'Check-In'!C36) ->  | E35: =IF('Check-In'!I36="","",'Check-In'!I36) ->  | F35: 148 | H35: 220 | J35: 247 | K35: 40 | L35: 180 | N35: 223 | O35: 40 | P35: 193 | Q35: 40 | R35: 201 | S35: 40 | T35: 187 | U35: 40 | V35: 1599 | W35: 200 | X35: 1799 | Y35: 199 | Z35: 199.88 | AB35: 615 | AC35: 596
A36: 29 | B36: =IF('Check-In'!A67="","",'Check-In'!A67) -> 61 | C36: =IF('Check-In'!B67="","",'Check-In'!B67) -> WINTER, JIM | D36: =IF('Check-In'!C67="","",'Check-In'!C67) ->  | E36: =IF('Check-In'!I67="","",'Check-In'!I67) ->  | F36: 227 | G36: 40 | H36: 167 | J36: 167 | L36: 194 | N36: 215 | O36: 40 | P36: 222 | Q36: 40 | R36: 207 | S36: 40 | T36: 198 | U36: 40 | V36: 1597 | W36: 200 | X36: 1797 | Y36: 197 | Z36: 199.63 | AB36: 561 | AC36: 631
A37: 30 | B37: =IF('Check-In'!A49="","",'Check-In'!A49) -> 43 | C37: =IF('Check-In'!B49="","",'Check-In'!B49) -> WIRZ, MIKE | D37: =IF('Check-In'!C49="","",'Check-In'!C49) -> SS | E37: =IF('Check-In'!I49="","",'Check-In'!I49) ->  | F37: 196 | G37: 40 | H37: 226 | I37: 40 | J37: 215 | K37: 40 | L37: 216 | M37: 40 | N37: 216 | P37: 190 | R37: 174 | T37: 187 | V37: 1620 | W37: 160 | X37: 1780 | Y37: 180 | Z37: 202.50 | AB37: 637 | AC37: 622
A38: 31 | B38: =IF('Check-In'!A11="","",'Check-In'!A11) -> 5 | C38: =IF('Check-In'!B11="","",'Check-In'!B11) -> SCHOSSOW, FRED | D38: =IF('Check-In'!C11="","",'Check-In'!C11) ->  | E38: =IF('Check-In'!I11="","",'Check-In'!I11) ->  | F38: 207 | G38: 40 | H38: 159 | J38: 190 | K38: 40 | L38: 172 | N38: 190 | P38: 227 | Q38: 40 | R38: 229 | S38: 40 | T38: 202 | U38: 40 | V38: 1576 | W38: 200 | X38: 1776 | Y38: 176 | Z38: 197.00 | AB38: 556 | AC38: 589
A39: 32 | B39: =IF('Check-In'!A34="","",'Check-In'!A34) -> 28 | C39: =IF('Check-In'!B34="","",'Check-In'!B34) -> WENZEL, JEFF | D39: =IF('Check-In'!C34="","",'Check-In'!C34) ->  | E39: =IF('Check-In'!I34="","",'Check-In'!I34) ->  | F39: 225 | H39: 215 | I39: 40 | J39: 205 | L39: 223 | M39: 40 | N39: 221 | O39: 40 | P39: 189 | Q39: 40 | R39: 144 | T39: 187 | V39: 1609 | W39: 160 | X39: 1769 | Y39: 169 | Z39: 201.13 | AB39: 645 | AC39: 633
A40: 33 | B40: =IF('Check-In'!A56="","",'Check-In'!A56) -> 50 | C40: =IF('Check-In'!B56="","",'Check-In'!B56) -> CORBETT, TOM | D40: =IF('Check-In'!C56="","",'Check-In'!C56) -> SS | E40: =IF('Check-In'!I56="","",'Check-In'!I56) ->  | F40: 227 | G40: 40 | H40: 210 | J40: 207 | K40: 40 | L40: 179 | N40: 213 | P40: 202 | R40: 226 | S40: 40 | T40: 180 | V40: =IF(F40="","",IF(Tourn="MSC",F40+H40+J40+L40+N40+P40+R40+T40,SUM(F40:U40))) -> 1644 | W40: =IF(F40="","",IF(Tourn="MSC",G40+I40+K40+M40+O40+Q40+S40+U40,0)) -> 120 | X40: =IF(V40="","",V40+W40) -> 1764 | Y40: =IF(F40="","",X40-$K$4*200) -> 164 | Z40: =IF(F40="","",V40/$K$4) -> 205.50 | AB40: =IF(Tourn="MSC",F40+H40+J40,SUM(F40:H40)) -> 644 | AC40: =IF(Tourn="MSC",L40+N40+P40,SUM(I40:K40)) -> 594 | AD40: =IF(OR(Tourn="MSC",Tourn="1-Day"),"",IF(N40="",0,SUM(L40:N40))) ->  | AE40: =IF(OR(Tourn="MSC",Tourn="1-Day"),"",IF(O40="",0,SUM(O40:Q40))) ->  | AF40: =IF(OR(Tourn="MSC",Tourn="1-Day"),"",IF(P40="",0,SUM(R40:T40))) ->  | AH40: =IF(Tourn="Dbls",SUM(N40:P40),"") ->  | AI40: =IF(Tourn="Dbls",SUM(Q40:S40),"") -> 
A41: 34 | B41: =IF('Check-In'!A27="","",'Check-In'!A27) -> 21 | C41: =IF('Check-In'!B27="","",'Check-In'!B27) -> VANWIE, MIKE | D41: =IF('Check-In'!C27="","",'Check-In'!C27) -> SS | E41: =IF('Check-In'!I27="","",'Check-In'!I27) ->  | F41: 248 | G41: 40 | H41: 155 | J41: 177 | L41: 225 | M41: 40 | N41: 194 | O41: 40 | P41: 188 | R41: 235 | S41: 40 | T41: 178 | V41: 1600 | W41: 160 | X41: 1760 | Y41: 160 | Z41: 200.00 | AB41: 580 | AC41: 607
A42: 35 | B42: =IF('Check-In'!A68="","",'Check-In'!A68) -> 62 | C42: =IF('Check-In'!B68="","",'Check-In'!B68) -> WORM, KEN | D42: =IF('Check-In'!C68="","",'Check-In'!C68) -> ROG | E42: =IF('Check-In'!I68="","",'Check-In'!I68) ->  | F42: 194 | G42: 40 | H42: 203 | I42: 40 | J42: 177 | K42: 40 | L42: 183 | M42: 40 | N42: 226 | P42: 184 | R42: 201 | T42: 191 | U42: 40 | V42: 1559 | W42: 200 | X42: 1759 | Y42: 159 | Z42: 194.88 | AB42: 574 | AC42: 593
A43: 36 | B43: =IF('Check-In'!A51="","",'Check-In'!A51) -> 45 | C43: =IF('Check-In'!B51="","",'Check-In'!B51) -> PEARSE, MIKE | D43: =IF('Check-In'!C51="","",'Check-In'!C51) ->  | E43: =IF('Check-In'!I51="","",'Check-In'!I51) ->  | F43: 200 | H43: 234 | I43: 40 | J43: 207 | L43: 194 | N43: 168 | O43: 40 | P43: 197 | R43: 233 | S43: 40 | T43: 203 | V43: 1636 | W43: 120 | X43: 1756 | Y43: 156 | Z43: 204.50 | AB43: 641 | AC43: 559
A44: 37 | B44: =IF('Check-In'!A23="","",'Check-In'!A23) -> 17 | C44: =IF('Check-In'!B23="","",'Check-In'!B23) -> BLAZEJ, GEORGE | D44: =IF('Check-In'!C23="","",'Check-In'!C23) -> ROG | E44: =IF('Check-In'!I23="","",'Check-In'!I23) ->  | F44: 170 | H44: 225 | I44: 40 | J44: 179 | K44: 40 | L44: 211 | N44: 180 | P44: 206 | Q44: 40 | R44: 216 | S44: 40 | T44: 188 | V44: 1575 | W44: 160 | X44: 1735 | Y44: 135 | Z44: 196.88 | AB44: 574 | AC44: 597
A45: 38 | B45: =IF('Check-In'!A30="","",'Check-In'!A30) -> 24 | C45: =IF('Check-In'!B30="","",'Check-In'!B30) -> ROBILLARD, BOB | D45: =IF('Check-In'!C30="","",'Check-In'!C30) -> SS | E45: =IF('Check-In'!I30="","",'Check-In'!I30) ->  | F45: 258 | G45: 40 | H45: 169 | I45: 40 | J45: 191 | L45: 174 | N45: 212 | O45: 40 | P45: 175 | R45: 183 | T45: 211 | U45: 40 | V45: 1573 | W45: 160 | X45: 1733 | Y45: 133 | Z45: 196.63 | AB45: 618 | AC45: 561
A46: 39 | B46: =IF('Check-In'!A44="","",'Check-In'!A44) -> 38 | C46: =IF('Check-In'!B44="","",'Check-In'!B44) -> SCHMID, MIKE | D46: =IF('Check-In'!C44="","",'Check-In'!C44) -> ROG | E46: =IF('Check-In'!I44="","",'Check-In'!I44) ->  | F46: 204 | G46: 40 | H46: 193 | J46: 236 | K46: 40 | L46: 190 | N46: 213 | O46: 40 | P46: 185 | R46: 200 | T46: 182 | V46: 1603 | W46: 120 | X46: 1723 | Y46: 123 | Z46: 200.38 | AB46: 633 | AC46: 588
A47: 40 | B47: =IF('Check-In'!A31="","",'Check-In'!A31) -> 25 | C47: =IF('Check-In'!B31="","",'Check-In'!B31) -> HENK, RICK | D47: =IF('Check-In'!C31="","",'Check-In'!C31) -> SS | E47: =IF('Check-In'!I31="","",'Check-In'!I31) ->  | F47: 232 | H47: 223 | I47: 40 | J47: 172 | K47: 40 | L47: 155 | N47: 178 | P47: 196 | R47: 192 | T47: 247 | U47: 40 | V47: 1595 | W47: 120 | X47: 1715 | Y47: 115 | Z47: 199.38 | AB47: 627 | AC47: 529
A48: 41 | B48: =IF('Check-In'!A10="","",'Check-In'!A10) -> 4 | C48: =IF('Check-In'!B10="","",'Check-In'!B10) -> NELSON, BILL | D48: =IF('Check-In'!C10="","",'Check-In'!C10) ->  | E48: =IF('Check-In'!I10="","",'Check-In'!I10) ->  | F48: 236 | G48: 40 | H48: 204 | J48: 187 | L48: 184 | N48: 238 | O48: 40 | P48: 193 | Q48: 40 | R48: 204 | T48: 147 | V48: 1593 | W48: 120 | X48: 1713 | Y48: 113 | Z48: 199.13 | AB48: 627 | AC48: 615
A49: 42 | B49: =IF('Check-In'!A12="","",'Check-In'!A12) -> 6 | C49: =IF('Check-In'!B12="","",'Check-In'!B12) -> POELZER, CLARK | D49: =IF('Check-In'!C12="","",'Check-In'!C12) -> ROG | E49: =IF('Check-In'!I12="","",'Check-In'!I12) ->  | F49: 214 | G49: 40 | H49: 168 | J49: 215 | L49: 205 | M49: 40 | N49: 194 | P49: 212 | R49: 201 | T49: 181 | U49: 40 | V49: 1590 | W49: 120 | X49: 1710 | Y49: 110 | Z49: 198.75 | AB49: 597 | AC49: 611
A50: 43 | B50: =IF('Check-In'!A65="","",'Check-In'!A65) -> 59 | C50: =IF('Check-In'!B65="","",'Check-In'!B65) -> RYAN, MIKE | D50: =IF('Check-In'!C65="","",'Check-In'!C65) ->  | E50: =IF('Check-In'!I65="","",'Check-In'!I65) ->  | F50: 193 | G50: 40 | H50: 202 | J50: 178 | L50: 237 | M50: 40 | N50: 164 | P50: 226 | Q50: 40 | R50: 202 | T50: 182 | V50: 1584 | W50: 120 | X50: 1704 | Y50: 104 | Z50: 198.00 | AB50: 573 | AC50: 627
A51: 44 | B51: =IF('Check-In'!A13="","",'Check-In'!A13) -> 7 | C51: =IF('Check-In'!B13="","",'Check-In'!B13) -> MAGNUSON, TRACEY | D51: =IF('Check-In'!C13="","",'Check-In'!C13) ->  | E51: =IF('Check-In'!I13="","",'Check-In'!I13) ->  | F51: 171 | H51: 205 | I51: 40 | J51: 186 | L51: 158 | N51: 205 | P51: 223 | R51: 213 | S51: 40 | T51: 212 | U51: 40 | V51: 1573 | W51: 120 | X51: 1693 | Y51: 93 | Z51: 196.63 | AB51: 562 | AC51: 586
A52: 45 | B52: =IF('Check-In'!A42="","",'Check-In'!A42) -> 36 | C52: =IF('Check-In'!B42="","",'Check-In'!B42) -> SODERGREN, SCOTT | D52: =IF('Check-In'!C42="","",'Check-In'!C42) -> SS | E52: =IF('Check-In'!I42="","",'Check-In'!I42) ->  | F52: 173 | H52: 187 | I52: 40 | J52: 219 | K52: 40 | L52: 201 | N52: 146 | P52: 196 | Q52: 40 | R52: 171 | T52: 213 | U52: 40 | V52: 1506 | W52: 160 | X52: 1666 | Y52: 66 | Z52: 188.25 | AB52: 579 | AC52: 543
A53: 46 | B53: =IF('Check-In'!A38="","",'Check-In'!A38) -> 32 | C53: =IF('Check-In'!B38="","",'Check-In'!B38) -> SCHACHT, TERRY | D53: =IF('Check-In'!C38="","",'Check-In'!C38) -> ROG | E53: =IF('Check-In'!I38="","",'Check-In'!I38) ->  | F53: 187 | G53: 40 | H53: 173 | J53: 168 | L53: 200 | M53: 40 | N53: 165 | P53: 236 | Q53: 40 | R53: 204 | T53: 209 | V53: 1542 | W53: 120 | X53: 1662 | Y53: 62 | Z53: 192.75 | AB53: 528 | AC53: 601
A54: 47 | B54: =IF('Check-In'!A39="","",'Check-In'!A39) -> 33 | C54: =IF('Check-In'!B39="","",'Check-In'!B39) -> GOODWIN, CRAIG | D54: =IF('Check-In'!C39="","",'Check-In'!C39) -> SS | E54: =IF('Check-In'!I39="","",'Check-In'!I39) ->  | F54: 165 | H54: 222 | J54: 232 | K54: 40 | L54: 170 | N54: 203 | P54: 200 | R54: 217 | T54: 206 | V54: 1615 | W54: 40 | X54: 1655 | Y54: 55 | Z54: 201.88 | AB54: 619 | AC54: 573
A55: 48 | B55: =IF('Check-In'!A47="","",'Check-In'!A47) -> 41 | C55: =IF('Check-In'!B47="","",'Check-In'!B47) -> BRUINSMA, DEAN | D55: =IF('Check-In'!C47="","",'Check-In'!C47) -> SS | E55: =IF('Check-In'!I47="","",'Check-In'!I47) ->  | F55: 156 | H55: 223 | I55: 40 | J55: 189 | L55: 154 | N55: 213 | P55: 189 | R55: 204 | S55: 40 | T55: 202 | U55: 40 | V55: 1530 | W55: 120 | X55: 1650 | Y55: 50 | Z55: 191.25 | AB55: 568 | AC55: 556
A56: 49 | B56: =IF('Check-In'!A20="","",'Check-In'!A20) -> 14 | C56: =IF('Check-In'!B20="","",'Check-In'!B20) -> JENSEN, ROBERT | D56: =IF('Check-In'!C20="","",'Check-In'!C20) -> SS | E56: =IF('Check-In'!I20="","",'Check-In'!I20) ->  | F56: 196 | H56: 170 | J56: 182 | K56: 40 | L56: 213 | M56: 20 | N56: 204 | P56: 204 | R56: 228 | S56: 40 | T56: 135 | V56: 1532 | W56: 100 | X56: 1632 | Y56: 32 | Z56: 191.50 | AB56: 548 | AC56: 621
A57: 50 | B57: =IF('Check-In'!A64="","",'Check-In'!A64) -> 58 | C57: =IF('Check-In'!B64="","",'Check-In'!B64) -> HAUGH, BOB | D57: =IF('Check-In'!C64="","",'Check-In'!C64) -> ROG | E57: =IF('Check-In'!I64="","",'Check-In'!I64) ->  | F57: 266 | G57: 40 | H57: 199 | J57: 233 | L57: 153 | N57: 180 | P57: 138 | R57: 212 | T57: 210 | V57: 1591 | W57: 40 | X57: 1631 | Y57: 31 | Z57: 198.88 | AB57: 698 | AC57: 471
A58: 51 | B58: =IF('Check-In'!A40="","",'Check-In'!A40) -> 34 | C58: =IF('Check-In'!B40="","",'Check-In'!B40) -> CLEVELAND, RON | D58: =IF('Check-In'!C40="","",'Check-In'!C40) -> SS | E58: =IF('Check-In'!I40="","",'Check-In'!I40) ->  | F58: 183 | H58: 188 | J58: 194 | L58: 211 | N58: 186 | P58: 212 | R58: 202 | T58: 211 | U58: 40 | V58: 1587 | W58: 40 | X58: 1627 | Y58: 27 | Z58: 198.38 | AB58: 565 | AC58: 609
A59: 52 | B59: =IF('Check-In'!A28="","",'Check-In'!A28) -> 22 | C59: =IF('Check-In'!B28="","",'Check-In'!B28) -> SATHER, GLEN | D59: =IF('Check-In'!C28="","",'Check-In'!C28) ->  | E59: =IF('Check-In'!I28="","",'Check-In'!I28) ->  | F59: 158 | H59: 224 | I59: 40 | J59: 176 | L59: 143 | N59: 171 | O59: 40 | P59: 243 | Q59: 40 | R59: 171 | T59: 193 | V59: 1479 | W59: 120 | X59: 1599 | Y59: -1 | Z59: 184.88 | AB59: 558 | AC59: 557
A60: 53 | B60: =IF('Check-In'!A43="","",'Check-In'!A43) -> 37 | C60: =IF('Check-In'!B43="","",'Check-In'!B43) -> MARSHALL. MAURICE | D60: =IF('Check-In'!C43="","",'Check-In'!C43) ->  | E60: =IF('Check-In'!I43="","",'Check-In'!I43) ->  | F60: 159 | H60: 169 | J60: 168 | L60: 235 | M60: 40 | N60: 258 | O60: 40 | P60: 174 | R60: 177 | T60: 169 | V60: 1509 | W60: 80 | X60: 1589 | Y60: -11 | Z60: 188.63 | AB60: 496 | AC60: 667
A61: 54 | B61: =IF('Check-In'!A50="","",'Check-In'!A50) -> 44 | C61: =IF('Check-In'!B50="","",'Check-In'!B50) -> MANSKE, WARREN | D61: =IF('Check-In'!C50="","",'Check-In'!C50) -> SS | E61: =IF('Check-In'!I50="","",'Check-In'!I50) ->  | F61: 201 | H61: 180 | I61: 40 | J61: 172 | L61: 177 | N61: 170 | P61: 192 | Q61: 40 | R61: 187 | T61: 193 | V61: 1472 | W61: 80 | X61: 1552 | Y61: -48 | Z61: 184.00 | AB61: 553 | AC61: 539
A62: 55 | B62: =IF('Check-In'!A15="","",'Check-In'!A15) -> 9 | C62: =IF('Check-In'!B15="","",'Check-In'!B15) -> FABIN, BILL | D62: =IF('Check-In'!C15="","",'Check-In'!C15) ->  | E62: =IF('Check-In'!I15="","",'Check-In'!I15) ->  | F62: 158 | G62: 40 | H62: 165 | J62: 164 | L62: 214 | M62: 40 | N62: 180 | P62: 158 | R62: 180 | S62: 40 | T62: 172 | U62: 40 | V62: 1391 | W62: 160 | X62: 1551 | Y62: -49 | Z62: 173.88 | AB62: 487 | AC62: 552
A63: 56 | B63: =IF('Check-In'!A63="","",'Check-In'!A63) -> 57 | C63: =IF('Check-In'!B63="","",'Check-In'!B63) -> DAVISON, PAUL | D63: =IF('Check-In'!C63="","",'Check-In'!C63) -> SS | E63: =IF('Check-In'!I63="","",'Check-In'!I63) ->  | F63: 158 | H63: 181 | I63: 40 | J63: 192 | L63: 185 | N63: 179 | P63: 180 | Q63: 20 | R63: 171 | T63: 190 | U63: 40 | V63: 1436 | W63: 100 | X63: 1536 | Y63: -64 | Z63: 179.50 | AB63: 531 | AC63: 544
A64: 57 | B64: =IF('Check-In'!A26="","",'Check-In'!A26) -> 20 | C64: =IF('Check-In'!B26="","",'Check-In'!B26) -> BJERKE, PAUL | D64: =IF('Check-In'!C26="","",'Check-In'!C26) ->  | E64: =IF('Check-In'!I26="","",'Check-In'!I26) ->  | F64: 213 | G64: 40 | H64: 193 | J64: 169 | L64: 168 | N64: 161 | P64: 180 | Q64: 20 | R64: 191 | T64: 192 | V64: 1467 | W64: 60 | X64: 1527 | Y64: -73 | Z64: 183.38 | AB64: 575 | AC64: 509
A65: 58 | B65: =IF('Check-In'!A17="","",'Check-In'!A17) -> 11 | C65: =IF('Check-In'!B17="","",'Check-In'!B17) -> DAVIS, BOB | D65: =IF('Check-In'!C17="","",'Check-In'!C17) ->  | E65: =IF('Check-In'!I17="","",'Check-In'!I17) ->  | F65: 225 | G65: 40 | H65: 148 | J65: 178 | L65: 157 | N65: 217 | O65: 40 | P65: 190 | R65: 157 | T65: 163 | V65: 1435 | W65: 80 | X65: 1515 | Y65: -85 | Z65: 179.38 | AB65: 551 | AC65: 564
A66: 59 | B66: =IF('Check-In'!A58="","",'Check-In'!A58) -> 52 | C66: =IF('Check-In'!B58="","",'Check-In'!B58) -> ADAMS, TOM | D66: =IF('Check-In'!C58="","",'Check-In'!C58) ->  | E66: =IF('Check-In'!I58="","",'Check-In'!I58) ->  | F66: 173 | H66: 175 | J66: 201 | L66: 165 | N66: 157 | P66: 230 | Q66: 40 | R66: 190 | T66: 160 | V66: 1451 | W66: 40 | X66: 1491 | Y66: -109 | Z66: 181.38 | AB66: 549 | AC66: 552
A67: 60 | B67: =IF('Check-In'!A53="","",'Check-In'!A53) -> 47 | C67: =IF('Check-In'!B53="","",'Check-In'!B53) -> HALIDA, TERRY | D67: =IF('Check-In'!C53="","",'Check-In'!C53) -> SS | E67: =IF('Check-In'!I53="","",'Check-In'!I53) ->  | F67: 191 | H67: 186 | J67: 170 | L67: 189 | N67: 183 | O67: 40 | P67: 147 | R67: 154 | T67: 189 | V67: 1409 | W67: 40 | X67: 1449 | Y67: -151 | Z67: 176.13 | AB67: 547 | AC67: 519
A68: 61 | B68: =IF('Check-In'!A62="","",'Check-In'!A62) -> 56 | C68: =IF('Check-In'!B62="","",'Check-In'!B62) -> THOMPSON, DOUG | D68: =IF('Check-In'!C62="","",'Check-In'!C62) -> SS | E68: =IF('Check-In'!I62="","",'Check-In'!I62) ->  | F68: 174 | H68: 150 | J68: 175 | L68: 185 | N68: 190 | P68: 189 | R68: 180 | T68: 176 | V68: 1419 | W68: 0 | X68: 1419 | Y68: -181 | Z68: 177.38 | AB68: 499 | AC68: 564
A69: 62 | B69: =IF('Check-In'!A24="","",'Check-In'!A24) -> 18 | C69: =IF('Check-In'!B24="","",'Check-In'!B24) -> WEINKE, RON | D69: =IF('Check-In'!C24="","",'Check-In'!C24) -> ROG | E69: =IF('Check-In'!I24="","",'Check-In'!I24) ->  | F69: 150 | H69: 156 | J69: 158 | L69: 213 | M69: 40 | N69: 141 | P69: 178 | R69: 155 | T69: 181 | U69: 40 | V69: 1332 | W69: 80 | X69: 1412 | Y69: -188 | Z69: 166.50 | AB69: 464 | AC69: 532
A70: 63 | B70: =IF('Check-In'!A69="","",'Check-In'!A69) -> 63 | C70: =IF('Check-In'!B69="","",'Check-In'!B69) ->  | D70: =IF('Check-In'!C69="","",'Check-In'!C69) ->  | E70: =IF('Check-In'!I69="","",'Check-In'!I69) ->  | V70: =IF(F70="","",IF(Tourn="MSC",F70+H70+J70+L70+N70+P70+R70+T70,SUM(F70:U70))) ->  | W70: =IF(F70="","",IF(Tourn="MSC",G70+I70+K70+M70+O70+Q70+S70+U70,0)) ->  | X70: =IF(V70="","",V70+W70) ->  | Y70: =IF(F70="","",X70-$K$4*200) ->  | Z70: =IF(F70="","",V70/$K$4) ->  | AB70: 0 | AC70: 0
A71: 64 | B71: =IF('Check-In'!A70="","",'Check-In'!A70) -> 64 | C71: =IF('Check-In'!B70="","",'Check-In'!B70) ->  | D71: =IF('Check-In'!C70="","",'Check-In'!C70) ->  | E71: =IF('Check-In'!I70="","",'Check-In'!I70) ->  | AB71: 0 | AC71: 0
A72: 65 | B72: =IF('Check-In'!A71="","",'Check-In'!A71) -> 65 | C72: =IF('Check-In'!B71="","",'Check-In'!B71) ->  | D72: =IF('Check-In'!C71="","",'Check-In'!C71) ->  | E72: =IF('Check-In'!I71="","",'Check-In'!I71) ->  | V72: =IF(F72="","",IF(Tourn="MSC",F72+H72+J72+L72+N72+P72+R72+T72,SUM(F72:U72))) ->  | W72: =IF(F72="","",IF(Tourn="MSC",G72+I72+K72+M72+O72+Q72+S72+U72,0)) ->  | X72: =IF(V72="","",V72+W72) ->  | Y72: =IF(F72="","",X72-$K$4*200) ->  | Z72: =IF(F72="","",V72/$K$4) ->  | AB72: =IF(Tourn="MSC",F72+H72+J72,SUM(F72:H72)) -> 0 | AC72: =IF(Tourn="MSC",L72+N72+P72,SUM(I72:K72)) -> 0 | AD72: =IF(OR(Tourn="MSC",Tourn="1-Day"),"",IF(N72="",0,SUM(L72:N72))) ->  | AE72: =IF(OR(Tourn="MSC",Tourn="1-Day"),"",IF(O72="",0,SUM(O72:Q72))) ->  | AF72: =IF(OR(Tourn="MSC",Tourn="1-Day"),"",IF(P72="",0,SUM(R72:T72))) ->  | AH72: =IF(Tourn="Dbls",SUM(N72:P72),"") ->  | AI72: =IF(Tourn="Dbls",SUM(Q72:S72),"") -> 
A73: 66 | B73: =IF('Check-In'!A72="","",'Check-In'!A72) -> 66 | C73: =IF('Check-In'!B72="","",'Check-In'!B72) ->  | D73: =IF('Check-In'!C72="","",'Check-In'!C72) ->  | E73: =IF('Check-In'!I72="","",'Check-In'!I72) ->  | AB73: 0 | AC73: 0
A74: 67 | B74: =IF('Check-In'!A73="","",'Check-In'!A73) -> 67 | C74: =IF('Check-In'!B73="","",'Check-In'!B73) ->  | D74: =IF('Check-In'!C73="","",'Check-In'!C73) ->  | E74: =IF('Check-In'!I73="","",'Check-In'!I73) ->  | AB74: 0 | AC74: 0
A75: 68 | B75: =IF('Check-In'!A74="","",'Check-In'!A74) -> 68 | C75: =IF('Check-In'!B74="","",'Check-In'!B74) ->  | D75: =IF('Check-In'!C74="","",'Check-In'!C74) ->  | E75: =IF('Check-In'!I74="","",'Check-In'!I74) ->  | AB75: 0 | AC75: 0
A76: 69 | B76: =IF('Check-In'!A75="","",'Check-In'!A75) -> 69 | C76: =IF('Check-In'!B75="","",'Check-In'!B75) ->  | D76: =IF('Check-In'!C75="","",'Check-In'!C75) ->  | E76: =IF('Check-In'!I75="","",'Check-In'!I75) ->  | AB76: 0 | AC76: 0
A77: 70 | B77: =IF('Check-In'!A76="","",'Check-In'!A76) -> 70 | C77: =IF('Check-In'!B76="","",'Check-In'!B76) ->  | D77: =IF('Check-In'!C76="","",'Check-In'!C76) ->  | E77: =IF('Check-In'!I76="","",'Check-In'!I76) ->  | AB77: 0 | AC77: 0
A78: 71 | B78: =IF('Check-In'!A77="","",'Check-In'!A77) -> 71 | C78: =IF('Check-In'!B77="","",'Check-In'!B77) ->  | D78: =IF('Check-In'!C77="","",'Check-In'!C77) ->  | E78: =IF('Check-In'!I77="","",'Check-In'!I77) ->  | AB78: 0 | AC78: 0
A79: 72 | B79: =IF('Check-In'!A78="","",'Check-In'!A78) -> 72 | C79: =IF('Check-In'!B78="","",'Check-In'!B78) ->  | D79: =IF('Check-In'!C78="","",'Check-In'!C78) ->  | E79: =IF('Check-In'!I78="","",'Check-In'!I78) ->  | AB79: 0 | AC79: 0
A80: 73 | B80: =IF('Check-In'!A79="","",'Check-In'!A79) -> 73 | C80: =IF('Check-In'!B79="","",'Check-In'!B79) ->  | D80: =IF('Check-In'!C79="","",'Check-In'!C79) ->  | E80: =IF('Check-In'!I79="","",'Check-In'!I79) ->  | AB80: 0 | AC80: 0
A81: 74 | B81: =IF('Check-In'!A80="","",'Check-In'!A80) -> 74 | C81: =IF('Check-In'!B80="","",'Check-In'!B80) ->  | D81: =IF('Check-In'!C80="","",'Check-In'!C80) ->  | E81: =IF('Check-In'!I80="","",'Check-In'!I80) ->  | AB81: 0 | AC81: 0
A82: 75 | B82: =IF('Check-In'!A81="","",'Check-In'!A81) -> 75 | C82: =IF('Check-In'!B81="","",'Check-In'!B81) ->  | D82: =IF('Check-In'!C81="","",'Check-In'!C81) ->  | E82: =IF('Check-In'!I81="","",'Check-In'!I81) ->  | AB82: 0 | AC82: 0
A83: 76 | B83: =IF('Check-In'!A82="","",'Check-In'!A82) -> 76 | C83: =IF('Check-In'!B82="","",'Check-In'!B82) ->  | D83: =IF('Check-In'!C82="","",'Check-In'!C82) ->  | E83: =IF('Check-In'!I82="","",'Check-In'!I82) ->  | AB83: 0 | AC83: 0
A84: 77 | B84: =IF('Check-In'!A83="","",'Check-In'!A83) -> 77 | C84: =IF('Check-In'!B83="","",'Check-In'!B83) ->  | D84: =IF('Check-In'!C83="","",'Check-In'!C83) ->  | E84: =IF('Check-In'!I83="","",'Check-In'!I83) ->  | AB84: 0 | AC84: 0
A85: 78 | B85: =IF('Check-In'!A84="","",'Check-In'!A84) -> 78 | C85: =IF('Check-In'!B84="","",'Check-In'!B84) ->  | D85: =IF('Check-In'!C84="","",'Check-In'!C84) ->  | E85: =IF('Check-In'!I84="","",'Check-In'!I84) ->  | AB85: 0 | AC85: 0
A86: 79 | B86: =IF('Check-In'!A85="","",'Check-In'!A85) -> 79 | C86: =IF('Check-In'!B85="","",'Check-In'!B85) ->  | D86: =IF('Check-In'!C85="","",'Check-In'!C85) ->  | E86: =IF('Check-In'!I85="","",'Check-In'!I85) ->  | AB86: 0 | AC86: 0
A87: 80 | B87: =IF('Check-In'!A86="","",'Check-In'!A86) -> 80 | C87: =IF('Check-In'!B86="","",'Check-In'!B86) ->  | D87: =IF('Check-In'!C86="","",'Check-In'!C86) ->  | E87: =IF('Check-In'!I86="","",'Check-In'!I86) ->  | AB87: 0 | AC87: 0
A88: 81 | B88: =IF('Check-In'!A87="","",'Check-In'!A87) -> 81 | C88: =IF('Check-In'!B87="","",'Check-In'!B87) ->  | D88: =IF('Check-In'!C87="","",'Check-In'!C87) ->  | E88: =IF('Check-In'!I87="","",'Check-In'!I87) ->  | AB88: 0 | AC88: 0
A89: 82 | B89: =IF('Check-In'!A88="","",'Check-In'!A88) -> 82 | C89: =IF('Check-In'!B88="","",'Check-In'!B88) ->  | D89: =IF('Check-In'!C88="","",'Check-In'!C88) ->  | E89: =IF('Check-In'!I88="","",'Check-In'!I88) ->  | AB89: 0 | AC89: 0
A90: 83 | B90: =IF('Check-In'!A89="","",'Check-In'!A89) -> 83 | C90: =IF('Check-In'!B89="","",'Check-In'!B89) ->  | D90: =IF('Check-In'!C89="","",'Check-In'!C89) ->  | E90: =IF('Check-In'!I89="","",'Check-In'!I89) ->  | AB90: 0 | AC90: 0
A91: 84 | B91: =IF('Check-In'!A90="","",'Check-In'!A90) -> 84 | C91: =IF('Check-In'!B90="","",'Check-In'!B90) ->  | D91: =IF('Check-In'!C90="","",'Check-In'!C90) ->  | E91: =IF('Check-In'!I90="","",'Check-In'!I90) ->  | AB91: 0 | AC91: 0
A92: 85 | B92: =IF('Check-In'!A91="","",'Check-In'!A91) -> 85 | C92: =IF('Check-In'!B91="","",'Check-In'!B91) ->  | D92: =IF('Check-In'!C91="","",'Check-In'!C91) ->  | E92: =IF('Check-In'!I91="","",'Check-In'!I91) ->  | AB92: 0 | AC92: 0
A93: 86 | B93: =IF('Check-In'!A92="","",'Check-In'!A92) -> 86 | C93: =IF('Check-In'!B92="","",'Check-In'!B92) ->  | D93: =IF('Check-In'!C92="","",'Check-In'!C92) ->  | E93: =IF('Check-In'!I92="","",'Check-In'!I92) ->  | AB93: 0 | AC93: 0
A94: 87 | B94: =IF('Check-In'!A93="","",'Check-In'!A93) -> 87 | C94: =IF('Check-In'!B93="","",'Check-In'!B93) ->  | D94: =IF('Check-In'!C93="","",'Check-In'!C93) ->  | E94: =IF('Check-In'!I93="","",'Check-In'!I93) ->  | AB94: 0 | AC94: 0
A95: 88 | B95: =IF('Check-In'!A94="","",'Check-In'!A94) -> 88 | C95: =IF('Check-In'!B94="","",'Check-In'!B94) ->  | D95: =IF('Check-In'!C94="","",'Check-In'!C94) ->  | E95: =IF('Check-In'!I94="","",'Check-In'!I94) ->  | AB95: 0 | AC95: 0
A96: 89 | B96: =IF('Check-In'!A95="","",'Check-In'!A95) -> 89 | C96: =IF('Check-In'!B95="","",'Check-In'!B95) ->  | D96: =IF('Check-In'!C95="","",'Check-In'!C95) ->  | E96: =IF('Check-In'!I95="","",'Check-In'!I95) ->  | AB96: 0 | AC96: 0
A97: 90 | B97: =IF('Check-In'!A96="","",'Check-In'!A96) -> 90 | C97: =IF('Check-In'!B96="","",'Check-In'!B96) ->  | D97: =IF('Check-In'!C96="","",'Check-In'!C96) ->  | E97: =IF('Check-In'!I96="","",'Check-In'!I96) ->  | AB97: 0 | AC97: 0
A98: 91 | B98: =IF('Check-In'!A97="","",'Check-In'!A97) -> 91 | C98: =IF('Check-In'!B97="","",'Check-In'!B97) ->  | D98: =IF('Check-In'!C97="","",'Check-In'!C97) ->  | E98: =IF('Check-In'!I97="","",'Check-In'!I97) ->  | AB98: 0 | AC98: 0
A99: 92 | B99: =IF('Check-In'!A98="","",'Check-In'!A98) -> 92 | C99: =IF('Check-In'!B98="","",'Check-In'!B98) ->  | D99: =IF('Check-In'!C98="","",'Check-In'!C98) ->  | E99: =IF('Check-In'!I98="","",'Check-In'!I98) ->  | AB99: 0 | AC99: 0
A100: 93 | B100: =IF('Check-In'!A99="","",'Check-In'!A99) -> 93 | C100: =IF('Check-In'!B99="","",'Check-In'!B99) ->  | D100: =IF('Check-In'!C99="","",'Check-In'!C99) ->  | E100: =IF('Check-In'!I99="","",'Check-In'!I99) ->  | AB100: 0 | AC100: 0
A101: 94 | B101: =IF('Check-In'!A100="","",'Check-In'!A100) -> 94 | C101: =IF('Check-In'!B100="","",'Check-In'!B100) ->  | D101: =IF('Check-In'!C100="","",'Check-In'!C100) ->  | E101: =IF('Check-In'!I100="","",'Check-In'!I100) ->  | AB101: 0 | AC101: 0
A102: 95 | B102: =IF('Check-In'!A101="","",'Check-In'!A101) -> 95 | C102: =IF('Check-In'!B101="","",'Check-In'!B101) ->  | D102: =IF('Check-In'!C101="","",'Check-In'!C101) ->  | E102: =IF('Check-In'!I101="","",'Check-In'!I101) ->  | AB102: 0 | AC102: 0
A103: 96 | B103: =IF('Check-In'!A102="","",'Check-In'!A102) -> 96 | C103: =IF('Check-In'!B102="","",'Check-In'!B102) ->  | D103: =IF('Check-In'!C102="","",'Check-In'!C102) ->  | E103: =IF('Check-In'!I102="","",'Check-In'!I102) ->  | AB103: 0 | AC103: 0
A104: 97 | B104: =IF('Check-In'!A103="","",'Check-In'!A103) -> 97 | C104: =IF('Check-In'!B103="","",'Check-In'!B103) ->  | D104: =IF('Check-In'!C103="","",'Check-In'!C103) ->  | E104: =IF('Check-In'!I103="","",'Check-In'!I103) ->  | V104: =IF(F104="","",IF(Tourn="MSC",F104+H104+J104+L104+N104+P104+R104+T104,SUM(F104:U104))) ->  | W104: =IF(F104="","",IF(Tourn="MSC",G104+I104+K104+M104+O104+Q104+S104+U104,0)) ->  | X104: =IF(V104="","",V104+W104) ->  | Y104: =IF(F104="","",X104-$K$4*200) ->  | Z104: =IF(F104="","",V104/$K$4) ->  | AB104: =IF(Tourn="MSC",F104+H104+J104,SUM(F104:H104)) -> 0 | AC104: =IF(Tourn="MSC",L104+N104+P104,SUM(I104:K104)) -> 0 | AD104: =IF(OR(Tourn="MSC",Tourn="1-Day"),"",IF(N104="",0,SUM(L104:N104))) ->  | AE104: =IF(OR(Tourn="MSC",Tourn="1-Day"),"",IF(O104="",0,SUM(O104:Q104))) ->  | AF104: =IF(OR(Tourn="MSC",Tourn="1-Day"),"",IF(P104="",0,SUM(R104:T104))) ->  | AH104: =IF(Tourn="Dbls",SUM(N104:P104),"") ->  | AI104: =IF(Tourn="Dbls",SUM(Q104:S104),"") -> 
A105: 98 | B105: =IF('Check-In'!A104="","",'Check-In'!A104) -> 98 | C105: =IF('Check-In'!B104="","",'Check-In'!B104) ->  | D105: =IF('Check-In'!C104="","",'Check-In'!C104) ->  | E105: =IF('Check-In'!I104="","",'Check-In'!I104) ->  | AB105: 0 | AC105: 0
A106: 99 | B106: =IF('Check-In'!A105="","",'Check-In'!A105) -> 99 | C106: =IF('Check-In'!B105="","",'Check-In'!B105) ->  | D106: =IF('Check-In'!C105="","",'Check-In'!C105) ->  | E106: =IF('Check-In'!I105="","",'Check-In'!I105) ->  | AB106: 0 | AC106: 0
A107: 100 | B107: =IF('Check-In'!A106="","",'Check-In'!A106) -> 100 | C107: =IF('Check-In'!B106="","",'Check-In'!B106) ->  | D107: =IF('Check-In'!C106="","",'Check-In'!C106) ->  | E107: =IF('Check-In'!I106="","",'Check-In'!I106) ->  | AB107: 0 | AC107: 0
A108: 101 | B108: =IF('Check-In'!A107="","",'Check-In'!A107) -> 101 | C108: =IF('Check-In'!B107="","",'Check-In'!B107) ->  | D108: =IF('Check-In'!C107="","",'Check-In'!C107) ->  | E108: =IF('Check-In'!I107="","",'Check-In'!I107) ->  | AB108: 0 | AC108: 0
A109: 102 | B109: =IF('Check-In'!A108="","",'Check-In'!A108) -> 102 | C109: =IF('Check-In'!B108="","",'Check-In'!B108) ->  | D109: =IF('Check-In'!C108="","",'Check-In'!C108) ->  | E109: =IF('Check-In'!I108="","",'Check-In'!I108) ->  | AB109: 0 | AC109: 0
A110: 103 | B110: =IF('Check-In'!A109="","",'Check-In'!A109) -> 103 | C110: =IF('Check-In'!B109="","",'Check-In'!B109) ->  | D110: =IF('Check-In'!C109="","",'Check-In'!C109) ->  | E110: =IF('Check-In'!I109="","",'Check-In'!I109) ->  | AB110: 0 | AC110: 0
A111: 104 | B111: =IF('Check-In'!A110="","",'Check-In'!A110) -> 104 | C111: =IF('Check-In'!B110="","",'Check-In'!B110) ->  | D111: =IF('Check-In'!C110="","",'Check-In'!C110) ->  | E111: =IF('Check-In'!I110="","",'Check-In'!I110) ->  | AB111: 0 | AC111: 0
A112: 105 | B112: =IF('Check-In'!A111="","",'Check-In'!A111) -> 105 | C112: =IF('Check-In'!B111="","",'Check-In'!B111) ->  | D112: =IF('Check-In'!C111="","",'Check-In'!C111) ->  | E112: =IF('Check-In'!I111="","",'Check-In'!I111) ->  | AB112: 0 | AC112: 0
A113: 106 | B113: =IF('Check-In'!A112="","",'Check-In'!A112) -> 106 | C113: =IF('Check-In'!B112="","",'Check-In'!B112) ->  | D113: =IF('Check-In'!C112="","",'Check-In'!C112) ->  | E113: =IF('Check-In'!I112="","",'Check-In'!I112) ->  | AB113: 0 | AC113: 0
A114: 107 | B114: =IF('Check-In'!A113="","",'Check-In'!A113) -> 107 | C114: =IF('Check-In'!B113="","",'Check-In'!B113) ->  | D114: =IF('Check-In'!C113="","",'Check-In'!C113) ->  | E114: =IF('Check-In'!I113="","",'Check-In'!I113) ->  | AB114: 0 | AC114: 0
A115: 108 | B115: =IF('Check-In'!A114="","",'Check-In'!A114) -> 108 | C115: =IF('Check-In'!B114="","",'Check-In'!B114) ->  | D115: =IF('Check-In'!C114="","",'Check-In'!C114) ->  | E115: =IF('Check-In'!I114="","",'Check-In'!I114) ->  | AB115: 0 | AC115: 0
A116: 109 | B116: =IF('Check-In'!A115="","",'Check-In'!A115) -> 109 | C116: =IF('Check-In'!B115="","",'Check-In'!B115) ->  | D116: =IF('Check-In'!C115="","",'Check-In'!C115) ->  | E116: =IF('Check-In'!I115="","",'Check-In'!I115) ->  | AB116: 0 | AC116: 0
A117: 110 | B117: =IF('Check-In'!A116="","",'Check-In'!A116) -> 110 | C117: =IF('Check-In'!B116="","",'Check-In'!B116) ->  | D117: =IF('Check-In'!C116="","",'Check-In'!C116) ->  | E117: =IF('Check-In'!I116="","",'Check-In'!I116) ->  | AB117: 0 | AC117: 0
A118: 111 | B118: =IF('Check-In'!A117="","",'Check-In'!A117) -> 111 | C118: =IF('Check-In'!B117="","",'Check-In'!B117) ->  | D118: =IF('Check-In'!C117="","",'Check-In'!C117) ->  | E118: =IF('Check-In'!I117="","",'Check-In'!I117) ->  | AB118: 0 | AC118: 0
A119: 112 | B119: =IF('Check-In'!A118="","",'Check-In'!A118) -> 112 | C119: =IF('Check-In'!B118="","",'Check-In'!B118) ->  | D119: =IF('Check-In'!C118="","",'Check-In'!C118) ->  | E119: =IF('Check-In'!I118="","",'Check-In'!I118) ->  | AB119: 0 | AC119: 0
A120: 113 | B120: =IF('Check-In'!A119="","",'Check-In'!A119) -> 113 | C120: =IF('Check-In'!B119="","",'Check-In'!B119) ->  | D120: =IF('Check-In'!C119="","",'Check-In'!C119) ->  | E120: =IF('Check-In'!I119="","",'Check-In'!I119) ->  | AB120: 0 | AC120: 0
A121: 114 | B121: =IF('Check-In'!A120="","",'Check-In'!A120) -> 114 | C121: =IF('Check-In'!B120="","",'Check-In'!B120) ->  | D121: =IF('Check-In'!C120="","",'Check-In'!C120) ->  | E121: =IF('Check-In'!I120="","",'Check-In'!I120) ->  | AB121: 0 | AC121: 0
A122: 115 | B122: =IF('Check-In'!A121="","",'Check-In'!A121) -> 115 | C122: =IF('Check-In'!B121="","",'Check-In'!B121) ->  | D122: =IF('Check-In'!C121="","",'Check-In'!C121) ->  | E122: =IF('Check-In'!I121="","",'Check-In'!I121) ->  | AB122: 0 | AC122: 0
A123: 116 | B123: =IF('Check-In'!A122="","",'Check-In'!A122) -> 116 | C123: =IF('Check-In'!B122="","",'Check-In'!B122) ->  | D123: =IF('Check-In'!C122="","",'Check-In'!C122) ->  | E123: =IF('Check-In'!I122="","",'Check-In'!I122) ->  | AB123: 0 | AC123: 0
A124: 117 | B124: =IF('Check-In'!A123="","",'Check-In'!A123) -> 117 | C124: =IF('Check-In'!B123="","",'Check-In'!B123) ->  | D124: =IF('Check-In'!C123="","",'Check-In'!C123) ->  | E124: =IF('Check-In'!I123="","",'Check-In'!I123) ->  | AB124: 0 | AC124: 0
A125: 118 | B125: =IF('Check-In'!A124="","",'Check-In'!A124) -> 118 | C125: =IF('Check-In'!B124="","",'Check-In'!B124) ->  | D125: =IF('Check-In'!C124="","",'Check-In'!C124) ->  | E125: =IF('Check-In'!I124="","",'Check-In'!I124) ->  | AB125: 0 | AC125: 0
A126: 119 | B126: =IF('Check-In'!A125="","",'Check-In'!A125) -> 119 | C126: =IF('Check-In'!B125="","",'Check-In'!B125) ->  | D126: =IF('Check-In'!C125="","",'Check-In'!C125) ->  | E126: =IF('Check-In'!I125="","",'Check-In'!I125) ->  | AB126: 0 | AC126: 0
A127: 120 | B127: =IF('Check-In'!A126="","",'Check-In'!A126) -> 120 | C127: =IF('Check-In'!B126="","",'Check-In'!B126) ->  | D127: =IF('Check-In'!C126="","",'Check-In'!C126) ->  | E127: =IF('Check-In'!I126="","",'Check-In'!I126) ->  | AB127: 0 | AC127: 0
A128: 121 | B128: =IF('Check-In'!A127="","",'Check-In'!A127) -> 121 | C128: =IF('Check-In'!B127="","",'Check-In'!B127) ->  | D128: =IF('Check-In'!C127="","",'Check-In'!C127) ->  | E128: =IF('Check-In'!I127="","",'Check-In'!I127) ->  | AB128: 0 | AC128: 0
A129: 122 | B129: =IF('Check-In'!A128="","",'Check-In'!A128) -> 122 | C129: =IF('Check-In'!B128="","",'Check-In'!B128) ->  | D129: =IF('Check-In'!C128="","",'Check-In'!C128) ->  | E129: =IF('Check-In'!I128="","",'Check-In'!I128) ->  | AB129: 0 | AC129: 0
A130: 123 | B130: =IF('Check-In'!A129="","",'Check-In'!A129) -> 123 | C130: =IF('Check-In'!B129="","",'Check-In'!B129) ->  | D130: =IF('Check-In'!C129="","",'Check-In'!C129) ->  | E130: =IF('Check-In'!I129="","",'Check-In'!I129) ->  | AB130: 0 | AC130: 0
A131: 124 | B131: =IF('Check-In'!A130="","",'Check-In'!A130) -> 124 | C131: =IF('Check-In'!B130="","",'Check-In'!B130) ->  | D131: =IF('Check-In'!C130="","",'Check-In'!C130) ->  | E131: =IF('Check-In'!I130="","",'Check-In'!I130) ->  | AB131: 0 | AC131: 0
A132: 125 | B132: =IF('Check-In'!A131="","",'Check-In'!A131) -> 125 | C132: =IF('Check-In'!B131="","",'Check-In'!B131) ->  | D132: =IF('Check-In'!C131="","",'Check-In'!C131) ->  | E132: =IF('Check-In'!I131="","",'Check-In'!I131) ->  | AB132: 0 | AC132: 0
A133: 126 | B133: =IF('Check-In'!A132="","",'Check-In'!A132) -> 126 | C133: =IF('Check-In'!B132="","",'Check-In'!B132) ->  | D133: =IF('Check-In'!C132="","",'Check-In'!C132) ->  | E133: =IF('Check-In'!I132="","",'Check-In'!I132) ->  | AB133: 0 | AC133: 0
C135: Total Pin Fall | F135: =SUM(F8:F133) -> 12574 | G135: 1360 | H135: 12417 | I135: 1280 | J135: 12332 | K135: 1120 | L135: 12405 | M135: 1200 | N135: =SUM(N8:N133) -> 12504 | O135: 1280 | P135: 12865 | Q135: 1240 | R135: 12552 | S135: 1160 | T135: 12615 | U135: 1200 | V135: =SUM(V8:V133) -> 100264 | W135: 9840 | X135: =SUM(X8:X133) -> 110104
C136: Average | F136: =AVERAGE(F8:F133) -> 203 | G136: 40 | H136: 200 | I136: 40 | J136: 199 | K136: 40 | L136: 200 | M136: 39 | N136: =AVERAGE(N8:N133) -> 202 | O136: 40 | P136: 208 | Q136: 39 | R136: 202 | S136: 39 | T136: 203 | U136: 40 | V136: =AVERAGE(V8:V133) -> 1617 | W136: 159 | X136: =AVERAGE(X8:X133) -> 1776
C137: High Game/Total | F137: =MAX(F8:F133) -> 266 | G137: 40 | H137: 269 | I137: 40 | J137: 248 | K137: 40 | L137: 258 | M137: 40 | N137: =MAX(N8:N133) -> 268 | O137: 40 | P137: 299 | Q137: 40 | R137: 249 | S137: 40 | T137: 257 | U137: 40 | V137: =MAX(V8:V133) -> 1852 | W137: 320 | X137: =MAX(X8:X133) -> 2172
C138: Low Game/Total | F138: =MIN(F8:F133) -> 148 | G138: 40 | H138: 148 | I138: 40 | J138: 145 | K138: 40 | L138: 143 | M138: 20 | N138: =MIN(N8:N133) -> 141 | O138: 40 | P138: 138 | Q138: 20 | R138: 144 | S138: 20 | T138: 135 | U138: 40 | V138: =MIN(V8:V133) -> 1332 | W138: 0 | X138: =MIN(X8:X133) -> 1412
F140: =IF(F8="",1,LARGE(IF($E$8:$E$133="x",Game1,),1)) -> 0 | G140: =IF(Tourn="MSC",1,IF(G8="",1,LARGE(IF($E$8:$E$133="x",Game2,),1))) -> 1 | H140: =IF(H8="",1,LARGE(IF($E$8:$E$133="x",Game3,),1)) -> 0 | I140: =IF(Tourn="MSC",1,IF(I8="",1,LARGE(IF($E$8:$E$133="x",Game4,),1))) -> 1 | J140: =IF(J8="",1,LARGE(IF($E$8:$E$133="x",Game5,),1)) -> 0 | K140: =IF(Tourn="MSC",1,IF(K8="",1,LARGE(IF($E$8:$E$133="x",Game6,),1))) -> 1 | L140: =IF(L8="",1,LARGE(IF($E$8:$E$133="x",Game7,),1)) -> 0 | M140: =IF(Tourn="MSC",1,IF(M8="",1,LARGE(IF($E$8:$E$133="x",Game8,),1))) -> 1 | N140: =IF(N8="",1,LARGE(IF($E$8:$E$133="x",Game9,),1)) -> 0 | O140: =IF(Tourn="MSC",1,IF(O8="",1,LARGE(IF($E$8:$E$133="x",Game10,),1))) -> 1 | P140: =IF(P8="",1,LARGE(IF($E$8:$E$133="x",Game11,),1)) -> 0 | Q140: =IF(Tourn="MSC",1,IF(Q8="",1,LARGE(IF($E$8:$E$133="x",Game12,),1))) -> 1 | R140: =IF(R8="",1,LARGE(IF($E$8:$E$133="x",Game13,),1)) -> 0 | S140: =IF(Tourn="MSC",1,IF(S8="",1,LARGE(IF($E$8:$E$133="x",Game14,),1))) -> 1 | T140: =IF(T8="",1,LARGE(IF($E$8:$E$133="x",Game15,),1)) -> 0 | U140: =IF(Tourn="MSC",1,IF(U8="",1,LARGE(IF($E$8:$E$133="x",Game16,),1))) -> 1
F141: 1 | G141: =IF(Tourn="MSC",1,IF(G9="",1,LARGE(IF($E$8:$E$133="x",Game2,),2))) -> 1 | H141: 1 | I141: =IF(Tourn="MSC",1,IF(I9="",1,LARGE(IF($E$8:$E$133="x",Game4,),2))) -> 1 | J141: 1 | K141: =IF(Tourn="MSC",1,IF(K9="",1,LARGE(IF($E$8:$E$133="x",Game6,),2))) -> 1 | L141: 1 | M141: =IF(Tourn="MSC",1,IF(M9="",1,LARGE(IF($E$8:$E$133="x",Game8,),2))) -> 1 | N141: 1 | O141: =IF(Tourn="MSC",1,IF(O9="",1,LARGE(IF($E$8:$E$133="x",Game10,),2))) -> 1 | P141: 1 | Q141: =IF(Tourn="MSC",1,IF(Q9="",1,LARGE(IF($E$8:$E$133="x",Game12,),2))) -> 1 | R141: 1 | S141: =IF(Tourn="MSC",1,IF(S9="",1,LARGE(IF($E$8:$E$133="x",Game14,),2))) -> 1 | T141: 1 | U141: =IF(Tourn="MSC",1,IF(U9="",1,LARGE(IF($E$8:$E$133="x",Game16,),2))) -> 1
C144: 1st high = | F144: =LARGE(Game1,1) -> 266 | G144: =LARGE(Game2,1) -> 40 | H144: =LARGE(Game3,1) -> 269 | I144: =LARGE(Game4,1) -> 40 | J144: =LARGE(Game5,1) -> 248 | K144: =LARGE(Game6,1) -> 40 | L144: =LARGE(Game7,1) -> 258 | M144: =LARGE(Game8,1) -> 40 | N144: =IF(LARGE(Total,1)=0,1,LARGE(Total,1)) -> 40 | X144: =LARGE(GTtl,1) -> 2172
C145: 2nd high = | F145: =LARGE(Game1,2) -> 258 | G145: =LARGE(Game2,2) -> 40 | H145: =LARGE(Game3,2) -> 265 | I145: =LARGE(Game4,2) -> 40 | J145: =LARGE(Game5,2) -> 247 | K145: =LARGE(Game6,2) -> 40 | L145: =LARGE(Game7,2) -> 255 | M145: =LARGE(Game8,2) -> 40 | N145: =IF(LARGE(Total,2)=0,1,LARGE(Total,2)) -> 40 | X145: =LARGE(GTtl,2) -> 2109
C146: 3rd high = | F146: =LARGE(Game1,3) -> 258 | G146: =LARGE(Game2,3) -> 40 | H146: =LARGE(Game3,3) -> 248 | I146: =LARGE(Game4,3) -> 40 | J146: =LARGE(Game5,3) -> 247 | K146: =LARGE(Game6,3) -> 40 | L146: =LARGE(Game7,3) -> 248 | M146: =LARGE(Game8,3) -> 40 | N146: =IF(LARGE(Total,3)=0,1,LARGE(Total,3)) -> 40 | X146: =LARGE(GTtl,3) -> 2099
C147: 4th high = | F147: =LARGE(Game1,4) -> 256 | G147: =LARGE(Game2,4) -> 40 | H147: =LARGE(Game3,4) -> 240 | I147: =LARGE(Game4,4) -> 40 | J147: =LARGE(Game5,4) -> 246 | K147: =LARGE(Game6,4) -> 40 | L147: =LARGE(Game7,4) -> 245 | M147: =LARGE(Game8,4) -> 40 | N147: =IF(LARGE(Total,4)=0,1,LARGE(Total,4)) -> 40 | X147: =LARGE(GTtl,4) -> 2061
C148: 5th high = | F148: =LARGE(Game1,5) -> 248 | G148: =LARGE(Game2,5) -> 40 | H148: =LARGE(Game3,5) -> 237 | I148: =LARGE(Game4,5) -> 40 | J148: =LARGE(Game5,5) -> 245 | K148: =LARGE(Game6,5) -> 40 | L148: =LARGE(Game7,5) -> 237 | M148: =LARGE(Game8,5) -> 40 | N148: =IF(LARGE(Total,5)=0,1,LARGE(Total,5)) -> 40 | X148: =LARGE(GTtl,5) -> 2049

Sheet Elim
AD1: ='Check-In'!B1 -> Midwest Senior Classic | AK1: =IF(Tourn="2-Day",3,IF(Tourn="Dbls",4,2)) -> 2 | AL1: =IF(Tourn="2-Day",4,IF(Tourn="Dbls",5,3)) -> 3 | AM1: =IF(Tourn="2-Day",5,IF(Tourn="Dbls",6,4)) -> 4 | AQ1: =IF(Tourn="2-Day",7,IF(Tourn="Dbls",12,5)) -> 5 | AR1: =IF(Tourn="2-Day",8,IF(Tourn="Dbls",13,6)) -> 6 | AS1: =IF(Tourn="2-Day",9,IF(Tourn="Dbls",14,7)) -> 7
C2: =IF(Master!$B$1="Dbls","Game 4",IF(Master!$B$1="2-Day","Game 3","Game 2")) -> Game 2 | G2: =IF(Master!$B$1="Dbls","Game 5",IF(Master!$B$1="2-Day","Game 4","Game 3")) -> Game 3 | K2: =IF(Master!$B$1="Dbls","Game 6",IF(Master!$B$1="2-Day","Game 5","Game 4")) -> Game 4 | Q2: =IF(Master!$B$1="Dbls","Game 12",IF(Master!$B$1="2-Day","Game 7","Game 5")) -> Game 5 | U2: =IF(Master!$B$1="Dbls","Game 13",IF(Master!$B$1="2-Day","Game 8","Game 6")) -> Game 6 | Y2: =IF(Master!$B$1="Dbls","Game 14",IF(Master!$B$1="2-Day","Game 9","Game 7")) -> Game 7 | AD2: ='Check-In'!B2 -> 2022-04-24 | AI2: =IF(AJ2=0,"",'Check-In'!$B7) -> OULMAN, DAVE | AJ2: =IF(Tourn="2-Day",'Check-In'!T7,IF(Tourn="Dbls", 'Check-In'!R7,'Check-In'!P7)) -> X | AK2: =IF(AJ2="x",INDEX(Qual!$C$8:$U$133,MATCH(AI2,Qual!$C$8:$C$133,0),IF(Tourn="Dbls",7,IF(Tourn="2-Day",6,IF(Tourn="MSC",6,5)))),"") -> 265 | AL2: =IF(AJ2="x",INDEX(Qual!$C$8:$U$133,MATCH(AI2,Qual!$C$8:$C$133,0),IF(Tourn="Dbls",8,IF(Tourn="2-Day",7,IF(Tourn="MSC",8,6)))),"") -> 193 | AM2: =IF(AJ2="x",INDEX(Qual!$C$8:$U$133,MATCH(AI2,Qual!$C$8:$C$133,0),IF(Tourn="Dbls",9,IF(Tourn="2-Day",8,IF(Tourn="MSC",10,7)))),"") -> 234 | AO2: =IF(AP2=0,"",'Check-In'!$B7) -> OULMAN, DAVE | AP2: =IF(Tourn="2-Day",'Check-In'!U7,IF(Tourn="Dbls", 'Check-In'!S7,'Check-In'!P7)) -> X | AQ2: =IF(AP2="x",INDEX(Qual!$C$8:$U$133,MATCH(AO2,Qual!$C$8:$C$133,0),IF(Tourn="Dbls",15,IF(Tourn="2-Day",10,IF(Tourn="MSC",12,8)))),"") -> 248 | AR2: =IF(AP2="x",INDEX(Qual!$C$8:$U$133,MATCH(AO2,Qual!$C$8:$C$133,0),IF(Tourn="Dbls",16,IF(Tourn="2-Day",11,IF(Tourn="MSC",14,9)))),"") -> 213 | AS2: =IF(AP2="x",INDEX(Qual!$C$8:$U$133,MATCH(AO2,Qual!$C$8:$C$133,0),IF(Tourn="Dbls",17,IF(Tourn="2-Day",12,IF(Tourn="MSC",16,10)))),"") -> 215
B3: 1 | C3: =IF(Master!$B$1="Dbls",IF(B3<='Check-In'!$R$136,B3,IF(AND(E2=E3,C2='Check-In'!$R$136),B3,"")),IF(Master!$B$1="2-Day",IF(B3<='Check-In'!$T$136,B3,IF(AND(E2=E3,C2='Check-In'!$T$136),B3,"")),IF(B3<='Check-In'!$P$136,B3,IF(AND(E2=E3,C2='Check-In'!$P$136),B3,"")))) -> 1 | D3: =IF(E3="","",INDEX(Elim1,MATCH(E3,E1G1,0),1)) -> WRIGHT, DANA | E3: =IF(COUNTIF($AJ$2:$AJ$133,"x")>=B3,LARGE($AK$2:$AK$133,B3),"") -> 269 | F3: =IF(C3<>"",INDEX($AI$2:$AM$133,MATCH(D3,$AI$2:$AI$133,0),4),"") -> 215 | G3: =IF(Master!$B$1="Dbls",IF(B3<='Check-In'!$R$137,B3,IF(AND(I2=I3,G2='Check-In'!$R$137),B3,"")),IF(Master!$B$1="2-Day",IF(B3<='Check-In'!$T$137,B3,IF(AND(I2=I3,G2='Check-In'!$T$137),B3,"")),IF(B3<='Check-In'!$P$137,B3,IF(AND(I2=I3,G2='Check-In'!$P$137),B3,"")))) -> 1 | H3: =IF(I3="","",INDEX(D3:F52,MATCH(I3,E1G2B,0),1)) -> DOWNER, ROB | I3: =IF(C3="","",LARGE(E1G2B,B3)) -> 248 | J3: =IF(G3<>"",INDEX($AI$2:$AM$133,MATCH(H3,$AI$2:$AI$133,0),5),"") -> 236 | K3: 1 | L3: =IF(M3="","",INDEX(H3:J52,MATCH(M3,J3:J52,0),1)) -> LANGER, DAVE | M3: =IF(K3="","",LARGE($J$2:$J$133,B3)) -> 255 | P3: 1 | Q3: =IF(Master!$B$1="Dbls",IF(P3<='Check-In'!$S$136,P3,IF(AND(S2=S3,Q2='Check-In'!$S$136),P3,"")),IF(Master!$B$1="2-Day",IF(P3<='Check-In'!$U$136,P3,IF(AND(S2=S3,Q2='Check-In'!$U$136),P3,"")),IF(P3<='Check-In'!$Q$136,P3,IF(AND(S2=S3,Q2='Check-In'!$Q$136),P3,"")))) -> 1 | R3: =IF(S3="","",INDEX($AO$2:$AS$133,MATCH(S3,$AQ$2:$AQ$133,0),1)) -> HOMMES, JOHN | S3: =IF(COUNTIF($AP$2:$AP$133,"x")>=P3,LARGE($AQ$2:$AQ$133,P3),"") -> 268 | T3: =IF(Q3<>"",INDEX($AO$2:$AS$133,MATCH(R3,$AO$2:$AO$133,0),4),"") -> 196 | U3: =IF(Master!$B$1="Dbls",IF(B3<='Check-In'!$S$137,B3,IF(AND(I2=I3,G2='Check-In'!$S$137),B3,"")),IF(Master!$B$1="2-Day",IF(B3<='Check-In'!$U$137,B3,IF(AND(I2=I3,G2='Check-In'!$U$137),B3,"")),IF(B3<='Check-In'!$Q$137,B3,IF(AND(I2=I3,G2='Check-In'!$Q$137),B3,"")))) -> 1 | V3: =IF(W3="","",INDEX(R3:T52,MATCH(W3,T3:T52,0),1)) -> LANGER, DAVE | W3: =IF(Q3="","",LARGE($T$2:$T$133,P3)) -> 268 | X3: =IF(U3<>"",INDEX($AO$2:$AS$133,MATCH(V3,$AO$2:$AO$133,0),5),"") -> 200 | Y3: 1 | Z3: =IF(AA3="","",INDEX(V3:X52,MATCH(AA3,X3:X52,0),1)) -> BORDSON, DAVE | AA3: =IF(Y3="","",LARGE($X$2:$X$133,P3)) -> 238 | AD3: ='Check-In'!B3 -> Cedarvale | AI3: =IF(AJ3=0,"",'Check-In'!$B8) -> DAVIS, SCOTT | AJ3: =IF(Tourn="2-Day",'Check-In'!T8,IF(Tourn="Dbls", 'Check-In'!R8,'Check-In'!P8)) -> X | AK3: =IF(AJ3="x",INDEX(Qual!$C$8:$U$133,MATCH(AI3,Qual!$C$8:$C$133,0),IF(Tourn="Dbls",7,IF(Tourn="2-Day",6,IF(Tourn="MSC",6,5)))),"") -> 180 | AL3: =IF(AJ3="x",INDEX(Qual!$C$8:$U$133,MATCH(AI3,Qual!$C$8:$C$133,0),IF(Tourn="Dbls",8,IF(Tourn="2-Day",7,IF(Tourn="MSC",8,6)))),"") -> 195 | AM3: =IF(AJ3="x",INDEX(Qual!$C$8:$U$133,MATCH(AI3,Qual!$C$8:$C$133,0),IF(Tourn="Dbls",9,IF(Tourn="2-Day",8,IF(Tourn="MSC",10,7)))),"") -> 235 | AO3: =IF(AP3=0,"",'Check-In'!$B8) -> DAVIS, SCOTT | AP3: =IF(Tourn="2-Day",'Check-In'!U8,IF(Tourn="Dbls", 'Check-In'!S8,'Check-In'!P8)) -> X | AQ3: =IF(AP3="x",INDEX(Qual!$C$8:$U$133,MATCH(AO3,Qual!$C$8:$C$133,0),IF(Tourn="Dbls",15,IF(Tourn="2-Day",10,IF(Tourn="MSC",12,8)))),"") -> 180 | AR3: =IF(AP3="x",INDEX(Qual!$C$8:$U$133,MATCH(AO3,Qual!$C$8:$C$133,0),IF(Tourn="Dbls",16,IF(Tourn="2-Day",11,IF(Tourn="MSC",14,9)))),"") -> 244 | AS3: =IF(AP3="x",INDEX(Qual!$C$8:$U$133,MATCH(AO3,Qual!$C$8:$C$133,0),IF(Tourn="Dbls",17,IF(Tourn="2-Day",12,IF(Tourn="MSC",16,10)))),"") -> 223
B4: 2 | C4: =IF(Master!$B$1="Dbls",IF(B4<='Check-In'!$R$136,B4,IF(AND(E3=E4,C3='Check-In'!$R$136),B4,"")),IF(Master!$B$1="2-Day",IF(B4<='Check-In'!$T$136,B4,IF(AND(E3=E4,C3='Check-In'!$T$136),B4,"")),IF(B4<='Check-In'!$P$136,B4,IF(AND(E3=E4,C3='Check-In'!$P$136),B4,"")))) -> 2 | D4: =IF(E4="","",IF(E3<>E4,INDEX($AI$2:$AM$127,MATCH(E4,$AK$2:$AK$127,0),1),INDEX(INDIRECT("ai"&(2+MATCH(D3,$AI$2:$AI$127,0)&":am127")),MATCH(E4,INDIRECT("ak"&(2+MATCH(D3,$AI$2:$AI$127,0)&":ak127")),0),1))) -> OULMAN, DAVE | E4: 265 | F4: 193 | G4: =IF(Master!$B$1="Dbls",IF(B4<='Check-In'!$R$137,B4,IF(AND(I3=I4,G3='Check-In'!$R$137),B4,"")),IF(Master!$B$1="2-Day",IF(B4<='Check-In'!$T$137,B4,IF(AND(I3=I4,G3='Check-In'!$T$137),B4,"")),IF(B4<='Check-In'!$P$137,B4,IF(AND(I3=I4,G3='Check-In'!$P$137),B4,"")))) -> 2 | H4: =IF(I4="","",IF(I3<>I4,INDEX($D$2:$F$127,MATCH(I4,$F$2:$F$127,0),1),INDEX(INDIRECT("d"&(2+MATCH(H3,$D$2:$D$127,0)&":d127")),MATCH(I4,INDIRECT("f"&(2+MATCH(H3,$D$2:$D$127,0)&":f127")),0),1))) -> HOMMES, JOHN | I4: 247 | J4: 198 | K4: =IF(Master!$B$1="Dbls",IF(B4<='Check-In'!$R$139,B4,IF(AND(I3=I4,G3='Check-In'!$R$139),B4,"")),IF(Master!$B$1="2-Day",IF(B4<='Check-In'!$T$139,B4,IF(AND(I3=I4,G3='Check-In'!$T$139),B4,"")),IF(B4<='Check-In'!$P$139,B4,IF(AND(I3=I4,G3='Check-In'!$P$139),B4,"")))) -> 2 | L4: =IF(M4="","",IF(M3<>M4,INDEX($H$2:$J$127,MATCH(M4,$J$2:$J$127,0),1),INDEX(INDIRECT("h"&(2+MATCH(L3,$H$2:$H$127,0)&":j127")),MATCH(M4,INDIRECT("j"&(2+MATCH(L3,$H$2:$H$127,0)&":j127")),0),1))) -> DOWNER, ROB | M4: 236 | P4: 2 | Q4: =IF(Master!$B$1="Dbls",IF(P4<='Check-In'!$S$136,P4,IF(AND(S3=S4,Q3='Check-In'!$S$136),P4,"")),IF(Master!$B$1="2-Day",IF(P4<='Check-In'!$U$136,P4,IF(AND(S3=S4,Q3='Check-In'!$U$136),P4,"")),IF(P4<='Check-In'!$Q$136,P4,IF(AND(S3=S4,Q3='Check-In'!$Q$136),P4,"")))) -> 2 | R4: =IF(S4="","",IF(S3<>S4,INDEX($AO$2:$AS$127,MATCH(S4,$AQ$2:$AQ$127,0),1),INDEX(INDIRECT("ao"&(2+MATCH(R3,$AO$2:$AO$127,0)&":as127")),MATCH(S4,INDIRECT("aq"&(2+MATCH(R3,$AO$2:$AO$127,0)&":aq127")),0),1))) -> OULMAN, DAVE | S4: 248 | T4: 213 | U4: =IF(Master!$B$1="Dbls",IF(B4<='Check-In'!$S$137,B4,IF(AND(I3=I4,G3='Check-In'!$S$137),B4,"")),IF(Master!$B$1="2-Day",IF(B4<='Check-In'!$U$137,B4,IF(AND(I3=I4,G3='Check-In'!$U$137),B4,"")),IF(B4<='Check-In'!$Q$137,B4,IF(AND(I3=I4,G3='Check-In'!$Q$137),B4,"")))) -> 2 | V4: =IF(W4="","",IF(W3<>W4,INDEX($R$2:$T$127,MATCH(W4,$T$2:$T$127,0),1),INDEX(INDIRECT("r"&(2+MATCH(V3,$R$2:$R$127,0)&":r127")),MATCH(W4,INDIRECT("t"&(2+MATCH(V3,$R$2:$R$127,0)&":t127")),0),1))) -> HANKE, KURT | W4: 257 | X4: 193 | Y4: =IF(Master!$B$1="Dbls",IF(P4<='Check-In'!$R$139,P4,IF(AND(W3=W4,U3='Check-In'!$R$139),P4,"")),IF(Master!$B$1="2-Day",IF(P4<='Check-In'!$T$139,P4,IF(AND(W3=W4,U3='Check-In'!$T$139),P4,"")),IF(P4<='Check-In'!$P$139,P4,IF(AND(W3=W4,U3='Check-In'!$P$139),P4,"")))) -> 2 | Z4: =IF(AA4="","",IF(AA3<>AA4,INDEX($V$2:$X$127,MATCH(AA4,$X$2:$X$127,0),1),INDEX(INDIRECT("v"&(2+MATCH(Z3,$V$2:$V$127,0)&":v127")),MATCH(AA4,INDIRECT("x"&(2+MATCH(Z3,$V$2:$V$127,0)&":x127")),0),1))) -> JENSEN, WAYNE | AA4: =IF(Y4="","",LARGE($X$2:$X$133,P4)) -> 238 | AI4: =IF(AJ4=0,"",'Check-In'!$B9) -> PESCH, JOHN | AJ4: =IF(Tourn="2-Day",'Check-In'!T9,IF(Tourn="Dbls", 'Check-In'!R9,'Check-In'!P9)) -> X | AK4: =IF(AJ4="x",INDEX(Qual!$C$8:$U$133,MATCH(AI4,Qual!$C$8:$C$133,0),IF(Tourn="Dbls",7,IF(Tourn="2-Day",6,IF(Tourn="MSC",6,5)))),"") -> 191 | AL4: =IF(AJ4="x",INDEX(Qual!$C$8:$U$133,MATCH(AI4,Qual!$C$8:$C$133,0),IF(Tourn="Dbls",8,IF(Tourn="2-Day",7,IF(Tourn="MSC",8,6)))),"") -> 234 | AM4: =IF(AJ4="x",INDEX(Qual!$C$8:$U$133,MATCH(AI4,Qual!$C$8:$C$133,0),IF(Tourn="Dbls",9,IF(Tourn="2-Day",8,IF(Tourn="MSC",10,7)))),"") -> 223 | AO4: =IF(AP4=0,"",'Check-In'!$B9) -> PESCH, JOHN | AP4: =IF(Tourn="2-Day",'Check-In'!U9,IF(Tourn="Dbls", 'Check-In'!S9,'Check-In'!P9)) -> X | AQ4: =IF(AP4="x",INDEX(Qual!$C$8:$U$133,MATCH(AO4,Qual!$C$8:$C$133,0),IF(Tourn="Dbls",15,IF(Tourn="2-Day",10,IF(Tourn="MSC",12,8)))),"") -> 202 | AR4: =IF(AP4="x",INDEX(Qual!$C$8:$U$133,MATCH(AO4,Qual!$C$8:$C$133,0),IF(Tourn="Dbls",16,IF(Tourn="2-Day",11,IF(Tourn="MSC",14,9)))),"") -> 268 | AS4: =IF(AP4="x",INDEX(Qual!$C$8:$U$133,MATCH(AO4,Qual!$C$8:$C$133,0),IF(Tourn="Dbls",17,IF(Tourn="2-Day",12,IF(Tourn="MSC",16,10)))),"") -> 225
B5: 3 | C5: =IF(Master!$B$1="Dbls",IF(B5<='Check-In'!$R$136,B5,IF(AND(E4=E5,C4='Check-In'!$R$136),B5,"")),IF(Master!$B$1="2-Day",IF(B5<='Check-In'!$T$136,B5,IF(AND(E4=E5,C4='Check-In'!$T$136),B5,"")),IF(B5<='Check-In'!$P$136,B5,IF(AND(E4=E5,C4='Check-In'!$P$136),B5,"")))) -> 3 | D5: =IF(E5="","",IF(E4<>E5,INDEX($AI$2:$AM$127,MATCH(E5,$AK$2:$AK$127,0),1),INDEX(INDIRECT("ai"&(2+MATCH(D4,$AI$2:$AI$127,0)&":am127")),MATCH(E5,INDIRECT("ak"&(2+MATCH(D4,$AI$2:$AI$127,0)&":ak127")),0),1))) -> LANGER, DAVE | E5: 248 | F5: 208 | G5: =IF(Master!$B$1="Dbls",IF(B5<='Check-In'!$R$137,B5,IF(AND(I4=I5,G4='Check-In'!$R$137),B5,"")),IF(Master!$B$1="2-Day",IF(B5<='Check-In'!$T$137,B5,IF(AND(I4=I5,G4='Check-In'!$T$137),B5,"")),IF(B5<='Check-In'!$P$137,B5,IF(AND(I4=I5,G4='Check-In'!$P$137),B5,"")))) -> 3 | H5: =IF(I5="","",IF(I4<>I5,INDEX($D$2:$F$127,MATCH(I5,$F$2:$F$127,0),1),INDEX(INDIRECT("d"&(2+MATCH(H4,$D$2:$D$127,0)&":f127")),MATCH(I5,INDIRECT("f"&(2+MATCH(H4,$D$2:$D$127,0)&":f127")),0),1))) -> HAUGAN, ERIC | I5: 247 | J5: 180 | K5: =IF(Master!$B$1="Dbls",IF(B5<='Check-In'!$R$139,B5,IF(AND(I4=I5,G4='Check-In'!$R$139),B5,"")),IF(Master!$B$1="2-Day",IF(B5<='Check-In'!$T$139,B5,IF(AND(I4=I5,G4='Check-In'!$T$139),B5,"")),IF(B5<='Check-In'!$P$139,B5,IF(AND(I4=I5,G4='Check-In'!$P$139),B5,"")))) -> 3 | L5: =IF(M5="","",IF(M4<>M5,INDEX($H$2:$J$127,MATCH(M5,$J$2:$J$127,0),1),INDEX(INDIRECT("h"&(2+MATCH(L4,$H$2:$H$127,0)&":j127")),MATCH(M5,INDIRECT("j"&(2+MATCH(L4,$H$2:$H$127,0)&":j127")),0),1))) -> WRIGHT, DANA | M5: 219 | P5: 3 | Q5: =IF(Master!$B$1="Dbls",IF(P5<='Check-In'!$S$136,P5,IF(AND(S4=S5,Q4='Check-In'!$S$136),P5,"")),IF(Master!$B$1="2-Day",IF(P5<='Check-In'!$U$136,P5,IF(AND(S4=S5,Q4='Check-In'!$U$136),P5,"")),IF(P5<='Check-In'!$Q$136,P5,IF(AND(S4=S5,Q4='Check-In'!$Q$136),P5,"")))) -> 3 | R5: =IF(S5="","",IF(S4<>S5,INDEX($AO$2:$AS$127,MATCH(S5,$AQ$2:$AQ$127,0),1),INDEX(INDIRECT("ao"&(2+MATCH(R4,$AO$2:$AO$127,0)&":as127")),MATCH(S5,INDIRECT("aq"&(2+MATCH(R4,$AO$2:$AO$127,0)&":aq127")),0),1))) -> MCKINNEY, TERRY | S5: 248 | T5: 236 | U5: =IF(Master!$B$1="Dbls",IF(B5<='Check-In'!$S$137,B5,IF(AND(I4=I5,G4='Check-In'!$S$137),B5,"")),IF(Master!$B$1="2-Day",IF(B5<='Check-In'!$U$137,B5,IF(AND(I4=I5,G4='Check-In'!$U$137),B5,"")),IF(B5<='Check-In'!$Q$137,B5,IF(AND(I4=I5,G4='Check-In'!$Q$137),B5,"")))) -> 3 | V5: =IF(W5="","",IF(W4<>W5,INDEX($R$2:$T$127,MATCH(W5,$T$2:$T$127,0),1),INDEX(INDIRECT("r"&(2+MATCH(V4,$R$2:$R$127,0)&":r127")),MATCH(W5,INDIRECT("t"&(2+MATCH(V4,$R$2:$R$127,0)&":t127")),0),1))) -> VANSLEET, TODD | W5: 237 | X5: 192 | Y5: =IF(Master!$B$1="Dbls",IF(P5<='Check-In'!$R$139,P5,IF(AND(W4=W5,U4='Check-In'!$R$139),P5,"")),IF(Master!$B$1="2-Day",IF(P5<='Check-In'!$T$139,P5,IF(AND(W4=W5,U4='Check-In'!$T$139),P5,"")),IF(P5<='Check-In'!$P$139,P5,IF(AND(W4=W5,U4='Check-In'!$P$139),P5,"")))) -> 3 | Z5: =IF(AA5="","",IF(AA4<>AA5,INDEX($V$2:$X$127,MATCH(AA5,$X$2:$X$127,0),1),INDEX(INDIRECT("v"&(2+MATCH(Z4,$V$2:$V$127,0)&":v127")),MATCH(AA5,INDIRECT("x"&(2+MATCH(Z4,$V$2:$V$127,0)&":x127")),0),1))) -> HOMMES, JOHN | AA5: 235 | AD5: =IF(Master!$B$1="Dbls","Mini-Eliminator 4-5-6",IF(Master!$B$1="2-Day","Mini-Eliminator 3-4-5","Mini-Eliminator 2-3-4")) -> Mini-Eliminator 2-3-4 | AI5: =IF(AJ5=0,"",'Check-In'!$B10) -> NELSON, BILL | AJ5: =IF(Tourn="2-Day",'Check-In'!T10,IF(Tourn="Dbls", 'Check-In'!R10,'Check-In'!P10)) -> X | AK5: =IF(AJ5="x",INDEX(Qual!$C$8:$U$133,MATCH(AI5,Qual!$C$8:$C$133,0),IF(Tourn="Dbls",7,IF(Tourn="2-Day",6,IF(Tourn="MSC",6,5)))),"") -> 204 | AL5: =IF(AJ5="x",INDEX(Qual!$C$8:$U$133,MATCH(AI5,Qual!$C$8:$C$133,0),IF(Tourn="Dbls",8,IF(Tourn="2-Day",7,IF(Tourn="MSC",8,6)))),"") -> 187 | AM5: =IF(AJ5="x",INDEX(Qual!$C$8:$U$133,MATCH(AI5,Qual!$C$8:$C$133,0),IF(Tourn="Dbls",9,IF(Tourn="2-Day",8,IF(Tourn="MSC",10,7)))),"") -> 184 | AO5: =IF(AP5=0,"",'Check-In'!$B10) -> NELSON, BILL | AP5: =IF(Tourn="2-Day",'Check-In'!U10,IF(Tourn="Dbls", 'Check-In'!S10,'Check-In'!P10)) -> X | AQ5: =IF(AP5="x",INDEX(Qual!$C$8:$U$133,MATCH(AO5,Qual!$C$8:$C$133,0),IF(Tourn="Dbls",15,IF(Tourn="2-Day",10,IF(Tourn="MSC",12,8)))),"") -> 238 | AR5: =IF(AP5="x",INDEX(Qual!$C$8:$U$133,MATCH(AO5,Qual!$C$8:$C$133,0),IF(Tourn="Dbls",16,IF(Tourn="2-Day",11,IF(Tourn="MSC",14,9)))),"") -> 193 | AS5: =IF(AP5="x",INDEX(Qual!$C$8:$U$133,MATCH(AO5,Qual!$C$8:$C$133,0),IF(Tourn="Dbls",17,IF(Tourn="2-Day",12,IF(Tourn="MSC",16,10)))),"") -> 204
B6: 4 | C6: =IF(Master!$B$1="Dbls",IF(B6<='Check-In'!$R$136,B6,IF(AND(E5=E6,C5='Check-In'!$R$136),B6,"")),IF(Master!$B$1="2-Day",IF(B6<='Check-In'!$T$136,B6,IF(AND(E5=E6,C5='Check-In'!$T$136),B6,"")),IF(B6<='Check-In'!$P$136,B6,IF(AND(E5=E6,C5='Check-In'!$P$136),B6,"")))) -> 4 | D6: RACETTE, TIM | E6: 240 | F6: 175 | G6: =IF(Master!$B$1="Dbls",IF(B6<='Check-In'!$R$137,B6,IF(AND(I5=I6,G5='Check-In'!$R$137),B6,"")),IF(Master!$B$1="2-Day",IF(B6<='Check-In'!$T$137,B6,IF(AND(I5=I6,G5='Check-In'!$T$137),B6,"")),IF(B6<='Check-In'!$P$137,B6,IF(AND(I5=I6,G5='Check-In'!$P$137),B6,"")))) -> 4 | H6: =IF(I6="","",IF(I5<>I6,INDEX($D$2:$F$127,MATCH(I6,$F$2:$F$127,0),1),INDEX(INDIRECT("d"&(2+MATCH(H5,$D$2:$D$127,0)&":f127")),MATCH(I6,INDIRECT("f"&(2+MATCH(H5,$D$2:$D$127,0)&":f127")),0),1))) -> GOODWIN, CRAIG | I6: 232 | J6: 170 | K6: 4 | L6: WIRZ, MIKE | M6: 216 | P6: 4 | Q6: =IF(Master!$B$1="Dbls",IF(P6<='Check-In'!$S$136,P6,IF(AND(S5=S6,Q5='Check-In'!$S$136),P6,"")),IF(Master!$B$1="2-Day",IF(P6<='Check-In'!$U$136,P6,IF(AND(S5=S6,Q5='Check-In'!$U$136),P6,"")),IF(P6<='Check-In'!$Q$136,P6,IF(AND(S5=S6,Q5='Check-In'!$Q$136),P6,"")))) -> 4 | R6: NELSON, BILL | S6: 238 | T6: 193 | U6: =IF(Master!$B$1="Dbls",IF(B6<='Check-In'!$S$137,B6,IF(AND(I5=I6,G5='Check-In'!$S$137),B6,"")),IF(Master!$B$1="2-Day",IF(B6<='Check-In'!$U$137,B6,IF(AND(I5=I6,G5='Check-In'!$U$137),B6,"")),IF(B6<='Check-In'!$Q$137,B6,IF(AND(I5=I6,G5='Check-In'!$Q$137),B6,"")))) -> 4 | V6: MCKINNEY, TERRY | W6: 236 | X6: 225 | Y6: =IF(Master!$B$1="Dbls",IF(P6<='Check-In'!$R$139,P6,IF(AND(W5=W6,U5='Check-In'!$R$139),P6,"")),IF(Master!$B$1="2-Day",IF(P6<='Check-In'!$T$139,P6,IF(AND(W5=W6,U5='Check-In'!$T$139),P6,"")),IF(P6<='Check-In'!$P$139,P6,IF(AND(W5=W6,U5='Check-In'!$P$139),P6,"")))) -> 4 | Z6: MCKINNEY, TERRY | AA6: 225 | AE6: Bowler | AF6: Game | AG6: Amount | AI6: =IF(AJ6=0,"",'Check-In'!$B11) -> SCHOSSOW, FRED | AJ6: =IF(Tourn="2-Day",'Check-In'!T11,IF(Tourn="Dbls", 'Check-In'!R11,'Check-In'!P11)) -> X | AK6: =IF(AJ6="x",INDEX(Qual!$C$8:$U$133,MATCH(AI6,Qual!$C$8:$C$133,0),IF(Tourn="Dbls",7,IF(Tourn="2-Day",6,IF(Tourn="MSC",6,5)))),"") -> 159 | AL6: =IF(AJ6="x",INDEX(Qual!$C$8:$U$133,MATCH(AI6,Qual!$C$8:$C$133,0),IF(Tourn="Dbls",8,IF(Tourn="2-Day",7,IF(Tourn="MSC",8,6)))),"") -> 190 | AM6: =IF(AJ6="x",INDEX(Qual!$C$8:$U$133,MATCH(AI6,Qual!$C$8:$C$133,0),IF(Tourn="Dbls",9,IF(Tourn="2-Day",8,IF(Tourn="MSC",10,7)))),"") -> 172 | AO6: =IF(AP6=0,"",'Check-In'!$B11) -> SCHOSSOW, FRED | AP6: =IF(Tourn="2-Day",'Check-In'!U11,IF(Tourn="Dbls", 'Check-In'!S11,'Check-In'!P11)) -> X | AQ6: =IF(AP6="x",INDEX(Qual!$C$8:$U$133,MATCH(AO6,Qual!$C$8:$C$133,0),IF(Tourn="Dbls",15,IF(Tourn="2-Day",10,IF(Tourn="MSC",12,8)))),"") -> 190 | AR6: =IF(AP6="x",INDEX(Qual!$C$8:$U$133,MATCH(AO6,Qual!$C$8:$C$133,0),IF(Tourn="Dbls",16,IF(Tourn="2-Day",11,IF(Tourn="MSC",14,9)))),"") -> 227 | AS6: =IF(AP6="x",INDEX(Qual!$C$8:$U$133,MATCH(AO6,Qual!$C$8:$C$133,0),IF(Tourn="Dbls",17,IF(Tourn="2-Day",12,IF(Tourn="MSC",16,10)))),"") -> 229
B7: 5 | C7: =IF(Master!$B$1="Dbls",IF(B7<='Check-In'!$R$136,B7,IF(AND(E6=E7,C6='Check-In'!$R$136),B7,"")),IF(Master!$B$1="2-Day",IF(B7<='Check-In'!$T$136,B7,IF(AND(E6=E7,C6='Check-In'!$T$136),B7,"")),IF(B7<='Check-In'!$P$136,B7,IF(AND(E6=E7,C6='Check-In'!$P$136),B7,"")))) -> 5 | D7: HOMMES, JOHN | E7: 237 | F7: 247 | G7: =IF(Master!$B$1="Dbls",IF(B7<='Check-In'!$R$137,B7,IF(AND(I6=I7,G6='Check-In'!$R$137),B7,"")),IF(Master!$B$1="2-Day",IF(B7<='Check-In'!$T$137,B7,IF(AND(I6=I7,G6='Check-In'!$T$137),B7,"")),IF(B7<='Check-In'!$P$137,B7,IF(AND(I6=I7,G6='Check-In'!$P$137),B7,"")))) -> 5 | H7: GREEN, GARY | I7: 228 | J7: 193 | K7: 5 | L7: JENSEN, WAYNE | M7: 202 | P7: 5 | Q7: =IF(Master!$B$1="Dbls",IF(P7<='Check-In'!$S$136,P7,IF(AND(S6=S7,Q6='Check-In'!$S$136),P7,"")),IF(Master!$B$1="2-Day",IF(P7<='Check-In'!$U$136,P7,IF(AND(S6=S7,Q6='Check-In'!$U$136),P7,"")),IF(P7<='Check-In'!$Q$136,P7,IF(AND(S6=S7,Q6='Check-In'!$Q$136),P7,"")))) -> 5 | R7: BOHN, STEVE | S7: 235 | T7: 228 | U7: =IF(Master!$B$1="Dbls",IF(B7<='Check-In'!$S$137,B7,IF(AND(I6=I7,G6='Check-In'!$S$137),B7,"")),IF(Master!$B$1="2-Day",IF(B7<='Check-In'!$U$137,B7,IF(AND(I6=I7,G6='Check-In'!$U$137),B7,"")),IF(B7<='Check-In'!$Q$137,B7,IF(AND(I6=I7,G6='Check-In'!$Q$137),B7,"")))) -> 5 | V7: BOHN, STEVE | W7: 228 | X7: 206 | Y7: 5 | Z7: DOWNER, ROB | AA7: 217 | AD7: 1 | AE7: =L3 -> LANGER, DAVE | AF7: =M3 -> 255 | AG7: =IF(Tourn="Dbls",'Check-In'!R145,IF(Tourn="2-Day",'Check-In'!T145,'Check-In'!P145)) -> $125.00 | AI7: =IF(AJ7=0,"",'Check-In'!$B12) -> POELZER, CLARK | AJ7: =IF(Tourn="2-Day",'Check-In'!T12,IF(Tourn="Dbls", 'Check-In'!R12,'Check-In'!P12)) -> X | AK7: =IF(AJ7="x",INDEX(Qual!$C$8:$U$133,MATCH(AI7,Qual!$C$8:$C$133,0),IF(Tourn="Dbls",7,IF(Tourn="2-Day",6,IF(Tourn="MSC",6,5)))),"") -> 168 | AL7: =IF(AJ7="x",INDEX(Qual!$C$8:$U$133,MATCH(AI7,Qual!$C$8:$C$133,0),IF(Tourn="Dbls",8,IF(Tourn="2-Day",7,IF(Tourn="MSC",8,6)))),"") -> 215 | AM7: =IF(AJ7="x",INDEX(Qual!$C$8:$U$133,MATCH(AI7,Qual!$C$8:$C$133,0),IF(Tourn="Dbls",9,IF(Tourn="2-Day",8,IF(Tourn="MSC",10,7)))),"") -> 205 | AO7: =IF(AP7=0,"",'Check-In'!$B12) -> POELZER, CLARK | AP7: =IF(Tourn="2-Day",'Check-In'!U12,IF(Tourn="Dbls", 'Check-In'!S12,'Check-In'!P12)) -> X | AQ7: =IF(AP7="x",INDEX(Qual!$C$8:$U$133,MATCH(AO7,Qual!$C$8:$C$133,0),IF(Tourn="Dbls",15,IF(Tourn="2-Day",10,IF(Tourn="MSC",12,8)))),"") -> 194 | AR7: =IF(AP7="x",INDEX(Qual!$C$8:$U$133,MATCH(AO7,Qual!$C$8:$C$133,0),IF(Tourn="Dbls",16,IF(Tourn="2-Day",11,IF(Tourn="MSC",14,9)))),"") -> 212 | AS7: =IF(AP7="x",INDEX(Qual!$C$8:$U$133,MATCH(AO7,Qual!$C$8:$C$133,0),IF(Tourn="Dbls",17,IF(Tourn="2-Day",12,IF(Tourn="MSC",16,10)))),"") -> 201
B8: 6 | C8: =IF(Master!$B$1="Dbls",IF(B8<='Check-In'!$R$136,B8,IF(AND(E7=E8,C7='Check-In'!$R$136),B8,"")),IF(Master!$B$1="2-Day",IF(B8<='Check-In'!$T$136,B8,IF(AND(E7=E8,C7='Check-In'!$T$136),B8,"")),IF(B8<='Check-In'!$P$136,B8,IF(AND(E7=E8,C7='Check-In'!$P$136),B8,"")))) -> 6 | D8: WIRZ, MIKE | E8: 226 | F8: 215 | G8: =IF(Master!$B$1="Dbls",IF(B8<='Check-In'!$R$137,B8,IF(AND(I7=I8,G7='Check-In'!$R$137),B8,"")),IF(Master!$B$1="2-Day",IF(B8<='Check-In'!$T$137,B8,IF(AND(I7=I8,G7='Check-In'!$T$137),B8,"")),IF(B8<='Check-In'!$P$137,B8,IF(AND(I7=I8,G7='Check-In'!$P$137),B8,"")))) -> 6 | H8: WRIGHT, DANA | I8: 215 | J8: 219 | K8: 6 | L8: HOMMES, JOHN | M8: 198 | P8: 6 | Q8: =IF(Master!$B$1="Dbls",IF(P8<='Check-In'!$S$136,P8,IF(AND(S7=S8,Q7='Check-In'!$S$136),P8,"")),IF(Master!$B$1="2-Day",IF(P8<='Check-In'!$U$136,P8,IF(AND(S7=S8,Q7='Check-In'!$U$136),P8,"")),IF(P8<='Check-In'!$Q$136,P8,IF(AND(S7=S8,Q7='Check-In'!$Q$136),P8,"")))) -> 6 | R8: HANKE, KURT | S8: 228 | T8: 257 | U8: =IF(Master!$B$1="Dbls",IF(B8<='Check-In'!$S$137,B8,IF(AND(I7=I8,G7='Check-In'!$S$137),B8,"")),IF(Master!$B$1="2-Day",IF(B8<='Check-In'!$U$137,B8,IF(AND(I7=I8,G7='Check-In'!$U$137),B8,"")),IF(B8<='Check-In'!$Q$137,B8,IF(AND(I7=I8,G7='Check-In'!$Q$137),B8,"")))) -> 6 | V8: BORDSON, DAVE | W8: 226 | X8: 238 | Y8: 6 | Z8: OULMAN, DAVE | AA8: 215 | AD8: 2 | AE8: =L4 -> DOWNER, ROB | AF8: =M4 -> 236 | AG8: =IF(Tourn="Dbls",'Check-In'!R146,IF(Tourn="2-Day",'Check-In'!T146,'Check-In'!P146)) -> $90.00 | AI8: =IF(AJ8=0,"",'Check-In'!$B13) ->  | AJ8: =IF(Tourn="2-Day",'Check-In'!T13,IF(Tourn="Dbls", 'Check-In'!R13,'Check-In'!P13)) -> 0 | AK8: =IF(AJ8="x",INDEX(Qual!$C$8:$U$133,MATCH(AI8,Qual!$C$8:$C$133,0),IF(Tourn="Dbls",7,IF(Tourn="2-Day",6,IF(Tourn="MSC",6,5)))),"") ->  | AL8: =IF(AJ8="x",INDEX(Qual!$C$8:$U$133,MATCH(AI8,Qual!$C$8:$C$133,0),IF(Tourn="Dbls",8,IF(Tourn="2-Day",7,IF(Tourn="MSC",8,6)))),"") ->  | AM8: =IF(AJ8="x",INDEX(Qual!$C$8:$U$133,MATCH(AI8,Qual!$C$8:$C$133,0),IF(Tourn="Dbls",9,IF(Tourn="2-Day",8,IF(Tourn="MSC",10,7)))),"") ->  | AO8: =IF(AP8=0,"",'Check-In'!$B13) ->  | AP8: =IF(Tourn="2-Day",'Check-In'!U13,IF(Tourn="Dbls", 'Check-In'!S13,'Check-In'!P13)) -> 0 | AQ8: =IF(AP8="x",INDEX(Qual!$C$8:$U$133,MATCH(AO8,Qual!$C$8:$C$133,0),IF(Tourn="Dbls",15,IF(Tourn="2-Day",10,IF(Tourn="MSC",12,8)))),"") ->  | AR8: =IF(AP8="x",INDEX(Qual!$C$8:$U$133,MATCH(AO8,Qual!$C$8:$C$133,0),IF(Tourn="Dbls",16,IF(Tourn="2-Day",11,IF(Tourn="MSC",14,9)))),"") ->  | AS8: =IF(AP8="x",INDEX(Qual!$C$8:$U$133,MATCH(AO8,Qual!$C$8:$C$133,0),IF(Tourn="Dbls",17,IF(Tourn="2-Day",12,IF(Tourn="MSC",16,10)))),"") -> 
B9: 7 | C9: =IF(Master!$B$1="Dbls",IF(B9<='Check-In'!$R$136,B9,IF(AND(E8=E9,C8='Check-In'!$R$136),B9,"")),IF(Master!$B$1="2-Day",IF(B9<='Check-In'!$T$136,B9,IF(AND(E8=E9,C8='Check-In'!$T$136),B9,"")),IF(B9<='Check-In'!$P$136,B9,IF(AND(E8=E9,C8='Check-In'!$P$136),B9,"")))) -> 7 | D9: IRVIN, BRAD | E9: 223 | F9: 187 | G9: =IF(Master!$B$1="Dbls",IF(B9<='Check-In'!$R$137,B9,IF(AND(I8=I9,G8='Check-In'!$R$137),B9,"")),IF(Master!$B$1="2-Day",IF(B9<='Check-In'!$T$137,B9,IF(AND(I8=I9,G8='Check-In'!$T$137),B9,"")),IF(B9<='Check-In'!$P$137,B9,IF(AND(I8=I9,G8='Check-In'!$P$137),B9,"")))) -> 7 | H9: WIRZ, MIKE | I9: 215 | J9: 216 | K9: =IF(Master!$B$1="Dbls",IF(B9<='Check-In'!$R$139,B9,IF(AND(I8=I9,G8='Check-In'!$R$139),B9,"")),IF(Master!$B$1="2-Day",IF(B9<='Check-In'!$T$139,B9,IF(AND(I8=I9,G8='Check-In'!$T$139),B9,"")),IF(B9<='Check-In'!$P$139,B9,IF(AND(I8=I9,G8='Check-In'!$P$139),B9,"")))) ->  | P9: 7 | Q9: =IF(Master!$B$1="Dbls",IF(P9<='Check-In'!$S$136,P9,IF(AND(S8=S9,Q8='Check-In'!$S$136),P9,"")),IF(Master!$B$1="2-Day",IF(P9<='Check-In'!$U$136,P9,IF(AND(S8=S9,Q8='Check-In'!$U$136),P9,"")),IF(P9<='Check-In'!$Q$136,P9,IF(AND(S8=S9,Q8='Check-In'!$Q$136),P9,"")))) -> 7 | R9: WRIGHT, DANA | S9: 226 | T9: 194 | U9: 7 | V9: OULMAN, DAVE | W9: 213 | X9: 215 | Y9: =IF(Master!$B$1="Dbls",IF(P9<='Check-In'!$R$139,P9,IF(AND(W8=W9,U8='Check-In'!$R$139),P9,"")),IF(Master!$B$1="2-Day",IF(P9<='Check-In'!$T$139,P9,IF(AND(W8=W9,U8='Check-In'!$T$139),P9,"")),IF(P9<='Check-In'!$P$139,P9,IF(AND(W8=W9,U8='Check-In'!$P$139),P9,"")))) ->  | AD9: =IF(AG9="","",3) -> 3 | AE9: =IF(AG9="","",L5) -> WRIGHT, DANA | AF9: =IF(AG9="","",M5) -> 219 | AG9: $35.00 | AI9: =IF(AJ9=0,"",'Check-In'!$B14) -> MCKINNEY, TERRY | AJ9: =IF(Tourn="2-Day",'Check-In'!T14,IF(Tourn="Dbls", 'Check-In'!R14,'Check-In'!P14)) -> X | AK9: =IF(AJ9="x",INDEX(Qual!$C$8:$U$133,MATCH(AI9,Qual!$C$8:$C$133,0),IF(Tourn="Dbls",7,IF(Tourn="2-Day",6,IF(Tourn="MSC",6,5)))),"") -> 222 | AL9: =IF(AJ9="x",INDEX(Qual!$C$8:$U$133,MATCH(AI9,Qual!$C$8:$C$133,0),IF(Tourn="Dbls",8,IF(Tourn="2-Day",7,IF(Tourn="MSC",8,6)))),"") -> 201 | AM9: =IF(AJ9="x",INDEX(Qual!$C$8:$U$133,MATCH(AI9,Qual!$C$8:$C$133,0),IF(Tourn="Dbls",9,IF(Tourn="2-Day",8,IF(Tourn="MSC",10,7)))),"") -> 248 | AO9: =IF(AP9=0,"",'Check-In'!$B14) -> MCKINNEY, TERRY | AP9: =IF(Tourn="2-Day",'Check-In'!U14,IF(Tourn="Dbls", 'Check-In'!S14,'Check-In'!P14)) -> X | AQ9: =IF(AP9="x",INDEX(Qual!$C$8:$U$133,MATCH(AO9,Qual!$C$8:$C$133,0),IF(Tourn="Dbls",15,IF(Tourn="2-Day",10,IF(Tourn="MSC",12,8)))),"") -> 248 | AR9: =IF(AP9="x",INDEX(Qual!$C$8:$U$133,MATCH(AO9,Qual!$C$8:$C$133,0),IF(Tourn="Dbls",16,IF(Tourn="2-Day",11,IF(Tourn="MSC",14,9)))),"") -> 236 | AS9: =IF(AP9="x",INDEX(Qual!$C$8:$U$133,MATCH(AO9,Qual!$C$8:$C$133,0),IF(Tourn="Dbls",17,IF(Tourn="2-Day",12,IF(Tourn="MSC",16,10)))),"") -> 225
B10: 8 | C10: =IF(Master!$B$1="Dbls",IF(B10<='Check-In'!$R$136,B10,IF(AND(E9=E10,C9='Check-In'!$R$136),B10,"")),IF(Master!$B$1="2-Day",IF(B10<='Check-In'!$T$136,B10,IF(AND(E9=E10,C9='Check-In'!$T$136),B10,"")),IF(B10<='Check-In'!$P$136,B10,IF(AND(E9=E10,C9='Check-In'!$P$136),B10,"")))) -> 8 | D10: BRUINSMA, DEAN | E10: 223 | F10: 189 | G10: =IF(Master!$B$1="Dbls",IF(B10<='Check-In'!$R$137,B10,IF(AND(I9=I10,G9='Check-In'!$R$137),B10,"")),IF(Master!$B$1="2-Day",IF(B10<='Check-In'!$T$137,B10,IF(AND(I9=I10,G9='Check-In'!$T$137),B10,"")),IF(B10<='Check-In'!$P$137,B10,IF(AND(I9=I10,G9='Check-In'!$P$137),B10,"")))) -> 8 | H10: LANGER, DAVE | I10: 208 | J10: 255 | K10: =IF(Master!$B$1="Dbls",IF(B10<='Check-In'!$R$139,B10,IF(AND(I9=I10,G9='Check-In'!$R$139),B10,"")),IF(Master!$B$1="2-Day",IF(B10<='Check-In'!$T$139,B10,IF(AND(I9=I10,G9='Check-In'!$T$139),B10,"")),IF(B10<='Check-In'!$P$139,B10,IF(AND(I9=I10,G9='Check-In'!$P$139),B10,"")))) ->  | P10: 8 | Q10: =IF(Master!$B$1="Dbls",IF(P10<='Check-In'!$S$136,P10,IF(AND(S9=S10,Q9='Check-In'!$S$136),P10,"")),IF(Master!$B$1="2-Day",IF(P10<='Check-In'!$U$136,P10,IF(AND(S9=S10,Q9='Check-In'!$U$136),P10,"")),IF(P10<='Check-In'!$Q$136,P10,IF(AND(S9=S10,Q9='Check-In'!$Q$136),P10,"")))) -> 8 | R10: LANGER, DAVE | S10: 226 | T10: 268 | U10: 8 | V10: JENSEN, WAYNE | W10: 213 | X10: 238 | Y10: =IF(Master!$B$1="Dbls",IF(P10<='Check-In'!$R$139,P10,IF(AND(W9=W10,U9='Check-In'!$R$139),P10,"")),IF(Master!$B$1="2-Day",IF(P10<='Check-In'!$T$139,P10,IF(AND(W9=W10,U9='Check-In'!$T$139),P10,"")),IF(P10<='Check-In'!$P$139,P10,IF(AND(W9=W10,U9='Check-In'!$P$139),P10,"")))) ->  | AD10: =IF(AG10="","",4) -> 4 | AE10: =IF(AG10="","",L6) -> WIRZ, MIKE | AF10: =IF(AG10="","",M6) -> 216 | AG10: $35.00 | AI10: =IF(AJ10=0,"",'Check-In'!$B15) ->  | AJ10: =IF(Tourn="2-Day",'Check-In'!T15,IF(Tourn="Dbls", 'Check-In'!R15,'Check-In'!P15)) -> 0 | AK10: =IF(AJ10="x",INDEX(Qual!$C$8:$U$133,MATCH(AI10,Qual!$C$8:$C$133,0),IF(Tourn="Dbls",7,IF(Tourn="2-Day",6,IF(Tourn="MSC",6,5)))),"") ->  | AL10: =IF(AJ10="x",INDEX(Qual!$C$8:$U$133,MATCH(AI10,Qual!$C$8:$C$133,0),IF(Tourn="Dbls",8,IF(Tourn="2-Day",7,IF(Tourn="MSC",8,6)))),"") ->  | AM10: =IF(AJ10="x",INDEX(Qual!$C$8:$U$133,MATCH(AI10,Qual!$C$8:$C$133,0),IF(Tourn="Dbls",9,IF(Tourn="2-Day",8,IF(Tourn="MSC",10,7)))),"") ->  | AO10: =IF(AP10=0,"",'Check-In'!$B15) ->  | AP10: =IF(Tourn="2-Day",'Check-In'!U15,IF(Tourn="Dbls", 'Check-In'!S15,'Check-In'!P15)) -> 0 | AQ10: =IF(AP10="x",INDEX(Qual!$C$8:$U$133,MATCH(AO10,Qual!$C$8:$C$133,0),IF(Tourn="Dbls",15,IF(Tourn="2-Day",10,IF(Tourn="MSC",12,8)))),"") ->  | AR10: =IF(AP10="x",INDEX(Qual!$C$8:$U$133,MATCH(AO10,Qual!$C$8:$C$133,0),IF(Tourn="Dbls",16,IF(Tourn="2-Day",11,IF(Tourn="MSC",14,9)))),"") ->  | AS10: =IF(AP10="x",INDEX(Qual!$C$8:$U$133,MATCH(AO10,Qual!$C$8:$C$133,0),IF(Tourn="Dbls",17,IF(Tourn="2-Day",12,IF(Tourn="MSC",16,10)))),"") -> 
B11: 9 | C11: =IF(Master!$B$1="Dbls",IF(B11<='Check-In'!$R$136,B11,IF(AND(E10=E11,C10='Check-In'!$R$136),B11,"")),IF(Master!$B$1="2-Day",IF(B11<='Check-In'!$T$136,B11,IF(AND(E10=E11,C10='Check-In'!$T$136),B11,"")),IF(B11<='Check-In'!$P$136,B11,IF(AND(E10=E11,C10='Check-In'!$P$136),B11,"")))) -> 9 | D11: MCKINNEY, TERRY | E11: 222 | F11: 201 | G11: =IF(Master!$B$1="Dbls",IF(B11<='Check-In'!$R$137,B11,IF(AND(I10=I11,G10='Check-In'!$R$137),B11,"")),IF(Master!$B$1="2-Day",IF(B11<='Check-In'!$T$137,B11,IF(AND(I10=I11,G10='Check-In'!$T$137),B11,"")),IF(B11<='Check-In'!$P$137,B11,IF(AND(I10=I11,G10='Check-In'!$P$137),B11,"")))) -> 9 | H11: JENSEN, WAYNE | I11: 207 | J11: 202 | K11: =IF(Master!$B$1="Dbls",IF(B11<='Check-In'!$R$139,B11,IF(AND(I10=I11,G10='Check-In'!$R$139),B11,"")),IF(Master!$B$1="2-Day",IF(B11<='Check-In'!$T$139,B11,IF(AND(I10=I11,G10='Check-In'!$T$139),B11,"")),IF(B11<='Check-In'!$P$139,B11,IF(AND(I10=I11,G10='Check-In'!$P$139),B11,"")))) ->  | M11: =IF(K11="","",LARGE($J$2:$J$133,B11)) ->  | P11: 9 | Q11: =IF(Master!$B$1="Dbls",IF(P11<='Check-In'!$S$136,P11,IF(AND(S10=S11,Q10='Check-In'!$S$136),P11,"")),IF(Master!$B$1="2-Day",IF(P11<='Check-In'!$U$136,P11,IF(AND(S10=S11,Q10='Check-In'!$U$136),P11,"")),IF(P11<='Check-In'!$Q$136,P11,IF(AND(S10=S11,Q10='Check-In'!$Q$136),P11,"")))) -> 9 | R11: VANSLEET, TODD | S11: 225 | T11: 237 | U11: 9 | V11: SAVOY, TODD | W11: 209 | X11: 215 | Y11: =IF(Master!$B$1="Dbls",IF(P11<='Check-In'!$R$139,P11,IF(AND(W10=W11,U10='Check-In'!$R$139),P11,"")),IF(Master!$B$1="2-Day",IF(P11<='Check-In'!$T$139,P11,IF(AND(W10=W11,U10='Check-In'!$T$139),P11,"")),IF(P11<='Check-In'!$P$139,P11,IF(AND(W10=W11,U10='Check-In'!$P$139),P11,"")))) ->  | AG11: =IF(Tourn="Dbls",'Check-In'!R149,IF(Tourn="2-Day",'Check-In'!T149,'Check-In'!P149)) -> $20.00 | AI11: =IF(AJ11=0,"",'Check-In'!$B16) -> WRIGHT, DANA | AJ11: =IF(Tourn="2-Day",'Check-In'!T16,IF(Tourn="Dbls", 'Check-In'!R16,'Check-In'!P16)) -> X | AK11: =IF(AJ11="x",INDEX(Qual!$C$8:$U$133,MATCH(AI11,Qual!$C$8:$C$133,0),IF(Tourn="Dbls",7,IF(Tourn="2-Day",6,IF(Tourn="MSC",6,5)))),"") -> 269 | AL11: =IF(AJ11="x",INDEX(Qual!$C$8:$U$133,MATCH(AI11,Qual!$C$8:$C$133,0),IF(Tourn="Dbls",8,IF(Tourn="2-Day",7,IF(Tourn="MSC",8,6)))),"") -> 215 | AM11: =IF(AJ11="x",INDEX(Qual!$C$8:$U$133,MATCH(AI11,Qual!$C$8:$C$133,0),IF(Tourn="Dbls",9,IF(Tourn="2-Day",8,IF(Tourn="MSC",10,7)))),"") -> 219 | AO11: =IF(AP11=0,"",'Check-In'!$B16) -> WRIGHT, DANA | AP11: =IF(Tourn="2-Day",'Check-In'!U16,IF(Tourn="Dbls", 'Check-In'!S16,'Check-In'!P16)) -> X | AQ11: =IF(AP11="x",INDEX(Qual!$C$8:$U$133,MATCH(AO11,Qual!$C$8:$C$133,0),IF(Tourn="Dbls",15,IF(Tourn="2-Day",10,IF(Tourn="MSC",12,8)))),"") -> 226 | AR11: =IF(AP11="x",INDEX(Qual!$C$8:$U$133,MATCH(AO11,Qual!$C$8:$C$133,0),IF(Tourn="Dbls",16,IF(Tourn="2-Day",11,IF(Tourn="MSC",14,9)))),"") -> 194 | AS11: =IF(AP11="x",INDEX(Qual!$C$8:$U$133,MATCH(AO11,Qual!$C$8:$C$133,0),IF(Tourn="Dbls",17,IF(Tourn="2-Day",12,IF(Tourn="MSC",16,10)))),"") -> 172
B12: 10 | C12: =IF(Master!$B$1="Dbls",IF(B12<='Check-In'!$R$136,B12,IF(AND(E11=E12,C11='Check-In'!$R$136),B12,"")),IF(Master!$B$1="2-Day",IF(B12<='Check-In'!$T$136,B12,IF(AND(E11=E12,C11='Check-In'!$T$136),B12,"")),IF(B12<='Check-In'!$P$136,B12,IF(AND(E11=E12,C11='Check-In'!$P$136),B12,"")))) -> 10 | D12: JENSEN, WAYNE | E12: 222 | F12: 207 | G12: =IF(Master!$B$1="Dbls",IF(B12<='Check-In'!$R$137,B12,IF(AND(I11=I12,G11='Check-In'!$R$137),B12,"")),IF(Master!$B$1="2-Day",IF(B12<='Check-In'!$T$137,B12,IF(AND(I11=I12,G11='Check-In'!$T$137),B12,"")),IF(B12<='Check-In'!$P$137,B12,IF(AND(I11=I12,G11='Check-In'!$P$137),B12,"")))) -> 10 | H12: CORBETT, TOM | I12: 207 | J12: 179 | K12: =IF(Master!$B$1="Dbls",IF(B12<='Check-In'!$R$139,B12,IF(AND(I11=I12,G11='Check-In'!$R$139),B12,"")),IF(Master!$B$1="2-Day",IF(B12<='Check-In'!$T$139,B12,IF(AND(I11=I12,G11='Check-In'!$T$139),B12,"")),IF(B12<='Check-In'!$P$139,B12,IF(AND(I11=I12,G11='Check-In'!$P$139),B12,"")))) ->  | P12: 10 | Q12: =IF(Master!$B$1="Dbls",IF(P12<='Check-In'!$S$136,P12,IF(AND(S11=S12,Q11='Check-In'!$S$136),P12,"")),IF(Master!$B$1="2-Day",IF(P12<='Check-In'!$U$136,P12,IF(AND(S11=S12,Q11='Check-In'!$U$136),P12,"")),IF(P12<='Check-In'!$Q$136,P12,IF(AND(S11=S12,Q11='Check-In'!$Q$136),P12,"")))) -> 10 | R12: SAVOY, TODD | S12: 224 | T12: 209 | U12: 10 | V12: DOWNER, ROB | W12: 208 | X12: 217 | Y12: =IF(Master!$B$1="Dbls",IF(P12<='Check-In'!$R$139,P12,IF(AND(W11=W12,U11='Check-In'!$R$139),P12,"")),IF(Master!$B$1="2-Day",IF(P12<='Check-In'!$T$139,P12,IF(AND(W11=W12,U11='Check-In'!$T$139),P12,"")),IF(P12<='Check-In'!$P$139,P12,IF(AND(W11=W12,U11='Check-In'!$P$139),P12,"")))) ->  | AG12: =IF(Tourn="Dbls",'Check-In'!R150,IF(Tourn="2-Day",'Check-In'!T150,'Check-In'!P150)) -> 0 | AI12: =IF(AJ12=0,"",'Check-In'!$B17) -> DAVIS, BOB | AJ12: =IF(Tourn="2-Day",'Check-In'!T17,IF(Tourn="Dbls", 'Check-In'!R17,'Check-In'!P17)) -> X | AK12: =IF(AJ12="x",INDEX(Qual!$C$8:$U$133,MATCH(AI12,Qual!$C$8:$C$133,0),IF(Tourn="Dbls",7,IF(Tourn="2-Day",6,IF(Tourn="MSC",6,5)))),"") -> 148 | AL12: =IF(AJ12="x",INDEX(Qual!$C$8:$U$133,MATCH(AI12,Qual!$C$8:$C$133,0),IF(Tourn="Dbls",8,IF(Tourn="2-Day",7,IF(Tourn="MSC",8,6)))),"") -> 178 | AM12: =IF(AJ12="x",INDEX(Qual!$C$8:$U$133,MATCH(AI12,Qual!$C$8:$C$133,0),IF(Tourn="Dbls",9,IF(Tourn="2-Day",8,IF(Tourn="MSC",10,7)))),"") -> 157 | AO12: =IF(AP12=0,"",'Check-In'!$B17) -> DAVIS, BOB | AP12: =IF(Tourn="2-Day",'Check-In'!U17,IF(Tourn="Dbls", 'Check-In'!S17,'Check-In'!P17)) -> X | AQ12: =IF(AP12="x",INDEX(Qual!$C$8:$U$133,MATCH(AO12,Qual!$C$8:$C$133,0),IF(Tourn="Dbls",15,IF(Tourn="2-Day",10,IF(Tourn="MSC",12,8)))),"") -> 217 | AR12: =IF(AP12="x",INDEX(Qual!$C$8:$U$133,MATCH(AO12,Qual!$C$8:$C$133,0),IF(Tourn="Dbls",16,IF(Tourn="2-Day",11,IF(Tourn="MSC",14,9)))),"") -> 190 | AS12: =IF(AP12="x",INDEX(Qual!$C$8:$U$133,MATCH(AO12,Qual!$C$8:$C$133,0),IF(Tourn="Dbls",17,IF(Tourn="2-Day",12,IF(Tourn="MSC",16,10)))),"") -> 157
B13: 11 | C13: =IF(Master!$B$1="Dbls",IF(B13<='Check-In'!$R$136,B13,IF(AND(E12=E13,C12='Check-In'!$R$136),B13,"")),IF(Master!$B$1="2-Day",IF(B13<='Check-In'!$T$136,B13,IF(AND(E12=E13,C12='Check-In'!$T$136),B13,"")),IF(B13<='Check-In'!$P$136,B13,IF(AND(E12=E13,C12='Check-In'!$P$136),B13,"")))) -> 11 | D13: GOODWIN, CRAIG | E13: 222 | F13: 232 | G13: =IF(Master!$B$1="Dbls",IF(B13<='Check-In'!$R$137,B13,IF(AND(I12=I13,G12='Check-In'!$R$137),B13,"")),IF(Master!$B$1="2-Day",IF(B13<='Check-In'!$T$137,B13,IF(AND(I12=I13,G12='Check-In'!$T$137),B13,"")),IF(B13<='Check-In'!$P$137,B13,IF(AND(I12=I13,G12='Check-In'!$P$137),B13,"")))) ->  | H13: VANSLEET, TODD | I13: 204 | K13: =IF(Master!$B$1="Dbls",IF(B13<='Check-In'!$R$139,B13,IF(AND(I12=I13,G12='Check-In'!$R$139),B13,"")),IF(Master!$B$1="2-Day",IF(B13<='Check-In'!$T$139,B13,IF(AND(I12=I13,G12='Check-In'!$T$139),B13,"")),IF(B13<='Check-In'!$P$139,B13,IF(AND(I12=I13,G12='Check-In'!$P$139),B13,"")))) ->  | P13: 11 | Q13: =IF(Master!$B$1="Dbls",IF(P13<='Check-In'!$S$136,P13,IF(AND(S12=S13,Q12='Check-In'!$S$136),P13,"")),IF(Master!$B$1="2-Day",IF(P13<='Check-In'!$U$136,P13,IF(AND(S12=S13,Q12='Check-In'!$U$136),P13,"")),IF(P13<='Check-In'!$Q$136,P13,IF(AND(S12=S13,Q12='Check-In'!$Q$136),P13,"")))) -> 11 | R13: IRVIN, BRAD | S13: 223 | T13: 190 | U13: 11 | V13: HOMMES, JOHN | W13: 196 | X13: 235 | Y13: =IF(Master!$B$1="Dbls",IF(P13<='Check-In'!$R$139,P13,IF(AND(W12=W13,U12='Check-In'!$R$139),P13,"")),IF(Master!$B$1="2-Day",IF(P13<='Check-In'!$T$139,P13,IF(AND(W12=W13,U12='Check-In'!$T$139),P13,"")),IF(P13<='Check-In'!$P$139,P13,IF(AND(W12=W13,U12='Check-In'!$P$139),P13,"")))) ->  | AE13: =IF(AG13="","",L9) ->  | AF13: =IF(AG13="","",M9) ->  | AG13: =IF(Tourn="Dbls",'Check-In'!R151,IF(Tourn="2-Day",'Check-In'!T151,'Check-In'!P151)) -> 0 | AI13: =IF(AJ13=0,"",'Check-In'!$B18) ->  | AJ13: =IF(Tourn="2-Day",'Check-In'!T18,IF(Tourn="Dbls", 'Check-In'!R18,'Check-In'!P18)) -> 0 | AK13: =IF(AJ13="x",INDEX(Qual!$C$8:$U$133,MATCH(AI13,Qual!$C$8:$C$133,0),IF(Tourn="Dbls",7,IF(Tourn="2-Day",6,IF(Tourn="MSC",6,5)))),"") ->  | AL13: =IF(AJ13="x",INDEX(Qual!$C$8:$U$133,MATCH(AI13,Qual!$C$8:$C$133,0),IF(Tourn="Dbls",8,IF(Tourn="2-Day",7,IF(Tourn="MSC",8,6)))),"") ->  | AM13: =IF(AJ13="x",INDEX(Qual!$C$8:$U$133,MATCH(AI13,Qual!$C$8:$C$133,0),IF(Tourn="Dbls",9,IF(Tourn="2-Day",8,IF(Tourn="MSC",10,7)))),"") ->  | AO13: =IF(AP13=0,"",'Check-In'!$B18) ->  | AP13: =IF(Tourn="2-Day",'Check-In'!U18,IF(Tourn="Dbls", 'Check-In'!S18,'Check-In'!P18)) -> 0 | AQ13: =IF(AP13="x",INDEX(Qual!$C$8:$U$133,MATCH(AO13,Qual!$C$8:$C$133,0),IF(Tourn="Dbls",15,IF(Tourn="2-Day",10,IF(Tourn="MSC",12,8)))),"") ->  | AR13: =IF(AP13="x",INDEX(Qual!$C$8:$U$133,MATCH(AO13,Qual!$C$8:$C$133,0),IF(Tourn="Dbls",16,IF(Tourn="2-Day",11,IF(Tourn="MSC",14,9)))),"") ->  | AS13: =IF(AP13="x",INDEX(Qual!$C$8:$U$133,MATCH(AO13,Qual!$C$8:$C$133,0),IF(Tourn="Dbls",17,IF(Tourn="2-Day",12,IF(Tourn="MSC",16,10)))),"") -> 
B14: 12 | C14: =IF(Master!$B$1="Dbls",IF(B14<='Check-In'!$R$136,B14,IF(AND(E13=E14,C13='Check-In'!$R$136),B14,"")),IF(Master!$B$1="2-Day",IF(B14<='Check-In'!$T$136,B14,IF(AND(E13=E14,C13='Check-In'!$T$136),B14,"")),IF(B14<='Check-In'!$P$136,B14,IF(AND(E13=E14,C13='Check-In'!$P$136),B14,"")))) -> 12 | D14: HAUGAN, ERIC | E14: 220 | F14: 247 | G14: =IF(Master!$B$1="Dbls",IF(B14<='Check-In'!$R$137,B14,IF(AND(I13=I14,G13='Check-In'!$R$137),B14,"")),IF(Master!$B$1="2-Day",IF(B14<='Check-In'!$T$137,B14,IF(AND(I13=I14,G13='Check-In'!$T$137),B14,"")),IF(B14<='Check-In'!$P$137,B14,IF(AND(I13=I14,G13='Check-In'!$P$137),B14,"")))) ->  | H14: MCKINNEY, TERRY | I14: 201 | K14: =IF(Master!$B$1="Dbls",IF(B14<='Check-In'!$R$139,B14,IF(AND(I13=I14,G13='Check-In'!$R$139),B14,"")),IF(Master!$B$1="2-Day",IF(B14<='Check-In'!$T$139,B14,IF(AND(I13=I14,G13='Check-In'!$T$139),B14,"")),IF(B14<='Check-In'!$P$139,B14,IF(AND(I13=I14,G13='Check-In'!$P$139),B14,"")))) ->  | P14: 12 | Q14: 12 | R14: HAUGAN, ERIC | S14: 223 | T14: 193 | U14: 12 | V14: WRIGHT, DANA | W14: 194 | X14: 172 | Y14: =IF(Master!$B$1="Dbls",IF(P14<='Check-In'!$R$139,P14,IF(AND(W13=W14,U13='Check-In'!$R$139),P14,"")),IF(Master!$B$1="2-Day",IF(P14<='Check-In'!$T$139,P14,IF(AND(W13=W14,U13='Check-In'!$T$139),P14,"")),IF(P14<='Check-In'!$P$139,P14,IF(AND(W13=W14,U13='Check-In'!$P$139),P14,"")))) ->  | AE14: =IF(AG14="","",L10) ->  | AF14: =IF(AG14="","",M10) ->  | AG14: =IF(Tourn="Dbls",'Check-In'!R152,IF(Tourn="2-Day",'Check-In'!T152,'Check-In'!P152)) -> 0 | AI14: =IF(AJ14=0,"",'Check-In'!$B19) -> VANSLEET, TODD | AJ14: =IF(Tourn="2-Day",'Check-In'!T19,IF(Tourn="Dbls", 'Check-In'!R19,'Check-In'!P19)) -> X | AK14: =IF(AJ14="x",INDEX(Qual!$C$8:$U$133,MATCH(AI14,Qual!$C$8:$C$133,0),IF(Tourn="Dbls",7,IF(Tourn="2-Day",6,IF(Tourn="MSC",6,5)))),"") -> 216 | AL14: =IF(AJ14="x",INDEX(Qual!$C$8:$U$133,MATCH(AI14,Qual!$C$8:$C$133,0),IF(Tourn="Dbls",8,IF(Tourn="2-Day",7,IF(Tourn="MSC",8,6)))),"") -> 204 | AM14: =IF(AJ14="x",INDEX(Qual!$C$8:$U$133,MATCH(AI14,Qual!$C$8:$C$133,0),IF(Tourn="Dbls",9,IF(Tourn="2-Day",8,IF(Tourn="MSC",10,7)))),"") -> 199 | AO14: =IF(AP14=0,"",'Check-In'!$B19) -> VANSLEET, TODD | AP14: =IF(Tourn="2-Day",'Check-In'!U19,IF(Tourn="Dbls", 'Check-In'!S19,'Check-In'!P19)) -> X | AQ14: =IF(AP14="x",INDEX(Qual!$C$8:$U$133,MATCH(AO14,Qual!$C$8:$C$133,0),IF(Tourn="Dbls",15,IF(Tourn="2-Day",10,IF(Tourn="MSC",12,8)))),"") -> 225 | AR14: =IF(AP14="x",INDEX(Qual!$C$8:$U$133,MATCH(AO14,Qual!$C$8:$C$133,0),IF(Tourn="Dbls",16,IF(Tourn="2-Day",11,IF(Tourn="MSC",14,9)))),"") -> 237 | AS14: =IF(AP14="x",INDEX(Qual!$C$8:$U$133,MATCH(AO14,Qual!$C$8:$C$133,0),IF(Tourn="Dbls",17,IF(Tourn="2-Day",12,IF(Tourn="MSC",16,10)))),"") -> 192
B15: 13 | C15: =IF(Master!$B$1="Dbls",IF(B15<='Check-In'!$R$136,B15,IF(AND(E14=E15,C14='Check-In'!$R$136),B15,"")),IF(Master!$B$1="2-Day",IF(B15<='Check-In'!$T$136,B15,IF(AND(E14=E15,C14='Check-In'!$T$136),B15,"")),IF(B15<='Check-In'!$P$136,B15,IF(AND(E14=E15,C14='Check-In'!$P$136),B15,"")))) -> 13 | D15: VANSLEET, TODD | E15: 216 | F15: 204 | G15: =IF(Master!$B$1="Dbls",IF(B15<='Check-In'!$R$137,B15,IF(AND(I14=I15,G14='Check-In'!$R$137),B15,"")),IF(Master!$B$1="2-Day",IF(B15<='Check-In'!$T$137,B15,IF(AND(I14=I15,G14='Check-In'!$T$137),B15,"")),IF(B15<='Check-In'!$P$137,B15,IF(AND(I14=I15,G14='Check-In'!$P$137),B15,"")))) ->  | H15: OULMAN, DAVE | I15: 193 | K15: =IF(Master!$B$1="Dbls",IF(B15<='Check-In'!$R$139,B15,IF(AND(I14=I15,G14='Check-In'!$R$139),B15,"")),IF(Master!$B$1="2-Day",IF(B15<='Check-In'!$T$139,B15,IF(AND(I14=I15,G14='Check-In'!$T$139),B15,"")),IF(B15<='Check-In'!$P$139,B15,IF(AND(I14=I15,G14='Check-In'!$P$139),B15,"")))) ->  | P15: 13 | Q15: =IF(Master!$B$1="Dbls",IF(P15<='Check-In'!$S$136,P15,IF(AND(S14=S15,Q14='Check-In'!$S$136),P15,"")),IF(Master!$B$1="2-Day",IF(P15<='Check-In'!$U$136,P15,IF(AND(S14=S15,Q14='Check-In'!$U$136),P15,"")),IF(P15<='Check-In'!$Q$136,P15,IF(AND(S14=S15,Q14='Check-In'!$Q$136),P15,"")))) -> 13 | R15: JENSEN, WAYNE | S15: 223 | T15: 213 | U15: =IF(Master!$B$1="Dbls",IF(B15<='Check-In'!$S$137,B15,IF(AND(I14=I15,G14='Check-In'!$S$137),B15,"")),IF(Master!$B$1="2-Day",IF(B15<='Check-In'!$U$137,B15,IF(AND(I14=I15,G14='Check-In'!$U$137),B15,"")),IF(B15<='Check-In'!$Q$137,B15,IF(AND(I14=I15,G14='Check-In'!$Q$137),B15,"")))) ->  | V15: NELSON, BILL | W15: 193 | Y15: =IF(Master!$B$1="Dbls",IF(P15<='Check-In'!$R$139,P15,IF(AND(W14=W15,U14='Check-In'!$R$139),P15,"")),IF(Master!$B$1="2-Day",IF(P15<='Check-In'!$T$139,P15,IF(AND(W14=W15,U14='Check-In'!$T$139),P15,"")),IF(P15<='Check-In'!$P$139,P15,IF(AND(W14=W15,U14='Check-In'!$P$139),P15,"")))) ->  | AG15: =SUM(AG7:AG14) -> $305.00 | AI15: =IF(AJ15=0,"",'Check-In'!$B20) -> JENSEN, ROBERT | AJ15: =IF(Tourn="2-Day",'Check-In'!T20,IF(Tourn="Dbls", 'Check-In'!R20,'Check-In'!P20)) -> X | AK15: =IF(AJ15="x",INDEX(Qual!$C$8:$U$133,MATCH(AI15,Qual!$C$8:$C$133,0),IF(Tourn="Dbls",7,IF(Tourn="2-Day",6,IF(Tourn="MSC",6,5)))),"") -> 170 | AL15: =IF(AJ15="x",INDEX(Qual!$C$8:$U$133,MATCH(AI15,Qual!$C$8:$C$133,0),IF(Tourn="Dbls",8,IF(Tourn="2-Day",7,IF(Tourn="MSC",8,6)))),"") -> 182 | AM15: =IF(AJ15="x",INDEX(Qual!$C$8:$U$133,MATCH(AI15,Qual!$C$8:$C$133,0),IF(Tourn="Dbls",9,IF(Tourn="2-Day",8,IF(Tourn="MSC",10,7)))),"") -> 213 | AO15: =IF(AP15=0,"",'Check-In'!$B20) -> JENSEN, ROBERT | AP15: =IF(Tourn="2-Day",'Check-In'!U20,IF(Tourn="Dbls", 'Check-In'!S20,'Check-In'!P20)) -> X | AQ15: =IF(AP15="x",INDEX(Qual!$C$8:$U$133,MATCH(AO15,Qual!$C$8:$C$133,0),IF(Tourn="Dbls",15,IF(Tourn="2-Day",10,IF(Tourn="MSC",12,8)))),"") -> 204 | AR15: =IF(AP15="x",INDEX(Qual!$C$8:$U$133,MATCH(AO15,Qual!$C$8:$C$133,0),IF(Tourn="Dbls",16,IF(Tourn="2-Day",11,IF(Tourn="MSC",14,9)))),"") -> 204 | AS15: =IF(AP15="x",INDEX(Qual!$C$8:$U$133,MATCH(AO15,Qual!$C$8:$C$133,0),IF(Tourn="Dbls",17,IF(Tourn="2-Day",12,IF(Tourn="MSC",16,10)))),"") -> 228
B16: 14 | C16: =IF(Master!$B$1="Dbls",IF(B16<='Check-In'!$R$136,B16,IF(AND(E15=E16,C15='Check-In'!$R$136),B16,"")),IF(Master!$B$1="2-Day",IF(B16<='Check-In'!$T$136,B16,IF(AND(E15=E16,C15='Check-In'!$T$136),B16,"")),IF(B16<='Check-In'!$P$136,B16,IF(AND(E15=E16,C15='Check-In'!$P$136),B16,"")))) -> 14 | D16: BORDSON, DAVE | E16: 211 | F16: 145 | G16: =IF(Master!$B$1="Dbls",IF(B16<='Check-In'!$R$137,B16,IF(AND(I15=I16,G15='Check-In'!$R$137),B16,"")),IF(Master!$B$1="2-Day",IF(B16<='Check-In'!$T$137,B16,IF(AND(I15=I16,G15='Check-In'!$T$137),B16,"")),IF(B16<='Check-In'!$P$137,B16,IF(AND(I15=I16,G15='Check-In'!$P$137),B16,"")))) ->  | H16: BRUINSMA, DEAN | I16: 189 | K16: =IF(Master!$B$1="Dbls",IF(B16<='Check-In'!$R$139,B16,IF(AND(I15=I16,G15='Check-In'!$R$139),B16,"")),IF(Master!$B$1="2-Day",IF(B16<='Check-In'!$T$139,B16,IF(AND(I15=I16,G15='Check-In'!$T$139),B16,"")),IF(B16<='Check-In'!$P$139,B16,IF(AND(I15=I16,G15='Check-In'!$P$139),B16,"")))) ->  | P16: 14 | Q16: =IF(Master!$B$1="Dbls",IF(P16<='Check-In'!$S$136,P16,IF(AND(S15=S16,Q15='Check-In'!$S$136),P16,"")),IF(Master!$B$1="2-Day",IF(P16<='Check-In'!$U$136,P16,IF(AND(S15=S16,Q15='Check-In'!$U$136),P16,"")),IF(P16<='Check-In'!$Q$136,P16,IF(AND(S15=S16,Q15='Check-In'!$Q$136),P16,"")))) -> 14 | R16: DAVIS, BOB | S16: 217 | T16: 190 | U16: =IF(Master!$B$1="Dbls",IF(B16<='Check-In'!$S$137,B16,IF(AND(I15=I16,G15='Check-In'!$S$137),B16,"")),IF(Master!$B$1="2-Day",IF(B16<='Check-In'!$U$137,B16,IF(AND(I15=I16,G15='Check-In'!$U$137),B16,"")),IF(B16<='Check-In'!$Q$137,B16,IF(AND(I15=I16,G15='Check-In'!$Q$137),B16,"")))) ->  | V16: HAUGAN, ERIC | W16: 193 | Y16: =IF(Master!$B$1="Dbls",IF(P16<='Check-In'!$R$139,P16,IF(AND(W15=W16,U15='Check-In'!$R$139),P16,"")),IF(Master!$B$1="2-Day",IF(P16<='Check-In'!$T$139,P16,IF(AND(W15=W16,U15='Check-In'!$T$139),P16,"")),IF(P16<='Check-In'!$P$139,P16,IF(AND(W15=W16,U15='Check-In'!$P$139),P16,"")))) ->  | AI16: =IF(AJ16=0,"",'Check-In'!$B21) ->  | AJ16: =IF(Tourn="2-Day",'Check-In'!T21,IF(Tourn="Dbls", 'Check-In'!R21,'Check-In'!P21)) -> 0 | AK16: =IF(AJ16="x",INDEX(Qual!$C$8:$U$133,MATCH(AI16,Qual!$C$8:$C$133,0),IF(Tourn="Dbls",7,IF(Tourn="2-Day",6,IF(Tourn="MSC",6,5)))),"") ->  | AL16: =IF(AJ16="x",INDEX(Qual!$C$8:$U$133,MATCH(AI16,Qual!$C$8:$C$133,0),IF(Tourn="Dbls",8,IF(Tourn="2-Day",7,IF(Tourn="MSC",8,6)))),"") ->  | AM16: =IF(AJ16="x",INDEX(Qual!$C$8:$U$133,MATCH(AI16,Qual!$C$8:$C$133,0),IF(Tourn="Dbls",9,IF(Tourn="2-Day",8,IF(Tourn="MSC",10,7)))),"") ->  | AO16: =IF(AP16=0,"",'Check-In'!$B21) ->  | AP16: =IF(Tourn="2-Day",'Check-In'!U21,IF(Tourn="Dbls", 'Check-In'!S21,'Check-In'!P21)) -> 0 | AQ16: =IF(AP16="x",INDEX(Qual!$C$8:$U$133,MATCH(AO16,Qual!$C$8:$C$133,0),IF(Tourn="Dbls",15,IF(Tourn="2-Day",10,IF(Tourn="MSC",12,8)))),"") ->  | AR16: =IF(AP16="x",INDEX(Qual!$C$8:$U$133,MATCH(AO16,Qual!$C$8:$C$133,0),IF(Tourn="Dbls",16,IF(Tourn="2-Day",11,IF(Tourn="MSC",14,9)))),"") ->  | AS16: =IF(AP16="x",INDEX(Qual!$C$8:$U$133,MATCH(AO16,Qual!$C$8:$C$133,0),IF(Tourn="Dbls",17,IF(Tourn="2-Day",12,IF(Tourn="MSC",16,10)))),"") -> 
B17: 15 | C17: =IF(Master!$B$1="Dbls",IF(B17<='Check-In'!$R$136,B17,IF(AND(E16=E17,C16='Check-In'!$R$136),B17,"")),IF(Master!$B$1="2-Day",IF(B17<='Check-In'!$T$136,B17,IF(AND(E16=E17,C16='Check-In'!$T$136),B17,"")),IF(B17<='Check-In'!$P$136,B17,IF(AND(E16=E17,C16='Check-In'!$P$136),B17,"")))) -> 15 | D17: CORBETT, TOM | E17: 210 | F17: 207 | G17: =IF(Master!$B$1="Dbls",IF(B17<='Check-In'!$R$137,B17,IF(AND(I16=I17,G16='Check-In'!$R$137),B17,"")),IF(Master!$B$1="2-Day",IF(B17<='Check-In'!$T$137,B17,IF(AND(I16=I17,G16='Check-In'!$T$137),B17,"")),IF(B17<='Check-In'!$P$137,B17,IF(AND(I16=I17,G16='Check-In'!$P$137),B17,"")))) ->  | H17: IRVIN, BRAD | I17: 187 | K17: =IF(Master!$B$1="Dbls",IF(B17<='Check-In'!$R$139,B17,IF(AND(I16=I17,G16='Check-In'!$R$139),B17,"")),IF(Master!$B$1="2-Day",IF(B17<='Check-In'!$T$139,B17,IF(AND(I16=I17,G16='Check-In'!$T$139),B17,"")),IF(B17<='Check-In'!$P$139,B17,IF(AND(I16=I17,G16='Check-In'!$P$139),B17,"")))) ->  | P17: 15 | Q17: =IF(Master!$B$1="Dbls",IF(P17<='Check-In'!$S$136,P17,IF(AND(S16=S17,Q16='Check-In'!$S$136),P17,"")),IF(Master!$B$1="2-Day",IF(P17<='Check-In'!$U$136,P17,IF(AND(S16=S17,Q16='Check-In'!$U$136),P17,"")),IF(P17<='Check-In'!$Q$136,P17,IF(AND(S16=S17,Q16='Check-In'!$Q$136),P17,"")))) -> 15 | R17: WIRZ, MIKE | S17: 216 | T17: 190 | U17: =IF(Master!$B$1="Dbls",IF(B17<='Check-In'!$S$137,B17,IF(AND(I16=I17,G16='Check-In'!$S$137),B17,"")),IF(Master!$B$1="2-Day",IF(B17<='Check-In'!$U$137,B17,IF(AND(I16=I17,G16='Check-In'!$U$137),B17,"")),IF(B17<='Check-In'!$Q$137,B17,IF(AND(I16=I17,G16='Check-In'!$Q$137),B17,"")))) ->  | V17: IRVIN, BRAD | W17: 190 | Y17: =IF(Master!$B$1="Dbls",IF(P17<='Check-In'!$R$139,P17,IF(AND(W16=W17,U16='Check-In'!$R$139),P17,"")),IF(Master!$B$1="2-Day",IF(P17<='Check-In'!$T$139,P17,IF(AND(W16=W17,U16='Check-In'!$T$139),P17,"")),IF(P17<='Check-In'!$P$139,P17,IF(AND(W16=W17,U16='Check-In'!$P$139),P17,"")))) ->  | AI17: =IF(AJ17=0,"",'Check-In'!$B22) -> LANGER, DAVE | AJ17: =IF(Tourn="2-Day",'Check-In'!T22,IF(Tourn="Dbls", 'Check-In'!R22,'Check-In'!P22)) -> X | AK17: =IF(AJ17="x",INDEX(Qual!$C$8:$U$133,MATCH(AI17,Qual!$C$8:$C$133,0),IF(Tourn="Dbls",7,IF(Tourn="2-Day",6,IF(Tourn="MSC",6,5)))),"") -> 248 | AL17: =IF(AJ17="x",INDEX(Qual!$C$8:$U$133,MATCH(AI17,Qual!$C$8:$C$133,0),IF(Tourn="Dbls",8,IF(Tourn="2-Day",7,IF(Tourn="MSC",8,6)))),"") -> 208 | AM17: =IF(AJ17="x",INDEX(Qual!$C$8:$U$133,MATCH(AI17,Qual!$C$8:$C$133,0),IF(Tourn="Dbls",9,IF(Tourn="2-Day",8,IF(Tourn="MSC",10,7)))),"") -> 255 | AO17: =IF(AP17=0,"",'Check-In'!$B22) -> LANGER, DAVE | AP17: =IF(Tourn="2-Day",'Check-In'!U22,IF(Tourn="Dbls", 'Check-In'!S22,'Check-In'!P22)) -> X | AQ17: =IF(AP17="x",INDEX(Qual!$C$8:$U$133,MATCH(AO17,Qual!$C$8:$C$133,0),IF(Tourn="Dbls",15,IF(Tourn="2-Day",10,IF(Tourn="MSC",12,8)))),"") -> 226 | AR17: =IF(AP17="x",INDEX(Qual!$C$8:$U$133,MATCH(AO17,Qual!$C$8:$C$133,0),IF(Tourn="Dbls",16,IF(Tourn="2-Day",11,IF(Tourn="MSC",14,9)))),"") -> 268 | AS17: =IF(AP17="x",INDEX(Qual!$C$8:$U$133,MATCH(AO17,Qual!$C$8:$C$133,0),IF(Tourn="Dbls",17,IF(Tourn="2-Day",12,IF(Tourn="MSC",16,10)))),"") -> 200
B18: 16 | C18: =IF(Master!$B$1="Dbls",IF(B18<='Check-In'!$R$136,B18,IF(AND(E17=E18,C17='Check-In'!$R$136),B18,"")),IF(Master!$B$1="2-Day",IF(B18<='Check-In'!$T$136,B18,IF(AND(E17=E18,C17='Check-In'!$T$136),B18,"")),IF(B18<='Check-In'!$P$136,B18,IF(AND(E17=E18,C17='Check-In'!$P$136),B18,"")))) -> 16 | D18: GREEN, GARY | E18: 205 | F18: 228 | G18: =IF(Master!$B$1="Dbls",IF(B18<='Check-In'!$R$137,B18,IF(AND(I17=I18,G17='Check-In'!$R$137),B18,"")),IF(Master!$B$1="2-Day",IF(B18<='Check-In'!$T$137,B18,IF(AND(I17=I18,G17='Check-In'!$T$137),B18,"")),IF(B18<='Check-In'!$P$137,B18,IF(AND(I17=I18,G17='Check-In'!$P$137),B18,"")))) ->  | H18: NELSON, BILL | I18: 187 | K18: =IF(Master!$B$1="Dbls",IF(B18<='Check-In'!$R$139,B18,IF(AND(I17=I18,G17='Check-In'!$R$139),B18,"")),IF(Master!$B$1="2-Day",IF(B18<='Check-In'!$T$139,B18,IF(AND(I17=I18,G17='Check-In'!$T$139),B18,"")),IF(B18<='Check-In'!$P$139,B18,IF(AND(I17=I18,G17='Check-In'!$P$139),B18,"")))) ->  | P18: 16 | Q18: =IF(Master!$B$1="Dbls",IF(P18<='Check-In'!$S$136,P18,IF(AND(S17=S18,Q17='Check-In'!$S$136),P18,"")),IF(Master!$B$1="2-Day",IF(P18<='Check-In'!$U$136,P18,IF(AND(S17=S18,Q17='Check-In'!$U$136),P18,"")),IF(P18<='Check-In'!$Q$136,P18,IF(AND(S17=S18,Q17='Check-In'!$Q$136),P18,"")))) -> 16 | R18: BORDSON, DAVE | S18: 214 | T18: 226 | U18: =IF(Master!$B$1="Dbls",IF(B18<='Check-In'!$S$137,B18,IF(AND(I17=I18,G17='Check-In'!$S$137),B18,"")),IF(Master!$B$1="2-Day",IF(B18<='Check-In'!$U$137,B18,IF(AND(I17=I18,G17='Check-In'!$U$137),B18,"")),IF(B18<='Check-In'!$Q$137,B18,IF(AND(I17=I18,G17='Check-In'!$Q$137),B18,"")))) ->  | V18: DAVIS, BOB | W18: 190 | Y18: =IF(Master!$B$1="Dbls",IF(P18<='Check-In'!$R$139,P18,IF(AND(W17=W18,U17='Check-In'!$R$139),P18,"")),IF(Master!$B$1="2-Day",IF(P18<='Check-In'!$T$139,P18,IF(AND(W17=W18,U17='Check-In'!$T$139),P18,"")),IF(P18<='Check-In'!$P$139,P18,IF(AND(W17=W18,U17='Check-In'!$P$139),P18,"")))) ->  | AI18: =IF(AJ18=0,"",'Check-In'!$B23) ->  | AJ18: =IF(Tourn="2-Day",'Check-In'!T23,IF(Tourn="Dbls", 'Check-In'!R23,'Check-In'!P23)) -> 0 | AK18: =IF(AJ18="x",INDEX(Qual!$C$8:$U$133,MATCH(AI18,Qual!$C$8:$C$133,0),IF(Tourn="Dbls",7,IF(Tourn="2-Day",6,IF(Tourn="MSC",6,5)))),"") ->  | AL18: =IF(AJ18="x",INDEX(Qual!$C$8:$U$133,MATCH(AI18,Qual!$C$8:$C$133,0),IF(Tourn="Dbls",8,IF(Tourn="2-Day",7,IF(Tourn="MSC",8,6)))),"") ->  | AM18: =IF(AJ18="x",INDEX(Qual!$C$8:$U$133,MATCH(AI18,Qual!$C$8:$C$133,0),IF(Tourn="Dbls",9,IF(Tourn="2-Day",8,IF(Tourn="MSC",10,7)))),"") ->  | AO18: =IF(AP18=0,"",'Check-In'!$B23) ->  | AP18: =IF(Tourn="2-Day",'Check-In'!U23,IF(Tourn="Dbls", 'Check-In'!S23,'Check-In'!P23)) -> 0 | AQ18: =IF(AP18="x",INDEX(Qual!$C$8:$U$133,MATCH(AO18,Qual!$C$8:$C$133,0),IF(Tourn="Dbls",15,IF(Tourn="2-Day",10,IF(Tourn="MSC",12,8)))),"") ->  | AR18: =IF(AP18="x",INDEX(Qual!$C$8:$U$133,MATCH(AO18,Qual!$C$8:$C$133,0),IF(Tourn="Dbls",16,IF(Tourn="2-Day",11,IF(Tourn="MSC",14,9)))),"") ->  | AS18: =IF(AP18="x",INDEX(Qual!$C$8:$U$133,MATCH(AO18,Qual!$C$8:$C$133,0),IF(Tourn="Dbls",17,IF(Tourn="2-Day",12,IF(Tourn="MSC",16,10)))),"") -> 
B19: 17 | C19: =IF(Master!$B$1="Dbls",IF(B19<='Check-In'!$R$136,B19,IF(AND(E18=E19,C18='Check-In'!$R$136),B19,"")),IF(Master!$B$1="2-Day",IF(B19<='Check-In'!$T$136,B19,IF(AND(E18=E19,C18='Check-In'!$T$136),B19,"")),IF(B19<='Check-In'!$P$136,B19,IF(AND(E18=E19,C18='Check-In'!$P$136),B19,"")))) -> 17 | D19: NELSON, BILL | E19: 204 | F19: 187 | G19: =IF(Master!$B$1="Dbls",IF(B19<='Check-In'!$R$137,B19,IF(AND(I18=I19,G18='Check-In'!$R$137),B19,"")),IF(Master!$B$1="2-Day",IF(B19<='Check-In'!$T$137,B19,IF(AND(I18=I19,G18='Check-In'!$T$137),B19,"")),IF(B19<='Check-In'!$P$137,B19,IF(AND(I18=I19,G18='Check-In'!$P$137),B19,"")))) ->  | H19: RACETTE, TIM | I19: 175 | K19: =IF(Master!$B$1="Dbls",IF(B19<='Check-In'!$R$139,B19,IF(AND(I18=I19,G18='Check-In'!$R$139),B19,"")),IF(Master!$B$1="2-Day",IF(B19<='Check-In'!$T$139,B19,IF(AND(I18=I19,G18='Check-In'!$T$139),B19,"")),IF(B19<='Check-In'!$P$139,B19,IF(AND(I18=I19,G18='Check-In'!$P$139),B19,"")))) ->  | P19: 17 | Q19: =IF(Master!$B$1="Dbls",IF(P19<='Check-In'!$S$136,P19,IF(AND(S18=S19,Q18='Check-In'!$S$136),P19,"")),IF(Master!$B$1="2-Day",IF(P19<='Check-In'!$U$136,P19,IF(AND(S18=S19,Q18='Check-In'!$U$136),P19,"")),IF(P19<='Check-In'!$Q$136,P19,IF(AND(S18=S19,Q18='Check-In'!$Q$136),P19,"")))) -> 17 | R19: DOWNER, ROB | S19: 214 | T19: 208 | U19: =IF(Master!$B$1="Dbls",IF(B19<='Check-In'!$S$137,B19,IF(AND(I18=I19,G18='Check-In'!$S$137),B19,"")),IF(Master!$B$1="2-Day",IF(B19<='Check-In'!$U$137,B19,IF(AND(I18=I19,G18='Check-In'!$U$137),B19,"")),IF(B19<='Check-In'!$Q$137,B19,IF(AND(I18=I19,G18='Check-In'!$Q$137),B19,"")))) ->  | V19: WIRZ, MIKE | W19: 190 | Y19: =IF(Master!$B$1="Dbls",IF(P19<='Check-In'!$R$139,P19,IF(AND(W18=W19,U18='Check-In'!$R$139),P19,"")),IF(Master!$B$1="2-Day",IF(P19<='Check-In'!$T$139,P19,IF(AND(W18=W19,U18='Check-In'!$T$139),P19,"")),IF(P19<='Check-In'!$P$139,P19,IF(AND(W18=W19,U18='Check-In'!$P$139),P19,"")))) ->  | AD19: =IF(Master!$B$1="Dbls","Mini-Eliminator 12-13-14",IF(Master!$B$1="2-Day","Mini-Eliminator 7-8-9","Mini-Eliminator 5-6-7")) -> Mini-Eliminator 5-6-7 | AI19: =IF(AJ19=0,"",'Check-In'!$B24) ->  | AJ19: =IF(Tourn="2-Day",'Check-In'!T24,IF(Tourn="Dbls", 'Check-In'!R24,'Check-In'!P24)) -> 0 | AK19: =IF(AJ19="x",INDEX(Qual!$C$8:$U$133,MATCH(AI19,Qual!$C$8:$C$133,0),IF(Tourn="Dbls",7,IF(Tourn="2-Day",6,IF(Tourn="MSC",6,5)))),"") ->  | AL19: =IF(AJ19="x",INDEX(Qual!$C$8:$U$133,MATCH(AI19,Qual!$C$8:$C$133,0),IF(Tourn="Dbls",8,IF(Tourn="2-Day",7,IF(Tourn="MSC",8,6)))),"") ->  | AM19: =IF(AJ19="x",INDEX(Qual!$C$8:$U$133,MATCH(AI19,Qual!$C$8:$C$133,0),IF(Tourn="Dbls",9,IF(Tourn="2-Day",8,IF(Tourn="MSC",10,7)))),"") ->  | AO19: =IF(AP19=0,"",'Check-In'!$B24) ->  | AP19: =IF(Tourn="2-Day",'Check-In'!U24,IF(Tourn="Dbls", 'Check-In'!S24,'Check-In'!P24)) -> 0 | AQ19: =IF(AP19="x",INDEX(Qual!$C$8:$U$133,MATCH(AO19,Qual!$C$8:$C$133,0),IF(Tourn="Dbls",15,IF(Tourn="2-Day",10,IF(Tourn="MSC",12,8)))),"") ->  | AR19: =IF(AP19="x",INDEX(Qual!$C$8:$U$133,MATCH(AO19,Qual!$C$8:$C$133,0),IF(Tourn="Dbls",16,IF(Tourn="2-Day",11,IF(Tourn="MSC",14,9)))),"") ->  | AS19: =IF(AP19="x",INDEX(Qual!$C$8:$U$133,MATCH(AO19,Qual!$C$8:$C$133,0),IF(Tourn="Dbls",17,IF(Tourn="2-Day",12,IF(Tourn="MSC",16,10)))),"") -> 
B20: 18 | C20: =IF(Master!$B$1="Dbls",IF(B20<='Check-In'!$R$136,B20,IF(AND(E19=E20,C19='Check-In'!$R$136),B20,"")),IF(Master!$B$1="2-Day",IF(B20<='Check-In'!$T$136,B20,IF(AND(E19=E20,C19='Check-In'!$T$136),B20,"")),IF(B20<='Check-In'!$P$136,B20,IF(AND(E19=E20,C19='Check-In'!$P$136),B20,"")))) -> 18 | D20: DOWNER, ROB | E20: 204 | F20: 248 | G20: =IF(Master!$B$1="Dbls",IF(B20<='Check-In'!$R$137,B20,IF(AND(I19=I20,G19='Check-In'!$R$137),B20,"")),IF(Master!$B$1="2-Day",IF(B20<='Check-In'!$T$137,B20,IF(AND(I19=I20,G19='Check-In'!$T$137),B20,"")),IF(B20<='Check-In'!$P$137,B20,IF(AND(I19=I20,G19='Check-In'!$P$137),B20,"")))) ->  | H20: BORDSON, DAVE | I20: 145 | K20: =IF(Master!$B$1="Dbls",IF(B20<='Check-In'!$R$139,B20,IF(AND(I19=I20,G19='Check-In'!$R$139),B20,"")),IF(Master!$B$1="2-Day",IF(B20<='Check-In'!$T$139,B20,IF(AND(I19=I20,G19='Check-In'!$T$139),B20,"")),IF(B20<='Check-In'!$P$139,B20,IF(AND(I19=I20,G19='Check-In'!$P$139),B20,"")))) ->  | P20: 18 | Q20: =IF(Master!$B$1="Dbls",IF(P20<='Check-In'!$S$136,P20,IF(AND(S19=S20,Q19='Check-In'!$S$136),P20,"")),IF(Master!$B$1="2-Day",IF(P20<='Check-In'!$U$136,P20,IF(AND(S19=S20,Q19='Check-In'!$U$136),P20,"")),IF(P20<='Check-In'!$Q$136,P20,IF(AND(S19=S20,Q19='Check-In'!$Q$136),P20,"")))) -> 18 | R20: SCHMID, MIKE | S20: 213 | T20: 185 | U20: =IF(Master!$B$1="Dbls",IF(B20<='Check-In'!$S$137,B20,IF(AND(I19=I20,G19='Check-In'!$S$137),B20,"")),IF(Master!$B$1="2-Day",IF(B20<='Check-In'!$U$137,B20,IF(AND(I19=I20,G19='Check-In'!$U$137),B20,"")),IF(B20<='Check-In'!$Q$137,B20,IF(AND(I19=I20,G19='Check-In'!$Q$137),B20,"")))) ->  | V20: BRUINSMA, DEAN | W20: 189 | Y20: =IF(Master!$B$1="Dbls",IF(P20<='Check-In'!$R$139,P20,IF(AND(W19=W20,U19='Check-In'!$R$139),P20,"")),IF(Master!$B$1="2-Day",IF(P20<='Check-In'!$T$139,P20,IF(AND(W19=W20,U19='Check-In'!$T$139),P20,"")),IF(P20<='Check-In'!$P$139,P20,IF(AND(W19=W20,U19='Check-In'!$P$139),P20,"")))) ->  | AE20: Bowler | AF20: Game | AG20: Amount | AI20: =IF(AJ20=0,"",'Check-In'!$B25) -> IRVIN, BRAD | AJ20: =IF(Tourn="2-Day",'Check-In'!T25,IF(Tourn="Dbls", 'Check-In'!R25,'Check-In'!P25)) -> X | AK20: =IF(AJ20="x",INDEX(Qual!$C$8:$U$133,MATCH(AI20,Qual!$C$8:$C$133,0),IF(Tourn="Dbls",7,IF(Tourn="2-Day",6,IF(Tourn="MSC",6,5)))),"") -> 223 | AL20: =IF(AJ20="x",INDEX(Qual!$C$8:$U$133,MATCH(AI20,Qual!$C$8:$C$133,0),IF(Tourn="Dbls",8,IF(Tourn="2-Day",7,IF(Tourn="MSC",8,6)))),"") -> 187 | AM20: =IF(AJ20="x",INDEX(Qual!$C$8:$U$133,MATCH(AI20,Qual!$C$8:$C$133,0),IF(Tourn="Dbls",9,IF(Tourn="2-Day",8,IF(Tourn="MSC",10,7)))),"") -> 169 | AO20: =IF(AP20=0,"",'Check-In'!$B25) -> IRVIN, BRAD | AP20: =IF(Tourn="2-Day",'Check-In'!U25,IF(Tourn="Dbls", 'Check-In'!S25,'Check-In'!P25)) -> X | AQ20: =IF(AP20="x",INDEX(Qual!$C$8:$U$133,MATCH(AO20,Qual!$C$8:$C$133,0),IF(Tourn="Dbls",15,IF(Tourn="2-Day",10,IF(Tourn="MSC",12,8)))),"") -> 223 | AR20: =IF(AP20="x",INDEX(Qual!$C$8:$U$133,MATCH(AO20,Qual!$C$8:$C$133,0),IF(Tourn="Dbls",16,IF(Tourn="2-Day",11,IF(Tourn="MSC",14,9)))),"") -> 190 | AS20: =IF(AP20="x",INDEX(Qual!$C$8:$U$133,MATCH(AO20,Qual!$C$8:$C$133,0),IF(Tourn="Dbls",17,IF(Tourn="2-Day",12,IF(Tourn="MSC",16,10)))),"") -> 192
B21: 19 | C21: =IF(Master!$B$1="Dbls",IF(B21<='Check-In'!$R$136,B21,IF(AND(E20=E21,C20='Check-In'!$R$136),B21,"")),IF(Master!$B$1="2-Day",IF(B21<='Check-In'!$T$136,B21,IF(AND(E20=E21,C20='Check-In'!$T$136),B21,"")),IF(B21<='Check-In'!$P$136,B21,IF(AND(E20=E21,C20='Check-In'!$P$136),B21,"")))) ->  | D21: PETERSON, ED | E21: 203 | G21: =IF(Master!$B$1="Dbls",IF(B21<='Check-In'!$R$137,B21,IF(AND(I20=I21,G20='Check-In'!$R$137),B21,"")),IF(Master!$B$1="2-Day",IF(B21<='Check-In'!$T$137,B21,IF(AND(I20=I21,G20='Check-In'!$T$137),B21,"")),IF(B21<='Check-In'!$P$137,B21,IF(AND(I20=I21,G20='Check-In'!$P$137),B21,"")))) ->  | K21: =IF(Master!$B$1="Dbls",IF(B21<='Check-In'!$R$139,B21,IF(AND(I20=I21,G20='Check-In'!$R$139),B21,"")),IF(Master!$B$1="2-Day",IF(B21<='Check-In'!$T$139,B21,IF(AND(I20=I21,G20='Check-In'!$T$139),B21,"")),IF(B21<='Check-In'!$P$139,B21,IF(AND(I20=I21,G20='Check-In'!$P$139),B21,"")))) ->  | P21: 19 | Q21: =IF(Master!$B$1="Dbls",IF(P21<='Check-In'!$S$136,P21,IF(AND(S20=S21,Q20='Check-In'!$S$136),P21,"")),IF(Master!$B$1="2-Day",IF(P21<='Check-In'!$U$136,P21,IF(AND(S20=S21,Q20='Check-In'!$U$136),P21,"")),IF(P21<='Check-In'!$Q$136,P21,IF(AND(S20=S21,Q20='Check-In'!$Q$136),P21,"")))) -> 19 | R21: BRUINSMA, DEAN | S21: 213 | T21: 189 | U21: =IF(Master!$B$1="Dbls",IF(B21<='Check-In'!$S$137,B21,IF(AND(I20=I21,G20='Check-In'!$S$137),B21,"")),IF(Master!$B$1="2-Day",IF(B21<='Check-In'!$U$137,B21,IF(AND(I20=I21,G20='Check-In'!$U$137),B21,"")),IF(B21<='Check-In'!$Q$137,B21,IF(AND(I20=I21,G20='Check-In'!$Q$137),B21,"")))) ->  | V21: SCHMID, MIKE | W21: 185 | Y21: =IF(Master!$B$1="Dbls",IF(P21<='Check-In'!$R$139,P21,IF(AND(W20=W21,U20='Check-In'!$R$139),P21,"")),IF(Master!$B$1="2-Day",IF(P21<='Check-In'!$T$139,P21,IF(AND(W20=W21,U20='Check-In'!$T$139),P21,"")),IF(P21<='Check-In'!$P$139,P21,IF(AND(W20=W21,U20='Check-In'!$P$139),P21,"")))) ->  | AD21: 1 | AE21: =Z3 -> BORDSON, DAVE | AF21: 238 | AG21: =IF(Tourn="Dbls",'Check-In'!S145,IF(Tourn="2-Day",'Check-In'!U145,'Check-In'!Q145)) -> $130.00 | AI21: =IF(AJ21=0,"",'Check-In'!$B26) ->  | AJ21: =IF(Tourn="2-Day",'Check-In'!T26,IF(Tourn="Dbls", 'Check-In'!R26,'Check-In'!P26)) -> 0 | AK21: =IF(AJ21="x",INDEX(Qual!$C$8:$U$133,MATCH(AI21,Qual!$C$8:$C$133,0),IF(Tourn="Dbls",7,IF(Tourn="2-Day",6,IF(Tourn="MSC",6,5)))),"") ->  | AL21: =IF(AJ21="x",INDEX(Qual!$C$8:$U$133,MATCH(AI21,Qual!$C$8:$C$133,0),IF(Tourn="Dbls",8,IF(Tourn="2-Day",7,IF(Tourn="MSC",8,6)))),"") ->  | AM21: =IF(AJ21="x",INDEX(Qual!$C$8:$U$133,MATCH(AI21,Qual!$C$8:$C$133,0),IF(Tourn="Dbls",9,IF(Tourn="2-Day",8,IF(Tourn="MSC",10,7)))),"") ->  | AO21: =IF(AP21=0,"",'Check-In'!$B26) ->  | AP21: =IF(Tourn="2-Day",'Check-In'!U26,IF(Tourn="Dbls", 'Check-In'!S26,'Check-In'!P26)) -> 0 | AQ21: =IF(AP21="x",INDEX(Qual!$C$8:$U$133,MATCH(AO21,Qual!$C$8:$C$133,0),IF(Tourn="Dbls",15,IF(Tourn="2-Day",10,IF(Tourn="MSC",12,8)))),"") ->  | AR21: =IF(AP21="x",INDEX(Qual!$C$8:$U$133,MATCH(AO21,Qual!$C$8:$C$133,0),IF(Tourn="Dbls",16,IF(Tourn="2-Day",11,IF(Tourn="MSC",14,9)))),"") ->  | AS21: =IF(AP21="x",INDEX(Qual!$C$8:$U$133,MATCH(AO21,Qual!$C$8:$C$133,0),IF(Tourn="Dbls",17,IF(Tourn="2-Day",12,IF(Tourn="MSC",16,10)))),"") -> 
B22: 20 | C22: =IF(Master!$B$1="Dbls",IF(B22<='Check-In'!$R$136,B22,IF(AND(E21=E22,C21='Check-In'!$R$136),B22,"")),IF(Master!$B$1="2-Day",IF(B22<='Check-In'!$T$136,B22,IF(AND(E21=E22,C21='Check-In'!$T$136),B22,"")),IF(B22<='Check-In'!$P$136,B22,IF(AND(E21=E22,C21='Check-In'!$P$136),B22,"")))) ->  | D22: JONES, TOM | E22: 194 | G22: =IF(Master!$B$1="Dbls",IF(B22<='Check-In'!$R$137,B22,IF(AND(I21=I22,G21='Check-In'!$R$137),B22,"")),IF(Master!$B$1="2-Day",IF(B22<='Check-In'!$T$137,B22,IF(AND(I21=I22,G21='Check-In'!$T$137),B22,"")),IF(B22<='Check-In'!$P$137,B22,IF(AND(I21=I22,G21='Check-In'!$P$137),B22,"")))) ->  | K22: =IF(Master!$B$1="Dbls",IF(B22<='Check-In'!$R$139,B22,IF(AND(I21=I22,G21='Check-In'!$R$139),B22,"")),IF(Master!$B$1="2-Day",IF(B22<='Check-In'!$T$139,B22,IF(AND(I21=I22,G21='Check-In'!$T$139),B22,"")),IF(B22<='Check-In'!$P$139,B22,IF(AND(I21=I22,G21='Check-In'!$P$139),B22,"")))) ->  | P22: 20 | Q22: =IF(Master!$B$1="Dbls",IF(P22<='Check-In'!$S$136,P22,IF(AND(S21=S22,Q21='Check-In'!$S$136),P22,"")),IF(Master!$B$1="2-Day",IF(P22<='Check-In'!$U$136,P22,IF(AND(S21=S22,Q21='Check-In'!$U$136),P22,"")),IF(P22<='Check-In'!$Q$136,P22,IF(AND(S21=S22,Q21='Check-In'!$Q$136),P22,"")))) ->  | R22: CORBETT, TOM | S22: 213 | U22: =IF(Master!$B$1="Dbls",IF(B22<='Check-In'!$S$137,B22,IF(AND(I21=I22,G21='Check-In'!$S$137),B22,"")),IF(Master!$B$1="2-Day",IF(B22<='Check-In'!$U$137,B22,IF(AND(I21=I22,G21='Check-In'!$U$137),B22,"")),IF(B22<='Check-In'!$Q$137,B22,IF(AND(I21=I22,G21='Check-In'!$Q$137),B22,"")))) ->  | Y22: =IF(Master!$B$1="Dbls",IF(P22<='Check-In'!$R$139,P22,IF(AND(W21=W22,U21='Check-In'!$R$139),P22,"")),IF(Master!$B$1="2-Day",IF(P22<='Check-In'!$T$139,P22,IF(AND(W21=W22,U21='Check-In'!$T$139),P22,"")),IF(P22<='Check-In'!$P$139,P22,IF(AND(W21=W22,U21='Check-In'!$P$139),P22,"")))) ->  | AD22: 2 | AE22: JENSEN, WAYNE | AF22: 238 | AG22: =IF(Tourn="Dbls",'Check-In'!S146,IF(Tourn="2-Day",'Check-In'!U146,'Check-In'!Q146)) -> $95.00 | AI22: =IF(AJ22=0,"",'Check-In'!$B27) ->  | AJ22: =IF(Tourn="2-Day",'Check-In'!T27,IF(Tourn="Dbls", 'Check-In'!R27,'Check-In'!P27)) -> 0 | AK22: =IF(AJ22="x",INDEX(Qual!$C$8:$U$133,MATCH(AI22,Qual!$C$8:$C$133,0),IF(Tourn="Dbls",7,IF(Tourn="2-Day",6,IF(Tourn="MSC",6,5)))),"") ->  | AL22: =IF(AJ22="x",INDEX(Qual!$C$8:$U$133,MATCH(AI22,Qual!$C$8:$C$133,0),IF(Tourn="Dbls",8,IF(Tourn="2-Day",7,IF(Tourn="MSC",8,6)))),"") ->  | AM22: =IF(AJ22="x",INDEX(Qual!$C$8:$U$133,MATCH(AI22,Qual!$C$8:$C$133,0),IF(Tourn="Dbls",9,IF(Tourn="2-Day",8,IF(Tourn="MSC",10,7)))),"") ->  | AO22: =IF(AP22=0,"",'Check-In'!$B27) ->  | AP22: =IF(Tourn="2-Day",'Check-In'!U27,IF(Tourn="Dbls", 'Check-In'!S27,'Check-In'!P27)) -> 0 | AQ22: =IF(AP22="x",INDEX(Qual!$C$8:$U$133,MATCH(AO22,Qual!$C$8:$C$133,0),IF(Tourn="Dbls",15,IF(Tourn="2-Day",10,IF(Tourn="MSC",12,8)))),"") ->  | AR22: =IF(AP22="x",INDEX(Qual!$C$8:$U$133,MATCH(AO22,Qual!$C$8:$C$133,0),IF(Tourn="Dbls",16,IF(Tourn="2-Day",11,IF(Tourn="MSC",14,9)))),"") ->  | AS22: =IF(AP22="x",INDEX(Qual!$C$8:$U$133,MATCH(AO22,Qual!$C$8:$C$133,0),IF(Tourn="Dbls",17,IF(Tourn="2-Day",12,IF(Tourn="MSC",16,10)))),"") -> 
B23: 21 | C23: =IF(Master!$B$1="Dbls",IF(B23<='Check-In'!$R$136,B23,IF(AND(E22=E23,C22='Check-In'!$R$136),B23,"")),IF(Master!$B$1="2-Day",IF(B23<='Check-In'!$T$136,B23,IF(AND(E22=E23,C22='Check-In'!$T$136),B23,"")),IF(B23<='Check-In'!$P$136,B23,IF(AND(E22=E23,C22='Check-In'!$P$136),B23,"")))) ->  | D23: SCHMID, MIKE | E23: 193 | G23: =IF(Master!$B$1="Dbls",IF(B23<='Check-In'!$R$137,B23,IF(AND(I22=I23,G22='Check-In'!$R$137),B23,"")),IF(Master!$B$1="2-Day",IF(B23<='Check-In'!$T$137,B23,IF(AND(I22=I23,G22='Check-In'!$T$137),B23,"")),IF(B23<='Check-In'!$P$137,B23,IF(AND(I22=I23,G22='Check-In'!$P$137),B23,"")))) ->  | K23: =IF(Master!$B$1="Dbls",IF(B23<='Check-In'!$R$139,B23,IF(AND(I22=I23,G22='Check-In'!$R$139),B23,"")),IF(Master!$B$1="2-Day",IF(B23<='Check-In'!$T$139,B23,IF(AND(I22=I23,G22='Check-In'!$T$139),B23,"")),IF(B23<='Check-In'!$P$139,B23,IF(AND(I22=I23,G22='Check-In'!$P$139),B23,"")))) ->  | P23: 21 | Q23: =IF(Master!$B$1="Dbls",IF(P23<='Check-In'!$S$136,P23,IF(AND(S22=S23,Q22='Check-In'!$S$136),P23,"")),IF(Master!$B$1="2-Day",IF(P23<='Check-In'!$U$136,P23,IF(AND(S22=S23,Q22='Check-In'!$U$136),P23,"")),IF(P23<='Check-In'!$Q$136,P23,IF(AND(S22=S23,Q22='Check-In'!$Q$136),P23,"")))) ->  | R23: JENSEN, ROBERT | S23: 204 | U23: =IF(Master!$B$1="Dbls",IF(B23<='Check-In'!$S$137,B23,IF(AND(I22=I23,G22='Check-In'!$S$137),B23,"")),IF(Master!$B$1="2-Day",IF(B23<='Check-In'!$U$137,B23,IF(AND(I22=I23,G22='Check-In'!$U$137),B23,"")),IF(B23<='Check-In'!$Q$137,B23,IF(AND(I22=I23,G22='Check-In'!$Q$137),B23,"")))) ->  | Y23: =IF(Master!$B$1="Dbls",IF(P23<='Check-In'!$R$139,P23,IF(AND(W22=W23,U22='Check-In'!$R$139),P23,"")),IF(Master!$B$1="2-Day",IF(P23<='Check-In'!$T$139,P23,IF(AND(W22=W23,U22='Check-In'!$T$139),P23,"")),IF(P23<='Check-In'!$P$139,P23,IF(AND(W22=W23,U22='Check-In'!$P$139),P23,"")))) ->  | AD23: =IF(AG23="","",3) -> 3 | AE23: HOMMES, JOHN | AF23: 235 | AG23: =IF(Tourn="Dbls",'Check-In'!S147,IF(Tourn="2-Day",'Check-In'!U147,'Check-In'!Q147)) -> $75.00 | AI23: =IF(AJ23=0,"",'Check-In'!$B28) ->  | AJ23: =IF(Tourn="2-Day",'Check-In'!T28,IF(Tourn="Dbls", 'Check-In'!R28,'Check-In'!P28)) -> 0 | AK23: =IF(AJ23="x",INDEX(Qual!$C$8:$U$133,MATCH(AI23,Qual!$C$8:$C$133,0),IF(Tourn="Dbls",7,IF(Tourn="2-Day",6,IF(Tourn="MSC",6,5)))),"") ->  | AL23: =IF(AJ23="x",INDEX(Qual!$C$8:$U$133,MATCH(AI23,Qual!$C$8:$C$133,0),IF(Tourn="Dbls",8,IF(Tourn="2-Day",7,IF(Tourn="MSC",8,6)))),"") ->  | AM23: =IF(AJ23="x",INDEX(Qual!$C$8:$U$133,MATCH(AI23,Qual!$C$8:$C$133,0),IF(Tourn="Dbls",9,IF(Tourn="2-Day",8,IF(Tourn="MSC",10,7)))),"") ->  | AO23: =IF(AP23=0,"",'Check-In'!$B28) ->  | AP23: =IF(Tourn="2-Day",'Check-In'!U28,IF(Tourn="Dbls", 'Check-In'!S28,'Check-In'!P28)) -> 0 | AQ23: =IF(AP23="x",INDEX(Qual!$C$8:$U$133,MATCH(AO23,Qual!$C$8:$C$133,0),IF(Tourn="Dbls",15,IF(Tourn="2-Day",10,IF(Tourn="MSC",12,8)))),"") ->  | AR23: =IF(AP23="x",INDEX(Qual!$C$8:$U$133,MATCH(AO23,Qual!$C$8:$C$133,0),IF(Tourn="Dbls",16,IF(Tourn="2-Day",11,IF(Tourn="MSC",14,9)))),"") ->  | AS23: =IF(AP23="x",INDEX(Qual!$C$8:$U$133,MATCH(AO23,Qual!$C$8:$C$133,0),IF(Tourn="Dbls",17,IF(Tourn="2-Day",12,IF(Tourn="MSC",16,10)))),"") -> 
B24: 22 | C24: =IF(Master!$B$1="Dbls",IF(B24<='Check-In'!$R$136,B24,IF(AND(E23=E24,C23='Check-In'!$R$136),B24,"")),IF(Master!$B$1="2-Day",IF(B24<='Check-In'!$T$136,B24,IF(AND(E23=E24,C23='Check-In'!$T$136),B24,"")),IF(B24<='Check-In'!$P$136,B24,IF(AND(E23=E24,C23='Check-In'!$P$136),B24,"")))) ->  | D24: PESCH, JOHN | E24: 191 | G24: =IF(Master!$B$1="Dbls",IF(B24<='Check-In'!$R$137,B24,IF(AND(I23=I24,G23='Check-In'!$R$137),B24,"")),IF(Master!$B$1="2-Day",IF(B24<='Check-In'!$T$137,B24,IF(AND(I23=I24,G23='Check-In'!$T$137),B24,"")),IF(B24<='Check-In'!$P$137,B24,IF(AND(I23=I24,G23='Check-In'!$P$137),B24,"")))) ->  | K24: =IF(Master!$B$1="Dbls",IF(B24<='Check-In'!$R$139,B24,IF(AND(I23=I24,G23='Check-In'!$R$139),B24,"")),IF(Master!$B$1="2-Day",IF(B24<='Check-In'!$T$139,B24,IF(AND(I23=I24,G23='Check-In'!$T$139),B24,"")),IF(B24<='Check-In'!$P$139,B24,IF(AND(I23=I24,G23='Check-In'!$P$139),B24,"")))) ->  | P24: 22 | Q24: =IF(Master!$B$1="Dbls",IF(P24<='Check-In'!$S$136,P24,IF(AND(S23=S24,Q23='Check-In'!$S$136),P24,"")),IF(Master!$B$1="2-Day",IF(P24<='Check-In'!$U$136,P24,IF(AND(S23=S24,Q23='Check-In'!$U$136),P24,"")),IF(P24<='Check-In'!$Q$136,P24,IF(AND(S23=S24,Q23='Check-In'!$Q$136),P24,"")))) ->  | R24: GOODWIN, CRAIG | S24: 203 | U24: =IF(Master!$B$1="Dbls",IF(B24<='Check-In'!$S$137,B24,IF(AND(I23=I24,G23='Check-In'!$S$137),B24,"")),IF(Master!$B$1="2-Day",IF(B24<='Check-In'!$U$137,B24,IF(AND(I23=I24,G23='Check-In'!$U$137),B24,"")),IF(B24<='Check-In'!$Q$137,B24,IF(AND(I23=I24,G23='Check-In'!$Q$137),B24,"")))) ->  | Y24: =IF(Master!$B$1="Dbls",IF(P24<='Check-In'!$R$139,P24,IF(AND(W23=W24,U23='Check-In'!$R$139),P24,"")),IF(Master!$B$1="2-Day",IF(P24<='Check-In'!$T$139,P24,IF(AND(W23=W24,U23='Check-In'!$T$139),P24,"")),IF(P24<='Check-In'!$P$139,P24,IF(AND(W23=W24,U23='Check-In'!$P$139),P24,"")))) ->  | AD24: =IF(AG24="","",4) -> 4 | AE24: MCKINNEY, TERRY | AF24: 225 | AG24: =IF(Tourn="Dbls",'Check-In'!S148,IF(Tourn="2-Day",'Check-In'!U148,'Check-In'!Q148)) -> $40.00 | AI24: =IF(AJ24=0,"",'Check-In'!$B29) -> GREEN, GARY | AJ24: =IF(Tourn="2-Day",'Check-In'!T29,IF(Tourn="Dbls", 'Check-In'!R29,'Check-In'!P29)) -> X | AK24: =IF(AJ24="x",INDEX(Qual!$C$8:$U$133,MATCH(AI24,Qual!$C$8:$C$133,0),IF(Tourn="Dbls",7,IF(Tourn="2-Day",6,IF(Tourn="MSC",6,5)))),"") -> 205 | AL24: =IF(AJ24="x",INDEX(Qual!$C$8:$U$133,MATCH(AI24,Qual!$C$8:$C$133,0),IF(Tourn="Dbls",8,IF(Tourn="2-Day",7,IF(Tourn="MSC",8,6)))),"") -> 228 | AM24: =IF(AJ24="x",INDEX(Qual!$C$8:$U$133,MATCH(AI24,Qual!$C$8:$C$133,0),IF(Tourn="Dbls",9,IF(Tourn="2-Day",8,IF(Tourn="MSC",10,7)))),"") -> 193 | AO24: =IF(AP24=0,"",'Check-In'!$B29) -> GREEN, GARY | AP24: =IF(Tourn="2-Day",'Check-In'!U29,IF(Tourn="Dbls", 'Check-In'!S29,'Check-In'!P29)) -> X | AQ24: =IF(AP24="x",INDEX(Qual!$C$8:$U$133,MATCH(AO24,Qual!$C$8:$C$133,0),IF(Tourn="Dbls",15,IF(Tourn="2-Day",10,IF(Tourn="MSC",12,8)))),"") -> 182 | AR24: =IF(AP24="x",INDEX(Qual!$C$8:$U$133,MATCH(AO24,Qual!$C$8:$C$133,0),IF(Tourn="Dbls",16,IF(Tourn="2-Day",11,IF(Tourn="MSC",14,9)))),"") -> 245 | AS24: =IF(AP24="x",INDEX(Qual!$C$8:$U$133,MATCH(AO24,Qual!$C$8:$C$133,0),IF(Tourn="Dbls",17,IF(Tourn="2-Day",12,IF(Tourn="MSC",16,10)))),"") -> 216
B25: 23 | C25: =IF(Master!$B$1="Dbls",IF(B25<='Check-In'!$R$136,B25,IF(AND(E24=E25,C24='Check-In'!$R$136),B25,"")),IF(Master!$B$1="2-Day",IF(B25<='Check-In'!$T$136,B25,IF(AND(E24=E25,C24='Check-In'!$T$136),B25,"")),IF(B25<='Check-In'!$P$136,B25,IF(AND(E24=E25,C24='Check-In'!$P$136),B25,"")))) ->  | D25: HANKE, KURT | E25: 190 | G25: =IF(Master!$B$1="Dbls",IF(B25<='Check-In'!$R$137,B25,IF(AND(I24=I25,G24='Check-In'!$R$137),B25,"")),IF(Master!$B$1="2-Day",IF(B25<='Check-In'!$T$137,B25,IF(AND(I24=I25,G24='Check-In'!$T$137),B25,"")),IF(B25<='Check-In'!$P$137,B25,IF(AND(I24=I25,G24='Check-In'!$P$137),B25,"")))) ->  | K25: =IF(Master!$B$1="Dbls",IF(B25<='Check-In'!$R$139,B25,IF(AND(I24=I25,G24='Check-In'!$R$139),B25,"")),IF(Master!$B$1="2-Day",IF(B25<='Check-In'!$T$139,B25,IF(AND(I24=I25,G24='Check-In'!$T$139),B25,"")),IF(B25<='Check-In'!$P$139,B25,IF(AND(I24=I25,G24='Check-In'!$P$139),B25,"")))) ->  | P25: 23 | Q25: =IF(Master!$B$1="Dbls",IF(P25<='Check-In'!$S$136,P25,IF(AND(S24=S25,Q24='Check-In'!$S$136),P25,"")),IF(Master!$B$1="2-Day",IF(P25<='Check-In'!$U$136,P25,IF(AND(S24=S25,Q24='Check-In'!$U$136),P25,"")),IF(P25<='Check-In'!$Q$136,P25,IF(AND(S24=S25,Q24='Check-In'!$Q$136),P25,"")))) ->  | R25: PESCH, JOHN | S25: 202 | U25: =IF(Master!$B$1="Dbls",IF(B25<='Check-In'!$S$137,B25,IF(AND(I24=I25,G24='Check-In'!$S$137),B25,"")),IF(Master!$B$1="2-Day",IF(B25<='Check-In'!$U$137,B25,IF(AND(I24=I25,G24='Check-In'!$U$137),B25,"")),IF(B25<='Check-In'!$Q$137,B25,IF(AND(I24=I25,G24='Check-In'!$Q$137),B25,"")))) ->  | Y25: =IF(Master!$B$1="Dbls",IF(P25<='Check-In'!$R$139,P25,IF(AND(W24=W25,U24='Check-In'!$R$139),P25,"")),IF(Master!$B$1="2-Day",IF(P25<='Check-In'!$T$139,P25,IF(AND(W24=W25,U24='Check-In'!$T$139),P25,"")),IF(P25<='Check-In'!$P$139,P25,IF(AND(W24=W25,U24='Check-In'!$P$139),P25,"")))) ->  | AG25: =IF(Tourn="Dbls",'Check-In'!S149,IF(Tourn="2-Day",'Check-In'!U149,'Check-In'!Q149)) -> $20.00 | AI25: =IF(AJ25=0,"",'Check-In'!$B30) ->  | AJ25: =IF(Tourn="2-Day",'Check-In'!T30,IF(Tourn="Dbls", 'Check-In'!R30,'Check-In'!P30)) -> 0 | AK25: =IF(AJ25="x",INDEX(Qual!$C$8:$U$133,MATCH(AI25,Qual!$C$8:$C$133,0),IF(Tourn="Dbls",7,IF(Tourn="2-Day",6,IF(Tourn="MSC",6,5)))),"") ->  | AL25: =IF(AJ25="x",INDEX(Qual!$C$8:$U$133,MATCH(AI25,Qual!$C$8:$C$133,0),IF(Tourn="Dbls",8,IF(Tourn="2-Day",7,IF(Tourn="MSC",8,6)))),"") ->  | AM25: =IF(AJ25="x",INDEX(Qual!$C$8:$U$133,MATCH(AI25,Qual!$C$8:$C$133,0),IF(Tourn="Dbls",9,IF(Tourn="2-Day",8,IF(Tourn="MSC",10,7)))),"") ->  | AO25: =IF(AP25=0,"",'Check-In'!$B30) ->  | AP25: =IF(Tourn="2-Day",'Check-In'!U30,IF(Tourn="Dbls", 'Check-In'!S30,'Check-In'!P30)) -> 0 | AQ25: =IF(AP25="x",INDEX(Qual!$C$8:$U$133,MATCH(AO25,Qual!$C$8:$C$133,0),IF(Tourn="Dbls",15,IF(Tourn="2-Day",10,IF(Tourn="MSC",12,8)))),"") ->  | AR25: =IF(AP25="x",INDEX(Qual!$C$8:$U$133,MATCH(AO25,Qual!$C$8:$C$133,0),IF(Tourn="Dbls",16,IF(Tourn="2-Day",11,IF(Tourn="MSC",14,9)))),"") ->  | AS25: =IF(AP25="x",INDEX(Qual!$C$8:$U$133,MATCH(AO25,Qual!$C$8:$C$133,0),IF(Tourn="Dbls",17,IF(Tourn="2-Day",12,IF(Tourn="MSC",16,10)))),"") -> 
B26: 24 | C26: =IF(Master!$B$1="Dbls",IF(B26<='Check-In'!$R$136,B26,IF(AND(E25=E26,C25='Check-In'!$R$136),B26,"")),IF(Master!$B$1="2-Day",IF(B26<='Check-In'!$T$136,B26,IF(AND(E25=E26,C25='Check-In'!$T$136),B26,"")),IF(B26<='Check-In'!$P$136,B26,IF(AND(E25=E26,C25='Check-In'!$P$136),B26,"")))) ->  | D26: BOHN, STEVE | E26: 189 | G26: =IF(Master!$B$1="Dbls",IF(B26<='Check-In'!$R$137,B26,IF(AND(I25=I26,G25='Check-In'!$R$137),B26,"")),IF(Master!$B$1="2-Day",IF(B26<='Check-In'!$T$137,B26,IF(AND(I25=I26,G25='Check-In'!$T$137),B26,"")),IF(B26<='Check-In'!$P$137,B26,IF(AND(I25=I26,G25='Check-In'!$P$137),B26,"")))) ->  | K26: =IF(Master!$B$1="Dbls",IF(B26<='Check-In'!$R$139,B26,IF(AND(I25=I26,G25='Check-In'!$R$139),B26,"")),IF(Master!$B$1="2-Day",IF(B26<='Check-In'!$T$139,B26,IF(AND(I25=I26,G25='Check-In'!$T$139),B26,"")),IF(B26<='Check-In'!$P$139,B26,IF(AND(I25=I26,G25='Check-In'!$P$139),B26,"")))) ->  | P26: 24 | Q26: =IF(Master!$B$1="Dbls",IF(P26<='Check-In'!$S$136,P26,IF(AND(S25=S26,Q25='Check-In'!$S$136),P26,"")),IF(Master!$B$1="2-Day",IF(P26<='Check-In'!$U$136,P26,IF(AND(S25=S26,Q25='Check-In'!$U$136),P26,"")),IF(P26<='Check-In'!$Q$136,P26,IF(AND(S25=S26,Q25='Check-In'!$Q$136),P26,"")))) ->  | R26: POELZER, CLARK | S26: 194 | U26: =IF(Master!$B$1="Dbls",IF(B26<='Check-In'!$S$137,B26,IF(AND(I25=I26,G25='Check-In'!$S$137),B26,"")),IF(Master!$B$1="2-Day",IF(B26<='Check-In'!$U$137,B26,IF(AND(I25=I26,G25='Check-In'!$U$137),B26,"")),IF(B26<='Check-In'!$Q$137,B26,IF(AND(I25=I26,G25='Check-In'!$Q$137),B26,"")))) ->  | Y26: =IF(Master!$B$1="Dbls",IF(P26<='Check-In'!$R$139,P26,IF(AND(W25=W26,U25='Check-In'!$R$139),P26,"")),IF(Master!$B$1="2-Day",IF(P26<='Check-In'!$T$139,P26,IF(AND(W25=W26,U25='Check-In'!$T$139),P26,"")),IF(P26<='Check-In'!$P$139,P26,IF(AND(W25=W26,U25='Check-In'!$P$139),P26,"")))) ->  | AG26: =IF(Tourn="Dbls",'Check-In'!S150,IF(Tourn="2-Day",'Check-In'!U150,'Check-In'!Q150)) -> 0 | AI26: =IF(AJ26=0,"",'Check-In'!$B31) ->  | AJ26: =IF(Tourn="2-Day",'Check-In'!T31,IF(Tourn="Dbls", 'Check-In'!R31,'Check-In'!P31)) -> 0 | AK26: =IF(AJ26="x",INDEX(Qual!$C$8:$U$133,MATCH(AI26,Qual!$C$8:$C$133,0),IF(Tourn="Dbls",7,IF(Tourn="2-Day",6,IF(Tourn="MSC",6,5)))),"") ->  | AL26: =IF(AJ26="x",INDEX(Qual!$C$8:$U$133,MATCH(AI26,Qual!$C$8:$C$133,0),IF(Tourn="Dbls",8,IF(Tourn="2-Day",7,IF(Tourn="MSC",8,6)))),"") ->  | AM26: =IF(AJ26="x",INDEX(Qual!$C$8:$U$133,MATCH(AI26,Qual!$C$8:$C$133,0),IF(Tourn="Dbls",9,IF(Tourn="2-Day",8,IF(Tourn="MSC",10,7)))),"") ->  | AO26: =IF(AP26=0,"",'Check-In'!$B31) ->  | AP26: =IF(Tourn="2-Day",'Check-In'!U31,IF(Tourn="Dbls", 'Check-In'!S31,'Check-In'!P31)) -> 0 | AQ26: =IF(AP26="x",INDEX(Qual!$C$8:$U$133,MATCH(AO26,Qual!$C$8:$C$133,0),IF(Tourn="Dbls",15,IF(Tourn="2-Day",10,IF(Tourn="MSC",12,8)))),"") ->  | AR26: =IF(AP26="x",INDEX(Qual!$C$8:$U$133,MATCH(AO26,Qual!$C$8:$C$133,0),IF(Tourn="Dbls",16,IF(Tourn="2-Day",11,IF(Tourn="MSC",14,9)))),"") ->  | AS26: =IF(AP26="x",INDEX(Qual!$C$8:$U$133,MATCH(AO26,Qual!$C$8:$C$133,0),IF(Tourn="Dbls",17,IF(Tourn="2-Day",12,IF(Tourn="MSC",16,10)))),"") -> 
B27: 25 | C27: =IF(Master!$B$1="Dbls",IF(B27<='Check-In'!$R$136,B27,IF(AND(E26=E27,C26='Check-In'!$R$136),B27,"")),IF(Master!$B$1="2-Day",IF(B27<='Check-In'!$T$136,B27,IF(AND(E26=E27,C26='Check-In'!$T$136),B27,"")),IF(B27<='Check-In'!$P$136,B27,IF(AND(E26=E27,C26='Check-In'!$P$136),B27,"")))) ->  | D27: SODERGREN, SCOTT | E27: 187 | G27: =IF(Master!$B$1="Dbls",IF(B27<='Check-In'!$R$137,B27,IF(AND(I26=I27,G26='Check-In'!$R$137),B27,"")),IF(Master!$B$1="2-Day",IF(B27<='Check-In'!$T$137,B27,IF(AND(I26=I27,G26='Check-In'!$T$137),B27,"")),IF(B27<='Check-In'!$P$137,B27,IF(AND(I26=I27,G26='Check-In'!$P$137),B27,"")))) ->  | K27: =IF(Master!$B$1="Dbls",IF(B27<='Check-In'!$R$139,B27,IF(AND(I26=I27,G26='Check-In'!$R$139),B27,"")),IF(Master!$B$1="2-Day",IF(B27<='Check-In'!$T$139,B27,IF(AND(I26=I27,G26='Check-In'!$T$139),B27,"")),IF(B27<='Check-In'!$P$139,B27,IF(AND(I26=I27,G26='Check-In'!$P$139),B27,"")))) ->  | P27: 25 | Q27: =IF(Master!$B$1="Dbls",IF(P27<='Check-In'!$S$136,P27,IF(AND(S26=S27,Q26='Check-In'!$S$136),P27,"")),IF(Master!$B$1="2-Day",IF(P27<='Check-In'!$U$136,P27,IF(AND(S26=S27,Q26='Check-In'!$U$136),P27,"")),IF(P27<='Check-In'!$Q$136,P27,IF(AND(S26=S27,Q26='Check-In'!$Q$136),P27,"")))) ->  | R27: JONES, TOM | S27: 191 | U27: =IF(Master!$B$1="Dbls",IF(B27<='Check-In'!$S$137,B27,IF(AND(I26=I27,G26='Check-In'!$S$137),B27,"")),IF(Master!$B$1="2-Day",IF(B27<='Check-In'!$U$137,B27,IF(AND(I26=I27,G26='Check-In'!$U$137),B27,"")),IF(B27<='Check-In'!$Q$137,B27,IF(AND(I26=I27,G26='Check-In'!$Q$137),B27,"")))) ->  | Y27: =IF(Master!$B$1="Dbls",IF(P27<='Check-In'!$R$139,P27,IF(AND(W26=W27,U26='Check-In'!$R$139),P27,"")),IF(Master!$B$1="2-Day",IF(P27<='Check-In'!$T$139,P27,IF(AND(W26=W27,U26='Check-In'!$T$139),P27,"")),IF(P27<='Check-In'!$P$139,P27,IF(AND(W26=W27,U26='Check-In'!$P$139),P27,"")))) ->  | AG27: =IF(Tourn="Dbls",'Check-In'!S151,IF(Tourn="2-Day",'Check-In'!U151,'Check-In'!Q151)) -> 0 | AI27: =IF(AJ27=0,"",'Check-In'!$B32) -> HOMMES, JOHN | AJ27: =IF(Tourn="2-Day",'Check-In'!T32,IF(Tourn="Dbls", 'Check-In'!R32,'Check-In'!P32)) -> X | AK27: =IF(AJ27="x",INDEX(Qual!$C$8:$U$133,MATCH(AI27,Qual!$C$8:$C$133,0),IF(Tourn="Dbls",7,IF(Tourn="2-Day",6,IF(Tourn="MSC",6,5)))),"") -> 237 | AL27: =IF(AJ27="x",INDEX(Qual!$C$8:$U$133,MATCH(AI27,Qual!$C$8:$C$133,0),IF(Tourn="Dbls",8,IF(Tourn="2-Day",7,IF(Tourn="MSC",8,6)))),"") -> 247 | AM27: =IF(AJ27="x",INDEX(Qual!$C$8:$U$133,MATCH(AI27,Qual!$C$8:$C$133,0),IF(Tourn="Dbls",9,IF(Tourn="2-Day",8,IF(Tourn="MSC",10,7)))),"") -> 198 | AO27: =IF(AP27=0,"",'Check-In'!$B32) -> HOMMES, JOHN | AP27: =IF(Tourn="2-Day",'Check-In'!U32,IF(Tourn="Dbls", 'Check-In'!S32,'Check-In'!P32)) -> X | AQ27: =IF(AP27="x",INDEX(Qual!$C$8:$U$133,MATCH(AO27,Qual!$C$8:$C$133,0),IF(Tourn="Dbls",15,IF(Tourn="2-Day",10,IF(Tourn="MSC",12,8)))),"") -> 268 | AR27: =IF(AP27="x",INDEX(Qual!$C$8:$U$133,MATCH(AO27,Qual!$C$8:$C$133,0),IF(Tourn="Dbls",16,IF(Tourn="2-Day",11,IF(Tourn="MSC",14,9)))),"") -> 196 | AS27: =IF(AP27="x",INDEX(Qual!$C$8:$U$133,MATCH(AO27,Qual!$C$8:$C$133,0),IF(Tourn="Dbls",17,IF(Tourn="2-Day",12,IF(Tourn="MSC",16,10)))),"") -> 235
B28: 26 | C28: =IF(Master!$B$1="Dbls",IF(B28<='Check-In'!$R$136,B28,IF(AND(E27=E28,C27='Check-In'!$R$136),B28,"")),IF(Master!$B$1="2-Day",IF(B28<='Check-In'!$T$136,B28,IF(AND(E27=E28,C27='Check-In'!$T$136),B28,"")),IF(B28<='Check-In'!$P$136,B28,IF(AND(E27=E28,C27='Check-In'!$P$136),B28,"")))) ->  | D28: HALIDA, TERRY | E28: 186 | G28: =IF(Master!$B$1="Dbls",IF(B28<='Check-In'!$R$137,B28,IF(AND(I27=I28,G27='Check-In'!$R$137),B28,"")),IF(Master!$B$1="2-Day",IF(B28<='Check-In'!$T$137,B28,IF(AND(I27=I28,G27='Check-In'!$T$137),B28,"")),IF(B28<='Check-In'!$P$137,B28,IF(AND(I27=I28,G27='Check-In'!$P$137),B28,"")))) ->  | K28: =IF(Master!$B$1="Dbls",IF(B28<='Check-In'!$R$139,B28,IF(AND(I27=I28,G27='Check-In'!$R$139),B28,"")),IF(Master!$B$1="2-Day",IF(B28<='Check-In'!$T$139,B28,IF(AND(I27=I28,G27='Check-In'!$T$139),B28,"")),IF(B28<='Check-In'!$P$139,B28,IF(AND(I27=I28,G27='Check-In'!$P$139),B28,"")))) ->  | P28: 26 | Q28: =IF(Master!$B$1="Dbls",IF(P28<='Check-In'!$S$136,P28,IF(AND(S27=S28,Q27='Check-In'!$S$136),P28,"")),IF(Master!$B$1="2-Day",IF(P28<='Check-In'!$U$136,P28,IF(AND(S27=S28,Q27='Check-In'!$U$136),P28,"")),IF(P28<='Check-In'!$Q$136,P28,IF(AND(S27=S28,Q27='Check-In'!$Q$136),P28,"")))) ->  | R28: SCHOSSOW, FRED | S28: 190 | U28: =IF(Master!$B$1="Dbls",IF(B28<='Check-In'!$S$137,B28,IF(AND(I27=I28,G27='Check-In'!$S$137),B28,"")),IF(Master!$B$1="2-Day",IF(B28<='Check-In'!$U$137,B28,IF(AND(I27=I28,G27='Check-In'!$U$137),B28,"")),IF(B28<='Check-In'!$Q$137,B28,IF(AND(I27=I28,G27='Check-In'!$Q$137),B28,"")))) ->  | Y28: =IF(Master!$B$1="Dbls",IF(P28<='Check-In'!$R$139,P28,IF(AND(W27=W28,U27='Check-In'!$R$139),P28,"")),IF(Master!$B$1="2-Day",IF(P28<='Check-In'!$T$139,P28,IF(AND(W27=W28,U27='Check-In'!$T$139),P28,"")),IF(P28<='Check-In'!$P$139,P28,IF(AND(W27=W28,U27='Check-In'!$P$139),P28,"")))) ->  | AG28: =IF(Tourn="Dbls",'Check-In'!S152,IF(Tourn="2-Day",'Check-In'!U152,'Check-In'!Q152)) -> 0 | AI28: =IF(AJ28=0,"",'Check-In'!$B33) -> JONES, TOM | AJ28: =IF(Tourn="2-Day",'Check-In'!T33,IF(Tourn="Dbls", 'Check-In'!R33,'Check-In'!P33)) -> X | AK28: =IF(AJ28="x",INDEX(Qual!$C$8:$U$133,MATCH(AI28,Qual!$C$8:$C$133,0),IF(Tourn="Dbls",7,IF(Tourn="2-Day",6,IF(Tourn="MSC",6,5)))),"") -> 194 | AL28: =IF(AJ28="x",INDEX(Qual!$C$8:$U$133,MATCH(AI28,Qual!$C$8:$C$133,0),IF(Tourn="Dbls",8,IF(Tourn="2-Day",7,IF(Tourn="MSC",8,6)))),"") -> 245 | AM28: =IF(AJ28="x",INDEX(Qual!$C$8:$U$133,MATCH(AI28,Qual!$C$8:$C$133,0),IF(Tourn="Dbls",9,IF(Tourn="2-Day",8,IF(Tourn="MSC",10,7)))),"") -> 219 | AO28: =IF(AP28=0,"",'Check-In'!$B33) -> JONES, TOM | AP28: =IF(Tourn="2-Day",'Check-In'!U33,IF(Tourn="Dbls", 'Check-In'!S33,'Check-In'!P33)) -> X | AQ28: =IF(AP28="x",INDEX(Qual!$C$8:$U$133,MATCH(AO28,Qual!$C$8:$C$133,0),IF(Tourn="Dbls",15,IF(Tourn="2-Day",10,IF(Tourn="MSC",12,8)))),"") -> 191 | AR28: =IF(AP28="x",INDEX(Qual!$C$8:$U$133,MATCH(AO28,Qual!$C$8:$C$133,0),IF(Tourn="Dbls",16,IF(Tourn="2-Day",11,IF(Tourn="MSC",14,9)))),"") -> 215 | AS28: =IF(AP28="x",INDEX(Qual!$C$8:$U$133,MATCH(AO28,Qual!$C$8:$C$133,0),IF(Tourn="Dbls",17,IF(Tourn="2-Day",12,IF(Tourn="MSC",16,10)))),"") -> 228
B29: 27 | C29: =IF(Master!$B$1="Dbls",IF(B29<='Check-In'!$R$136,B29,IF(AND(E28=E29,C28='Check-In'!$R$136),B29,"")),IF(Master!$B$1="2-Day",IF(B29<='Check-In'!$T$136,B29,IF(AND(E28=E29,C28='Check-In'!$T$136),B29,"")),IF(B29<='Check-In'!$P$136,B29,IF(AND(E28=E29,C28='Check-In'!$P$136),B29,"")))) ->  | D29: SAVOY, TODD | E29: 183 | G29: =IF(Master!$B$1="Dbls",IF(B29<='Check-In'!$R$137,B29,IF(AND(I28=I29,G28='Check-In'!$R$137),B29,"")),IF(Master!$B$1="2-Day",IF(B29<='Check-In'!$T$137,B29,IF(AND(I28=I29,G28='Check-In'!$T$137),B29,"")),IF(B29<='Check-In'!$P$137,B29,IF(AND(I28=I29,G28='Check-In'!$P$137),B29,"")))) ->  | K29: =IF(Master!$B$1="Dbls",IF(B29<='Check-In'!$R$139,B29,IF(AND(I28=I29,G28='Check-In'!$R$139),B29,"")),IF(Master!$B$1="2-Day",IF(B29<='Check-In'!$T$139,B29,IF(AND(I28=I29,G28='Check-In'!$T$139),B29,"")),IF(B29<='Check-In'!$P$139,B29,IF(AND(I28=I29,G28='Check-In'!$P$139),B29,"")))) ->  | P29: 27 | Q29: =IF(Master!$B$1="Dbls",IF(P29<='Check-In'!$S$136,P29,IF(AND(S28=S29,Q28='Check-In'!$S$136),P29,"")),IF(Master!$B$1="2-Day",IF(P29<='Check-In'!$U$136,P29,IF(AND(S28=S29,Q28='Check-In'!$U$136),P29,"")),IF(P29<='Check-In'!$Q$136,P29,IF(AND(S28=S29,Q28='Check-In'!$Q$136),P29,"")))) ->  | R29: THOMPSON, DOUG | S29: 190 | U29: =IF(Master!$B$1="Dbls",IF(B29<='Check-In'!$S$137,B29,IF(AND(I28=I29,G28='Check-In'!$S$137),B29,"")),IF(Master!$B$1="2-Day",IF(B29<='Check-In'!$U$137,B29,IF(AND(I28=I29,G28='Check-In'!$U$137),B29,"")),IF(B29<='Check-In'!$Q$137,B29,IF(AND(I28=I29,G28='Check-In'!$Q$137),B29,"")))) ->  | Y29: =IF(Master!$B$1="Dbls",IF(P29<='Check-In'!$R$139,P29,IF(AND(W28=W29,U28='Check-In'!$R$139),P29,"")),IF(Master!$B$1="2-Day",IF(P29<='Check-In'!$T$139,P29,IF(AND(W28=W29,U28='Check-In'!$T$139),P29,"")),IF(P29<='Check-In'!$P$139,P29,IF(AND(W28=W29,U28='Check-In'!$P$139),P29,"")))) ->  | AG29: =SUM(AG21:AG28) -> $360.00 | AI29: =IF(AJ29=0,"",'Check-In'!$B34) ->  | AJ29: =IF(Tourn="2-Day",'Check-In'!T34,IF(Tourn="Dbls", 'Check-In'!R34,'Check-In'!P34)) -> 0 | AK29: =IF(AJ29="x",INDEX(Qual!$C$8:$U$133,MATCH(AI29,Qual!$C$8:$C$133,0),IF(Tourn="Dbls",7,IF(Tourn="2-Day",6,IF(Tourn="MSC",6,5)))),"") ->  | AL29: =IF(AJ29="x",INDEX(Qual!$C$8:$U$133,MATCH(AI29,Qual!$C$8:$C$133,0),IF(Tourn="Dbls",8,IF(Tourn="2-Day",7,IF(Tourn="MSC",8,6)))),"") ->  | AM29: =IF(AJ29="x",INDEX(Qual!$C$8:$U$133,MATCH(AI29,Qual!$C$8:$C$133,0),IF(Tourn="Dbls",9,IF(Tourn="2-Day",8,IF(Tourn="MSC",10,7)))),"") ->  | AO29: =IF(AP29=0,"",'Check-In'!$B34) ->  | AP29: =IF(Tourn="2-Day",'Check-In'!U34,IF(Tourn="Dbls", 'Check-In'!S34,'Check-In'!P34)) -> 0 | AQ29: =IF(AP29="x",INDEX(Qual!$C$8:$U$133,MATCH(AO29,Qual!$C$8:$C$133,0),IF(Tourn="Dbls",15,IF(Tourn="2-Day",10,IF(Tourn="MSC",12,8)))),"") ->  | AR29: =IF(AP29="x",INDEX(Qual!$C$8:$U$133,MATCH(AO29,Qual!$C$8:$C$133,0),IF(Tourn="Dbls",16,IF(Tourn="2-Day",11,IF(Tourn="MSC",14,9)))),"") ->  | AS29: =IF(AP29="x",INDEX(Qual!$C$8:$U$133,MATCH(AO29,Qual!$C$8:$C$133,0),IF(Tourn="Dbls",17,IF(Tourn="2-Day",12,IF(Tourn="MSC",16,10)))),"") -> 
B30: 28 | C30: =IF(Master!$B$1="Dbls",IF(B30<='Check-In'!$R$136,B30,IF(AND(E29=E30,C29='Check-In'!$R$136),B30,"")),IF(Master!$B$1="2-Day",IF(B30<='Check-In'!$T$136,B30,IF(AND(E29=E30,C29='Check-In'!$T$136),B30,"")),IF(B30<='Check-In'!$P$136,B30,IF(AND(E29=E30,C29='Check-In'!$P$136),B30,"")))) ->  | D30: DAVISON, PAUL | E30: 181 | G30: =IF(Master!$B$1="Dbls",IF(B30<='Check-In'!$R$137,B30,IF(AND(I29=I30,G29='Check-In'!$R$137),B30,"")),IF(Master!$B$1="2-Day",IF(B30<='Check-In'!$T$137,B30,IF(AND(I29=I30,G29='Check-In'!$T$137),B30,"")),IF(B30<='Check-In'!$P$137,B30,IF(AND(I29=I30,G29='Check-In'!$P$137),B30,"")))) ->  | K30: =IF(Master!$B$1="Dbls",IF(B30<='Check-In'!$R$139,B30,IF(AND(I29=I30,G29='Check-In'!$R$139),B30,"")),IF(Master!$B$1="2-Day",IF(B30<='Check-In'!$T$139,B30,IF(AND(I29=I30,G29='Check-In'!$T$139),B30,"")),IF(B30<='Check-In'!$P$139,B30,IF(AND(I29=I30,G29='Check-In'!$P$139),B30,"")))) ->  | P30: 28 | Q30: =IF(Master!$B$1="Dbls",IF(P30<='Check-In'!$S$136,P30,IF(AND(S29=S30,Q29='Check-In'!$S$136),P30,"")),IF(Master!$B$1="2-Day",IF(P30<='Check-In'!$U$136,P30,IF(AND(S29=S30,Q29='Check-In'!$U$136),P30,"")),IF(P30<='Check-In'!$Q$136,P30,IF(AND(S29=S30,Q29='Check-In'!$Q$136),P30,"")))) ->  | R30: HALIDA, TERRY | S30: 183 | U30: =IF(Master!$B$1="Dbls",IF(B30<='Check-In'!$S$137,B30,IF(AND(I29=I30,G29='Check-In'!$S$137),B30,"")),IF(Master!$B$1="2-Day",IF(B30<='Check-In'!$U$137,B30,IF(AND(I29=I30,G29='Check-In'!$U$137),B30,"")),IF(B30<='Check-In'!$Q$137,B30,IF(AND(I29=I30,G29='Check-In'!$Q$137),B30,"")))) ->  | Y30: =IF(Master!$B$1="Dbls",IF(P30<='Check-In'!$R$139,P30,IF(AND(W29=W30,U29='Check-In'!$R$139),P30,"")),IF(Master!$B$1="2-Day",IF(P30<='Check-In'!$T$139,P30,IF(AND(W29=W30,U29='Check-In'!$T$139),P30,"")),IF(P30<='Check-In'!$P$139,P30,IF(AND(W29=W30,U29='Check-In'!$P$139),P30,"")))) ->  | AI30: =IF(AJ30=0,"",'Check-In'!$B35) -> BORDSON, DAVE | AJ30: =IF(Tourn="2-Day",'Check-In'!T35,IF(Tourn="Dbls", 'Check-In'!R35,'Check-In'!P35)) -> X | AK30: =IF(AJ30="x",INDEX(Qual!$C$8:$U$133,MATCH(AI30,Qual!$C$8:$C$133,0),IF(Tourn="Dbls",7,IF(Tourn="2-Day",6,IF(Tourn="MSC",6,5)))),"") -> 211 | AL30: =IF(AJ30="x",INDEX(Qual!$C$8:$U$133,MATCH(AI30,Qual!$C$8:$C$133,0),IF(Tourn="Dbls",8,IF(Tourn="2-Day",7,IF(Tourn="MSC",8,6)))),"") -> 145 | AM30: =IF(AJ30="x",INDEX(Qual!$C$8:$U$133,MATCH(AI30,Qual!$C$8:$C$133,0),IF(Tourn="Dbls",9,IF(Tourn="2-Day",8,IF(Tourn="MSC",10,7)))),"") -> 203 | AO30: =IF(AP30=0,"",'Check-In'!$B35) -> BORDSON, DAVE | AP30: =IF(Tourn="2-Day",'Check-In'!U35,IF(Tourn="Dbls", 'Check-In'!S35,'Check-In'!P35)) -> X | AQ30: =IF(AP30="x",INDEX(Qual!$C$8:$U$133,MATCH(AO30,Qual!$C$8:$C$133,0),IF(Tourn="Dbls",15,IF(Tourn="2-Day",10,IF(Tourn="MSC",12,8)))),"") -> 214 | AR30: =IF(AP30="x",INDEX(Qual!$C$8:$U$133,MATCH(AO30,Qual!$C$8:$C$133,0),IF(Tourn="Dbls",16,IF(Tourn="2-Day",11,IF(Tourn="MSC",14,9)))),"") -> 226 | AS30: =IF(AP30="x",INDEX(Qual!$C$8:$U$133,MATCH(AO30,Qual!$C$8:$C$133,0),IF(Tourn="Dbls",17,IF(Tourn="2-Day",12,IF(Tourn="MSC",16,10)))),"") -> 238
B31: 29 | C31: =IF(Master!$B$1="Dbls",IF(B31<='Check-In'!$R$136,B31,IF(AND(E30=E31,C30='Check-In'!$R$136),B31,"")),IF(Master!$B$1="2-Day",IF(B31<='Check-In'!$T$136,B31,IF(AND(E30=E31,C30='Check-In'!$T$136),B31,"")),IF(B31<='Check-In'!$P$136,B31,IF(AND(E30=E31,C30='Check-In'!$P$136),B31,"")))) ->  | D31: DAVIS, SCOTT | E31: 180 | G31: =IF(Master!$B$1="Dbls",IF(B31<='Check-In'!$R$137,B31,IF(AND(I30=I31,G30='Check-In'!$R$137),B31,"")),IF(Master!$B$1="2-Day",IF(B31<='Check-In'!$T$137,B31,IF(AND(I30=I31,G30='Check-In'!$T$137),B31,"")),IF(B31<='Check-In'!$P$137,B31,IF(AND(I30=I31,G30='Check-In'!$P$137),B31,"")))) ->  | K31: =IF(Master!$B$1="Dbls",IF(B31<='Check-In'!$R$139,B31,IF(AND(I30=I31,G30='Check-In'!$R$139),B31,"")),IF(Master!$B$1="2-Day",IF(B31<='Check-In'!$T$139,B31,IF(AND(I30=I31,G30='Check-In'!$T$139),B31,"")),IF(B31<='Check-In'!$P$139,B31,IF(AND(I30=I31,G30='Check-In'!$P$139),B31,"")))) ->  | P31: 29 | Q31: =IF(Master!$B$1="Dbls",IF(P31<='Check-In'!$S$136,P31,IF(AND(S30=S31,Q30='Check-In'!$S$136),P31,"")),IF(Master!$B$1="2-Day",IF(P31<='Check-In'!$U$136,P31,IF(AND(S30=S31,Q30='Check-In'!$U$136),P31,"")),IF(P31<='Check-In'!$Q$136,P31,IF(AND(S30=S31,Q30='Check-In'!$Q$136),P31,"")))) ->  | R31: GREEN, GARY | S31: 182 | U31: =IF(Master!$B$1="Dbls",IF(B31<='Check-In'!$S$137,B31,IF(AND(I30=I31,G30='Check-In'!$S$137),B31,"")),IF(Master!$B$1="2-Day",IF(B31<='Check-In'!$U$137,B31,IF(AND(I30=I31,G30='Check-In'!$U$137),B31,"")),IF(B31<='Check-In'!$Q$137,B31,IF(AND(I30=I31,G30='Check-In'!$Q$137),B31,"")))) ->  | Y31: =IF(Master!$B$1="Dbls",IF(P31<='Check-In'!$R$139,P31,IF(AND(W30=W31,U30='Check-In'!$R$139),P31,"")),IF(Master!$B$1="2-Day",IF(P31<='Check-In'!$T$139,P31,IF(AND(W30=W31,U30='Check-In'!$T$139),P31,"")),IF(P31<='Check-In'!$P$139,P31,IF(AND(W30=W31,U30='Check-In'!$P$139),P31,"")))) ->  | AI31: =IF(AJ31=0,"",'Check-In'!$B36) -> HAUGAN, ERIC | AJ31: =IF(Tourn="2-Day",'Check-In'!T36,IF(Tourn="Dbls", 'Check-In'!R36,'Check-In'!P36)) -> X | AK31: =IF(AJ31="x",INDEX(Qual!$C$8:$U$133,MATCH(AI31,Qual!$C$8:$C$133,0),IF(Tourn="Dbls",7,IF(Tourn="2-Day",6,IF(Tourn="MSC",6,5)))),"") -> 220 | AL31: =IF(AJ31="x",INDEX(Qual!$C$8:$U$133,MATCH(AI31,Qual!$C$8:$C$133,0),IF(Tourn="Dbls",8,IF(Tourn="2-Day",7,IF(Tourn="MSC",8,6)))),"") -> 247 | AM31: =IF(AJ31="x",INDEX(Qual!$C$8:$U$133,MATCH(AI31,Qual!$C$8:$C$133,0),IF(Tourn="Dbls",9,IF(Tourn="2-Day",8,IF(Tourn="MSC",10,7)))),"") -> 180 | AO31: =IF(AP31=0,"",'Check-In'!$B36) -> HAUGAN, ERIC | AP31: =IF(Tourn="2-Day",'Check-In'!U36,IF(Tourn="Dbls", 'Check-In'!S36,'Check-In'!P36)) -> X | AQ31: =IF(AP31="x",INDEX(Qual!$C$8:$U$133,MATCH(AO31,Qual!$C$8:$C$133,0),IF(Tourn="Dbls",15,IF(Tourn="2-Day",10,IF(Tourn="MSC",12,8)))),"") -> 223 | AR31: =IF(AP31="x",INDEX(Qual!$C$8:$U$133,MATCH(AO31,Qual!$C$8:$C$133,0),IF(Tourn="Dbls",16,IF(Tourn="2-Day",11,IF(Tourn="MSC",14,9)))),"") -> 193 | AS31: =IF(AP31="x",INDEX(Qual!$C$8:$U$133,MATCH(AO31,Qual!$C$8:$C$133,0),IF(Tourn="Dbls",17,IF(Tourn="2-Day",12,IF(Tourn="MSC",16,10)))),"") -> 201
B32: 30 | C32: =IF(Master!$B$1="Dbls",IF(B32<='Check-In'!$R$136,B32,IF(AND(E31=E32,C31='Check-In'!$R$136),B32,"")),IF(Master!$B$1="2-Day",IF(B32<='Check-In'!$T$136,B32,IF(AND(E31=E32,C31='Check-In'!$T$136),B32,"")),IF(B32<='Check-In'!$P$136,B32,IF(AND(E31=E32,C31='Check-In'!$P$136),B32,"")))) ->  | D32: MANSKE, WARREN | E32: 180 | G32: =IF(Master!$B$1="Dbls",IF(B32<='Check-In'!$R$137,B32,IF(AND(I31=I32,G31='Check-In'!$R$137),B32,"")),IF(Master!$B$1="2-Day",IF(B32<='Check-In'!$T$137,B32,IF(AND(I31=I32,G31='Check-In'!$T$137),B32,"")),IF(B32<='Check-In'!$P$137,B32,IF(AND(I31=I32,G31='Check-In'!$P$137),B32,"")))) ->  | K32: =IF(Master!$B$1="Dbls",IF(B32<='Check-In'!$R$139,B32,IF(AND(I31=I32,G31='Check-In'!$R$139),B32,"")),IF(Master!$B$1="2-Day",IF(B32<='Check-In'!$T$139,B32,IF(AND(I31=I32,G31='Check-In'!$T$139),B32,"")),IF(B32<='Check-In'!$P$139,B32,IF(AND(I31=I32,G31='Check-In'!$P$139),B32,"")))) ->  | P32: 30 | Q32: =IF(Master!$B$1="Dbls",IF(P32<='Check-In'!$S$136,P32,IF(AND(S31=S32,Q31='Check-In'!$S$136),P32,"")),IF(Master!$B$1="2-Day",IF(P32<='Check-In'!$U$136,P32,IF(AND(S31=S32,Q31='Check-In'!$U$136),P32,"")),IF(P32<='Check-In'!$Q$136,P32,IF(AND(S31=S32,Q31='Check-In'!$Q$136),P32,"")))) ->  | R32: DAVIS, SCOTT | S32: 180 | U32: =IF(Master!$B$1="Dbls",IF(B32<='Check-In'!$S$137,B32,IF(AND(I31=I32,G31='Check-In'!$S$137),B32,"")),IF(Master!$B$1="2-Day",IF(B32<='Check-In'!$U$137,B32,IF(AND(I31=I32,G31='Check-In'!$U$137),B32,"")),IF(B32<='Check-In'!$Q$137,B32,IF(AND(I31=I32,G31='Check-In'!$Q$137),B32,"")))) ->  | Y32: =IF(Master!$B$1="Dbls",IF(P32<='Check-In'!$R$139,P32,IF(AND(W31=W32,U31='Check-In'!$R$139),P32,"")),IF(Master!$B$1="2-Day",IF(P32<='Check-In'!$T$139,P32,IF(AND(W31=W32,U31='Check-In'!$T$139),P32,"")),IF(P32<='Check-In'!$P$139,P32,IF(AND(W31=W32,U31='Check-In'!$P$139),P32,"")))) ->  | AI32: =IF(AJ32=0,"",'Check-In'!$B37) -> JENSEN, WAYNE | AJ32: =IF(Tourn="2-Day",'Check-In'!T37,IF(Tourn="Dbls", 'Check-In'!R37,'Check-In'!P37)) -> X | AK32: =IF(AJ32="x",INDEX(Qual!$C$8:$U$133,MATCH(AI32,Qual!$C$8:$C$133,0),IF(Tourn="Dbls",7,IF(Tourn="2-Day",6,IF(Tourn="MSC",6,5)))),"") -> 222 | AL32: =IF(AJ32="x",INDEX(Qual!$C$8:$U$133,MATCH(AI32,Qual!$C$8:$C$133,0),IF(Tourn="Dbls",8,IF(Tourn="2-Day",7,IF(Tourn="MSC",8,6)))),"") -> 207 | AM32: =IF(AJ32="x",INDEX(Qual!$C$8:$U$133,MATCH(AI32,Qual!$C$8:$C$133,0),IF(Tourn="Dbls",9,IF(Tourn="2-Day",8,IF(Tourn="MSC",10,7)))),"") -> 202 | AO32: =IF(AP32=0,"",'Check-In'!$B37) -> JENSEN, WAYNE | AP32: =IF(Tourn="2-Day",'Check-In'!U37,IF(Tourn="Dbls", 'Check-In'!S37,'Check-In'!P37)) -> X | AQ32: =IF(AP32="x",INDEX(Qual!$C$8:$U$133,MATCH(AO32,Qual!$C$8:$C$133,0),IF(Tourn="Dbls",15,IF(Tourn="2-Day",10,IF(Tourn="MSC",12,8)))),"") -> 223 | AR32: =IF(AP32="x",INDEX(Qual!$C$8:$U$133,MATCH(AO32,Qual!$C$8:$C$133,0),IF(Tourn="Dbls",16,IF(Tourn="2-Day",11,IF(Tourn="MSC",14,9)))),"") -> 213 | AS32: =IF(AP32="x",INDEX(Qual!$C$8:$U$133,MATCH(AO32,Qual!$C$8:$C$133,0),IF(Tourn="Dbls",17,IF(Tourn="2-Day",12,IF(Tourn="MSC",16,10)))),"") -> 238
B33: 31 | C33: =IF(Master!$B$1="Dbls",IF(B33<='Check-In'!$R$136,B33,IF(AND(E32=E33,C32='Check-In'!$R$136),B33,"")),IF(Master!$B$1="2-Day",IF(B33<='Check-In'!$T$136,B33,IF(AND(E32=E33,C32='Check-In'!$T$136),B33,"")),IF(B33<='Check-In'!$P$136,B33,IF(AND(E32=E33,C32='Check-In'!$P$136),B33,"")))) ->  | D33: JENSEN, ROBERT | E33: 170 | G33: =IF(Master!$B$1="Dbls",IF(B33<='Check-In'!$R$137,B33,IF(AND(I32=I33,G32='Check-In'!$R$137),B33,"")),IF(Master!$B$1="2-Day",IF(B33<='Check-In'!$T$137,B33,IF(AND(I32=I33,G32='Check-In'!$T$137),B33,"")),IF(B33<='Check-In'!$P$137,B33,IF(AND(I32=I33,G32='Check-In'!$P$137),B33,"")))) ->  | K33: =IF(Master!$B$1="Dbls",IF(B33<='Check-In'!$R$139,B33,IF(AND(I32=I33,G32='Check-In'!$R$139),B33,"")),IF(Master!$B$1="2-Day",IF(B33<='Check-In'!$T$139,B33,IF(AND(I32=I33,G32='Check-In'!$T$139),B33,"")),IF(B33<='Check-In'!$P$139,B33,IF(AND(I32=I33,G32='Check-In'!$P$139),B33,"")))) ->  | P33: 31 | Q33: =IF(Master!$B$1="Dbls",IF(P33<='Check-In'!$S$136,P33,IF(AND(S32=S33,Q32='Check-In'!$S$136),P33,"")),IF(Master!$B$1="2-Day",IF(P33<='Check-In'!$U$136,P33,IF(AND(S32=S33,Q32='Check-In'!$U$136),P33,"")),IF(P33<='Check-In'!$Q$136,P33,IF(AND(S32=S33,Q32='Check-In'!$Q$136),P33,"")))) ->  | R33: DAVISON, PAUL | S33: 179 | U33: =IF(Master!$B$1="Dbls",IF(B33<='Check-In'!$S$137,B33,IF(AND(I32=I33,G32='Check-In'!$S$137),B33,"")),IF(Master!$B$1="2-Day",IF(B33<='Check-In'!$U$137,B33,IF(AND(I32=I33,G32='Check-In'!$U$137),B33,"")),IF(B33<='Check-In'!$Q$137,B33,IF(AND(I32=I33,G32='Check-In'!$Q$137),B33,"")))) ->  | Y33: =IF(Master!$B$1="Dbls",IF(P33<='Check-In'!$R$139,P33,IF(AND(W32=W33,U32='Check-In'!$R$139),P33,"")),IF(Master!$B$1="2-Day",IF(P33<='Check-In'!$T$139,P33,IF(AND(W32=W33,U32='Check-In'!$T$139),P33,"")),IF(P33<='Check-In'!$P$139,P33,IF(AND(W32=W33,U32='Check-In'!$P$139),P33,"")))) ->  | AI33: =IF(AJ33=0,"",'Check-In'!$B38) ->  | AJ33: =IF(Tourn="2-Day",'Check-In'!T38,IF(Tourn="Dbls", 'Check-In'!R38,'Check-In'!P38)) -> 0 | AK33: =IF(AJ33="x",INDEX(Qual!$C$8:$U$133,MATCH(AI33,Qual!$C$8:$C$133,0),IF(Tourn="Dbls",7,IF(Tourn="2-Day",6,IF(Tourn="MSC",6,5)))),"") ->  | AL33: =IF(AJ33="x",INDEX(Qual!$C$8:$U$133,MATCH(AI33,Qual!$C$8:$C$133,0),IF(Tourn="Dbls",8,IF(Tourn="2-Day",7,IF(Tourn="MSC",8,6)))),"") ->  | AM33: =IF(AJ33="x",INDEX(Qual!$C$8:$U$133,MATCH(AI33,Qual!$C$8:$C$133,0),IF(Tourn="Dbls",9,IF(Tourn="2-Day",8,IF(Tourn="MSC",10,7)))),"") ->  | AO33: =IF(AP33=0,"",'Check-In'!$B38) ->  | AP33: =IF(Tourn="2-Day",'Check-In'!U38,IF(Tourn="Dbls", 'Check-In'!S38,'Check-In'!P38)) -> 0 | AQ33: =IF(AP33="x",INDEX(Qual!$C$8:$U$133,MATCH(AO33,Qual!$C$8:$C$133,0),IF(Tourn="Dbls",15,IF(Tourn="2-Day",10,IF(Tourn="MSC",12,8)))),"") ->  | AR33: =IF(AP33="x",INDEX(Qual!$C$8:$U$133,MATCH(AO33,Qual!$C$8:$C$133,0),IF(Tourn="Dbls",16,IF(Tourn="2-Day",11,IF(Tourn="MSC",14,9)))),"") ->  | AS33: =IF(AP33="x",INDEX(Qual!$C$8:$U$133,MATCH(AO33,Qual!$C$8:$C$133,0),IF(Tourn="Dbls",17,IF(Tourn="2-Day",12,IF(Tourn="MSC",16,10)))),"") -> 
B34: 32 | C34: =IF(Master!$B$1="Dbls",IF(B34<='Check-In'!$R$136,B34,IF(AND(E33=E34,C33='Check-In'!$R$136),B34,"")),IF(Master!$B$1="2-Day",IF(B34<='Check-In'!$T$136,B34,IF(AND(E33=E34,C33='Check-In'!$T$136),B34,"")),IF(B34<='Check-In'!$P$136,B34,IF(AND(E33=E34,C33='Check-In'!$P$136),B34,"")))) ->  | D34: POELZER, CLARK | E34: 168 | G34: =IF(Master!$B$1="Dbls",IF(B34<='Check-In'!$R$137,B34,IF(AND(I33=I34,G33='Check-In'!$R$137),B34,"")),IF(Master!$B$1="2-Day",IF(B34<='Check-In'!$T$137,B34,IF(AND(I33=I34,G33='Check-In'!$T$137),B34,"")),IF(B34<='Check-In'!$P$137,B34,IF(AND(I33=I34,G33='Check-In'!$P$137),B34,"")))) ->  | K34: =IF(Master!$B$1="Dbls",IF(B34<='Check-In'!$R$139,B34,IF(AND(I33=I34,G33='Check-In'!$R$139),B34,"")),IF(Master!$B$1="2-Day",IF(B34<='Check-In'!$T$139,B34,IF(AND(I33=I34,G33='Check-In'!$T$139),B34,"")),IF(B34<='Check-In'!$P$139,B34,IF(AND(I33=I34,G33='Check-In'!$P$139),B34,"")))) ->  | P34: 32 | Q34: =IF(Master!$B$1="Dbls",IF(P34<='Check-In'!$S$136,P34,IF(AND(S33=S34,Q33='Check-In'!$S$136),P34,"")),IF(Master!$B$1="2-Day",IF(P34<='Check-In'!$U$136,P34,IF(AND(S33=S34,Q33='Check-In'!$U$136),P34,"")),IF(P34<='Check-In'!$Q$136,P34,IF(AND(S33=S34,Q33='Check-In'!$Q$136),P34,"")))) ->  | R34: RACETTE, TIM | S34: 179 | U34: =IF(Master!$B$1="Dbls",IF(B34<='Check-In'!$S$137,B34,IF(AND(I33=I34,G33='Check-In'!$S$137),B34,"")),IF(Master!$B$1="2-Day",IF(B34<='Check-In'!$U$137,B34,IF(AND(I33=I34,G33='Check-In'!$U$137),B34,"")),IF(B34<='Check-In'!$Q$137,B34,IF(AND(I33=I34,G33='Check-In'!$Q$137),B34,"")))) ->  | Y34: =IF(Master!$B$1="Dbls",IF(P34<='Check-In'!$R$139,P34,IF(AND(W33=W34,U33='Check-In'!$R$139),P34,"")),IF(Master!$B$1="2-Day",IF(P34<='Check-In'!$T$139,P34,IF(AND(W33=W34,U33='Check-In'!$T$139),P34,"")),IF(P34<='Check-In'!$P$139,P34,IF(AND(W33=W34,U33='Check-In'!$P$139),P34,"")))) ->  | AI34: =IF(AJ34=0,"",'Check-In'!$B39) -> GOODWIN, CRAIG | AJ34: =IF(Tourn="2-Day",'Check-In'!T39,IF(Tourn="Dbls", 'Check-In'!R39,'Check-In'!P39)) -> X | AK34: =IF(AJ34="x",INDEX(Qual!$C$8:$U$133,MATCH(AI34,Qual!$C$8:$C$133,0),IF(Tourn="Dbls",7,IF(Tourn="2-Day",6,IF(Tourn="MSC",6,5)))),"") -> 222 | AL34: =IF(AJ34="x",INDEX(Qual!$C$8:$U$133,MATCH(AI34,Qual!$C$8:$C$133,0),IF(Tourn="Dbls",8,IF(Tourn="2-Day",7,IF(Tourn="MSC",8,6)))),"") -> 232 | AM34: =IF(AJ34="x",INDEX(Qual!$C$8:$U$133,MATCH(AI34,Qual!$C$8:$C$133,0),IF(Tourn="Dbls",9,IF(Tourn="2-Day",8,IF(Tourn="MSC",10,7)))),"") -> 170 | AO34: =IF(AP34=0,"",'Check-In'!$B39) -> GOODWIN, CRAIG | AP34: =IF(Tourn="2-Day",'Check-In'!U39,IF(Tourn="Dbls", 'Check-In'!S39,'Check-In'!P39)) -> X | AQ34: =IF(AP34="x",INDEX(Qual!$C$8:$U$133,MATCH(AO34,Qual!$C$8:$C$133,0),IF(Tourn="Dbls",15,IF(Tourn="2-Day",10,IF(Tourn="MSC",12,8)))),"") -> 203 | AR34: =IF(AP34="x",INDEX(Qual!$C$8:$U$133,MATCH(AO34,Qual!$C$8:$C$133,0),IF(Tourn="Dbls",16,IF(Tourn="2-Day",11,IF(Tourn="MSC",14,9)))),"") -> 200 | AS34: =IF(AP34="x",INDEX(Qual!$C$8:$U$133,MATCH(AO34,Qual!$C$8:$C$133,0),IF(Tourn="Dbls",17,IF(Tourn="2-Day",12,IF(Tourn="MSC",16,10)))),"") -> 217
B35: 33 | C35: =IF(Master!$B$1="Dbls",IF(B35<='Check-In'!$R$136,B35,IF(AND(E34=E35,C34='Check-In'!$R$136),B35,"")),IF(Master!$B$1="2-Day",IF(B35<='Check-In'!$T$136,B35,IF(AND(E34=E35,C34='Check-In'!$T$136),B35,"")),IF(B35<='Check-In'!$P$136,B35,IF(AND(E34=E35,C34='Check-In'!$P$136),B35,"")))) ->  | D35: SCHOSSOW, FRED | E35: 159 | F35: =IF(C35<>"",INDEX($AI$2:$AM$133,MATCH(D35,$AI$2:$AI$133,0),4),"") ->  | G35: =IF(Master!$B$1="Dbls",IF(B35<='Check-In'!$R$137,B35,IF(AND(I34=I35,G34='Check-In'!$R$137),B35,"")),IF(Master!$B$1="2-Day",IF(B35<='Check-In'!$T$137,B35,IF(AND(I34=I35,G34='Check-In'!$T$137),B35,"")),IF(B35<='Check-In'!$P$137,B35,IF(AND(I34=I35,G34='Check-In'!$P$137),B35,"")))) ->  | I35: =IF(C35="","",LARGE(E1G2B,B35)) ->  | J35: =IF(G35<>"",INDEX($AI$2:$AM$133,MATCH(H35,$AI$2:$AI$133,0),5),"") ->  | K35: =IF(Master!$B$1="Dbls",IF(B35<='Check-In'!$R$139,B35,IF(AND(I34=I35,G34='Check-In'!$R$139),B35,"")),IF(Master!$B$1="2-Day",IF(B35<='Check-In'!$T$139,B35,IF(AND(I34=I35,G34='Check-In'!$T$139),B35,"")),IF(B35<='Check-In'!$P$139,B35,IF(AND(I34=I35,G34='Check-In'!$P$139),B35,"")))) ->  | P35: 33 | Q35: =IF(Master!$B$1="Dbls",IF(P35<='Check-In'!$S$136,P35,IF(AND(S34=S35,Q34='Check-In'!$S$136),P35,"")),IF(Master!$B$1="2-Day",IF(P35<='Check-In'!$U$136,P35,IF(AND(S34=S35,Q34='Check-In'!$U$136),P35,"")),IF(P35<='Check-In'!$Q$136,P35,IF(AND(S34=S35,Q34='Check-In'!$Q$136),P35,"")))) ->  | R35: MANSKE, WARREN | S35: 170 | T35: =IF(Q35<>"",INDEX($AO$2:$AS$133,MATCH(R35,$AO$2:$AO$133,0),4),"") ->  | U35: =IF(Master!$B$1="Dbls",IF(B35<='Check-In'!$S$137,B35,IF(AND(I34=I35,G34='Check-In'!$S$137),B35,"")),IF(Master!$B$1="2-Day",IF(B35<='Check-In'!$U$137,B35,IF(AND(I34=I35,G34='Check-In'!$U$137),B35,"")),IF(B35<='Check-In'!$Q$137,B35,IF(AND(I34=I35,G34='Check-In'!$Q$137),B35,"")))) ->  | W35: =IF(Q35="","",LARGE($T$2:$T$133,P35)) ->  | X35: =IF(U35<>"",INDEX($AO$2:$AS$133,MATCH(V35,$AO$2:$AO$133,0),5),"") ->  | Y35: =IF(Master!$B$1="Dbls",IF(P35<='Check-In'!$R$139,P35,IF(AND(W34=W35,U34='Check-In'!$R$139),P35,"")),IF(Master!$B$1="2-Day",IF(P35<='Check-In'!$T$139,P35,IF(AND(W34=W35,U34='Check-In'!$T$139),P35,"")),IF(P35<='Check-In'!$P$139,P35,IF(AND(W34=W35,U34='Check-In'!$P$139),P35,"")))) ->  | AI35: =IF(AJ35=0,"",'Check-In'!$B40) ->  | AJ35: =IF(Tourn="2-Day",'Check-In'!T40,IF(Tourn="Dbls", 'Check-In'!R40,'Check-In'!P40)) -> 0 | AK35: =IF(AJ35="x",INDEX(Qual!$C$8:$U$133,MATCH(AI35,Qual!$C$8:$C$133,0),IF(Tourn="Dbls",7,IF(Tourn="2-Day",6,IF(Tourn="MSC",6,5)))),"") ->  | AL35: =IF(AJ35="x",INDEX(Qual!$C$8:$U$133,MATCH(AI35,Qual!$C$8:$C$133,0),IF(Tourn="Dbls",8,IF(Tourn="2-Day",7,IF(Tourn="MSC",8,6)))),"") ->  | AM35: =IF(AJ35="x",INDEX(Qual!$C$8:$U$133,MATCH(AI35,Qual!$C$8:$C$133,0),IF(Tourn="Dbls",9,IF(Tourn="2-Day",8,IF(Tourn="MSC",10,7)))),"") ->  | AO35: =IF(AP35=0,"",'Check-In'!$B40) ->  | AP35: =IF(Tourn="2-Day",'Check-In'!U40,IF(Tourn="Dbls", 'Check-In'!S40,'Check-In'!P40)) -> 0 | AQ35: =IF(AP35="x",INDEX(Qual!$C$8:$U$133,MATCH(AO35,Qual!$C$8:$C$133,0),IF(Tourn="Dbls",15,IF(Tourn="2-Day",10,IF(Tourn="MSC",12,8)))),"") ->  | AR35: =IF(AP35="x",INDEX(Qual!$C$8:$U$133,MATCH(AO35,Qual!$C$8:$C$133,0),IF(Tourn="Dbls",16,IF(Tourn="2-Day",11,IF(Tourn="MSC",14,9)))),"") ->  | AS35: =IF(AP35="x",INDEX(Qual!$C$8:$U$133,MATCH(AO35,Qual!$C$8:$C$133,0),IF(Tourn="Dbls",17,IF(Tourn="2-Day",12,IF(Tourn="MSC",16,10)))),"") -> 
B36: 34 | C36: =IF(Master!$B$1="Dbls",IF(B36<='Check-In'!$R$136,B36,IF(AND(E35=E36,C35='Check-In'!$R$136),B36,"")),IF(Master!$B$1="2-Day",IF(B36<='Check-In'!$T$136,B36,IF(AND(E35=E36,C35='Check-In'!$T$136),B36,"")),IF(B36<='Check-In'!$P$136,B36,IF(AND(E35=E36,C35='Check-In'!$P$136),B36,"")))) ->  | D36: THOMPSON, DOUG | E36: 150 | G36: =IF(Master!$B$1="Dbls",IF(B36<='Check-In'!$R$137,B36,IF(AND(I35=I36,G35='Check-In'!$R$137),B36,"")),IF(Master!$B$1="2-Day",IF(B36<='Check-In'!$T$137,B36,IF(AND(I35=I36,G35='Check-In'!$T$137),B36,"")),IF(B36<='Check-In'!$P$137,B36,IF(AND(I35=I36,G35='Check-In'!$P$137),B36,"")))) ->  | K36: =IF(Master!$B$1="Dbls",IF(B36<='Check-In'!$R$139,B36,IF(AND(I35=I36,G35='Check-In'!$R$139),B36,"")),IF(Master!$B$1="2-Day",IF(B36<='Check-In'!$T$139,B36,IF(AND(I35=I36,G35='Check-In'!$T$139),B36,"")),IF(B36<='Check-In'!$P$139,B36,IF(AND(I35=I36,G35='Check-In'!$P$139),B36,"")))) ->  | P36: 34 | Q36: =IF(Master!$B$1="Dbls",IF(P36<='Check-In'!$S$136,P36,IF(AND(S35=S36,Q35='Check-In'!$S$136),P36,"")),IF(Master!$B$1="2-Day",IF(P36<='Check-In'!$U$136,P36,IF(AND(S35=S36,Q35='Check-In'!$U$136),P36,"")),IF(P36<='Check-In'!$Q$136,P36,IF(AND(S35=S36,Q35='Check-In'!$Q$136),P36,"")))) ->  | R36: PETERSON, ED | S36: 159 | U36: =IF(Master!$B$1="Dbls",IF(B36<='Check-In'!$S$137,B36,IF(AND(I35=I36,G35='Check-In'!$S$137),B36,"")),IF(Master!$B$1="2-Day",IF(B36<='Check-In'!$U$137,B36,IF(AND(I35=I36,G35='Check-In'!$U$137),B36,"")),IF(B36<='Check-In'!$Q$137,B36,IF(AND(I35=I36,G35='Check-In'!$Q$137),B36,"")))) ->  | Y36: =IF(Master!$B$1="Dbls",IF(P36<='Check-In'!$R$139,P36,IF(AND(W35=W36,U35='Check-In'!$R$139),P36,"")),IF(Master!$B$1="2-Day",IF(P36<='Check-In'!$T$139,P36,IF(AND(W35=W36,U35='Check-In'!$T$139),P36,"")),IF(P36<='Check-In'!$P$139,P36,IF(AND(W35=W36,U35='Check-In'!$P$139),P36,"")))) ->  | AI36: =IF(AJ36=0,"",'Check-In'!$B41) ->  | AJ36: =IF(Tourn="2-Day",'Check-In'!T41,IF(Tourn="Dbls", 'Check-In'!R41,'Check-In'!P41)) -> 0 | AK36: =IF(AJ36="x",INDEX(Qual!$C$8:$U$133,MATCH(AI36,Qual!$C$8:$C$133,0),IF(Tourn="Dbls",7,IF(Tourn="2-Day",6,IF(Tourn="MSC",6,5)))),"") ->  | AL36: =IF(AJ36="x",INDEX(Qual!$C$8:$U$133,MATCH(AI36,Qual!$C$8:$C$133,0),IF(Tourn="Dbls",8,IF(Tourn="2-Day",7,IF(Tourn="MSC",8,6)))),"") ->  | AM36: =IF(AJ36="x",INDEX(Qual!$C$8:$U$133,MATCH(AI36,Qual!$C$8:$C$133,0),IF(Tourn="Dbls",9,IF(Tourn="2-Day",8,IF(Tourn="MSC",10,7)))),"") ->  | AO36: =IF(AP36=0,"",'Check-In'!$B41) ->  | AP36: =IF(Tourn="2-Day",'Check-In'!U41,IF(Tourn="Dbls", 'Check-In'!S41,'Check-In'!P41)) -> 0 | AQ36: =IF(AP36="x",INDEX(Qual!$C$8:$U$133,MATCH(AO36,Qual!$C$8:$C$133,0),IF(Tourn="Dbls",15,IF(Tourn="2-Day",10,IF(Tourn="MSC",12,8)))),"") ->  | AR36: =IF(AP36="x",INDEX(Qual!$C$8:$U$133,MATCH(AO36,Qual!$C$8:$C$133,0),IF(Tourn="Dbls",16,IF(Tourn="2-Day",11,IF(Tourn="MSC",14,9)))),"") ->  | AS36: =IF(AP36="x",INDEX(Qual!$C$8:$U$133,MATCH(AO36,Qual!$C$8:$C$133,0),IF(Tourn="Dbls",17,IF(Tourn="2-Day",12,IF(Tourn="MSC",16,10)))),"") -> 
B37: 35 | C37: =IF(Master!$B$1="Dbls",IF(B37<='Check-In'!$R$136,B37,IF(AND(E36=E37,C36='Check-In'!$R$136),B37,"")),IF(Master!$B$1="2-Day",IF(B37<='Check-In'!$T$136,B37,IF(AND(E36=E37,C36='Check-In'!$T$136),B37,"")),IF(B37<='Check-In'!$P$136,B37,IF(AND(E36=E37,C36='Check-In'!$P$136),B37,"")))) ->  | D37: DAVIS, BOB | E37: 148 | G37: =IF(Master!$B$1="Dbls",IF(B37<='Check-In'!$R$137,B37,IF(AND(I36=I37,G36='Check-In'!$R$137),B37,"")),IF(Master!$B$1="2-Day",IF(B37<='Check-In'!$T$137,B37,IF(AND(I36=I37,G36='Check-In'!$T$137),B37,"")),IF(B37<='Check-In'!$P$137,B37,IF(AND(I36=I37,G36='Check-In'!$P$137),B37,"")))) ->  | K37: =IF(Master!$B$1="Dbls",IF(B37<='Check-In'!$R$139,B37,IF(AND(I36=I37,G36='Check-In'!$R$139),B37,"")),IF(Master!$B$1="2-Day",IF(B37<='Check-In'!$T$139,B37,IF(AND(I36=I37,G36='Check-In'!$T$139),B37,"")),IF(B37<='Check-In'!$P$139,B37,IF(AND(I36=I37,G36='Check-In'!$P$139),B37,"")))) ->  | P37: 35 | Q37: =IF(Master!$B$1="Dbls",IF(P37<='Check-In'!$S$136,P37,IF(AND(S36=S37,Q36='Check-In'!$S$136),P37,"")),IF(Master!$B$1="2-Day",IF(P37<='Check-In'!$U$136,P37,IF(AND(S36=S37,Q36='Check-In'!$U$136),P37,"")),IF(P37<='Check-In'!$Q$136,P37,IF(AND(S36=S37,Q36='Check-In'!$Q$136),P37,"")))) ->  | R37: SODERGREN, SCOTT | S37: 146 | U37: =IF(Master!$B$1="Dbls",IF(B37<='Check-In'!$S$137,B37,IF(AND(I36=I37,G36='Check-In'!$S$137),B37,"")),IF(Master!$B$1="2-Day",IF(B37<='Check-In'!$U$137,B37,IF(AND(I36=I37,G36='Check-In'!$U$137),B37,"")),IF(B37<='Check-In'!$Q$137,B37,IF(AND(I36=I37,G36='Check-In'!$Q$137),B37,"")))) ->  | Y37: =IF(Master!$B$1="Dbls",IF(P37<='Check-In'!$R$139,P37,IF(AND(W36=W37,U36='Check-In'!$R$139),P37,"")),IF(Master!$B$1="2-Day",IF(P37<='Check-In'!$T$139,P37,IF(AND(W36=W37,U36='Check-In'!$T$139),P37,"")),IF(P37<='Check-In'!$P$139,P37,IF(AND(W36=W37,U36='Check-In'!$P$139),P37,"")))) ->  | AI37: =IF(AJ37=0,"",'Check-In'!$B42) -> SODERGREN, SCOTT | AJ37: =IF(Tourn="2-Day",'Check-In'!T42,IF(Tourn="Dbls", 'Check-In'!R42,'Check-In'!P42)) -> X | AK37: =IF(AJ37="x",INDEX(Qual!$C$8:$U$133,MATCH(AI37,Qual!$C$8:$C$133,0),IF(Tourn="Dbls",7,IF(Tourn="2-Day",6,IF(Tourn="MSC",6,5)))),"") -> 187 | AL37: =IF(AJ37="x",INDEX(Qual!$C$8:$U$133,MATCH(AI37,Qual!$C$8:$C$133,0),IF(Tourn="Dbls",8,IF(Tourn="2-Day",7,IF(Tourn="MSC",8,6)))),"") -> 219 | AM37: =IF(AJ37="x",INDEX(Qual!$C$8:$U$133,MATCH(AI37,Qual!$C$8:$C$133,0),IF(Tourn="Dbls",9,IF(Tourn="2-Day",8,IF(Tourn="MSC",10,7)))),"") -> 201 | AO37: =IF(AP37=0,"",'Check-In'!$B42) -> SODERGREN, SCOTT | AP37: =IF(Tourn="2-Day",'Check-In'!U42,IF(Tourn="Dbls", 'Check-In'!S42,'Check-In'!P42)) -> X | AQ37: =IF(AP37="x",INDEX(Qual!$C$8:$U$133,MATCH(AO37,Qual!$C$8:$C$133,0),IF(Tourn="Dbls",15,IF(Tourn="2-Day",10,IF(Tourn="MSC",12,8)))),"") -> 146 | AR37: =IF(AP37="x",INDEX(Qual!$C$8:$U$133,MATCH(AO37,Qual!$C$8:$C$133,0),IF(Tourn="Dbls",16,IF(Tourn="2-Day",11,IF(Tourn="MSC",14,9)))),"") -> 196 | AS37: =IF(AP37="x",INDEX(Qual!$C$8:$U$133,MATCH(AO37,Qual!$C$8:$C$133,0),IF(Tourn="Dbls",17,IF(Tourn="2-Day",12,IF(Tourn="MSC",16,10)))),"") -> 171
B38: 36 | C38: =IF(Master!$B$1="Dbls",IF(B38<='Check-In'!$R$136,B38,IF(AND(E37=E38,C37='Check-In'!$R$136),B38,"")),IF(Master!$B$1="2-Day",IF(B38<='Check-In'!$T$136,B38,IF(AND(E37=E38,C37='Check-In'!$T$136),B38,"")),IF(B38<='Check-In'!$P$136,B38,IF(AND(E37=E38,C37='Check-In'!$P$136),B38,"")))) ->  | G38: =IF(Master!$B$1="Dbls",IF(B38<='Check-In'!$R$137,B38,IF(AND(I37=I38,G37='Check-In'!$R$137),B38,"")),IF(Master!$B$1="2-Day",IF(B38<='Check-In'!$T$137,B38,IF(AND(I37=I38,G37='Check-In'!$T$137),B38,"")),IF(B38<='Check-In'!$P$137,B38,IF(AND(I37=I38,G37='Check-In'!$P$137),B38,"")))) ->  | K38: =IF(Master!$B$1="Dbls",IF(B38<='Check-In'!$R$139,B38,IF(AND(I37=I38,G37='Check-In'!$R$139),B38,"")),IF(Master!$B$1="2-Day",IF(B38<='Check-In'!$T$139,B38,IF(AND(I37=I38,G37='Check-In'!$T$139),B38,"")),IF(B38<='Check-In'!$P$139,B38,IF(AND(I37=I38,G37='Check-In'!$P$139),B38,"")))) ->  | P38: 36 | Q38: =IF(Master!$B$1="Dbls",IF(P38<='Check-In'!$S$136,P38,IF(AND(S37=S38,Q37='Check-In'!$S$136),P38,"")),IF(Master!$B$1="2-Day",IF(P38<='Check-In'!$U$136,P38,IF(AND(S37=S38,Q37='Check-In'!$U$136),P38,"")),IF(P38<='Check-In'!$Q$136,P38,IF(AND(S37=S38,Q37='Check-In'!$Q$136),P38,"")))) ->  | U38: =IF(Master!$B$1="Dbls",IF(B38<='Check-In'!$S$137,B38,IF(AND(I37=I38,G37='Check-In'!$S$137),B38,"")),IF(Master!$B$1="2-Day",IF(B38<='Check-In'!$U$137,B38,IF(AND(I37=I38,G37='Check-In'!$U$137),B38,"")),IF(B38<='Check-In'!$Q$137,B38,IF(AND(I37=I38,G37='Check-In'!$Q$137),B38,"")))) ->  | Y38: =IF(Master!$B$1="Dbls",IF(P38<='Check-In'!$R$139,P38,IF(AND(W37=W38,U37='Check-In'!$R$139),P38,"")),IF(Master!$B$1="2-Day",IF(P38<='Check-In'!$T$139,P38,IF(AND(W37=W38,U37='Check-In'!$T$139),P38,"")),IF(P38<='Check-In'!$P$139,P38,IF(AND(W37=W38,U37='Check-In'!$P$139),P38,"")))) ->  | AI38: =IF(AJ38=0,"",'Check-In'!$B43) ->  | AJ38: =IF(Tourn="2-Day",'Check-In'!T43,IF(Tourn="Dbls", 'Check-In'!R43,'Check-In'!P43)) -> 0 | AK38: =IF(AJ38="x",INDEX(Qual!$C$8:$U$133,MATCH(AI38,Qual!$C$8:$C$133,0),IF(Tourn="Dbls",7,IF(Tourn="2-Day",6,IF(Tourn="MSC",6,5)))),"") ->  | AL38: =IF(AJ38="x",INDEX(Qual!$C$8:$U$133,MATCH(AI38,Qual!$C$8:$C$133,0),IF(Tourn="Dbls",8,IF(Tourn="2-Day",7,IF(Tourn="MSC",8,6)))),"") ->  | AM38: =IF(AJ38="x",INDEX(Qual!$C$8:$U$133,MATCH(AI38,Qual!$C$8:$C$133,0),IF(Tourn="Dbls",9,IF(Tourn="2-Day",8,IF(Tourn="MSC",10,7)))),"") ->  | AO38: =IF(AP38=0,"",'Check-In'!$B43) ->  | AP38: =IF(Tourn="2-Day",'Check-In'!U43,IF(Tourn="Dbls", 'Check-In'!S43,'Check-In'!P43)) -> 0 | AQ38: =IF(AP38="x",INDEX(Qual!$C$8:$U$133,MATCH(AO38,Qual!$C$8:$C$133,0),IF(Tourn="Dbls",15,IF(Tourn="2-Day",10,IF(Tourn="MSC",12,8)))),"") ->  | AR38: =IF(AP38="x",INDEX(Qual!$C$8:$U$133,MATCH(AO38,Qual!$C$8:$C$133,0),IF(Tourn="Dbls",16,IF(Tourn="2-Day",11,IF(Tourn="MSC",14,9)))),"") ->  | AS38: =IF(AP38="x",INDEX(Qual!$C$8:$U$133,MATCH(AO38,Qual!$C$8:$C$133,0),IF(Tourn="Dbls",17,IF(Tourn="2-Day",12,IF(Tourn="MSC",16,10)))),"") -> 
B39: 37 | C39: =IF(Master!$B$1="Dbls",IF(B39<='Check-In'!$R$136,B39,IF(AND(E38=E39,C38='Check-In'!$R$136),B39,"")),IF(Master!$B$1="2-Day",IF(B39<='Check-In'!$T$136,B39,IF(AND(E38=E39,C38='Check-In'!$T$136),B39,"")),IF(B39<='Check-In'!$P$136,B39,IF(AND(E38=E39,C38='Check-In'!$P$136),B39,"")))) ->  | G39: =IF(Master!$B$1="Dbls",IF(B39<='Check-In'!$R$137,B39,IF(AND(I38=I39,G38='Check-In'!$R$137),B39,"")),IF(Master!$B$1="2-Day",IF(B39<='Check-In'!$T$137,B39,IF(AND(I38=I39,G38='Check-In'!$T$137),B39,"")),IF(B39<='Check-In'!$P$137,B39,IF(AND(I38=I39,G38='Check-In'!$P$137),B39,"")))) ->  | K39: =IF(Master!$B$1="Dbls",IF(B39<='Check-In'!$R$139,B39,IF(AND(I38=I39,G38='Check-In'!$R$139),B39,"")),IF(Master!$B$1="2-Day",IF(B39<='Check-In'!$T$139,B39,IF(AND(I38=I39,G38='Check-In'!$T$139),B39,"")),IF(B39<='Check-In'!$P$139,B39,IF(AND(I38=I39,G38='Check-In'!$P$139),B39,"")))) ->  | P39: 37 | Q39: =IF(Master!$B$1="Dbls",IF(P39<='Check-In'!$S$136,P39,IF(AND(S38=S39,Q38='Check-In'!$S$136),P39,"")),IF(Master!$B$1="2-Day",IF(P39<='Check-In'!$U$136,P39,IF(AND(S38=S39,Q38='Check-In'!$U$136),P39,"")),IF(P39<='Check-In'!$Q$136,P39,IF(AND(S38=S39,Q38='Check-In'!$Q$136),P39,"")))) ->  | U39: =IF(Master!$B$1="Dbls",IF(B39<='Check-In'!$S$137,B39,IF(AND(I38=I39,G38='Check-In'!$S$137),B39,"")),IF(Master!$B$1="2-Day",IF(B39<='Check-In'!$U$137,B39,IF(AND(I38=I39,G38='Check-In'!$U$137),B39,"")),IF(B39<='Check-In'!$Q$137,B39,IF(AND(I38=I39,G38='Check-In'!$Q$137),B39,"")))) ->  | Y39: =IF(Master!$B$1="Dbls",IF(P39<='Check-In'!$R$139,P39,IF(AND(W38=W39,U38='Check-In'!$R$139),P39,"")),IF(Master!$B$1="2-Day",IF(P39<='Check-In'!$T$139,P39,IF(AND(W38=W39,U38='Check-In'!$T$139),P39,"")),IF(P39<='Check-In'!$P$139,P39,IF(AND(W38=W39,U38='Check-In'!$P$139),P39,"")))) ->  | AI39: =IF(AJ39=0,"",'Check-In'!$B44) -> SCHMID, MIKE | AJ39: =IF(Tourn="2-Day",'Check-In'!T44,IF(Tourn="Dbls", 'Check-In'!R44,'Check-In'!P44)) -> X | AK39: =IF(AJ39="x",INDEX(Qual!$C$8:$U$133,MATCH(AI39,Qual!$C$8:$C$133,0),IF(Tourn="Dbls",7,IF(Tourn="2-Day",6,IF(Tourn="MSC",6,5)))),"") -> 193 | AL39: =IF(AJ39="x",INDEX(Qual!$C$8:$U$133,MATCH(AI39,Qual!$C$8:$C$133,0),IF(Tourn="Dbls",8,IF(Tourn="2-Day",7,IF(Tourn="MSC",8,6)))),"") -> 236 | AM39: =IF(AJ39="x",INDEX(Qual!$C$8:$U$133,MATCH(AI39,Qual!$C$8:$C$133,0),IF(Tourn="Dbls",9,IF(Tourn="2-Day",8,IF(Tourn="MSC",10,7)))),"") -> 190 | AO39: =IF(AP39=0,"",'Check-In'!$B44) -> SCHMID, MIKE | AP39: =IF(Tourn="2-Day",'Check-In'!U44,IF(Tourn="Dbls", 'Check-In'!S44,'Check-In'!P44)) -> X | AQ39: =IF(AP39="x",INDEX(Qual!$C$8:$U$133,MATCH(AO39,Qual!$C$8:$C$133,0),IF(Tourn="Dbls",15,IF(Tourn="2-Day",10,IF(Tourn="MSC",12,8)))),"") -> 213 | AR39: =IF(AP39="x",INDEX(Qual!$C$8:$U$133,MATCH(AO39,Qual!$C$8:$C$133,0),IF(Tourn="Dbls",16,IF(Tourn="2-Day",11,IF(Tourn="MSC",14,9)))),"") -> 185 | AS39: =IF(AP39="x",INDEX(Qual!$C$8:$U$133,MATCH(AO39,Qual!$C$8:$C$133,0),IF(Tourn="Dbls",17,IF(Tourn="2-Day",12,IF(Tourn="MSC",16,10)))),"") -> 200
B40: 38 | C40: =IF(Master!$B$1="Dbls",IF(B40<='Check-In'!$R$136,B40,IF(AND(E39=E40,C39='Check-In'!$R$136),B40,"")),IF(Master!$B$1="2-Day",IF(B40<='Check-In'!$T$136,B40,IF(AND(E39=E40,C39='Check-In'!$T$136),B40,"")),IF(B40<='Check-In'!$P$136,B40,IF(AND(E39=E40,C39='Check-In'!$P$136),B40,"")))) ->  | G40: =IF(Master!$B$1="Dbls",IF(B40<='Check-In'!$R$137,B40,IF(AND(I39=I40,G39='Check-In'!$R$137),B40,"")),IF(Master!$B$1="2-Day",IF(B40<='Check-In'!$T$137,B40,IF(AND(I39=I40,G39='Check-In'!$T$137),B40,"")),IF(B40<='Check-In'!$P$137,B40,IF(AND(I39=I40,G39='Check-In'!$P$137),B40,"")))) ->  | K40: =IF(Master!$B$1="Dbls",IF(B40<='Check-In'!$R$139,B40,IF(AND(I39=I40,G39='Check-In'!$R$139),B40,"")),IF(Master!$B$1="2-Day",IF(B40<='Check-In'!$T$139,B40,IF(AND(I39=I40,G39='Check-In'!$T$139),B40,"")),IF(B40<='Check-In'!$P$139,B40,IF(AND(I39=I40,G39='Check-In'!$P$139),B40,"")))) ->  | P40: 38 | Q40: =IF(Master!$B$1="Dbls",IF(P40<='Check-In'!$S$136,P40,IF(AND(S39=S40,Q39='Check-In'!$S$136),P40,"")),IF(Master!$B$1="2-Day",IF(P40<='Check-In'!$U$136,P40,IF(AND(S39=S40,Q39='Check-In'!$U$136),P40,"")),IF(P40<='Check-In'!$Q$136,P40,IF(AND(S39=S40,Q39='Check-In'!$Q$136),P40,"")))) ->  | U40: =IF(Master!$B$1="Dbls",IF(B40<='Check-In'!$S$137,B40,IF(AND(I39=I40,G39='Check-In'!$S$137),B40,"")),IF(Master!$B$1="2-Day",IF(B40<='Check-In'!$U$137,B40,IF(AND(I39=I40,G39='Check-In'!$U$137),B40,"")),IF(B40<='Check-In'!$Q$137,B40,IF(AND(I39=I40,G39='Check-In'!$Q$137),B40,"")))) ->  | Y40: =IF(Master!$B$1="Dbls",IF(P40<='Check-In'!$R$139,P40,IF(AND(W39=W40,U39='Check-In'!$R$139),P40,"")),IF(Master!$B$1="2-Day",IF(P40<='Check-In'!$T$139,P40,IF(AND(W39=W40,U39='Check-In'!$T$139),P40,"")),IF(P40<='Check-In'!$P$139,P40,IF(AND(W39=W40,U39='Check-In'!$P$139),P40,"")))) ->  | AI40: =IF(AJ40=0,"",'Check-In'!$B45) ->  | AJ40: =IF(Tourn="2-Day",'Check-In'!T45,IF(Tourn="Dbls", 'Check-In'!R45,'Check-In'!P45)) -> 0 | AK40: =IF(AJ40="x",INDEX(Qual!$C$8:$U$133,MATCH(AI40,Qual!$C$8:$C$133,0),IF(Tourn="Dbls",7,IF(Tourn="2-Day",6,IF(Tourn="MSC",6,5)))),"") ->  | AL40: =IF(AJ40="x",INDEX(Qual!$C$8:$U$133,MATCH(AI40,Qual!$C$8:$C$133,0),IF(Tourn="Dbls",8,IF(Tourn="2-Day",7,IF(Tourn="MSC",8,6)))),"") ->  | AM40: =IF(AJ40="x",INDEX(Qual!$C$8:$U$133,MATCH(AI40,Qual!$C$8:$C$133,0),IF(Tourn="Dbls",9,IF(Tourn="2-Day",8,IF(Tourn="MSC",10,7)))),"") ->  | AO40: =IF(AP40=0,"",'Check-In'!$B45) ->  | AP40: =IF(Tourn="2-Day",'Check-In'!U45,IF(Tourn="Dbls", 'Check-In'!S45,'Check-In'!P45)) -> 0 | AQ40: =IF(AP40="x",INDEX(Qual!$C$8:$U$133,MATCH(AO40,Qual!$C$8:$C$133,0),IF(Tourn="Dbls",15,IF(Tourn="2-Day",10,IF(Tourn="MSC",12,8)))),"") ->  | AR40: =IF(AP40="x",INDEX(Qual!$C$8:$U$133,MATCH(AO40,Qual!$C$8:$C$133,0),IF(Tourn="Dbls",16,IF(Tourn="2-Day",11,IF(Tourn="MSC",14,9)))),"") ->  | AS40: =IF(AP40="x",INDEX(Qual!$C$8:$U$133,MATCH(AO40,Qual!$C$8:$C$133,0),IF(Tourn="Dbls",17,IF(Tourn="2-Day",12,IF(Tourn="MSC",16,10)))),"") -> 
B41: 39 | C41: =IF(Master!$B$1="Dbls",IF(B41<='Check-In'!$R$136,B41,IF(AND(E40=E41,C40='Check-In'!$R$136),B41,"")),IF(Master!$B$1="2-Day",IF(B41<='Check-In'!$T$136,B41,IF(AND(E40=E41,C40='Check-In'!$T$136),B41,"")),IF(B41<='Check-In'!$P$136,B41,IF(AND(E40=E41,C40='Check-In'!$P$136),B41,"")))) ->  | G41: =IF(Master!$B$1="Dbls",IF(B41<='Check-In'!$R$137,B41,IF(AND(I40=I41,G40='Check-In'!$R$137),B41,"")),IF(Master!$B$1="2-Day",IF(B41<='Check-In'!$T$137,B41,IF(AND(I40=I41,G40='Check-In'!$T$137),B41,"")),IF(B41<='Check-In'!$P$137,B41,IF(AND(I40=I41,G40='Check-In'!$P$137),B41,"")))) ->  | K41: =IF(Master!$B$1="Dbls",IF(B41<='Check-In'!$R$139,B41,IF(AND(I40=I41,G40='Check-In'!$R$139),B41,"")),IF(Master!$B$1="2-Day",IF(B41<='Check-In'!$T$139,B41,IF(AND(I40=I41,G40='Check-In'!$T$139),B41,"")),IF(B41<='Check-In'!$P$139,B41,IF(AND(I40=I41,G40='Check-In'!$P$139),B41,"")))) ->  | P41: 39 | Q41: =IF(Master!$B$1="Dbls",IF(P41<='Check-In'!$S$136,P41,IF(AND(S40=S41,Q40='Check-In'!$S$136),P41,"")),IF(Master!$B$1="2-Day",IF(P41<='Check-In'!$U$136,P41,IF(AND(S40=S41,Q40='Check-In'!$U$136),P41,"")),IF(P41<='Check-In'!$Q$136,P41,IF(AND(S40=S41,Q40='Check-In'!$Q$136),P41,"")))) ->  | U41: =IF(Master!$B$1="Dbls",IF(B41<='Check-In'!$S$137,B41,IF(AND(I40=I41,G40='Check-In'!$S$137),B41,"")),IF(Master!$B$1="2-Day",IF(B41<='Check-In'!$U$137,B41,IF(AND(I40=I41,G40='Check-In'!$U$137),B41,"")),IF(B41<='Check-In'!$Q$137,B41,IF(AND(I40=I41,G40='Check-In'!$Q$137),B41,"")))) ->  | Y41: =IF(Master!$B$1="Dbls",IF(P41<='Check-In'!$R$139,P41,IF(AND(W40=W41,U40='Check-In'!$R$139),P41,"")),IF(Master!$B$1="2-Day",IF(P41<='Check-In'!$T$139,P41,IF(AND(W40=W41,U40='Check-In'!$T$139),P41,"")),IF(P41<='Check-In'!$P$139,P41,IF(AND(W40=W41,U40='Check-In'!$P$139),P41,"")))) ->  | AI41: =IF(AJ41=0,"",'Check-In'!$B46) -> PETERSON, ED | AJ41: =IF(Tourn="2-Day",'Check-In'!T46,IF(Tourn="Dbls", 'Check-In'!R46,'Check-In'!P46)) -> X | AK41: =IF(AJ41="x",INDEX(Qual!$C$8:$U$133,MATCH(AI41,Qual!$C$8:$C$133,0),IF(Tourn="Dbls",7,IF(Tourn="2-Day",6,IF(Tourn="MSC",6,5)))),"") -> 203 | AL41: =IF(AJ41="x",INDEX(Qual!$C$8:$U$133,MATCH(AI41,Qual!$C$8:$C$133,0),IF(Tourn="Dbls",8,IF(Tourn="2-Day",7,IF(Tourn="MSC",8,6)))),"") -> 215 | AM41: =IF(AJ41="x",INDEX(Qual!$C$8:$U$133,MATCH(AI41,Qual!$C$8:$C$133,0),IF(Tourn="Dbls",9,IF(Tourn="2-Day",8,IF(Tourn="MSC",10,7)))),"") -> 203 | AO41: =IF(AP41=0,"",'Check-In'!$B46) -> PETERSON, ED | AP41: =IF(Tourn="2-Day",'Check-In'!U46,IF(Tourn="Dbls", 'Check-In'!S46,'Check-In'!P46)) -> X | AQ41: =IF(AP41="x",INDEX(Qual!$C$8:$U$133,MATCH(AO41,Qual!$C$8:$C$133,0),IF(Tourn="Dbls",15,IF(Tourn="2-Day",10,IF(Tourn="MSC",12,8)))),"") -> 159 | AR41: =IF(AP41="x",INDEX(Qual!$C$8:$U$133,MATCH(AO41,Qual!$C$8:$C$133,0),IF(Tourn="Dbls",16,IF(Tourn="2-Day",11,IF(Tourn="MSC",14,9)))),"") -> 170 | AS41: =IF(AP41="x",INDEX(Qual!$C$8:$U$133,MATCH(AO41,Qual!$C$8:$C$133,0),IF(Tourn="Dbls",17,IF(Tourn="2-Day",12,IF(Tourn="MSC",16,10)))),"") -> 249
B42: 40 | C42: =IF(Master!$B$1="Dbls",IF(B42<='Check-In'!$R$136,B42,IF(AND(E41=E42,C41='Check-In'!$R$136),B42,"")),IF(Master!$B$1="2-Day",IF(B42<='Check-In'!$T$136,B42,IF(AND(E41=E42,C41='Check-In'!$T$136),B42,"")),IF(B42<='Check-In'!$P$136,B42,IF(AND(E41=E42,C41='Check-In'!$P$136),B42,"")))) ->  | G42: =IF(Master!$B$1="Dbls",IF(B42<='Check-In'!$R$137,B42,IF(AND(I41=I42,G41='Check-In'!$R$137),B42,"")),IF(Master!$B$1="2-Day",IF(B42<='Check-In'!$T$137,B42,IF(AND(I41=I42,G41='Check-In'!$T$137),B42,"")),IF(B42<='Check-In'!$P$137,B42,IF(AND(I41=I42,G41='Check-In'!$P$137),B42,"")))) ->  | K42: =IF(Master!$B$1="Dbls",IF(B42<='Check-In'!$R$139,B42,IF(AND(I41=I42,G41='Check-In'!$R$139),B42,"")),IF(Master!$B$1="2-Day",IF(B42<='Check-In'!$T$139,B42,IF(AND(I41=I42,G41='Check-In'!$T$139),B42,"")),IF(B42<='Check-In'!$P$139,B42,IF(AND(I41=I42,G41='Check-In'!$P$139),B42,"")))) ->  | P42: 40 | Q42: =IF(Master!$B$1="Dbls",IF(P42<='Check-In'!$S$136,P42,IF(AND(S41=S42,Q41='Check-In'!$S$136),P42,"")),IF(Master!$B$1="2-Day",IF(P42<='Check-In'!$U$136,P42,IF(AND(S41=S42,Q41='Check-In'!$U$136),P42,"")),IF(P42<='Check-In'!$Q$136,P42,IF(AND(S41=S42,Q41='Check-In'!$Q$136),P42,"")))) ->  | U42: =IF(Master!$B$1="Dbls",IF(B42<='Check-In'!$S$137,B42,IF(AND(I41=I42,G41='Check-In'!$S$137),B42,"")),IF(Master!$B$1="2-Day",IF(B42<='Check-In'!$U$137,B42,IF(AND(I41=I42,G41='Check-In'!$U$137),B42,"")),IF(B42<='Check-In'!$Q$137,B42,IF(AND(I41=I42,G41='Check-In'!$Q$137),B42,"")))) ->  | Y42: =IF(Master!$B$1="Dbls",IF(P42<='Check-In'!$R$139,P42,IF(AND(W41=W42,U41='Check-In'!$R$139),P42,"")),IF(Master!$B$1="2-Day",IF(P42<='Check-In'!$T$139,P42,IF(AND(W41=W42,U41='Check-In'!$T$139),P42,"")),IF(P42<='Check-In'!$P$139,P42,IF(AND(W41=W42,U41='Check-In'!$P$139),P42,"")))) ->  | AI42: =IF(AJ42=0,"",'Check-In'!$B47) -> BRUINSMA, DEAN | AJ42: =IF(Tourn="2-Day",'Check-In'!T47,IF(Tourn="Dbls", 'Check-In'!R47,'Check-In'!P47)) -> X | AK42: =IF(AJ42="x",INDEX(Qual!$C$8:$U$133,MATCH(AI42,Qual!$C$8:$C$133,0),IF(Tourn="Dbls",7,IF(Tourn="2-Day",6,IF(Tourn="MSC",6,5)))),"") -> 223 | AL42: =IF(AJ42="x",INDEX(Qual!$C$8:$U$133,MATCH(AI42,Qual!$C$8:$C$133,0),IF(Tourn="Dbls",8,IF(Tourn="2-Day",7,IF(Tourn="MSC",8,6)))),"") -> 189 | AM42: =IF(AJ42="x",INDEX(Qual!$C$8:$U$133,MATCH(AI42,Qual!$C$8:$C$133,0),IF(Tourn="Dbls",9,IF(Tourn="2-Day",8,IF(Tourn="MSC",10,7)))),"") -> 154 | AO42: =IF(AP42=0,"",'Check-In'!$B47) -> BRUINSMA, DEAN | AP42: =IF(Tourn="2-Day",'Check-In'!U47,IF(Tourn="Dbls", 'Check-In'!S47,'Check-In'!P47)) -> X | AQ42: =IF(AP42="x",INDEX(Qual!$C$8:$U$133,MATCH(AO42,Qual!$C$8:$C$133,0),IF(Tourn="Dbls",15,IF(Tourn="2-Day",10,IF(Tourn="MSC",12,8)))),"") -> 213 | AR42: =IF(AP42="x",INDEX(Qual!$C$8:$U$133,MATCH(AO42,Qual!$C$8:$C$133,0),IF(Tourn="Dbls",16,IF(Tourn="2-Day",11,IF(Tourn="MSC",14,9)))),"") -> 189 | AS42: =IF(AP42="x",INDEX(Qual!$C$8:$U$133,MATCH(AO42,Qual!$C$8:$C$133,0),IF(Tourn="Dbls",17,IF(Tourn="2-Day",12,IF(Tourn="MSC",16,10)))),"") -> 204
B43: 41 | C43: =IF(Master!$B$1="Dbls",IF(B43<='Check-In'!$R$136,B43,IF(AND(E42=E43,C42='Check-In'!$R$136),B43,"")),IF(Master!$B$1="2-Day",IF(B43<='Check-In'!$T$136,B43,IF(AND(E42=E43,C42='Check-In'!$T$136),B43,"")),IF(B43<='Check-In'!$P$136,B43,IF(AND(E42=E43,C42='Check-In'!$P$136),B43,"")))) ->  | G43: =IF(Master!$B$1="Dbls",IF(B43<='Check-In'!$R$137,B43,IF(AND(I42=I43,G42='Check-In'!$R$137),B43,"")),IF(Master!$B$1="2-Day",IF(B43<='Check-In'!$T$137,B43,IF(AND(I42=I43,G42='Check-In'!$T$137),B43,"")),IF(B43<='Check-In'!$P$137,B43,IF(AND(I42=I43,G42='Check-In'!$P$137),B43,"")))) ->  | K43: =IF(Master!$B$1="Dbls",IF(B43<='Check-In'!$R$139,B43,IF(AND(I42=I43,G42='Check-In'!$R$139),B43,"")),IF(Master!$B$1="2-Day",IF(B43<='Check-In'!$T$139,B43,IF(AND(I42=I43,G42='Check-In'!$T$139),B43,"")),IF(B43<='Check-In'!$P$139,B43,IF(AND(I42=I43,G42='Check-In'!$P$139),B43,"")))) ->  | P43: 41 | Q43: =IF(Master!$B$1="Dbls",IF(P43<='Check-In'!$S$136,P43,IF(AND(S42=S43,Q42='Check-In'!$S$136),P43,"")),IF(Master!$B$1="2-Day",IF(P43<='Check-In'!$U$136,P43,IF(AND(S42=S43,Q42='Check-In'!$U$136),P43,"")),IF(P43<='Check-In'!$Q$136,P43,IF(AND(S42=S43,Q42='Check-In'!$Q$136),P43,"")))) ->  | U43: =IF(Master!$B$1="Dbls",IF(B43<='Check-In'!$S$137,B43,IF(AND(I42=I43,G42='Check-In'!$S$137),B43,"")),IF(Master!$B$1="2-Day",IF(B43<='Check-In'!$U$137,B43,IF(AND(I42=I43,G42='Check-In'!$U$137),B43,"")),IF(B43<='Check-In'!$Q$137,B43,IF(AND(I42=I43,G42='Check-In'!$Q$137),B43,"")))) ->  | Y43: =IF(Master!$B$1="Dbls",IF(P43<='Check-In'!$R$139,P43,IF(AND(W42=W43,U42='Check-In'!$R$139),P43,"")),IF(Master!$B$1="2-Day",IF(P43<='Check-In'!$T$139,P43,IF(AND(W42=W43,U42='Check-In'!$T$139),P43,"")),IF(P43<='Check-In'!$P$139,P43,IF(AND(W42=W43,U42='Check-In'!$P$139),P43,"")))) ->  | AI43: =IF(AJ43=0,"",'Check-In'!$B48) ->  | AJ43: =IF(Tourn="2-Day",'Check-In'!T48,IF(Tourn="Dbls", 'Check-In'!R48,'Check-In'!P48)) -> 0 | AK43: =IF(AJ43="x",INDEX(Qual!$C$8:$U$133,MATCH(AI43,Qual!$C$8:$C$133,0),IF(Tourn="Dbls",7,IF(Tourn="2-Day",6,IF(Tourn="MSC",6,5)))),"") ->  | AL43: =IF(AJ43="x",INDEX(Qual!$C$8:$U$133,MATCH(AI43,Qual!$C$8:$C$133,0),IF(Tourn="Dbls",8,IF(Tourn="2-Day",7,IF(Tourn="MSC",8,6)))),"") ->  | AM43: =IF(AJ43="x",INDEX(Qual!$C$8:$U$133,MATCH(AI43,Qual!$C$8:$C$133,0),IF(Tourn="Dbls",9,IF(Tourn="2-Day",8,IF(Tourn="MSC",10,7)))),"") ->  | AO43: =IF(AP43=0,"",'Check-In'!$B48) ->  | AP43: =IF(Tourn="2-Day",'Check-In'!U48,IF(Tourn="Dbls", 'Check-In'!S48,'Check-In'!P48)) -> 0 | AQ43: =IF(AP43="x",INDEX(Qual!$C$8:$U$133,MATCH(AO43,Qual!$C$8:$C$133,0),IF(Tourn="Dbls",15,IF(Tourn="2-Day",10,IF(Tourn="MSC",12,8)))),"") ->  | AR43: =IF(AP43="x",INDEX(Qual!$C$8:$U$133,MATCH(AO43,Qual!$C$8:$C$133,0),IF(Tourn="Dbls",16,IF(Tourn="2-Day",11,IF(Tourn="MSC",14,9)))),"") ->  | AS43: =IF(AP43="x",INDEX(Qual!$C$8:$U$133,MATCH(AO43,Qual!$C$8:$C$133,0),IF(Tourn="Dbls",17,IF(Tourn="2-Day",12,IF(Tourn="MSC",16,10)))),"") -> 
B44: 42 | C44: =IF(Master!$B$1="Dbls",IF(B44<='Check-In'!$R$136,B44,IF(AND(E43=E44,C43='Check-In'!$R$136),B44,"")),IF(Master!$B$1="2-Day",IF(B44<='Check-In'!$T$136,B44,IF(AND(E43=E44,C43='Check-In'!$T$136),B44,"")),IF(B44<='Check-In'!$P$136,B44,IF(AND(E43=E44,C43='Check-In'!$P$136),B44,"")))) ->  | G44: =IF(Master!$B$1="Dbls",IF(B44<='Check-In'!$R$137,B44,IF(AND(I43=I44,G43='Check-In'!$R$137),B44,"")),IF(Master!$B$1="2-Day",IF(B44<='Check-In'!$T$137,B44,IF(AND(I43=I44,G43='Check-In'!$T$137),B44,"")),IF(B44<='Check-In'!$P$137,B44,IF(AND(I43=I44,G43='Check-In'!$P$137),B44,"")))) ->  | K44: =IF(Master!$B$1="Dbls",IF(B44<='Check-In'!$R$139,B44,IF(AND(I43=I44,G43='Check-In'!$R$139),B44,"")),IF(Master!$B$1="2-Day",IF(B44<='Check-In'!$T$139,B44,IF(AND(I43=I44,G43='Check-In'!$T$139),B44,"")),IF(B44<='Check-In'!$P$139,B44,IF(AND(I43=I44,G43='Check-In'!$P$139),B44,"")))) ->  | P44: 42 | Q44: =IF(Master!$B$1="Dbls",IF(P44<='Check-In'!$S$136,P44,IF(AND(S43=S44,Q43='Check-In'!$S$136),P44,"")),IF(Master!$B$1="2-Day",IF(P44<='Check-In'!$U$136,P44,IF(AND(S43=S44,Q43='Check-In'!$U$136),P44,"")),IF(P44<='Check-In'!$Q$136,P44,IF(AND(S43=S44,Q43='Check-In'!$Q$136),P44,"")))) ->  | U44: =IF(Master!$B$1="Dbls",IF(B44<='Check-In'!$S$137,B44,IF(AND(I43=I44,G43='Check-In'!$S$137),B44,"")),IF(Master!$B$1="2-Day",IF(B44<='Check-In'!$U$137,B44,IF(AND(I43=I44,G43='Check-In'!$U$137),B44,"")),IF(B44<='Check-In'!$Q$137,B44,IF(AND(I43=I44,G43='Check-In'!$Q$137),B44,"")))) ->  | Y44: =IF(Master!$B$1="Dbls",IF(P44<='Check-In'!$R$139,P44,IF(AND(W43=W44,U43='Check-In'!$R$139),P44,"")),IF(Master!$B$1="2-Day",IF(P44<='Check-In'!$T$139,P44,IF(AND(W43=W44,U43='Check-In'!$T$139),P44,"")),IF(P44<='Check-In'!$P$139,P44,IF(AND(W43=W44,U43='Check-In'!$P$139),P44,"")))) ->  | AI44: =IF(AJ44=0,"",'Check-In'!$B49) -> WIRZ, MIKE | AJ44: =IF(Tourn="2-Day",'Check-In'!T49,IF(Tourn="Dbls", 'Check-In'!R49,'Check-In'!P49)) -> X | AK44: =IF(AJ44="x",INDEX(Qual!$C$8:$U$133,MATCH(AI44,Qual!$C$8:$C$133,0),IF(Tourn="Dbls",7,IF(Tourn="2-Day",6,IF(Tourn="MSC",6,5)))),"") -> 226 | AL44: =IF(AJ44="x",INDEX(Qual!$C$8:$U$133,MATCH(AI44,Qual!$C$8:$C$133,0),IF(Tourn="Dbls",8,IF(Tourn="2-Day",7,IF(Tourn="MSC",8,6)))),"") -> 215 | AM44: =IF(AJ44="x",INDEX(Qual!$C$8:$U$133,MATCH(AI44,Qual!$C$8:$C$133,0),IF(Tourn="Dbls",9,IF(Tourn="2-Day",8,IF(Tourn="MSC",10,7)))),"") -> 216 | AO44: =IF(AP44=0,"",'Check-In'!$B49) -> WIRZ, MIKE | AP44: =IF(Tourn="2-Day",'Check-In'!U49,IF(Tourn="Dbls", 'Check-In'!S49,'Check-In'!P49)) -> X | AQ44: =IF(AP44="x",INDEX(Qual!$C$8:$U$133,MATCH(AO44,Qual!$C$8:$C$133,0),IF(Tourn="Dbls",15,IF(Tourn="2-Day",10,IF(Tourn="MSC",12,8)))),"") -> 216 | AR44: =IF(AP44="x",INDEX(Qual!$C$8:$U$133,MATCH(AO44,Qual!$C$8:$C$133,0),IF(Tourn="Dbls",16,IF(Tourn="2-Day",11,IF(Tourn="MSC",14,9)))),"") -> 190 | AS44: =IF(AP44="x",INDEX(Qual!$C$8:$U$133,MATCH(AO44,Qual!$C$8:$C$133,0),IF(Tourn="Dbls",17,IF(Tourn="2-Day",12,IF(Tourn="MSC",16,10)))),"") -> 174
B45: 43 | C45: =IF(Master!$B$1="Dbls",IF(B45<='Check-In'!$R$136,B45,IF(AND(E44=E45,C44='Check-In'!$R$136),B45,"")),IF(Master!$B$1="2-Day",IF(B45<='Check-In'!$T$136,B45,IF(AND(E44=E45,C44='Check-In'!$T$136),B45,"")),IF(B45<='Check-In'!$P$136,B45,IF(AND(E44=E45,C44='Check-In'!$P$136),B45,"")))) ->  | G45: =IF(Master!$B$1="Dbls",IF(B45<='Check-In'!$R$137,B45,IF(AND(I44=I45,G44='Check-In'!$R$137),B45,"")),IF(Master!$B$1="2-Day",IF(B45<='Check-In'!$T$137,B45,IF(AND(I44=I45,G44='Check-In'!$T$137),B45,"")),IF(B45<='Check-In'!$P$137,B45,IF(AND(I44=I45,G44='Check-In'!$P$137),B45,"")))) ->  | K45: =IF(Master!$B$1="Dbls",IF(B45<='Check-In'!$R$139,B45,IF(AND(I44=I45,G44='Check-In'!$R$139),B45,"")),IF(Master!$B$1="2-Day",IF(B45<='Check-In'!$T$139,B45,IF(AND(I44=I45,G44='Check-In'!$T$139),B45,"")),IF(B45<='Check-In'!$P$139,B45,IF(AND(I44=I45,G44='Check-In'!$P$139),B45,"")))) ->  | P45: 43 | Q45: =IF(Master!$B$1="Dbls",IF(P45<='Check-In'!$S$136,P45,IF(AND(S44=S45,Q44='Check-In'!$S$136),P45,"")),IF(Master!$B$1="2-Day",IF(P45<='Check-In'!$U$136,P45,IF(AND(S44=S45,Q44='Check-In'!$U$136),P45,"")),IF(P45<='Check-In'!$Q$136,P45,IF(AND(S44=S45,Q44='Check-In'!$Q$136),P45,"")))) ->  | U45: =IF(Master!$B$1="Dbls",IF(B45<='Check-In'!$S$137,B45,IF(AND(I44=I45,G44='Check-In'!$S$137),B45,"")),IF(Master!$B$1="2-Day",IF(B45<='Check-In'!$U$137,B45,IF(AND(I44=I45,G44='Check-In'!$U$137),B45,"")),IF(B45<='Check-In'!$Q$137,B45,IF(AND(I44=I45,G44='Check-In'!$Q$137),B45,"")))) ->  | Y45: =IF(Master!$B$1="Dbls",IF(P45<='Check-In'!$R$139,P45,IF(AND(W44=W45,U44='Check-In'!$R$139),P45,"")),IF(Master!$B$1="2-Day",IF(P45<='Check-In'!$T$139,P45,IF(AND(W44=W45,U44='Check-In'!$T$139),P45,"")),IF(P45<='Check-In'!$P$139,P45,IF(AND(W44=W45,U44='Check-In'!$P$139),P45,"")))) ->  | AI45: =IF(AJ45=0,"",'Check-In'!$B50) -> MANSKE, WARREN | AJ45: =IF(Tourn="2-Day",'Check-In'!T50,IF(Tourn="Dbls", 'Check-In'!R50,'Check-In'!P50)) -> X | AK45: =IF(AJ45="x",INDEX(Qual!$C$8:$U$133,MATCH(AI45,Qual!$C$8:$C$133,0),IF(Tourn="Dbls",7,IF(Tourn="2-Day",6,IF(Tourn="MSC",6,5)))),"") -> 180 | AL45: =IF(AJ45="x",INDEX(Qual!$C$8:$U$133,MATCH(AI45,Qual!$C$8:$C$133,0),IF(Tourn="Dbls",8,IF(Tourn="2-Day",7,IF(Tourn="MSC",8,6)))),"") -> 172 | AM45: =IF(AJ45="x",INDEX(Qual!$C$8:$U$133,MATCH(AI45,Qual!$C$8:$C$133,0),IF(Tourn="Dbls",9,IF(Tourn="2-Day",8,IF(Tourn="MSC",10,7)))),"") -> 177 | AO45: =IF(AP45=0,"",'Check-In'!$B50) -> MANSKE, WARREN | AP45: =IF(Tourn="2-Day",'Check-In'!U50,IF(Tourn="Dbls", 'Check-In'!S50,'Check-In'!P50)) -> X | AQ45: =IF(AP45="x",INDEX(Qual!$C$8:$U$133,MATCH(AO45,Qual!$C$8:$C$133,0),IF(Tourn="Dbls",15,IF(Tourn="2-Day",10,IF(Tourn="MSC",12,8)))),"") -> 170 | AR45: =IF(AP45="x",INDEX(Qual!$C$8:$U$133,MATCH(AO45,Qual!$C$8:$C$133,0),IF(Tourn="Dbls",16,IF(Tourn="2-Day",11,IF(Tourn="MSC",14,9)))),"") -> 192 | AS45: =IF(AP45="x",INDEX(Qual!$C$8:$U$133,MATCH(AO45,Qual!$C$8:$C$133,0),IF(Tourn="Dbls",17,IF(Tourn="2-Day",12,IF(Tourn="MSC",16,10)))),"") -> 187
B46: 44 | C46: =IF(Master!$B$1="Dbls",IF(B46<='Check-In'!$R$136,B46,IF(AND(E45=E46,C45='Check-In'!$R$136),B46,"")),IF(Master!$B$1="2-Day",IF(B46<='Check-In'!$T$136,B46,IF(AND(E45=E46,C45='Check-In'!$T$136),B46,"")),IF(B46<='Check-In'!$P$136,B46,IF(AND(E45=E46,C45='Check-In'!$P$136),B46,"")))) ->  | G46: =IF(Master!$B$1="Dbls",IF(B46<='Check-In'!$R$137,B46,IF(AND(I45=I46,G45='Check-In'!$R$137),B46,"")),IF(Master!$B$1="2-Day",IF(B46<='Check-In'!$T$137,B46,IF(AND(I45=I46,G45='Check-In'!$T$137),B46,"")),IF(B46<='Check-In'!$P$137,B46,IF(AND(I45=I46,G45='Check-In'!$P$137),B46,"")))) ->  | K46: =IF(Master!$B$1="Dbls",IF(B46<='Check-In'!$R$139,B46,IF(AND(I45=I46,G45='Check-In'!$R$139),B46,"")),IF(Master!$B$1="2-Day",IF(B46<='Check-In'!$T$139,B46,IF(AND(I45=I46,G45='Check-In'!$T$139),B46,"")),IF(B46<='Check-In'!$P$139,B46,IF(AND(I45=I46,G45='Check-In'!$P$139),B46,"")))) ->  | P46: 44 | Q46: =IF(Master!$B$1="Dbls",IF(P46<='Check-In'!$S$136,P46,IF(AND(S45=S46,Q45='Check-In'!$S$136),P46,"")),IF(Master!$B$1="2-Day",IF(P46<='Check-In'!$U$136,P46,IF(AND(S45=S46,Q45='Check-In'!$U$136),P46,"")),IF(P46<='Check-In'!$Q$136,P46,IF(AND(S45=S46,Q45='Check-In'!$Q$136),P46,"")))) ->  | U46: =IF(Master!$B$1="Dbls",IF(B46<='Check-In'!$S$137,B46,IF(AND(I45=I46,G45='Check-In'!$S$137),B46,"")),IF(Master!$B$1="2-Day",IF(B46<='Check-In'!$U$137,B46,IF(AND(I45=I46,G45='Check-In'!$U$137),B46,"")),IF(B46<='Check-In'!$Q$137,B46,IF(AND(I45=I46,G45='Check-In'!$Q$137),B46,"")))) ->  | Y46: =IF(Master!$B$1="Dbls",IF(P46<='Check-In'!$R$139,P46,IF(AND(W45=W46,U45='Check-In'!$R$139),P46,"")),IF(Master!$B$1="2-Day",IF(P46<='Check-In'!$T$139,P46,IF(AND(W45=W46,U45='Check-In'!$T$139),P46,"")),IF(P46<='Check-In'!$P$139,P46,IF(AND(W45=W46,U45='Check-In'!$P$139),P46,"")))) ->  | AI46: =IF(AJ46=0,"",'Check-In'!$B51) ->  | AJ46: =IF(Tourn="2-Day",'Check-In'!T51,IF(Tourn="Dbls", 'Check-In'!R51,'Check-In'!P51)) -> 0 | AK46: =IF(AJ46="x",INDEX(Qual!$C$8:$U$133,MATCH(AI46,Qual!$C$8:$C$133,0),IF(Tourn="Dbls",7,IF(Tourn="2-Day",6,IF(Tourn="MSC",6,5)))),"") ->  | AL46: =IF(AJ46="x",INDEX(Qual!$C$8:$U$133,MATCH(AI46,Qual!$C$8:$C$133,0),IF(Tourn="Dbls",8,IF(Tourn="2-Day",7,IF(Tourn="MSC",8,6)))),"") ->  | AM46: =IF(AJ46="x",INDEX(Qual!$C$8:$U$133,MATCH(AI46,Qual!$C$8:$C$133,0),IF(Tourn="Dbls",9,IF(Tourn="2-Day",8,IF(Tourn="MSC",10,7)))),"") ->  | AO46: =IF(AP46=0,"",'Check-In'!$B51) ->  | AP46: =IF(Tourn="2-Day",'Check-In'!U51,IF(Tourn="Dbls", 'Check-In'!S51,'Check-In'!P51)) -> 0 | AQ46: =IF(AP46="x",INDEX(Qual!$C$8:$U$133,MATCH(AO46,Qual!$C$8:$C$133,0),IF(Tourn="Dbls",15,IF(Tourn="2-Day",10,IF(Tourn="MSC",12,8)))),"") ->  | AR46: =IF(AP46="x",INDEX(Qual!$C$8:$U$133,MATCH(AO46,Qual!$C$8:$C$133,0),IF(Tourn="Dbls",16,IF(Tourn="2-Day",11,IF(Tourn="MSC",14,9)))),"") ->  | AS46: =IF(AP46="x",INDEX(Qual!$C$8:$U$133,MATCH(AO46,Qual!$C$8:$C$133,0),IF(Tourn="Dbls",17,IF(Tourn="2-Day",12,IF(Tourn="MSC",16,10)))),"") -> 
B47: 45 | C47: =IF(Master!$B$1="Dbls",IF(B47<='Check-In'!$R$136,B47,IF(AND(E46=E47,C46='Check-In'!$R$136),B47,"")),IF(Master!$B$1="2-Day",IF(B47<='Check-In'!$T$136,B47,IF(AND(E46=E47,C46='Check-In'!$T$136),B47,"")),IF(B47<='Check-In'!$P$136,B47,IF(AND(E46=E47,C46='Check-In'!$P$136),B47,"")))) ->  | G47: =IF(Master!$B$1="Dbls",IF(B47<='Check-In'!$R$137,B47,IF(AND(I46=I47,G46='Check-In'!$R$137),B47,"")),IF(Master!$B$1="2-Day",IF(B47<='Check-In'!$T$137,B47,IF(AND(I46=I47,G46='Check-In'!$T$137),B47,"")),IF(B47<='Check-In'!$P$137,B47,IF(AND(I46=I47,G46='Check-In'!$P$137),B47,"")))) ->  | K47: =IF(Master!$B$1="Dbls",IF(B47<='Check-In'!$R$139,B47,IF(AND(I46=I47,G46='Check-In'!$R$139),B47,"")),IF(Master!$B$1="2-Day",IF(B47<='Check-In'!$T$139,B47,IF(AND(I46=I47,G46='Check-In'!$T$139),B47,"")),IF(B47<='Check-In'!$P$139,B47,IF(AND(I46=I47,G46='Check-In'!$P$139),B47,"")))) ->  | P47: 45 | Q47: =IF(Master!$B$1="Dbls",IF(P47<='Check-In'!$S$136,P47,IF(AND(S46=S47,Q46='Check-In'!$S$136),P47,"")),IF(Master!$B$1="2-Day",IF(P47<='Check-In'!$U$136,P47,IF(AND(S46=S47,Q46='Check-In'!$U$136),P47,"")),IF(P47<='Check-In'!$Q$136,P47,IF(AND(S46=S47,Q46='Check-In'!$Q$136),P47,"")))) ->  | U47: =IF(Master!$B$1="Dbls",IF(B47<='Check-In'!$S$137,B47,IF(AND(I46=I47,G46='Check-In'!$S$137),B47,"")),IF(Master!$B$1="2-Day",IF(B47<='Check-In'!$U$137,B47,IF(AND(I46=I47,G46='Check-In'!$U$137),B47,"")),IF(B47<='Check-In'!$Q$137,B47,IF(AND(I46=I47,G46='Check-In'!$Q$137),B47,"")))) ->  | Y47: =IF(Master!$B$1="Dbls",IF(P47<='Check-In'!$R$139,P47,IF(AND(W46=W47,U46='Check-In'!$R$139),P47,"")),IF(Master!$B$1="2-Day",IF(P47<='Check-In'!$T$139,P47,IF(AND(W46=W47,U46='Check-In'!$T$139),P47,"")),IF(P47<='Check-In'!$P$139,P47,IF(AND(W46=W47,U46='Check-In'!$P$139),P47,"")))) ->  | AI47: =IF(AJ47=0,"",'Check-In'!$B52) ->  | AJ47: =IF(Tourn="2-Day",'Check-In'!T52,IF(Tourn="Dbls", 'Check-In'!R52,'Check-In'!P52)) -> 0 | AK47: =IF(AJ47="x",INDEX(Qual!$C$8:$U$133,MATCH(AI47,Qual!$C$8:$C$133,0),IF(Tourn="Dbls",7,IF(Tourn="2-Day",6,IF(Tourn="MSC",6,5)))),"") ->  | AL47: =IF(AJ47="x",INDEX(Qual!$C$8:$U$133,MATCH(AI47,Qual!$C$8:$C$133,0),IF(Tourn="Dbls",8,IF(Tourn="2-Day",7,IF(Tourn="MSC",8,6)))),"") ->  | AM47: =IF(AJ47="x",INDEX(Qual!$C$8:$U$133,MATCH(AI47,Qual!$C$8:$C$133,0),IF(Tourn="Dbls",9,IF(Tourn="2-Day",8,IF(Tourn="MSC",10,7)))),"") ->  | AO47: =IF(AP47=0,"",'Check-In'!$B52) ->  | AP47: =IF(Tourn="2-Day",'Check-In'!U52,IF(Tourn="Dbls", 'Check-In'!S52,'Check-In'!P52)) -> 0 | AQ47: =IF(AP47="x",INDEX(Qual!$C$8:$U$133,MATCH(AO47,Qual!$C$8:$C$133,0),IF(Tourn="Dbls",15,IF(Tourn="2-Day",10,IF(Tourn="MSC",12,8)))),"") ->  | AR47: =IF(AP47="x",INDEX(Qual!$C$8:$U$133,MATCH(AO47,Qual!$C$8:$C$133,0),IF(Tourn="Dbls",16,IF(Tourn="2-Day",11,IF(Tourn="MSC",14,9)))),"") ->  | AS47: =IF(AP47="x",INDEX(Qual!$C$8:$U$133,MATCH(AO47,Qual!$C$8:$C$133,0),IF(Tourn="Dbls",17,IF(Tourn="2-Day",12,IF(Tourn="MSC",16,10)))),"") -> 
B48: 46 | C48: =IF(Master!$B$1="Dbls",IF(B48<='Check-In'!$R$136,B48,IF(AND(E47=E48,C47='Check-In'!$R$136),B48,"")),IF(Master!$B$1="2-Day",IF(B48<='Check-In'!$T$136,B48,IF(AND(E47=E48,C47='Check-In'!$T$136),B48,"")),IF(B48<='Check-In'!$P$136,B48,IF(AND(E47=E48,C47='Check-In'!$P$136),B48,"")))) ->  | G48: =IF(Master!$B$1="Dbls",IF(B48<='Check-In'!$R$137,B48,IF(AND(I47=I48,G47='Check-In'!$R$137),B48,"")),IF(Master!$B$1="2-Day",IF(B48<='Check-In'!$T$137,B48,IF(AND(I47=I48,G47='Check-In'!$T$137),B48,"")),IF(B48<='Check-In'!$P$137,B48,IF(AND(I47=I48,G47='Check-In'!$P$137),B48,"")))) ->  | K48: =IF(Master!$B$1="Dbls",IF(B48<='Check-In'!$R$139,B48,IF(AND(I47=I48,G47='Check-In'!$R$139),B48,"")),IF(Master!$B$1="2-Day",IF(B48<='Check-In'!$T$139,B48,IF(AND(I47=I48,G47='Check-In'!$T$139),B48,"")),IF(B48<='Check-In'!$P$139,B48,IF(AND(I47=I48,G47='Check-In'!$P$139),B48,"")))) ->  | P48: 46 | Q48: =IF(Master!$B$1="Dbls",IF(P48<='Check-In'!$S$136,P48,IF(AND(S47=S48,Q47='Check-In'!$S$136),P48,"")),IF(Master!$B$1="2-Day",IF(P48<='Check-In'!$U$136,P48,IF(AND(S47=S48,Q47='Check-In'!$U$136),P48,"")),IF(P48<='Check-In'!$Q$136,P48,IF(AND(S47=S48,Q47='Check-In'!$Q$136),P48,"")))) ->  | U48: =IF(Master!$B$1="Dbls",IF(B48<='Check-In'!$S$137,B48,IF(AND(I47=I48,G47='Check-In'!$S$137),B48,"")),IF(Master!$B$1="2-Day",IF(B48<='Check-In'!$U$137,B48,IF(AND(I47=I48,G47='Check-In'!$U$137),B48,"")),IF(B48<='Check-In'!$Q$137,B48,IF(AND(I47=I48,G47='Check-In'!$Q$137),B48,"")))) ->  | Y48: =IF(Master!$B$1="Dbls",IF(P48<='Check-In'!$R$139,P48,IF(AND(W47=W48,U47='Check-In'!$R$139),P48,"")),IF(Master!$B$1="2-Day",IF(P48<='Check-In'!$T$139,P48,IF(AND(W47=W48,U47='Check-In'!$T$139),P48,"")),IF(P48<='Check-In'!$P$139,P48,IF(AND(W47=W48,U47='Check-In'!$P$139),P48,"")))) ->  | AI48: =IF(AJ48=0,"",'Check-In'!$B53) -> HALIDA, TERRY | AJ48: =IF(Tourn="2-Day",'Check-In'!T53,IF(Tourn="Dbls", 'Check-In'!R53,'Check-In'!P53)) -> X | AK48: =IF(AJ48="x",INDEX(Qual!$C$8:$U$133,MATCH(AI48,Qual!$C$8:$C$133,0),IF(Tourn="Dbls",7,IF(Tourn="2-Day",6,IF(Tourn="MSC",6,5)))),"") -> 186 | AL48: =IF(AJ48="x",INDEX(Qual!$C$8:$U$133,MATCH(AI48,Qual!$C$8:$C$133,0),IF(Tourn="Dbls",8,IF(Tourn="2-Day",7,IF(Tourn="MSC",8,6)))),"") -> 170 | AM48: =IF(AJ48="x",INDEX(Qual!$C$8:$U$133,MATCH(AI48,Qual!$C$8:$C$133,0),IF(Tourn="Dbls",9,IF(Tourn="2-Day",8,IF(Tourn="MSC",10,7)))),"") -> 189 | AO48: =IF(AP48=0,"",'Check-In'!$B53) -> HALIDA, TERRY | AP48: =IF(Tourn="2-Day",'Check-In'!U53,IF(Tourn="Dbls", 'Check-In'!S53,'Check-In'!P53)) -> X | AQ48: =IF(AP48="x",INDEX(Qual!$C$8:$U$133,MATCH(AO48,Qual!$C$8:$C$133,0),IF(Tourn="Dbls",15,IF(Tourn="2-Day",10,IF(Tourn="MSC",12,8)))),"") -> 183 | AR48: =IF(AP48="x",INDEX(Qual!$C$8:$U$133,MATCH(AO48,Qual!$C$8:$C$133,0),IF(Tourn="Dbls",16,IF(Tourn="2-Day",11,IF(Tourn="MSC",14,9)))),"") -> 147 | AS48: =IF(AP48="x",INDEX(Qual!$C$8:$U$133,MATCH(AO48,Qual!$C$8:$C$133,0),IF(Tourn="Dbls",17,IF(Tourn="2-Day",12,IF(Tourn="MSC",16,10)))),"") -> 154
B49: 47 | C49: =IF(Master!$B$1="Dbls",IF(B49<='Check-In'!$R$136,B49,IF(AND(E48=E49,C48='Check-In'!$R$136),B49,"")),IF(Master!$B$1="2-Day",IF(B49<='Check-In'!$T$136,B49,IF(AND(E48=E49,C48='Check-In'!$T$136),B49,"")),IF(B49<='Check-In'!$P$136,B49,IF(AND(E48=E49,C48='Check-In'!$P$136),B49,"")))) ->  | G49: =IF(Master!$B$1="Dbls",IF(B49<='Check-In'!$R$137,B49,IF(AND(I48=I49,G48='Check-In'!$R$137),B49,"")),IF(Master!$B$1="2-Day",IF(B49<='Check-In'!$T$137,B49,IF(AND(I48=I49,G48='Check-In'!$T$137),B49,"")),IF(B49<='Check-In'!$P$137,B49,IF(AND(I48=I49,G48='Check-In'!$P$137),B49,"")))) ->  | K49: =IF(Master!$B$1="Dbls",IF(B49<='Check-In'!$R$139,B49,IF(AND(I48=I49,G48='Check-In'!$R$139),B49,"")),IF(Master!$B$1="2-Day",IF(B49<='Check-In'!$T$139,B49,IF(AND(I48=I49,G48='Check-In'!$T$139),B49,"")),IF(B49<='Check-In'!$P$139,B49,IF(AND(I48=I49,G48='Check-In'!$P$139),B49,"")))) ->  | P49: 47 | Q49: =IF(Master!$B$1="Dbls",IF(P49<='Check-In'!$S$136,P49,IF(AND(S48=S49,Q48='Check-In'!$S$136),P49,"")),IF(Master!$B$1="2-Day",IF(P49<='Check-In'!$U$136,P49,IF(AND(S48=S49,Q48='Check-In'!$U$136),P49,"")),IF(P49<='Check-In'!$Q$136,P49,IF(AND(S48=S49,Q48='Check-In'!$Q$136),P49,"")))) ->  | U49: =IF(Master!$B$1="Dbls",IF(B49<='Check-In'!$S$137,B49,IF(AND(I48=I49,G48='Check-In'!$S$137),B49,"")),IF(Master!$B$1="2-Day",IF(B49<='Check-In'!$U$137,B49,IF(AND(I48=I49,G48='Check-In'!$U$137),B49,"")),IF(B49<='Check-In'!$Q$137,B49,IF(AND(I48=I49,G48='Check-In'!$Q$137),B49,"")))) ->  | Y49: =IF(Master!$B$1="Dbls",IF(P49<='Check-In'!$R$139,P49,IF(AND(W48=W49,U48='Check-In'!$R$139),P49,"")),IF(Master!$B$1="2-Day",IF(P49<='Check-In'!$T$139,P49,IF(AND(W48=W49,U48='Check-In'!$T$139),P49,"")),IF(P49<='Check-In'!$P$139,P49,IF(AND(W48=W49,U48='Check-In'!$P$139),P49,"")))) ->  | AI49: =IF(AJ49=0,"",'Check-In'!$B54) -> HANKE, KURT | AJ49: =IF(Tourn="2-Day",'Check-In'!T54,IF(Tourn="Dbls", 'Check-In'!R54,'Check-In'!P54)) -> X | AK49: =IF(AJ49="x",INDEX(Qual!$C$8:$U$133,MATCH(AI49,Qual!$C$8:$C$133,0),IF(Tourn="Dbls",7,IF(Tourn="2-Day",6,IF(Tourn="MSC",6,5)))),"") -> 190 | AL49: =IF(AJ49="x",INDEX(Qual!$C$8:$U$133,MATCH(AI49,Qual!$C$8:$C$133,0),IF(Tourn="Dbls",8,IF(Tourn="2-Day",7,IF(Tourn="MSC",8,6)))),"") -> 196 | AM49: =IF(AJ49="x",INDEX(Qual!$C$8:$U$133,MATCH(AI49,Qual!$C$8:$C$133,0),IF(Tourn="Dbls",9,IF(Tourn="2-Day",8,IF(Tourn="MSC",10,7)))),"") -> 220 | AO49: =IF(AP49=0,"",'Check-In'!$B54) -> HANKE, KURT | AP49: =IF(Tourn="2-Day",'Check-In'!U54,IF(Tourn="Dbls", 'Check-In'!S54,'Check-In'!P54)) -> X | AQ49: =IF(AP49="x",INDEX(Qual!$C$8:$U$133,MATCH(AO49,Qual!$C$8:$C$133,0),IF(Tourn="Dbls",15,IF(Tourn="2-Day",10,IF(Tourn="MSC",12,8)))),"") -> 228 | AR49: =IF(AP49="x",INDEX(Qual!$C$8:$U$133,MATCH(AO49,Qual!$C$8:$C$133,0),IF(Tourn="Dbls",16,IF(Tourn="2-Day",11,IF(Tourn="MSC",14,9)))),"") -> 257 | AS49: =IF(AP49="x",INDEX(Qual!$C$8:$U$133,MATCH(AO49,Qual!$C$8:$C$133,0),IF(Tourn="Dbls",17,IF(Tourn="2-Day",12,IF(Tourn="MSC",16,10)))),"") -> 193
B50: 48 | C50: =IF(Master!$B$1="Dbls",IF(B50<='Check-In'!$R$136,B50,IF(AND(E49=E50,C49='Check-In'!$R$136),B50,"")),IF(Master!$B$1="2-Day",IF(B50<='Check-In'!$T$136,B50,IF(AND(E49=E50,C49='Check-In'!$T$136),B50,"")),IF(B50<='Check-In'!$P$136,B50,IF(AND(E49=E50,C49='Check-In'!$P$136),B50,"")))) ->  | G50: =IF(Master!$B$1="Dbls",IF(B50<='Check-In'!$R$137,B50,IF(AND(I49=I50,G49='Check-In'!$R$137),B50,"")),IF(Master!$B$1="2-Day",IF(B50<='Check-In'!$T$137,B50,IF(AND(I49=I50,G49='Check-In'!$T$137),B50,"")),IF(B50<='Check-In'!$P$137,B50,IF(AND(I49=I50,G49='Check-In'!$P$137),B50,"")))) ->  | K50: =IF(Master!$B$1="Dbls",IF(B50<='Check-In'!$R$139,B50,IF(AND(I49=I50,G49='Check-In'!$R$139),B50,"")),IF(Master!$B$1="2-Day",IF(B50<='Check-In'!$T$139,B50,IF(AND(I49=I50,G49='Check-In'!$T$139),B50,"")),IF(B50<='Check-In'!$P$139,B50,IF(AND(I49=I50,G49='Check-In'!$P$139),B50,"")))) ->  | P50: 48 | Q50: =IF(Master!$B$1="Dbls",IF(P50<='Check-In'!$S$136,P50,IF(AND(S49=S50,Q49='Check-In'!$S$136),P50,"")),IF(Master!$B$1="2-Day",IF(P50<='Check-In'!$U$136,P50,IF(AND(S49=S50,Q49='Check-In'!$U$136),P50,"")),IF(P50<='Check-In'!$Q$136,P50,IF(AND(S49=S50,Q49='Check-In'!$Q$136),P50,"")))) ->  | U50: =IF(Master!$B$1="Dbls",IF(B50<='Check-In'!$S$137,B50,IF(AND(I49=I50,G49='Check-In'!$S$137),B50,"")),IF(Master!$B$1="2-Day",IF(B50<='Check-In'!$U$137,B50,IF(AND(I49=I50,G49='Check-In'!$U$137),B50,"")),IF(B50<='Check-In'!$Q$137,B50,IF(AND(I49=I50,G49='Check-In'!$Q$137),B50,"")))) ->  | Y50: =IF(Master!$B$1="Dbls",IF(P50<='Check-In'!$R$139,P50,IF(AND(W49=W50,U49='Check-In'!$R$139),P50,"")),IF(Master!$B$1="2-Day",IF(P50<='Check-In'!$T$139,P50,IF(AND(W49=W50,U49='Check-In'!$T$139),P50,"")),IF(P50<='Check-In'!$P$139,P50,IF(AND(W49=W50,U49='Check-In'!$P$139),P50,"")))) ->  | AI50: =IF(AJ50=0,"",'Check-In'!$B55) ->  | AJ50: =IF(Tourn="2-Day",'Check-In'!T55,IF(Tourn="Dbls", 'Check-In'!R55,'Check-In'!P55)) -> 0 | AK50: =IF(AJ50="x",INDEX(Qual!$C$8:$U$133,MATCH(AI50,Qual!$C$8:$C$133,0),IF(Tourn="Dbls",7,IF(Tourn="2-Day",6,IF(Tourn="MSC",6,5)))),"") ->  | AL50: =IF(AJ50="x",INDEX(Qual!$C$8:$U$133,MATCH(AI50,Qual!$C$8:$C$133,0),IF(Tourn="Dbls",8,IF(Tourn="2-Day",7,IF(Tourn="MSC",8,6)))),"") ->  | AM50: =IF(AJ50="x",INDEX(Qual!$C$8:$U$133,MATCH(AI50,Qual!$C$8:$C$133,0),IF(Tourn="Dbls",9,IF(Tourn="2-Day",8,IF(Tourn="MSC",10,7)))),"") ->  | AO50: =IF(AP50=0,"",'Check-In'!$B55) ->  | AP50: =IF(Tourn="2-Day",'Check-In'!U55,IF(Tourn="Dbls", 'Check-In'!S55,'Check-In'!P55)) -> 0 | AQ50: =IF(AP50="x",INDEX(Qual!$C$8:$U$133,MATCH(AO50,Qual!$C$8:$C$133,0),IF(Tourn="Dbls",15,IF(Tourn="2-Day",10,IF(Tourn="MSC",12,8)))),"") ->  | AR50: =IF(AP50="x",INDEX(Qual!$C$8:$U$133,MATCH(AO50,Qual!$C$8:$C$133,0),IF(Tourn="Dbls",16,IF(Tourn="2-Day",11,IF(Tourn="MSC",14,9)))),"") ->  | AS50: =IF(AP50="x",INDEX(Qual!$C$8:$U$133,MATCH(AO50,Qual!$C$8:$C$133,0),IF(Tourn="Dbls",17,IF(Tourn="2-Day",12,IF(Tourn="MSC",16,10)))),"") -> 
B51: 49 | C51: =IF(Master!$B$1="Dbls",IF(B51<='Check-In'!$R$136,B51,IF(AND(E50=E51,C50='Check-In'!$R$136),B51,"")),IF(Master!$B$1="2-Day",IF(B51<='Check-In'!$T$136,B51,IF(AND(E50=E51,C50='Check-In'!$T$136),B51,"")),IF(B51<='Check-In'!$P$136,B51,IF(AND(E50=E51,C50='Check-In'!$P$136),B51,"")))) ->  | G51: =IF(Master!$B$1="Dbls",IF(B51<='Check-In'!$R$137,B51,IF(AND(I50=I51,G50='Check-In'!$R$137),B51,"")),IF(Master!$B$1="2-Day",IF(B51<='Check-In'!$T$137,B51,IF(AND(I50=I51,G50='Check-In'!$T$137),B51,"")),IF(B51<='Check-In'!$P$137,B51,IF(AND(I50=I51,G50='Check-In'!$P$137),B51,"")))) ->  | K51: =IF(Master!$B$1="Dbls",IF(B51<='Check-In'!$R$139,B51,IF(AND(I50=I51,G50='Check-In'!$R$139),B51,"")),IF(Master!$B$1="2-Day",IF(B51<='Check-In'!$T$139,B51,IF(AND(I50=I51,G50='Check-In'!$T$139),B51,"")),IF(B51<='Check-In'!$P$139,B51,IF(AND(I50=I51,G50='Check-In'!$P$139),B51,"")))) ->  | P51: 49 | Q51: =IF(Master!$B$1="Dbls",IF(P51<='Check-In'!$S$136,P51,IF(AND(S50=S51,Q50='Check-In'!$S$136),P51,"")),IF(Master!$B$1="2-Day",IF(P51<='Check-In'!$U$136,P51,IF(AND(S50=S51,Q50='Check-In'!$U$136),P51,"")),IF(P51<='Check-In'!$Q$136,P51,IF(AND(S50=S51,Q50='Check-In'!$Q$136),P51,"")))) ->  | U51: =IF(Master!$B$1="Dbls",IF(B51<='Check-In'!$S$137,B51,IF(AND(I50=I51,G50='Check-In'!$S$137),B51,"")),IF(Master!$B$1="2-Day",IF(B51<='Check-In'!$U$137,B51,IF(AND(I50=I51,G50='Check-In'!$U$137),B51,"")),IF(B51<='Check-In'!$Q$137,B51,IF(AND(I50=I51,G50='Check-In'!$Q$137),B51,"")))) ->  | Y51: =IF(Master!$B$1="Dbls",IF(P51<='Check-In'!$R$139,P51,IF(AND(W50=W51,U50='Check-In'!$R$139),P51,"")),IF(Master!$B$1="2-Day",IF(P51<='Check-In'!$T$139,P51,IF(AND(W50=W51,U50='Check-In'!$T$139),P51,"")),IF(P51<='Check-In'!$P$139,P51,IF(AND(W50=W51,U50='Check-In'!$P$139),P51,"")))) ->  | AI51: =IF(AJ51=0,"",'Check-In'!$B56) -> CORBETT, TOM | AJ51: =IF(Tourn="2-Day",'Check-In'!T56,IF(Tourn="Dbls", 'Check-In'!R56,'Check-In'!P56)) -> X | AK51: =IF(AJ51="x",INDEX(Qual!$C$8:$U$133,MATCH(AI51,Qual!$C$8:$C$133,0),IF(Tourn="Dbls",7,IF(Tourn="2-Day",6,IF(Tourn="MSC",6,5)))),"") -> 210 | AL51: =IF(AJ51="x",INDEX(Qual!$C$8:$U$133,MATCH(AI51,Qual!$C$8:$C$133,0),IF(Tourn="Dbls",8,IF(Tourn="2-Day",7,IF(Tourn="MSC",8,6)))),"") -> 207 | AM51: =IF(AJ51="x",INDEX(Qual!$C$8:$U$133,MATCH(AI51,Qual!$C$8:$C$133,0),IF(Tourn="Dbls",9,IF(Tourn="2-Day",8,IF(Tourn="MSC",10,7)))),"") -> 179 | AO51: =IF(AP51=0,"",'Check-In'!$B56) -> CORBETT, TOM | AP51: =IF(Tourn="2-Day",'Check-In'!U56,IF(Tourn="Dbls", 'Check-In'!S56,'Check-In'!P56)) -> X | AQ51: =IF(AP51="x",INDEX(Qual!$C$8:$U$133,MATCH(AO51,Qual!$C$8:$C$133,0),IF(Tourn="Dbls",15,IF(Tourn="2-Day",10,IF(Tourn="MSC",12,8)))),"") -> 213 | AR51: =IF(AP51="x",INDEX(Qual!$C$8:$U$133,MATCH(AO51,Qual!$C$8:$C$133,0),IF(Tourn="Dbls",16,IF(Tourn="2-Day",11,IF(Tourn="MSC",14,9)))),"") -> 202 | AS51: =IF(AP51="x",INDEX(Qual!$C$8:$U$133,MATCH(AO51,Qual!$C$8:$C$133,0),IF(Tourn="Dbls",17,IF(Tourn="2-Day",12,IF(Tourn="MSC",16,10)))),"") -> 226
B52: 50 | C52: =IF(Master!$B$1="Dbls",IF(B52<='Check-In'!$R$136,B52,IF(AND(E51=E52,C51='Check-In'!$R$136),B52,"")),IF(Master!$B$1="2-Day",IF(B52<='Check-In'!$T$136,B52,IF(AND(E51=E52,C51='Check-In'!$T$136),B52,"")),IF(B52<='Check-In'!$P$136,B52,IF(AND(E51=E52,C51='Check-In'!$P$136),B52,"")))) ->  | G52: =IF(Master!$B$1="Dbls",IF(B52<='Check-In'!$R$137,B52,IF(AND(I51=I52,G51='Check-In'!$R$137),B52,"")),IF(Master!$B$1="2-Day",IF(B52<='Check-In'!$T$137,B52,IF(AND(I51=I52,G51='Check-In'!$T$137),B52,"")),IF(B52<='Check-In'!$P$137,B52,IF(AND(I51=I52,G51='Check-In'!$P$137),B52,"")))) ->  | K52: =IF(Master!$B$1="Dbls",IF(B52<='Check-In'!$R$139,B52,IF(AND(I51=I52,G51='Check-In'!$R$139),B52,"")),IF(Master!$B$1="2-Day",IF(B52<='Check-In'!$T$139,B52,IF(AND(I51=I52,G51='Check-In'!$T$139),B52,"")),IF(B52<='Check-In'!$P$139,B52,IF(AND(I51=I52,G51='Check-In'!$P$139),B52,"")))) ->  | P52: 50 | Q52: =IF(Master!$B$1="Dbls",IF(P52<='Check-In'!$S$136,P52,IF(AND(S51=S52,Q51='Check-In'!$S$136),P52,"")),IF(Master!$B$1="2-Day",IF(P52<='Check-In'!$U$136,P52,IF(AND(S51=S52,Q51='Check-In'!$U$136),P52,"")),IF(P52<='Check-In'!$Q$136,P52,IF(AND(S51=S52,Q51='Check-In'!$Q$136),P52,"")))) ->  | U52: =IF(Master!$B$1="Dbls",IF(B52<='Check-In'!$S$137,B52,IF(AND(I51=I52,G51='Check-In'!$S$137),B52,"")),IF(Master!$B$1="2-Day",IF(B52<='Check-In'!$U$137,B52,IF(AND(I51=I52,G51='Check-In'!$U$137),B52,"")),IF(B52<='Check-In'!$Q$137,B52,IF(AND(I51=I52,G51='Check-In'!$Q$137),B52,"")))) ->  | Y52: =IF(Master!$B$1="Dbls",IF(P52<='Check-In'!$R$139,P52,IF(AND(W51=W52,U51='Check-In'!$R$139),P52,"")),IF(Master!$B$1="2-Day",IF(P52<='Check-In'!$T$139,P52,IF(AND(W51=W52,U51='Check-In'!$T$139),P52,"")),IF(P52<='Check-In'!$P$139,P52,IF(AND(W51=W52,U51='Check-In'!$P$139),P52,"")))) ->  | AI52: =IF(AJ52=0,"",'Check-In'!$B57) -> SAVOY, TODD | AJ52: =IF(Tourn="2-Day",'Check-In'!T57,IF(Tourn="Dbls", 'Check-In'!R57,'Check-In'!P57)) -> X | AK52: =IF(AJ52="x",INDEX(Qual!$C$8:$U$133,MATCH(AI52,Qual!$C$8:$C$133,0),IF(Tourn="Dbls",7,IF(Tourn="2-Day",6,IF(Tourn="MSC",6,5)))),"") -> 183 | AL52: =IF(AJ52="x",INDEX(Qual!$C$8:$U$133,MATCH(AI52,Qual!$C$8:$C$133,0),IF(Tourn="Dbls",8,IF(Tourn="2-Day",7,IF(Tourn="MSC",8,6)))),"") -> 223 | AM52: =IF(AJ52="x",INDEX(Qual!$C$8:$U$133,MATCH(AI52,Qual!$C$8:$C$133,0),IF(Tourn="Dbls",9,IF(Tourn="2-Day",8,IF(Tourn="MSC",10,7)))),"") -> 236 | AO52: =IF(AP52=0,"",'Check-In'!$B57) -> SAVOY, TODD | AP52: =IF(Tourn="2-Day",'Check-In'!U57,IF(Tourn="Dbls", 'Check-In'!S57,'Check-In'!P57)) -> X | AQ52: =IF(AP52="x",INDEX(Qual!$C$8:$U$133,MATCH(AO52,Qual!$C$8:$C$133,0),IF(Tourn="Dbls",15,IF(Tourn="2-Day",10,IF(Tourn="MSC",12,8)))),"") -> 224 | AR52: =IF(AP52="x",INDEX(Qual!$C$8:$U$133,MATCH(AO52,Qual!$C$8:$C$133,0),IF(Tourn="Dbls",16,IF(Tourn="2-Day",11,IF(Tourn="MSC",14,9)))),"") -> 209 | AS52: =IF(AP52="x",INDEX(Qual!$C$8:$U$133,MATCH(AO52,Qual!$C$8:$C$133,0),IF(Tourn="Dbls",17,IF(Tourn="2-Day",12,IF(Tourn="MSC",16,10)))),"") -> 215
AI53: =IF(AJ53=0,"",'Check-In'!$B58) ->  | AJ53: =IF(Tourn="2-Day",'Check-In'!T58,IF(Tourn="Dbls", 'Check-In'!R58,'Check-In'!P58)) -> 0 | AK53: =IF(AJ53="x",INDEX(Qual!$C$8:$U$133,MATCH(AI53,Qual!$C$8:$C$133,0),IF(Tourn="Dbls",7,IF(Tourn="2-Day",6,IF(Tourn="MSC",6,5)))),"") ->  | AL53: =IF(AJ53="x",INDEX(Qual!$C$8:$U$133,MATCH(AI53,Qual!$C$8:$C$133,0),IF(Tourn="Dbls",8,IF(Tourn="2-Day",7,IF(Tourn="MSC",8,6)))),"") ->  | AM53: =IF(AJ53="x",INDEX(Qual!$C$8:$U$133,MATCH(AI53,Qual!$C$8:$C$133,0),IF(Tourn="Dbls",9,IF(Tourn="2-Day",8,IF(Tourn="MSC",10,7)))),"") ->  | AO53: =IF(AP53=0,"",'Check-In'!$B58) ->  | AP53: =IF(Tourn="2-Day",'Check-In'!U58,IF(Tourn="Dbls", 'Check-In'!S58,'Check-In'!P58)) -> 0 | AQ53: =IF(AP53="x",INDEX(Qual!$C$8:$U$133,MATCH(AO53,Qual!$C$8:$C$133,0),IF(Tourn="Dbls",15,IF(Tourn="2-Day",10,IF(Tourn="MSC",12,8)))),"") ->  | AR53: =IF(AP53="x",INDEX(Qual!$C$8:$U$133,MATCH(AO53,Qual!$C$8:$C$133,0),IF(Tourn="Dbls",16,IF(Tourn="2-Day",11,IF(Tourn="MSC",14,9)))),"") ->  | AS53: =IF(AP53="x",INDEX(Qual!$C$8:$U$133,MATCH(AO53,Qual!$C$8:$C$133,0),IF(Tourn="Dbls",17,IF(Tourn="2-Day",12,IF(Tourn="MSC",16,10)))),"") -> 
AI54: =IF(AJ54=0,"",'Check-In'!$B59) -> DOWNER, ROB | AJ54: =IF(Tourn="2-Day",'Check-In'!T59,IF(Tourn="Dbls", 'Check-In'!R59,'Check-In'!P59)) -> X | AK54: =IF(AJ54="x",INDEX(Qual!$C$8:$U$133,MATCH(AI54,Qual!$C$8:$C$133,0),IF(Tourn="Dbls",7,IF(Tourn="2-Day",6,IF(Tourn="MSC",6,5)))),"") -> 204 | AL54: =IF(AJ54="x",INDEX(Qual!$C$8:$U$133,MATCH(AI54,Qual!$C$8:$C$133,0),IF(Tourn="Dbls",8,IF(Tourn="2-Day",7,IF(Tourn="MSC",8,6)))),"") -> 248 | AM54: =IF(AJ54="x",INDEX(Qual!$C$8:$U$133,MATCH(AI54,Qual!$C$8:$C$133,0),IF(Tourn="Dbls",9,IF(Tourn="2-Day",8,IF(Tourn="MSC",10,7)))),"") -> 236 | AO54: =IF(AP54=0,"",'Check-In'!$B59) -> DOWNER, ROB | AP54: =IF(Tourn="2-Day",'Check-In'!U59,IF(Tourn="Dbls", 'Check-In'!S59,'Check-In'!P59)) -> X | AQ54: =IF(AP54="x",INDEX(Qual!$C$8:$U$133,MATCH(AO54,Qual!$C$8:$C$133,0),IF(Tourn="Dbls",15,IF(Tourn="2-Day",10,IF(Tourn="MSC",12,8)))),"") -> 214 | AR54: =IF(AP54="x",INDEX(Qual!$C$8:$U$133,MATCH(AO54,Qual!$C$8:$C$133,0),IF(Tourn="Dbls",16,IF(Tourn="2-Day",11,IF(Tourn="MSC",14,9)))),"") -> 208 | AS54: =IF(AP54="x",INDEX(Qual!$C$8:$U$133,MATCH(AO54,Qual!$C$8:$C$133,0),IF(Tourn="Dbls",17,IF(Tourn="2-Day",12,IF(Tourn="MSC",16,10)))),"") -> 217
AI55: =IF(AJ55=0,"",'Check-In'!$B60) -> BOHN, STEVE | AJ55: =IF(Tourn="2-Day",'Check-In'!T60,IF(Tourn="Dbls", 'Check-In'!R60,'Check-In'!P60)) -> X | AK55: =IF(AJ55="x",INDEX(Qual!$C$8:$U$133,MATCH(AI55,Qual!$C$8:$C$133,0),IF(Tourn="Dbls",7,IF(Tourn="2-Day",6,IF(Tourn="MSC",6,5)))),"") -> 189 | AL55: =IF(AJ55="x",INDEX(Qual!$C$8:$U$133,MATCH(AI55,Qual!$C$8:$C$133,0),IF(Tourn="Dbls",8,IF(Tourn="2-Day",7,IF(Tourn="MSC",8,6)))),"") -> 207 | AM55: =IF(AJ55="x",INDEX(Qual!$C$8:$U$133,MATCH(AI55,Qual!$C$8:$C$133,0),IF(Tourn="Dbls",9,IF(Tourn="2-Day",8,IF(Tourn="MSC",10,7)))),"") -> 183 | AO55: =IF(AP55=0,"",'Check-In'!$B60) -> BOHN, STEVE | AP55: =IF(Tourn="2-Day",'Check-In'!U60,IF(Tourn="Dbls", 'Check-In'!S60,'Check-In'!P60)) -> X | AQ55: =IF(AP55="x",INDEX(Qual!$C$8:$U$133,MATCH(AO55,Qual!$C$8:$C$133,0),IF(Tourn="Dbls",15,IF(Tourn="2-Day",10,IF(Tourn="MSC",12,8)))),"") -> 235 | AR55: =IF(AP55="x",INDEX(Qual!$C$8:$U$133,MATCH(AO55,Qual!$C$8:$C$133,0),IF(Tourn="Dbls",16,IF(Tourn="2-Day",11,IF(Tourn="MSC",14,9)))),"") -> 228 | AS55: =IF(AP55="x",INDEX(Qual!$C$8:$U$133,MATCH(AO55,Qual!$C$8:$C$133,0),IF(Tourn="Dbls",17,IF(Tourn="2-Day",12,IF(Tourn="MSC",16,10)))),"") -> 206
AI56: =IF(AJ56=0,"",'Check-In'!$B61) ->  | AJ56: =IF(Tourn="2-Day",'Check-In'!T61,IF(Tourn="Dbls", 'Check-In'!R61,'Check-In'!P61)) -> 0 | AK56: =IF(AJ56="x",INDEX(Qual!$C$8:$U$133,MATCH(AI56,Qual!$C$8:$C$133,0),IF(Tourn="Dbls",7,IF(Tourn="2-Day",6,IF(Tourn="MSC",6,5)))),"") ->  | AL56: =IF(AJ56="x",INDEX(Qual!$C$8:$U$133,MATCH(AI56,Qual!$C$8:$C$133,0),IF(Tourn="Dbls",8,IF(Tourn="2-Day",7,IF(Tourn="MSC",8,6)))),"") ->  | AM56: =IF(AJ56="x",INDEX(Qual!$C$8:$U$133,MATCH(AI56,Qual!$C$8:$C$133,0),IF(Tourn="Dbls",9,IF(Tourn="2-Day",8,IF(Tourn="MSC",10,7)))),"") ->  | AO56: =IF(AP56=0,"",'Check-In'!$B61) ->  | AP56: =IF(Tourn="2-Day",'Check-In'!U61,IF(Tourn="Dbls", 'Check-In'!S61,'Check-In'!P61)) -> 0 | AQ56: =IF(AP56="x",INDEX(Qual!$C$8:$U$133,MATCH(AO56,Qual!$C$8:$C$133,0),IF(Tourn="Dbls",15,IF(Tourn="2-Day",10,IF(Tourn="MSC",12,8)))),"") ->  | AR56: =IF(AP56="x",INDEX(Qual!$C$8:$U$133,MATCH(AO56,Qual!$C$8:$C$133,0),IF(Tourn="Dbls",16,IF(Tourn="2-Day",11,IF(Tourn="MSC",14,9)))),"") ->  | AS56: =IF(AP56="x",INDEX(Qual!$C$8:$U$133,MATCH(AO56,Qual!$C$8:$C$133,0),IF(Tourn="Dbls",17,IF(Tourn="2-Day",12,IF(Tourn="MSC",16,10)))),"") -> 
AI57: =IF(AJ57=0,"",'Check-In'!$B62) -> THOMPSON, DOUG | AJ57: =IF(Tourn="2-Day",'Check-In'!T62,IF(Tourn="Dbls", 'Check-In'!R62,'Check-In'!P62)) -> X | AK57: =IF(AJ57="x",INDEX(Qual!$C$8:$U$133,MATCH(AI57,Qual!$C$8:$C$133,0),IF(Tourn="Dbls",7,IF(Tourn="2-Day",6,IF(Tourn="MSC",6,5)))),"") -> 150 | AL57: =IF(AJ57="x",INDEX(Qual!$C$8:$U$133,MATCH(AI57,Qual!$C$8:$C$133,0),IF(Tourn="Dbls",8,IF(Tourn="2-Day",7,IF(Tourn="MSC",8,6)))),"") -> 175 | AM57: =IF(AJ57="x",INDEX(Qual!$C$8:$U$133,MATCH(AI57,Qual!$C$8:$C$133,0),IF(Tourn="Dbls",9,IF(Tourn="2-Day",8,IF(Tourn="MSC",10,7)))),"") -> 185 | AO57: =IF(AP57=0,"",'Check-In'!$B62) -> THOMPSON, DOUG | AP57: =IF(Tourn="2-Day",'Check-In'!U62,IF(Tourn="Dbls", 'Check-In'!S62,'Check-In'!P62)) -> X | AQ57: =IF(AP57="x",INDEX(Qual!$C$8:$U$133,MATCH(AO57,Qual!$C$8:$C$133,0),IF(Tourn="Dbls",15,IF(Tourn="2-Day",10,IF(Tourn="MSC",12,8)))),"") -> 190 | AR57: =IF(AP57="x",INDEX(Qual!$C$8:$U$133,MATCH(AO57,Qual!$C$8:$C$133,0),IF(Tourn="Dbls",16,IF(Tourn="2-Day",11,IF(Tourn="MSC",14,9)))),"") -> 189 | AS57: =IF(AP57="x",INDEX(Qual!$C$8:$U$133,MATCH(AO57,Qual!$C$8:$C$133,0),IF(Tourn="Dbls",17,IF(Tourn="2-Day",12,IF(Tourn="MSC",16,10)))),"") -> 180
AI58: =IF(AJ58=0,"",'Check-In'!$B63) -> DAVISON, PAUL | AJ58: =IF(Tourn="2-Day",'Check-In'!T63,IF(Tourn="Dbls", 'Check-In'!R63,'Check-In'!P63)) -> X | AK58: =IF(AJ58="x",INDEX(Qual!$C$8:$U$133,MATCH(AI58,Qual!$C$8:$C$133,0),IF(Tourn="Dbls",7,IF(Tourn="2-Day",6,IF(Tourn="MSC",6,5)))),"") -> 181 | AL58: =IF(AJ58="x",INDEX(Qual!$C$8:$U$133,MATCH(AI58,Qual!$C$8:$C$133,0),IF(Tourn="Dbls",8,IF(Tourn="2-Day",7,IF(Tourn="MSC",8,6)))),"") -> 192 | AM58: =IF(AJ58="x",INDEX(Qual!$C$8:$U$133,MATCH(AI58,Qual!$C$8:$C$133,0),IF(Tourn="Dbls",9,IF(Tourn="2-Day",8,IF(Tourn="MSC",10,7)))),"") -> 185 | AO58: =IF(AP58=0,"",'Check-In'!$B63) -> DAVISON, PAUL | AP58: =IF(Tourn="2-Day",'Check-In'!U63,IF(Tourn="Dbls", 'Check-In'!S63,'Check-In'!P63)) -> X | AQ58: =IF(AP58="x",INDEX(Qual!$C$8:$U$133,MATCH(AO58,Qual!$C$8:$C$133,0),IF(Tourn="Dbls",15,IF(Tourn="2-Day",10,IF(Tourn="MSC",12,8)))),"") -> 179 | AR58: =IF(AP58="x",INDEX(Qual!$C$8:$U$133,MATCH(AO58,Qual!$C$8:$C$133,0),IF(Tourn="Dbls",16,IF(Tourn="2-Day",11,IF(Tourn="MSC",14,9)))),"") -> 180 | AS58: =IF(AP58="x",INDEX(Qual!$C$8:$U$133,MATCH(AO58,Qual!$C$8:$C$133,0),IF(Tourn="Dbls",17,IF(Tourn="2-Day",12,IF(Tourn="MSC",16,10)))),"") -> 171
AI59: =IF(AJ59=0,"",'Check-In'!$B64) ->  | AJ59: =IF(Tourn="2-Day",'Check-In'!T64,IF(Tourn="Dbls", 'Check-In'!R64,'Check-In'!P64)) -> 0 | AK59: =IF(AJ59="x",INDEX(Qual!$C$8:$U$133,MATCH(AI59,Qual!$C$8:$C$133,0),IF(Tourn="Dbls",7,IF(Tourn="2-Day",6,IF(Tourn="MSC",6,5)))),"") ->  | AL59: =IF(AJ59="x",INDEX(Qual!$C$8:$U$133,MATCH(AI59,Qual!$C$8:$C$133,0),IF(Tourn="Dbls",8,IF(Tourn="2-Day",7,IF(Tourn="MSC",8,6)))),"") ->  | AM59: =IF(AJ59="x",INDEX(Qual!$C$8:$U$133,MATCH(AI59,Qual!$C$8:$C$133,0),IF(Tourn="Dbls",9,IF(Tourn="2-Day",8,IF(Tourn="MSC",10,7)))),"") ->  | AO59: =IF(AP59=0,"",'Check-In'!$B64) ->  | AP59: =IF(Tourn="2-Day",'Check-In'!U64,IF(Tourn="Dbls", 'Check-In'!S64,'Check-In'!P64)) -> 0 | AQ59: =IF(AP59="x",INDEX(Qual!$C$8:$U$133,MATCH(AO59,Qual!$C$8:$C$133,0),IF(Tourn="Dbls",15,IF(Tourn="2-Day",10,IF(Tourn="MSC",12,8)))),"") ->  | AR59: =IF(AP59="x",INDEX(Qual!$C$8:$U$133,MATCH(AO59,Qual!$C$8:$C$133,0),IF(Tourn="Dbls",16,IF(Tourn="2-Day",11,IF(Tourn="MSC",14,9)))),"") ->  | AS59: =IF(AP59="x",INDEX(Qual!$C$8:$U$133,MATCH(AO59,Qual!$C$8:$C$133,0),IF(Tourn="Dbls",17,IF(Tourn="2-Day",12,IF(Tourn="MSC",16,10)))),"") -> 
AI60: =IF(AJ60=0,"",'Check-In'!$B65) ->  | AJ60: =IF(Tourn="2-Day",'Check-In'!T65,IF(Tourn="Dbls", 'Check-In'!R65,'Check-In'!P65)) -> 0 | AK60: =IF(AJ60="x",INDEX(Qual!$C$8:$U$133,MATCH(AI60,Qual!$C$8:$C$133,0),IF(Tourn="Dbls",7,IF(Tourn="2-Day",6,IF(Tourn="MSC",6,5)))),"") ->  | AL60: =IF(AJ60="x",INDEX(Qual!$C$8:$U$133,MATCH(AI60,Qual!$C$8:$C$133,0),IF(Tourn="Dbls",8,IF(Tourn="2-Day",7,IF(Tourn="MSC",8,6)))),"") ->  | AM60: =IF(AJ60="x",INDEX(Qual!$C$8:$U$133,MATCH(AI60,Qual!$C$8:$C$133,0),IF(Tourn="Dbls",9,IF(Tourn="2-Day",8,IF(Tourn="MSC",10,7)))),"") ->  | AO60: =IF(AP60=0,"",'Check-In'!$B65) ->  | AP60: =IF(Tourn="2-Day",'Check-In'!U65,IF(Tourn="Dbls", 'Check-In'!S65,'Check-In'!P65)) -> 0 | AQ60: =IF(AP60="x",INDEX(Qual!$C$8:$U$133,MATCH(AO60,Qual!$C$8:$C$133,0),IF(Tourn="Dbls",15,IF(Tourn="2-Day",10,IF(Tourn="MSC",12,8)))),"") ->  | AR60: =IF(AP60="x",INDEX(Qual!$C$8:$U$133,MATCH(AO60,Qual!$C$8:$C$133,0),IF(Tourn="Dbls",16,IF(Tourn="2-Day",11,IF(Tourn="MSC",14,9)))),"") ->  | AS60: =IF(AP60="x",INDEX(Qual!$C$8:$U$133,MATCH(AO60,Qual!$C$8:$C$133,0),IF(Tourn="Dbls",17,IF(Tourn="2-Day",12,IF(Tourn="MSC",16,10)))),"") -> 
AI61: =IF(AJ61=0,"",'Check-In'!$B66) -> RACETTE, TIM | AJ61: =IF(Tourn="2-Day",'Check-In'!T66,IF(Tourn="Dbls", 'Check-In'!R66,'Check-In'!P66)) -> X | AK61: =IF(AJ61="x",INDEX(Qual!$C$8:$U$133,MATCH(AI61,Qual!$C$8:$C$133,0),IF(Tourn="Dbls",7,IF(Tourn="2-Day",6,IF(Tourn="MSC",6,5)))),"") -> 240 | AL61: =IF(AJ61="x",INDEX(Qual!$C$8:$U$133,MATCH(AI61,Qual!$C$8:$C$133,0),IF(Tourn="Dbls",8,IF(Tourn="2-Day",7,IF(Tourn="MSC",8,6)))),"") -> 175 | AM61: =IF(AJ61="x",INDEX(Qual!$C$8:$U$133,MATCH(AI61,Qual!$C$8:$C$133,0),IF(Tourn="Dbls",9,IF(Tourn="2-Day",8,IF(Tourn="MSC",10,7)))),"") -> 222 | AO61: =IF(AP61=0,"",'Check-In'!$B66) -> RACETTE, TIM | AP61: =IF(Tourn="2-Day",'Check-In'!U66,IF(Tourn="Dbls", 'Check-In'!S66,'Check-In'!P66)) -> X | AQ61: =IF(AP61="x",INDEX(Qual!$C$8:$U$133,MATCH(AO61,Qual!$C$8:$C$133,0),IF(Tourn="Dbls",15,IF(Tourn="2-Day",10,IF(Tourn="MSC",12,8)))),"") -> 179 | AR61: =IF(AP61="x",INDEX(Qual!$C$8:$U$133,MATCH(AO61,Qual!$C$8:$C$133,0),IF(Tourn="Dbls",16,IF(Tourn="2-Day",11,IF(Tourn="MSC",14,9)))),"") -> 215 | AS61: =IF(AP61="x",INDEX(Qual!$C$8:$U$133,MATCH(AO61,Qual!$C$8:$C$133,0),IF(Tourn="Dbls",17,IF(Tourn="2-Day",12,IF(Tourn="MSC",16,10)))),"") -> 217
AI62: =IF(AJ62=0,"",'Check-In'!$B67) ->  | AJ62: =IF(Tourn="2-Day",'Check-In'!T67,IF(Tourn="Dbls", 'Check-In'!R67,'Check-In'!P67)) -> 0 | AK62: =IF(AJ62="x",INDEX(Qual!$C$8:$U$133,MATCH(AI62,Qual!$C$8:$C$133,0),IF(Tourn="Dbls",7,IF(Tourn="2-Day",6,IF(Tourn="MSC",6,5)))),"") ->  | AL62: =IF(AJ62="x",INDEX(Qual!$C$8:$U$133,MATCH(AI62,Qual!$C$8:$C$133,0),IF(Tourn="Dbls",8,IF(Tourn="2-Day",7,IF(Tourn="MSC",8,6)))),"") ->  | AM62: =IF(AJ62="x",INDEX(Qual!$C$8:$U$133,MATCH(AI62,Qual!$C$8:$C$133,0),IF(Tourn="Dbls",9,IF(Tourn="2-Day",8,IF(Tourn="MSC",10,7)))),"") ->  | AO62: =IF(AP62=0,"",'Check-In'!$B67) ->  | AP62: =IF(Tourn="2-Day",'Check-In'!U67,IF(Tourn="Dbls", 'Check-In'!S67,'Check-In'!P67)) -> 0 | AQ62: =IF(AP62="x",INDEX(Qual!$C$8:$U$133,MATCH(AO62,Qual!$C$8:$C$133,0),IF(Tourn="Dbls",15,IF(Tourn="2-Day",10,IF(Tourn="MSC",12,8)))),"") ->  | AR62: =IF(AP62="x",INDEX(Qual!$C$8:$U$133,MATCH(AO62,Qual!$C$8:$C$133,0),IF(Tourn="Dbls",16,IF(Tourn="2-Day",11,IF(Tourn="MSC",14,9)))),"") ->  | AS62: =IF(AP62="x",INDEX(Qual!$C$8:$U$133,MATCH(AO62,Qual!$C$8:$C$133,0),IF(Tourn="Dbls",17,IF(Tourn="2-Day",12,IF(Tourn="MSC",16,10)))),"") -> 
AI63: =IF(AJ63=0,"",'Check-In'!$B68) ->  | AJ63: =IF(Tourn="2-Day",'Check-In'!T68,IF(Tourn="Dbls", 'Check-In'!R68,'Check-In'!P68)) -> 0 | AK63: =IF(AJ63="x",INDEX(Qual!$C$8:$U$133,MATCH(AI63,Qual!$C$8:$C$133,0),IF(Tourn="Dbls",7,IF(Tourn="2-Day",6,IF(Tourn="MSC",6,5)))),"") ->  | AL63: =IF(AJ63="x",INDEX(Qual!$C$8:$U$133,MATCH(AI63,Qual!$C$8:$C$133,0),IF(Tourn="Dbls",8,IF(Tourn="2-Day",7,IF(Tourn="MSC",8,6)))),"") ->  | AM63: =IF(AJ63="x",INDEX(Qual!$C$8:$U$133,MATCH(AI63,Qual!$C$8:$C$133,0),IF(Tourn="Dbls",9,IF(Tourn="2-Day",8,IF(Tourn="MSC",10,7)))),"") ->  | AO63: =IF(AP63=0,"",'Check-In'!$B68) ->  | AP63: =IF(Tourn="2-Day",'Check-In'!U68,IF(Tourn="Dbls", 'Check-In'!S68,'Check-In'!P68)) -> 0 | AQ63: =IF(AP63="x",INDEX(Qual!$C$8:$U$133,MATCH(AO63,Qual!$C$8:$C$133,0),IF(Tourn="Dbls",15,IF(Tourn="2-Day",10,IF(Tourn="MSC",12,8)))),"") ->  | AR63: =IF(AP63="x",INDEX(Qual!$C$8:$U$133,MATCH(AO63,Qual!$C$8:$C$133,0),IF(Tourn="Dbls",16,IF(Tourn="2-Day",11,IF(Tourn="MSC",14,9)))),"") ->  | AS63: =IF(AP63="x",INDEX(Qual!$C$8:$U$133,MATCH(AO63,Qual!$C$8:$C$133,0),IF(Tourn="Dbls",17,IF(Tourn="2-Day",12,IF(Tourn="MSC",16,10)))),"") -> 
AI64: =IF(AJ64=0,"",'Check-In'!$B69) ->  | AJ64: =IF(Tourn="2-Day",'Check-In'!T69,IF(Tourn="Dbls", 'Check-In'!R69,'Check-In'!P69)) -> 0 | AK64: =IF(AJ64="x",INDEX(Qual!$C$8:$U$133,MATCH(AI64,Qual!$C$8:$C$133,0),IF(Tourn="Dbls",7,IF(Tourn="2-Day",6,IF(Tourn="MSC",6,5)))),"") ->  | AL64: =IF(AJ64="x",INDEX(Qual!$C$8:$U$133,MATCH(AI64,Qual!$C$8:$C$133,0),IF(Tourn="Dbls",8,IF(Tourn="2-Day",7,IF(Tourn="MSC",8,6)))),"") ->  | AM64: =IF(AJ64="x",INDEX(Qual!$C$8:$U$133,MATCH(AI64,Qual!$C$8:$C$133,0),IF(Tourn="Dbls",9,IF(Tourn="2-Day",8,IF(Tourn="MSC",10,7)))),"") ->  | AO64: =IF(AP64=0,"",'Check-In'!$B69) ->  | AP64: =IF(Tourn="2-Day",'Check-In'!U69,IF(Tourn="Dbls", 'Check-In'!S69,'Check-In'!P69)) -> 0 | AQ64: =IF(AP64="x",INDEX(Qual!$C$8:$U$133,MATCH(AO64,Qual!$C$8:$C$133,0),IF(Tourn="Dbls",15,IF(Tourn="2-Day",10,IF(Tourn="MSC",12,8)))),"") ->  | AR64: =IF(AP64="x",INDEX(Qual!$C$8:$U$133,MATCH(AO64,Qual!$C$8:$C$133,0),IF(Tourn="Dbls",16,IF(Tourn="2-Day",11,IF(Tourn="MSC",14,9)))),"") ->  | AS64: =IF(AP64="x",INDEX(Qual!$C$8:$U$133,MATCH(AO64,Qual!$C$8:$C$133,0),IF(Tourn="Dbls",17,IF(Tourn="2-Day",12,IF(Tourn="MSC",16,10)))),"") -> 
AI65: =IF(AJ65=0,"",'Check-In'!$B70) ->  | AJ65: =IF(Tourn="2-Day",'Check-In'!T70,IF(Tourn="Dbls", 'Check-In'!R70,'Check-In'!P70)) -> 0 | AK65: =IF(AJ65="x",INDEX(Qual!$C$8:$U$133,MATCH(AI65,Qual!$C$8:$C$133,0),IF(Tourn="Dbls",7,IF(Tourn="2-Day",6,IF(Tourn="MSC",6,5)))),"") ->  | AL65: =IF(AJ65="x",INDEX(Qual!$C$8:$U$133,MATCH(AI65,Qual!$C$8:$C$133,0),IF(Tourn="Dbls",8,IF(Tourn="2-Day",7,IF(Tourn="MSC",8,6)))),"") ->  | AM65: =IF(AJ65="x",INDEX(Qual!$C$8:$U$133,MATCH(AI65,Qual!$C$8:$C$133,0),IF(Tourn="Dbls",9,IF(Tourn="2-Day",8,IF(Tourn="MSC",10,7)))),"") ->  | AO65: =IF(AP65=0,"",'Check-In'!$B70) ->  | AP65: =IF(Tourn="2-Day",'Check-In'!U70,IF(Tourn="Dbls", 'Check-In'!S70,'Check-In'!P70)) -> 0 | AQ65: =IF(AP65="x",INDEX(Qual!$C$8:$U$133,MATCH(AO65,Qual!$C$8:$C$133,0),IF(Tourn="Dbls",15,IF(Tourn="2-Day",10,IF(Tourn="MSC",12,8)))),"") ->  | AR65: =IF(AP65="x",INDEX(Qual!$C$8:$U$133,MATCH(AO65,Qual!$C$8:$C$133,0),IF(Tourn="Dbls",16,IF(Tourn="2-Day",11,IF(Tourn="MSC",14,9)))),"") ->  | AS65: =IF(AP65="x",INDEX(Qual!$C$8:$U$133,MATCH(AO65,Qual!$C$8:$C$133,0),IF(Tourn="Dbls",17,IF(Tourn="2-Day",12,IF(Tourn="MSC",16,10)))),"") -> 
AI66: =IF(AJ66=0,"",'Check-In'!$B71) ->  | AJ66: =IF(Tourn="2-Day",'Check-In'!T71,IF(Tourn="Dbls", 'Check-In'!R71,'Check-In'!P71)) -> 0 | AK66: =IF(AJ66="x",INDEX(Qual!$C$8:$U$133,MATCH(AI66,Qual!$C$8:$C$133,0),IF(Tourn="Dbls",7,IF(Tourn="2-Day",6,IF(Tourn="MSC",6,5)))),"") ->  | AL66: =IF(AJ66="x",INDEX(Qual!$C$8:$U$133,MATCH(AI66,Qual!$C$8:$C$133,0),IF(Tourn="Dbls",8,IF(Tourn="2-Day",7,IF(Tourn="MSC",8,6)))),"") ->  | AM66: =IF(AJ66="x",INDEX(Qual!$C$8:$U$133,MATCH(AI66,Qual!$C$8:$C$133,0),IF(Tourn="Dbls",9,IF(Tourn="2-Day",8,IF(Tourn="MSC",10,7)))),"") ->  | AO66: =IF(AP66=0,"",'Check-In'!$B71) ->  | AP66: =IF(Tourn="2-Day",'Check-In'!U71,IF(Tourn="Dbls", 'Check-In'!S71,'Check-In'!P71)) -> 0 | AQ66: =IF(AP66="x",INDEX(Qual!$C$8:$U$133,MATCH(AO66,Qual!$C$8:$C$133,0),IF(Tourn="Dbls",15,IF(Tourn="2-Day",10,IF(Tourn="MSC",12,8)))),"") ->  | AR66: =IF(AP66="x",INDEX(Qual!$C$8:$U$133,MATCH(AO66,Qual!$C$8:$C$133,0),IF(Tourn="Dbls",16,IF(Tourn="2-Day",11,IF(Tourn="MSC",14,9)))),"") ->  | AS66: =IF(AP66="x",INDEX(Qual!$C$8:$U$133,MATCH(AO66,Qual!$C$8:$C$133,0),IF(Tourn="Dbls",17,IF(Tourn="2-Day",12,IF(Tourn="MSC",16,10)))),"") -> 
AI67: =IF(AJ67=0,"",'Check-In'!$B72) ->  | AJ67: =IF(Tourn="2-Day",'Check-In'!T72,IF(Tourn="Dbls", 'Check-In'!R72,'Check-In'!P72)) -> 0 | AK67: =IF(AJ67="x",INDEX(Qual!$C$8:$U$133,MATCH(AI67,Qual!$C$8:$C$133,0),IF(Tourn="Dbls",7,IF(Tourn="2-Day",6,IF(Tourn="MSC",6,5)))),"") ->  | AL67: =IF(AJ67="x",INDEX(Qual!$C$8:$U$133,MATCH(AI67,Qual!$C$8:$C$133,0),IF(Tourn="Dbls",8,IF(Tourn="2-Day",7,IF(Tourn="MSC",8,6)))),"") ->  | AM67: =IF(AJ67="x",INDEX(Qual!$C$8:$U$133,MATCH(AI67,Qual!$C$8:$C$133,0),IF(Tourn="Dbls",9,IF(Tourn="2-Day",8,IF(Tourn="MSC",10,7)))),"") ->  | AO67: =IF(AP67=0,"",'Check-In'!$B72) ->  | AP67: =IF(Tourn="2-Day",'Check-In'!U72,IF(Tourn="Dbls", 'Check-In'!S72,'Check-In'!P72)) -> 0 | AQ67: =IF(AP67="x",INDEX(Qual!$C$8:$U$133,MATCH(AO67,Qual!$C$8:$C$133,0),IF(Tourn="Dbls",15,IF(Tourn="2-Day",10,IF(Tourn="MSC",12,8)))),"") ->  | AR67: =IF(AP67="x",INDEX(Qual!$C$8:$U$133,MATCH(AO67,Qual!$C$8:$C$133,0),IF(Tourn="Dbls",16,IF(Tourn="2-Day",11,IF(Tourn="MSC",14,9)))),"") ->  | AS67: =IF(AP67="x",INDEX(Qual!$C$8:$U$133,MATCH(AO67,Qual!$C$8:$C$133,0),IF(Tourn="Dbls",17,IF(Tourn="2-Day",12,IF(Tourn="MSC",16,10)))),"") -> 
AI68: =IF(AJ68=0,"",'Check-In'!$B73) ->  | AJ68: =IF(Tourn="2-Day",'Check-In'!T73,IF(Tourn="Dbls", 'Check-In'!R73,'Check-In'!P73)) -> 0 | AK68: =IF(AJ68="x",INDEX(Qual!$C$8:$U$133,MATCH(AI68,Qual!$C$8:$C$133,0),IF(Tourn="Dbls",7,IF(Tourn="2-Day",6,IF(Tourn="MSC",6,5)))),"") ->  | AL68: =IF(AJ68="x",INDEX(Qual!$C$8:$U$133,MATCH(AI68,Qual!$C$8:$C$133,0),IF(Tourn="Dbls",8,IF(Tourn="2-Day",7,IF(Tourn="MSC",8,6)))),"") ->  | AM68: =IF(AJ68="x",INDEX(Qual!$C$8:$U$133,MATCH(AI68,Qual!$C$8:$C$133,0),IF(Tourn="Dbls",9,IF(Tourn="2-Day",8,IF(Tourn="MSC",10,7)))),"") ->  | AO68: =IF(AP68=0,"",'Check-In'!$B73) ->  | AP68: =IF(Tourn="2-Day",'Check-In'!U73,IF(Tourn="Dbls", 'Check-In'!S73,'Check-In'!P73)) -> 0 | AQ68: =IF(AP68="x",INDEX(Qual!$C$8:$U$133,MATCH(AO68,Qual!$C$8:$C$133,0),IF(Tourn="Dbls",15,IF(Tourn="2-Day",10,IF(Tourn="MSC",12,8)))),"") ->  | AR68: =IF(AP68="x",INDEX(Qual!$C$8:$U$133,MATCH(AO68,Qual!$C$8:$C$133,0),IF(Tourn="Dbls",16,IF(Tourn="2-Day",11,IF(Tourn="MSC",14,9)))),"") ->  | AS68: =IF(AP68="x",INDEX(Qual!$C$8:$U$133,MATCH(AO68,Qual!$C$8:$C$133,0),IF(Tourn="Dbls",17,IF(Tourn="2-Day",12,IF(Tourn="MSC",16,10)))),"") -> 
AI69: =IF(AJ69=0,"",'Check-In'!$B74) ->  | AJ69: =IF(Tourn="2-Day",'Check-In'!T74,IF(Tourn="Dbls", 'Check-In'!R74,'Check-In'!P74)) -> 0 | AK69: =IF(AJ69="x",INDEX(Qual!$C$8:$U$133,MATCH(AI69,Qual!$C$8:$C$133,0),IF(Tourn="Dbls",7,IF(Tourn="2-Day",6,IF(Tourn="MSC",6,5)))),"") ->  | AL69: =IF(AJ69="x",INDEX(Qual!$C$8:$U$133,MATCH(AI69,Qual!$C$8:$C$133,0),IF(Tourn="Dbls",8,IF(Tourn="2-Day",7,IF(Tourn="MSC",8,6)))),"") ->  | AM69: =IF(AJ69="x",INDEX(Qual!$C$8:$U$133,MATCH(AI69,Qual!$C$8:$C$133,0),IF(Tourn="Dbls",9,IF(Tourn="2-Day",8,IF(Tourn="MSC",10,7)))),"") ->  | AO69: =IF(AP69=0,"",'Check-In'!$B74) ->  | AP69: =IF(Tourn="2-Day",'Check-In'!U74,IF(Tourn="Dbls", 'Check-In'!S74,'Check-In'!P74)) -> 0 | AQ69: =IF(AP69="x",INDEX(Qual!$C$8:$U$133,MATCH(AO69,Qual!$C$8:$C$133,0),IF(Tourn="Dbls",15,IF(Tourn="2-Day",10,IF(Tourn="MSC",12,8)))),"") ->  | AR69: =IF(AP69="x",INDEX(Qual!$C$8:$U$133,MATCH(AO69,Qual!$C$8:$C$133,0),IF(Tourn="Dbls",16,IF(Tourn="2-Day",11,IF(Tourn="MSC",14,9)))),"") ->  | AS69: =IF(AP69="x",INDEX(Qual!$C$8:$U$133,MATCH(AO69,Qual!$C$8:$C$133,0),IF(Tourn="Dbls",17,IF(Tourn="2-Day",12,IF(Tourn="MSC",16,10)))),"") -> 
AI70: =IF(AJ70=0,"",'Check-In'!$B75) ->  | AJ70: =IF(Tourn="2-Day",'Check-In'!T75,IF(Tourn="Dbls", 'Check-In'!R75,'Check-In'!P75)) -> 0 | AK70: =IF(AJ70="x",INDEX(Qual!$C$8:$U$133,MATCH(AI70,Qual!$C$8:$C$133,0),IF(Tourn="Dbls",7,IF(Tourn="2-Day",6,IF(Tourn="MSC",6,5)))),"") ->  | AL70: =IF(AJ70="x",INDEX(Qual!$C$8:$U$133,MATCH(AI70,Qual!$C$8:$C$133,0),IF(Tourn="Dbls",8,IF(Tourn="2-Day",7,IF(Tourn="MSC",8,6)))),"") ->  | AM70: =IF(AJ70="x",INDEX(Qual!$C$8:$U$133,MATCH(AI70,Qual!$C$8:$C$133,0),IF(Tourn="Dbls",9,IF(Tourn="2-Day",8,IF(Tourn="MSC",10,7)))),"") ->  | AO70: =IF(AP70=0,"",'Check-In'!$B75) ->  | AP70: =IF(Tourn="2-Day",'Check-In'!U75,IF(Tourn="Dbls", 'Check-In'!S75,'Check-In'!P75)) -> 0 | AQ70: =IF(AP70="x",INDEX(Qual!$C$8:$U$133,MATCH(AO70,Qual!$C$8:$C$133,0),IF(Tourn="Dbls",15,IF(Tourn="2-Day",10,IF(Tourn="MSC",12,8)))),"") ->  | AR70: =IF(AP70="x",INDEX(Qual!$C$8:$U$133,MATCH(AO70,Qual!$C$8:$C$133,0),IF(Tourn="Dbls",16,IF(Tourn="2-Day",11,IF(Tourn="MSC",14,9)))),"") ->  | AS70: =IF(AP70="x",INDEX(Qual!$C$8:$U$133,MATCH(AO70,Qual!$C$8:$C$133,0),IF(Tourn="Dbls",17,IF(Tourn="2-Day",12,IF(Tourn="MSC",16,10)))),"") -> 
AI71: =IF(AJ71=0,"",'Check-In'!$B76) ->  | AJ71: =IF(Tourn="2-Day",'Check-In'!T76,IF(Tourn="Dbls", 'Check-In'!R76,'Check-In'!P76)) -> 0 | AK71: =IF(AJ71="x",INDEX(Qual!$C$8:$U$133,MATCH(AI71,Qual!$C$8:$C$133,0),IF(Tourn="Dbls",7,IF(Tourn="2-Day",6,IF(Tourn="MSC",6,5)))),"") ->  | AL71: =IF(AJ71="x",INDEX(Qual!$C$8:$U$133,MATCH(AI71,Qual!$C$8:$C$133,0),IF(Tourn="Dbls",8,IF(Tourn="2-Day",7,IF(Tourn="MSC",8,6)))),"") ->  | AM71: =IF(AJ71="x",INDEX(Qual!$C$8:$U$133,MATCH(AI71,Qual!$C$8:$C$133,0),IF(Tourn="Dbls",9,IF(Tourn="2-Day",8,IF(Tourn="MSC",10,7)))),"") ->  | AO71: =IF(AP71=0,"",'Check-In'!$B76) ->  | AP71: =IF(Tourn="2-Day",'Check-In'!U76,IF(Tourn="Dbls", 'Check-In'!S76,'Check-In'!P76)) -> 0 | AQ71: =IF(AP71="x",INDEX(Qual!$C$8:$U$133,MATCH(AO71,Qual!$C$8:$C$133,0),IF(Tourn="Dbls",15,IF(Tourn="2-Day",10,IF(Tourn="MSC",12,8)))),"") ->  | AR71: =IF(AP71="x",INDEX(Qual!$C$8:$U$133,MATCH(AO71,Qual!$C$8:$C$133,0),IF(Tourn="Dbls",16,IF(Tourn="2-Day",11,IF(Tourn="MSC",14,9)))),"") ->  | AS71: =IF(AP71="x",INDEX(Qual!$C$8:$U$133,MATCH(AO71,Qual!$C$8:$C$133,0),IF(Tourn="Dbls",17,IF(Tourn="2-Day",12,IF(Tourn="MSC",16,10)))),"") -> 
AI72: =IF(AJ72=0,"",'Check-In'!$B77) ->  | AJ72: =IF(Tourn="2-Day",'Check-In'!T77,IF(Tourn="Dbls", 'Check-In'!R77,'Check-In'!P77)) -> 0 | AK72: =IF(AJ72="x",INDEX(Qual!$C$8:$U$133,MATCH(AI72,Qual!$C$8:$C$133,0),IF(Tourn="Dbls",7,IF(Tourn="2-Day",6,IF(Tourn="MSC",6,5)))),"") ->  | AL72: =IF(AJ72="x",INDEX(Qual!$C$8:$U$133,MATCH(AI72,Qual!$C$8:$C$133,0),IF(Tourn="Dbls",8,IF(Tourn="2-Day",7,IF(Tourn="MSC",8,6)))),"") ->  | AM72: =IF(AJ72="x",INDEX(Qual!$C$8:$U$133,MATCH(AI72,Qual!$C$8:$C$133,0),IF(Tourn="Dbls",9,IF(Tourn="2-Day",8,IF(Tourn="MSC",10,7)))),"") ->  | AO72: =IF(AP72=0,"",'Check-In'!$B77) ->  | AP72: =IF(Tourn="2-Day",'Check-In'!U77,IF(Tourn="Dbls", 'Check-In'!S77,'Check-In'!P77)) -> 0 | AQ72: =IF(AP72="x",INDEX(Qual!$C$8:$U$133,MATCH(AO72,Qual!$C$8:$C$133,0),IF(Tourn="Dbls",15,IF(Tourn="2-Day",10,IF(Tourn="MSC",12,8)))),"") ->  | AR72: =IF(AP72="x",INDEX(Qual!$C$8:$U$133,MATCH(AO72,Qual!$C$8:$C$133,0),IF(Tourn="Dbls",16,IF(Tourn="2-Day",11,IF(Tourn="MSC",14,9)))),"") ->  | AS72: =IF(AP72="x",INDEX(Qual!$C$8:$U$133,MATCH(AO72,Qual!$C$8:$C$133,0),IF(Tourn="Dbls",17,IF(Tourn="2-Day",12,IF(Tourn="MSC",16,10)))),"") -> 
AI73: =IF(AJ73=0,"",'Check-In'!$B78) ->  | AJ73: =IF(Tourn="2-Day",'Check-In'!T78,IF(Tourn="Dbls", 'Check-In'!R78,'Check-In'!P78)) -> 0 | AK73: =IF(AJ73="x",INDEX(Qual!$C$8:$U$133,MATCH(AI73,Qual!$C$8:$C$133,0),IF(Tourn="Dbls",7,IF(Tourn="2-Day",6,IF(Tourn="MSC",6,5)))),"") ->  | AL73: =IF(AJ73="x",INDEX(Qual!$C$8:$U$133,MATCH(AI73,Qual!$C$8:$C$133,0),IF(Tourn="Dbls",8,IF(Tourn="2-Day",7,IF(Tourn="MSC",8,6)))),"") ->  | AM73: =IF(AJ73="x",INDEX(Qual!$C$8:$U$133,MATCH(AI73,Qual!$C$8:$C$133,0),IF(Tourn="Dbls",9,IF(Tourn="2-Day",8,IF(Tourn="MSC",10,7)))),"") ->  | AO73: =IF(AP73=0,"",'Check-In'!$B78) ->  | AP73: =IF(Tourn="2-Day",'Check-In'!U78,IF(Tourn="Dbls", 'Check-In'!S78,'Check-In'!P78)) -> 0 | AQ73: =IF(AP73="x",INDEX(Qual!$C$8:$U$133,MATCH(AO73,Qual!$C$8:$C$133,0),IF(Tourn="Dbls",15,IF(Tourn="2-Day",10,IF(Tourn="MSC",12,8)))),"") ->  | AR73: =IF(AP73="x",INDEX(Qual!$C$8:$U$133,MATCH(AO73,Qual!$C$8:$C$133,0),IF(Tourn="Dbls",16,IF(Tourn="2-Day",11,IF(Tourn="MSC",14,9)))),"") ->  | AS73: =IF(AP73="x",INDEX(Qual!$C$8:$U$133,MATCH(AO73,Qual!$C$8:$C$133,0),IF(Tourn="Dbls",17,IF(Tourn="2-Day",12,IF(Tourn="MSC",16,10)))),"") -> 
AI74: =IF(AJ74=0,"",'Check-In'!$B79) ->  | AJ74: =IF(Tourn="2-Day",'Check-In'!T79,IF(Tourn="Dbls", 'Check-In'!R79,'Check-In'!P79)) -> 0 | AK74: =IF(AJ74="x",INDEX(Qual!$C$8:$U$133,MATCH(AI74,Qual!$C$8:$C$133,0),IF(Tourn="Dbls",7,IF(Tourn="2-Day",6,IF(Tourn="MSC",6,5)))),"") ->  | AL74: =IF(AJ74="x",INDEX(Qual!$C$8:$U$133,MATCH(AI74,Qual!$C$8:$C$133,0),IF(Tourn="Dbls",8,IF(Tourn="2-Day",7,IF(Tourn="MSC",8,6)))),"") ->  | AM74: =IF(AJ74="x",INDEX(Qual!$C$8:$U$133,MATCH(AI74,Qual!$C$8:$C$133,0),IF(Tourn="Dbls",9,IF(Tourn="2-Day",8,IF(Tourn="MSC",10,7)))),"") ->  | AO74: =IF(AP74=0,"",'Check-In'!$B79) ->  | AP74: =IF(Tourn="2-Day",'Check-In'!U79,IF(Tourn="Dbls", 'Check-In'!S79,'Check-In'!P79)) -> 0 | AQ74: =IF(AP74="x",INDEX(Qual!$C$8:$U$133,MATCH(AO74,Qual!$C$8:$C$133,0),IF(Tourn="Dbls",15,IF(Tourn="2-Day",10,IF(Tourn="MSC",12,8)))),"") ->  | AR74: =IF(AP74="x",INDEX(Qual!$C$8:$U$133,MATCH(AO74,Qual!$C$8:$C$133,0),IF(Tourn="Dbls",16,IF(Tourn="2-Day",11,IF(Tourn="MSC",14,9)))),"") ->  | AS74: =IF(AP74="x",INDEX(Qual!$C$8:$U$133,MATCH(AO74,Qual!$C$8:$C$133,0),IF(Tourn="Dbls",17,IF(Tourn="2-Day",12,IF(Tourn="MSC",16,10)))),"") -> 
AI75: =IF(AJ75=0,"",'Check-In'!$B80) ->  | AJ75: =IF(Tourn="2-Day",'Check-In'!T80,IF(Tourn="Dbls", 'Check-In'!R80,'Check-In'!P80)) -> 0 | AK75: =IF(AJ75="x",INDEX(Qual!$C$8:$U$133,MATCH(AI75,Qual!$C$8:$C$133,0),IF(Tourn="Dbls",7,IF(Tourn="2-Day",6,IF(Tourn="MSC",6,5)))),"") ->  | AL75: =IF(AJ75="x",INDEX(Qual!$C$8:$U$133,MATCH(AI75,Qual!$C$8:$C$133,0),IF(Tourn="Dbls",8,IF(Tourn="2-Day",7,IF(Tourn="MSC",8,6)))),"") ->  | AM75: =IF(AJ75="x",INDEX(Qual!$C$8:$U$133,MATCH(AI75,Qual!$C$8:$C$133,0),IF(Tourn="Dbls",9,IF(Tourn="2-Day",8,IF(Tourn="MSC",10,7)))),"") ->  | AO75: =IF(AP75=0,"",'Check-In'!$B80) ->  | AP75: =IF(Tourn="2-Day",'Check-In'!U80,IF(Tourn="Dbls", 'Check-In'!S80,'Check-In'!P80)) -> 0 | AQ75: =IF(AP75="x",INDEX(Qual!$C$8:$U$133,MATCH(AO75,Qual!$C$8:$C$133,0),IF(Tourn="Dbls",15,IF(Tourn="2-Day",10,IF(Tourn="MSC",12,8)))),"") ->  | AR75: =IF(AP75="x",INDEX(Qual!$C$8:$U$133,MATCH(AO75,Qual!$C$8:$C$133,0),IF(Tourn="Dbls",16,IF(Tourn="2-Day",11,IF(Tourn="MSC",14,9)))),"") ->  | AS75: =IF(AP75="x",INDEX(Qual!$C$8:$U$133,MATCH(AO75,Qual!$C$8:$C$133,0),IF(Tourn="Dbls",17,IF(Tourn="2-Day",12,IF(Tourn="MSC",16,10)))),"") -> 
AI76: =IF(AJ76=0,"",'Check-In'!$B81) ->  | AJ76: =IF(Tourn="2-Day",'Check-In'!T81,IF(Tourn="Dbls", 'Check-In'!R81,'Check-In'!P81)) -> 0 | AK76: =IF(AJ76="x",INDEX(Qual!$C$8:$U$133,MATCH(AI76,Qual!$C$8:$C$133,0),IF(Tourn="Dbls",7,IF(Tourn="2-Day",6,IF(Tourn="MSC",6,5)))),"") ->  | AL76: =IF(AJ76="x",INDEX(Qual!$C$8:$U$133,MATCH(AI76,Qual!$C$8:$C$133,0),IF(Tourn="Dbls",8,IF(Tourn="2-Day",7,IF(Tourn="MSC",8,6)))),"") ->  | AM76: =IF(AJ76="x",INDEX(Qual!$C$8:$U$133,MATCH(AI76,Qual!$C$8:$C$133,0),IF(Tourn="Dbls",9,IF(Tourn="2-Day",8,IF(Tourn="MSC",10,7)))),"") ->  | AO76: =IF(AP76=0,"",'Check-In'!$B81) ->  | AP76: =IF(Tourn="2-Day",'Check-In'!U81,IF(Tourn="Dbls", 'Check-In'!S81,'Check-In'!P81)) -> 0 | AQ76: =IF(AP76="x",INDEX(Qual!$C$8:$U$133,MATCH(AO76,Qual!$C$8:$C$133,0),IF(Tourn="Dbls",15,IF(Tourn="2-Day",10,IF(Tourn="MSC",12,8)))),"") ->  | AR76: =IF(AP76="x",INDEX(Qual!$C$8:$U$133,MATCH(AO76,Qual!$C$8:$C$133,0),IF(Tourn="Dbls",16,IF(Tourn="2-Day",11,IF(Tourn="MSC",14,9)))),"") ->  | AS76: =IF(AP76="x",INDEX(Qual!$C$8:$U$133,MATCH(AO76,Qual!$C$8:$C$133,0),IF(Tourn="Dbls",17,IF(Tourn="2-Day",12,IF(Tourn="MSC",16,10)))),"") -> 
AI77: =IF(AJ77=0,"",'Check-In'!$B82) ->  | AJ77: =IF(Tourn="2-Day",'Check-In'!T82,IF(Tourn="Dbls", 'Check-In'!R82,'Check-In'!P82)) -> 0 | AK77: =IF(AJ77="x",INDEX(Qual!$C$8:$U$133,MATCH(AI77,Qual!$C$8:$C$133,0),IF(Tourn="Dbls",7,IF(Tourn="2-Day",6,IF(Tourn="MSC",6,5)))),"") ->  | AL77: =IF(AJ77="x",INDEX(Qual!$C$8:$U$133,MATCH(AI77,Qual!$C$8:$C$133,0),IF(Tourn="Dbls",8,IF(Tourn="2-Day",7,IF(Tourn="MSC",8,6)))),"") ->  | AM77: =IF(AJ77="x",INDEX(Qual!$C$8:$U$133,MATCH(AI77,Qual!$C$8:$C$133,0),IF(Tourn="Dbls",9,IF(Tourn="2-Day",8,IF(Tourn="MSC",10,7)))),"") ->  | AO77: =IF(AP77=0,"",'Check-In'!$B82) ->  | AP77: =IF(Tourn="2-Day",'Check-In'!U82,IF(Tourn="Dbls", 'Check-In'!S82,'Check-In'!P82)) -> 0 | AQ77: =IF(AP77="x",INDEX(Qual!$C$8:$U$133,MATCH(AO77,Qual!$C$8:$C$133,0),IF(Tourn="Dbls",15,IF(Tourn="2-Day",10,IF(Tourn="MSC",12,8)))),"") ->  | AR77: =IF(AP77="x",INDEX(Qual!$C$8:$U$133,MATCH(AO77,Qual!$C$8:$C$133,0),IF(Tourn="Dbls",16,IF(Tourn="2-Day",11,IF(Tourn="MSC",14,9)))),"") ->  | AS77: =IF(AP77="x",INDEX(Qual!$C$8:$U$133,MATCH(AO77,Qual!$C$8:$C$133,0),IF(Tourn="Dbls",17,IF(Tourn="2-Day",12,IF(Tourn="MSC",16,10)))),"") -> 
AI78: =IF(AJ78=0,"",'Check-In'!$B83) ->  | AJ78: =IF(Tourn="2-Day",'Check-In'!T83,IF(Tourn="Dbls", 'Check-In'!R83,'Check-In'!P83)) -> 0 | AK78: =IF(AJ78="x",INDEX(Qual!$C$8:$U$133,MATCH(AI78,Qual!$C$8:$C$133,0),IF(Tourn="Dbls",7,IF(Tourn="2-Day",6,IF(Tourn="MSC",6,5)))),"") ->  | AL78: =IF(AJ78="x",INDEX(Qual!$C$8:$U$133,MATCH(AI78,Qual!$C$8:$C$133,0),IF(Tourn="Dbls",8,IF(Tourn="2-Day",7,IF(Tourn="MSC",8,6)))),"") ->  | AM78: =IF(AJ78="x",INDEX(Qual!$C$8:$U$133,MATCH(AI78,Qual!$C$8:$C$133,0),IF(Tourn="Dbls",9,IF(Tourn="2-Day",8,IF(Tourn="MSC",10,7)))),"") ->  | AO78: =IF(AP78=0,"",'Check-In'!$B83) ->  | AP78: =IF(Tourn="2-Day",'Check-In'!U83,IF(Tourn="Dbls", 'Check-In'!S83,'Check-In'!P83)) -> 0 | AQ78: =IF(AP78="x",INDEX(Qual!$C$8:$U$133,MATCH(AO78,Qual!$C$8:$C$133,0),IF(Tourn="Dbls",15,IF(Tourn="2-Day",10,IF(Tourn="MSC",12,8)))),"") ->  | AR78: =IF(AP78="x",INDEX(Qual!$C$8:$U$133,MATCH(AO78,Qual!$C$8:$C$133,0),IF(Tourn="Dbls",16,IF(Tourn="2-Day",11,IF(Tourn="MSC",14,9)))),"") ->  | AS78: =IF(AP78="x",INDEX(Qual!$C$8:$U$133,MATCH(AO78,Qual!$C$8:$C$133,0),IF(Tourn="Dbls",17,IF(Tourn="2-Day",12,IF(Tourn="MSC",16,10)))),"") -> 
AI79: =IF(AJ79=0,"",'Check-In'!$B84) ->  | AJ79: =IF(Tourn="2-Day",'Check-In'!T84,IF(Tourn="Dbls", 'Check-In'!R84,'Check-In'!P84)) -> 0 | AK79: =IF(AJ79="x",INDEX(Qual!$C$8:$U$133,MATCH(AI79,Qual!$C$8:$C$133,0),IF(Tourn="Dbls",7,IF(Tourn="2-Day",6,IF(Tourn="MSC",6,5)))),"") ->  | AL79: =IF(AJ79="x",INDEX(Qual!$C$8:$U$133,MATCH(AI79,Qual!$C$8:$C$133,0),IF(Tourn="Dbls",8,IF(Tourn="2-Day",7,IF(Tourn="MSC",8,6)))),"") ->  | AM79: =IF(AJ79="x",INDEX(Qual!$C$8:$U$133,MATCH(AI79,Qual!$C$8:$C$133,0),IF(Tourn="Dbls",9,IF(Tourn="2-Day",8,IF(Tourn="MSC",10,7)))),"") ->  | AO79: =IF(AP79=0,"",'Check-In'!$B84) ->  | AP79: =IF(Tourn="2-Day",'Check-In'!U84,IF(Tourn="Dbls", 'Check-In'!S84,'Check-In'!P84)) -> 0 | AQ79: =IF(AP79="x",INDEX(Qual!$C$8:$U$133,MATCH(AO79,Qual!$C$8:$C$133,0),IF(Tourn="Dbls",15,IF(Tourn="2-Day",10,IF(Tourn="MSC",12,8)))),"") ->  | AR79: =IF(AP79="x",INDEX(Qual!$C$8:$U$133,MATCH(AO79,Qual!$C$8:$C$133,0),IF(Tourn="Dbls",16,IF(Tourn="2-Day",11,IF(Tourn="MSC",14,9)))),"") ->  | AS79: =IF(AP79="x",INDEX(Qual!$C$8:$U$133,MATCH(AO79,Qual!$C$8:$C$133,0),IF(Tourn="Dbls",17,IF(Tourn="2-Day",12,IF(Tourn="MSC",16,10)))),"") -> 
AI80: =IF(AJ80=0,"",'Check-In'!$B85) ->  | AJ80: =IF(Tourn="2-Day",'Check-In'!T85,IF(Tourn="Dbls", 'Check-In'!R85,'Check-In'!P85)) -> 0 | AK80: =IF(AJ80="x",INDEX(Qual!$C$8:$U$133,MATCH(AI80,Qual!$C$8:$C$133,0),IF(Tourn="Dbls",7,IF(Tourn="2-Day",6,IF(Tourn="MSC",6,5)))),"") ->  | AL80: =IF(AJ80="x",INDEX(Qual!$C$8:$U$133,MATCH(AI80,Qual!$C$8:$C$133,0),IF(Tourn="Dbls",8,IF(Tourn="2-Day",7,IF(Tourn="MSC",8,6)))),"") ->  | AM80: =IF(AJ80="x",INDEX(Qual!$C$8:$U$133,MATCH(AI80,Qual!$C$8:$C$133,0),IF(Tourn="Dbls",9,IF(Tourn="2-Day",8,IF(Tourn="MSC",10,7)))),"") ->  | AO80: =IF(AP80=0,"",'Check-In'!$B85) ->  | AP80: =IF(Tourn="2-Day",'Check-In'!U85,IF(Tourn="Dbls", 'Check-In'!S85,'Check-In'!P85)) -> 0 | AQ80: =IF(AP80="x",INDEX(Qual!$C$8:$U$133,MATCH(AO80,Qual!$C$8:$C$133,0),IF(Tourn="Dbls",15,IF(Tourn="2-Day",10,IF(Tourn="MSC",12,8)))),"") ->  | AR80: =IF(AP80="x",INDEX(Qual!$C$8:$U$133,MATCH(AO80,Qual!$C$8:$C$133,0),IF(Tourn="Dbls",16,IF(Tourn="2-Day",11,IF(Tourn="MSC",14,9)))),"") ->  | AS80: =IF(AP80="x",INDEX(Qual!$C$8:$U$133,MATCH(AO80,Qual!$C$8:$C$133,0),IF(Tourn="Dbls",17,IF(Tourn="2-Day",12,IF(Tourn="MSC",16,10)))),"") -> 
AI81: =IF(AJ81=0,"",'Check-In'!$B86) ->  | AJ81: =IF(Tourn="2-Day",'Check-In'!T86,IF(Tourn="Dbls", 'Check-In'!R86,'Check-In'!P86)) -> 0 | AK81: =IF(AJ81="x",INDEX(Qual!$C$8:$U$133,MATCH(AI81,Qual!$C$8:$C$133,0),IF(Tourn="Dbls",7,IF(Tourn="2-Day",6,IF(Tourn="MSC",6,5)))),"") ->  | AL81: =IF(AJ81="x",INDEX(Qual!$C$8:$U$133,MATCH(AI81,Qual!$C$8:$C$133,0),IF(Tourn="Dbls",8,IF(Tourn="2-Day",7,IF(Tourn="MSC",8,6)))),"") ->  | AM81: =IF(AJ81="x",INDEX(Qual!$C$8:$U$133,MATCH(AI81,Qual!$C$8:$C$133,0),IF(Tourn="Dbls",9,IF(Tourn="2-Day",8,IF(Tourn="MSC",10,7)))),"") ->  | AO81: =IF(AP81=0,"",'Check-In'!$B86) ->  | AP81: =IF(Tourn="2-Day",'Check-In'!U86,IF(Tourn="Dbls", 'Check-In'!S86,'Check-In'!P86)) -> 0 | AQ81: =IF(AP81="x",INDEX(Qual!$C$8:$U$133,MATCH(AO81,Qual!$C$8:$C$133,0),IF(Tourn="Dbls",15,IF(Tourn="2-Day",10,IF(Tourn="MSC",12,8)))),"") ->  | AR81: =IF(AP81="x",INDEX(Qual!$C$8:$U$133,MATCH(AO81,Qual!$C$8:$C$133,0),IF(Tourn="Dbls",16,IF(Tourn="2-Day",11,IF(Tourn="MSC",14,9)))),"") ->  | AS81: =IF(AP81="x",INDEX(Qual!$C$8:$U$133,MATCH(AO81,Qual!$C$8:$C$133,0),IF(Tourn="Dbls",17,IF(Tourn="2-Day",12,IF(Tourn="MSC",16,10)))),"") -> 
AI82: =IF(AJ82=0,"",'Check-In'!$B87) ->  | AJ82: =IF(Tourn="2-Day",'Check-In'!T87,IF(Tourn="Dbls", 'Check-In'!R87,'Check-In'!P87)) -> 0 | AK82: =IF(AJ82="x",INDEX(Qual!$C$8:$U$133,MATCH(AI82,Qual!$C$8:$C$133,0),IF(Tourn="Dbls",7,IF(Tourn="2-Day",6,IF(Tourn="MSC",6,5)))),"") ->  | AL82: =IF(AJ82="x",INDEX(Qual!$C$8:$U$133,MATCH(AI82,Qual!$C$8:$C$133,0),IF(Tourn="Dbls",8,IF(Tourn="2-Day",7,IF(Tourn="MSC",8,6)))),"") ->  | AM82: =IF(AJ82="x",INDEX(Qual!$C$8:$U$133,MATCH(AI82,Qual!$C$8:$C$133,0),IF(Tourn="Dbls",9,IF(Tourn="2-Day",8,IF(Tourn="MSC",10,7)))),"") ->  | AO82: =IF(AP82=0,"",'Check-In'!$B87) ->  | AP82: =IF(Tourn="2-Day",'Check-In'!U87,IF(Tourn="Dbls", 'Check-In'!S87,'Check-In'!P87)) -> 0 | AQ82: =IF(AP82="x",INDEX(Qual!$C$8:$U$133,MATCH(AO82,Qual!$C$8:$C$133,0),IF(Tourn="Dbls",15,IF(Tourn="2-Day",10,IF(Tourn="MSC",12,8)))),"") ->  | AR82: =IF(AP82="x",INDEX(Qual!$C$8:$U$133,MATCH(AO82,Qual!$C$8:$C$133,0),IF(Tourn="Dbls",16,IF(Tourn="2-Day",11,IF(Tourn="MSC",14,9)))),"") ->  | AS82: =IF(AP82="x",INDEX(Qual!$C$8:$U$133,MATCH(AO82,Qual!$C$8:$C$133,0),IF(Tourn="Dbls",17,IF(Tourn="2-Day",12,IF(Tourn="MSC",16,10)))),"") -> 
AI83: =IF(AJ83=0,"",'Check-In'!$B88) ->  | AJ83: =IF(Tourn="2-Day",'Check-In'!T88,IF(Tourn="Dbls", 'Check-In'!R88,'Check-In'!P88)) -> 0 | AK83: =IF(AJ83="x",INDEX(Qual!$C$8:$U$133,MATCH(AI83,Qual!$C$8:$C$133,0),IF(Tourn="Dbls",7,IF(Tourn="2-Day",6,IF(Tourn="MSC",6,5)))),"") ->  | AL83: =IF(AJ83="x",INDEX(Qual!$C$8:$U$133,MATCH(AI83,Qual!$C$8:$C$133,0),IF(Tourn="Dbls",8,IF(Tourn="2-Day",7,IF(Tourn="MSC",8,6)))),"") ->  | AM83: =IF(AJ83="x",INDEX(Qual!$C$8:$U$133,MATCH(AI83,Qual!$C$8:$C$133,0),IF(Tourn="Dbls",9,IF(Tourn="2-Day",8,IF(Tourn="MSC",10,7)))),"") ->  | AO83: =IF(AP83=0,"",'Check-In'!$B88) ->  | AP83: =IF(Tourn="2-Day",'Check-In'!U88,IF(Tourn="Dbls", 'Check-In'!S88,'Check-In'!P88)) -> 0 | AQ83: =IF(AP83="x",INDEX(Qual!$C$8:$U$133,MATCH(AO83,Qual!$C$8:$C$133,0),IF(Tourn="Dbls",15,IF(Tourn="2-Day",10,IF(Tourn="MSC",12,8)))),"") ->  | AR83: =IF(AP83="x",INDEX(Qual!$C$8:$U$133,MATCH(AO83,Qual!$C$8:$C$133,0),IF(Tourn="Dbls",16,IF(Tourn="2-Day",11,IF(Tourn="MSC",14,9)))),"") ->  | AS83: =IF(AP83="x",INDEX(Qual!$C$8:$U$133,MATCH(AO83,Qual!$C$8:$C$133,0),IF(Tourn="Dbls",17,IF(Tourn="2-Day",12,IF(Tourn="MSC",16,10)))),"") -> 
AI84: =IF(AJ84=0,"",'Check-In'!$B89) ->  | AJ84: =IF(Tourn="2-Day",'Check-In'!T89,IF(Tourn="Dbls", 'Check-In'!R89,'Check-In'!P89)) -> 0 | AK84: =IF(AJ84="x",INDEX(Qual!$C$8:$U$133,MATCH(AI84,Qual!$C$8:$C$133,0),IF(Tourn="Dbls",7,IF(Tourn="2-Day",6,IF(Tourn="MSC",6,5)))),"") ->  | AL84: =IF(AJ84="x",INDEX(Qual!$C$8:$U$133,MATCH(AI84,Qual!$C$8:$C$133,0),IF(Tourn="Dbls",8,IF(Tourn="2-Day",7,IF(Tourn="MSC",8,6)))),"") ->  | AM84: =IF(AJ84="x",INDEX(Qual!$C$8:$U$133,MATCH(AI84,Qual!$C$8:$C$133,0),IF(Tourn="Dbls",9,IF(Tourn="2-Day",8,IF(Tourn="MSC",10,7)))),"") ->  | AO84: =IF(AP84=0,"",'Check-In'!$B89) ->  | AP84: =IF(Tourn="2-Day",'Check-In'!U89,IF(Tourn="Dbls", 'Check-In'!S89,'Check-In'!P89)) -> 0 | AQ84: =IF(AP84="x",INDEX(Qual!$C$8:$U$133,MATCH(AO84,Qual!$C$8:$C$133,0),IF(Tourn="Dbls",15,IF(Tourn="2-Day",10,IF(Tourn="MSC",12,8)))),"") ->  | AR84: =IF(AP84="x",INDEX(Qual!$C$8:$U$133,MATCH(AO84,Qual!$C$8:$C$133,0),IF(Tourn="Dbls",16,IF(Tourn="2-Day",11,IF(Tourn="MSC",14,9)))),"") ->  | AS84: =IF(AP84="x",INDEX(Qual!$C$8:$U$133,MATCH(AO84,Qual!$C$8:$C$133,0),IF(Tourn="Dbls",17,IF(Tourn="2-Day",12,IF(Tourn="MSC",16,10)))),"") -> 
AI85: =IF(AJ85=0,"",'Check-In'!$B90) ->  | AJ85: =IF(Tourn="2-Day",'Check-In'!T90,IF(Tourn="Dbls", 'Check-In'!R90,'Check-In'!P90)) -> 0 | AK85: =IF(AJ85="x",INDEX(Qual!$C$8:$U$133,MATCH(AI85,Qual!$C$8:$C$133,0),IF(Tourn="Dbls",7,IF(Tourn="2-Day",6,IF(Tourn="MSC",6,5)))),"") ->  | AL85: =IF(AJ85="x",INDEX(Qual!$C$8:$U$133,MATCH(AI85,Qual!$C$8:$C$133,0),IF(Tourn="Dbls",8,IF(Tourn="2-Day",7,IF(Tourn="MSC",8,6)))),"") ->  | AM85: =IF(AJ85="x",INDEX(Qual!$C$8:$U$133,MATCH(AI85,Qual!$C$8:$C$133,0),IF(Tourn="Dbls",9,IF(Tourn="2-Day",8,IF(Tourn="MSC",10,7)))),"") ->  | AO85: =IF(AP85=0,"",'Check-In'!$B90) ->  | AP85: =IF(Tourn="2-Day",'Check-In'!U90,IF(Tourn="Dbls", 'Check-In'!S90,'Check-In'!P90)) -> 0 | AQ85: =IF(AP85="x",INDEX(Qual!$C$8:$U$133,MATCH(AO85,Qual!$C$8:$C$133,0),IF(Tourn="Dbls",15,IF(Tourn="2-Day",10,IF(Tourn="MSC",12,8)))),"") ->  | AR85: =IF(AP85="x",INDEX(Qual!$C$8:$U$133,MATCH(AO85,Qual!$C$8:$C$133,0),IF(Tourn="Dbls",16,IF(Tourn="2-Day",11,IF(Tourn="MSC",14,9)))),"") ->  | AS85: =IF(AP85="x",INDEX(Qual!$C$8:$U$133,MATCH(AO85,Qual!$C$8:$C$133,0),IF(Tourn="Dbls",17,IF(Tourn="2-Day",12,IF(Tourn="MSC",16,10)))),"") -> 
AI86: =IF(AJ86=0,"",'Check-In'!$B91) ->  | AJ86: =IF(Tourn="2-Day",'Check-In'!T91,IF(Tourn="Dbls", 'Check-In'!R91,'Check-In'!P91)) -> 0 | AK86: =IF(AJ86="x",INDEX(Qual!$C$8:$U$133,MATCH(AI86,Qual!$C$8:$C$133,0),IF(Tourn="Dbls",7,IF(Tourn="2-Day",6,IF(Tourn="MSC",6,5)))),"") ->  | AL86: =IF(AJ86="x",INDEX(Qual!$C$8:$U$133,MATCH(AI86,Qual!$C$8:$C$133,0),IF(Tourn="Dbls",8,IF(Tourn="2-Day",7,IF(Tourn="MSC",8,6)))),"") ->  | AM86: =IF(AJ86="x",INDEX(Qual!$C$8:$U$133,MATCH(AI86,Qual!$C$8:$C$133,0),IF(Tourn="Dbls",9,IF(Tourn="2-Day",8,IF(Tourn="MSC",10,7)))),"") ->  | AO86: =IF(AP86=0,"",'Check-In'!$B91) ->  | AP86: =IF(Tourn="2-Day",'Check-In'!U91,IF(Tourn="Dbls", 'Check-In'!S91,'Check-In'!P91)) -> 0 | AQ86: =IF(AP86="x",INDEX(Qual!$C$8:$U$133,MATCH(AO86,Qual!$C$8:$C$133,0),IF(Tourn="Dbls",15,IF(Tourn="2-Day",10,IF(Tourn="MSC",12,8)))),"") ->  | AR86: =IF(AP86="x",INDEX(Qual!$C$8:$U$133,MATCH(AO86,Qual!$C$8:$C$133,0),IF(Tourn="Dbls",16,IF(Tourn="2-Day",11,IF(Tourn="MSC",14,9)))),"") ->  | AS86: =IF(AP86="x",INDEX(Qual!$C$8:$U$133,MATCH(AO86,Qual!$C$8:$C$133,0),IF(Tourn="Dbls",17,IF(Tourn="2-Day",12,IF(Tourn="MSC",16,10)))),"") -> 
AI87: =IF(AJ87=0,"",'Check-In'!$B92) ->  | AJ87: =IF(Tourn="2-Day",'Check-In'!T92,IF(Tourn="Dbls", 'Check-In'!R92,'Check-In'!P92)) -> 0 | AK87: =IF(AJ87="x",INDEX(Qual!$C$8:$U$133,MATCH(AI87,Qual!$C$8:$C$133,0),IF(Tourn="Dbls",7,IF(Tourn="2-Day",6,IF(Tourn="MSC",6,5)))),"") ->  | AL87: =IF(AJ87="x",INDEX(Qual!$C$8:$U$133,MATCH(AI87,Qual!$C$8:$C$133,0),IF(Tourn="Dbls",8,IF(Tourn="2-Day",7,IF(Tourn="MSC",8,6)))),"") ->  | AM87: =IF(AJ87="x",INDEX(Qual!$C$8:$U$133,MATCH(AI87,Qual!$C$8:$C$133,0),IF(Tourn="Dbls",9,IF(Tourn="2-Day",8,IF(Tourn="MSC",10,7)))),"") ->  | AO87: =IF(AP87=0,"",'Check-In'!$B92) ->  | AP87: =IF(Tourn="2-Day",'Check-In'!U92,IF(Tourn="Dbls", 'Check-In'!S92,'Check-In'!P92)) -> 0 | AQ87: =IF(AP87="x",INDEX(Qual!$C$8:$U$133,MATCH(AO87,Qual!$C$8:$C$133,0),IF(Tourn="Dbls",15,IF(Tourn="2-Day",10,IF(Tourn="MSC",12,8)))),"") ->  | AR87: =IF(AP87="x",INDEX(Qual!$C$8:$U$133,MATCH(AO87,Qual!$C$8:$C$133,0),IF(Tourn="Dbls",16,IF(Tourn="2-Day",11,IF(Tourn="MSC",14,9)))),"") ->  | AS87: =IF(AP87="x",INDEX(Qual!$C$8:$U$133,MATCH(AO87,Qual!$C$8:$C$133,0),IF(Tourn="Dbls",17,IF(Tourn="2-Day",12,IF(Tourn="MSC",16,10)))),"") -> 
AI88: =IF(AJ88=0,"",'Check-In'!$B93) ->  | AJ88: =IF(Tourn="2-Day",'Check-In'!T93,IF(Tourn="Dbls", 'Check-In'!R93,'Check-In'!P93)) -> 0 | AK88: =IF(AJ88="x",INDEX(Qual!$C$8:$U$133,MATCH(AI88,Qual!$C$8:$C$133,0),IF(Tourn="Dbls",7,IF(Tourn="2-Day",6,IF(Tourn="MSC",6,5)))),"") ->  | AL88: =IF(AJ88="x",INDEX(Qual!$C$8:$U$133,MATCH(AI88,Qual!$C$8:$C$133,0),IF(Tourn="Dbls",8,IF(Tourn="2-Day",7,IF(Tourn="MSC",8,6)))),"") ->  | AM88: =IF(AJ88="x",INDEX(Qual!$C$8:$U$133,MATCH(AI88,Qual!$C$8:$C$133,0),IF(Tourn="Dbls",9,IF(Tourn="2-Day",8,IF(Tourn="MSC",10,7)))),"") ->  | AO88: =IF(AP88=0,"",'Check-In'!$B93) ->  | AP88: =IF(Tourn="2-Day",'Check-In'!U93,IF(Tourn="Dbls", 'Check-In'!S93,'Check-In'!P93)) -> 0 | AQ88: =IF(AP88="x",INDEX(Qual!$C$8:$U$133,MATCH(AO88,Qual!$C$8:$C$133,0),IF(Tourn="Dbls",15,IF(Tourn="2-Day",10,IF(Tourn="MSC",12,8)))),"") ->  | AR88: =IF(AP88="x",INDEX(Qual!$C$8:$U$133,MATCH(AO88,Qual!$C$8:$C$133,0),IF(Tourn="Dbls",16,IF(Tourn="2-Day",11,IF(Tourn="MSC",14,9)))),"") ->  | AS88: =IF(AP88="x",INDEX(Qual!$C$8:$U$133,MATCH(AO88,Qual!$C$8:$C$133,0),IF(Tourn="Dbls",17,IF(Tourn="2-Day",12,IF(Tourn="MSC",16,10)))),"") -> 
AI89: =IF(AJ89=0,"",'Check-In'!$B94) ->  | AJ89: =IF(Tourn="2-Day",'Check-In'!T94,IF(Tourn="Dbls", 'Check-In'!R94,'Check-In'!P94)) -> 0 | AK89: =IF(AJ89="x",INDEX(Qual!$C$8:$U$133,MATCH(AI89,Qual!$C$8:$C$133,0),IF(Tourn="Dbls",7,IF(Tourn="2-Day",6,IF(Tourn="MSC",6,5)))),"") ->  | AL89: =IF(AJ89="x",INDEX(Qual!$C$8:$U$133,MATCH(AI89,Qual!$C$8:$C$133,0),IF(Tourn="Dbls",8,IF(Tourn="2-Day",7,IF(Tourn="MSC",8,6)))),"") ->  | AM89: =IF(AJ89="x",INDEX(Qual!$C$8:$U$133,MATCH(AI89,Qual!$C$8:$C$133,0),IF(Tourn="Dbls",9,IF(Tourn="2-Day",8,IF(Tourn="MSC",10,7)))),"") ->  | AO89: =IF(AP89=0,"",'Check-In'!$B94) ->  | AP89: =IF(Tourn="2-Day",'Check-In'!U94,IF(Tourn="Dbls", 'Check-In'!S94,'Check-In'!P94)) -> 0 | AQ89: =IF(AP89="x",INDEX(Qual!$C$8:$U$133,MATCH(AO89,Qual!$C$8:$C$133,0),IF(Tourn="Dbls",15,IF(Tourn="2-Day",10,IF(Tourn="MSC",12,8)))),"") ->  | AR89: =IF(AP89="x",INDEX(Qual!$C$8:$U$133,MATCH(AO89,Qual!$C$8:$C$133,0),IF(Tourn="Dbls",16,IF(Tourn="2-Day",11,IF(Tourn="MSC",14,9)))),"") ->  | AS89: =IF(AP89="x",INDEX(Qual!$C$8:$U$133,MATCH(AO89,Qual!$C$8:$C$133,0),IF(Tourn="Dbls",17,IF(Tourn="2-Day",12,IF(Tourn="MSC",16,10)))),"") -> 
AI90: =IF(AJ90=0,"",'Check-In'!$B95) ->  | AJ90: =IF(Tourn="2-Day",'Check-In'!T95,IF(Tourn="Dbls", 'Check-In'!R95,'Check-In'!P95)) -> 0 | AK90: =IF(AJ90="x",INDEX(Qual!$C$8:$U$133,MATCH(AI90,Qual!$C$8:$C$133,0),IF(Tourn="Dbls",7,IF(Tourn="2-Day",6,IF(Tourn="MSC",6,5)))),"") ->  | AL90: =IF(AJ90="x",INDEX(Qual!$C$8:$U$133,MATCH(AI90,Qual!$C$8:$C$133,0),IF(Tourn="Dbls",8,IF(Tourn="2-Day",7,IF(Tourn="MSC",8,6)))),"") ->  | AM90: =IF(AJ90="x",INDEX(Qual!$C$8:$U$133,MATCH(AI90,Qual!$C$8:$C$133,0),IF(Tourn="Dbls",9,IF(Tourn="2-Day",8,IF(Tourn="MSC",10,7)))),"") ->  | AO90: =IF(AP90=0,"",'Check-In'!$B95) ->  | AP90: =IF(Tourn="2-Day",'Check-In'!U95,IF(Tourn="Dbls", 'Check-In'!S95,'Check-In'!P95)) -> 0 | AQ90: =IF(AP90="x",INDEX(Qual!$C$8:$U$133,MATCH(AO90,Qual!$C$8:$C$133,0),IF(Tourn="Dbls",15,IF(Tourn="2-Day",10,IF(Tourn="MSC",12,8)))),"") ->  | AR90: =IF(AP90="x",INDEX(Qual!$C$8:$U$133,MATCH(AO90,Qual!$C$8:$C$133,0),IF(Tourn="Dbls",16,IF(Tourn="2-Day",11,IF(Tourn="MSC",14,9)))),"") ->  | AS90: =IF(AP90="x",INDEX(Qual!$C$8:$U$133,MATCH(AO90,Qual!$C$8:$C$133,0),IF(Tourn="Dbls",17,IF(Tourn="2-Day",12,IF(Tourn="MSC",16,10)))),"") -> 
AI91: =IF(AJ91=0,"",'Check-In'!$B96) ->  | AJ91: =IF(Tourn="2-Day",'Check-In'!T96,IF(Tourn="Dbls", 'Check-In'!R96,'Check-In'!P96)) -> 0 | AK91: =IF(AJ91="x",INDEX(Qual!$C$8:$U$133,MATCH(AI91,Qual!$C$8:$C$133,0),IF(Tourn="Dbls",7,IF(Tourn="2-Day",6,IF(Tourn="MSC",6,5)))),"") ->  | AL91: =IF(AJ91="x",INDEX(Qual!$C$8:$U$133,MATCH(AI91,Qual!$C$8:$C$133,0),IF(Tourn="Dbls",8,IF(Tourn="2-Day",7,IF(Tourn="MSC",8,6)))),"") ->  | AM91: =IF(AJ91="x",INDEX(Qual!$C$8:$U$133,MATCH(AI91,Qual!$C$8:$C$133,0),IF(Tourn="Dbls",9,IF(Tourn="2-Day",8,IF(Tourn="MSC",10,7)))),"") ->  | AO91: =IF(AP91=0,"",'Check-In'!$B96) ->  | AP91: =IF(Tourn="2-Day",'Check-In'!U96,IF(Tourn="Dbls", 'Check-In'!S96,'Check-In'!P96)) -> 0 | AQ91: =IF(AP91="x",INDEX(Qual!$C$8:$U$133,MATCH(AO91,Qual!$C$8:$C$133,0),IF(Tourn="Dbls",15,IF(Tourn="2-Day",10,IF(Tourn="MSC",12,8)))),"") ->  | AR91: =IF(AP91="x",INDEX(Qual!$C$8:$U$133,MATCH(AO91,Qual!$C$8:$C$133,0),IF(Tourn="Dbls",16,IF(Tourn="2-Day",11,IF(Tourn="MSC",14,9)))),"") ->  | AS91: =IF(AP91="x",INDEX(Qual!$C$8:$U$133,MATCH(AO91,Qual!$C$8:$C$133,0),IF(Tourn="Dbls",17,IF(Tourn="2-Day",12,IF(Tourn="MSC",16,10)))),"") -> 
AI92: =IF(AJ92=0,"",'Check-In'!$B97) ->  | AJ92: =IF(Tourn="2-Day",'Check-In'!T97,IF(Tourn="Dbls", 'Check-In'!R97,'Check-In'!P97)) -> 0 | AK92: =IF(AJ92="x",INDEX(Qual!$C$8:$U$133,MATCH(AI92,Qual!$C$8:$C$133,0),IF(Tourn="Dbls",7,IF(Tourn="2-Day",6,IF(Tourn="MSC",6,5)))),"") ->  | AL92: =IF(AJ92="x",INDEX(Qual!$C$8:$U$133,MATCH(AI92,Qual!$C$8:$C$133,0),IF(Tourn="Dbls",8,IF(Tourn="2-Day",7,IF(Tourn="MSC",8,6)))),"") ->  | AM92: =IF(AJ92="x",INDEX(Qual!$C$8:$U$133,MATCH(AI92,Qual!$C$8:$C$133,0),IF(Tourn="Dbls",9,IF(Tourn="2-Day",8,IF(Tourn="MSC",10,7)))),"") ->  | AO92: =IF(AP92=0,"",'Check-In'!$B97) ->  | AP92: =IF(Tourn="2-Day",'Check-In'!U97,IF(Tourn="Dbls", 'Check-In'!S97,'Check-In'!P97)) -> 0 | AQ92: =IF(AP92="x",INDEX(Qual!$C$8:$U$133,MATCH(AO92,Qual!$C$8:$C$133,0),IF(Tourn="Dbls",15,IF(Tourn="2-Day",10,IF(Tourn="MSC",12,8)))),"") ->  | AR92: =IF(AP92="x",INDEX(Qual!$C$8:$U$133,MATCH(AO92,Qual!$C$8:$C$133,0),IF(Tourn="Dbls",16,IF(Tourn="2-Day",11,IF(Tourn="MSC",14,9)))),"") ->  | AS92: =IF(AP92="x",INDEX(Qual!$C$8:$U$133,MATCH(AO92,Qual!$C$8:$C$133,0),IF(Tourn="Dbls",17,IF(Tourn="2-Day",12,IF(Tourn="MSC",16,10)))),"") -> 
AI93: =IF(AJ93=0,"",'Check-In'!$B98) ->  | AJ93: =IF(Tourn="2-Day",'Check-In'!T98,IF(Tourn="Dbls", 'Check-In'!R98,'Check-In'!P98)) -> 0 | AK93: =IF(AJ93="x",INDEX(Qual!$C$8:$U$133,MATCH(AI93,Qual!$C$8:$C$133,0),IF(Tourn="Dbls",7,IF(Tourn="2-Day",6,IF(Tourn="MSC",6,5)))),"") ->  | AL93: =IF(AJ93="x",INDEX(Qual!$C$8:$U$133,MATCH(AI93,Qual!$C$8:$C$133,0),IF(Tourn="Dbls",8,IF(Tourn="2-Day",7,IF(Tourn="MSC",8,6)))),"") ->  | AM93: =IF(AJ93="x",INDEX(Qual!$C$8:$U$133,MATCH(AI93,Qual!$C$8:$C$133,0),IF(Tourn="Dbls",9,IF(Tourn="2-Day",8,IF(Tourn="MSC",10,7)))),"") ->  | AO93: =IF(AP93=0,"",'Check-In'!$B98) ->  | AP93: =IF(Tourn="2-Day",'Check-In'!U98,IF(Tourn="Dbls", 'Check-In'!S98,'Check-In'!P98)) -> 0 | AQ93: =IF(AP93="x",INDEX(Qual!$C$8:$U$133,MATCH(AO93,Qual!$C$8:$C$133,0),IF(Tourn="Dbls",15,IF(Tourn="2-Day",10,IF(Tourn="MSC",12,8)))),"") ->  | AR93: =IF(AP93="x",INDEX(Qual!$C$8:$U$133,MATCH(AO93,Qual!$C$8:$C$133,0),IF(Tourn="Dbls",16,IF(Tourn="2-Day",11,IF(Tourn="MSC",14,9)))),"") ->  | AS93: =IF(AP93="x",INDEX(Qual!$C$8:$U$133,MATCH(AO93,Qual!$C$8:$C$133,0),IF(Tourn="Dbls",17,IF(Tourn="2-Day",12,IF(Tourn="MSC",16,10)))),"") -> 
AI94: =IF(AJ94=0,"",'Check-In'!$B99) ->  | AJ94: =IF(Tourn="2-Day",'Check-In'!T99,IF(Tourn="Dbls", 'Check-In'!R99,'Check-In'!P99)) -> 0 | AK94: =IF(AJ94="x",INDEX(Qual!$C$8:$U$133,MATCH(AI94,Qual!$C$8:$C$133,0),IF(Tourn="Dbls",7,IF(Tourn="2-Day",6,IF(Tourn="MSC",6,5)))),"") ->  | AL94: =IF(AJ94="x",INDEX(Qual!$C$8:$U$133,MATCH(AI94,Qual!$C$8:$C$133,0),IF(Tourn="Dbls",8,IF(Tourn="2-Day",7,IF(Tourn="MSC",8,6)))),"") ->  | AM94: =IF(AJ94="x",INDEX(Qual!$C$8:$U$133,MATCH(AI94,Qual!$C$8:$C$133,0),IF(Tourn="Dbls",9,IF(Tourn="2-Day",8,IF(Tourn="MSC",10,7)))),"") ->  | AO94: =IF(AP94=0,"",'Check-In'!$B99) ->  | AP94: =IF(Tourn="2-Day",'Check-In'!U99,IF(Tourn="Dbls", 'Check-In'!S99,'Check-In'!P99)) -> 0 | AQ94: =IF(AP94="x",INDEX(Qual!$C$8:$U$133,MATCH(AO94,Qual!$C$8:$C$133,0),IF(Tourn="Dbls",15,IF(Tourn="2-Day",10,IF(Tourn="MSC",12,8)))),"") ->  | AR94: =IF(AP94="x",INDEX(Qual!$C$8:$U$133,MATCH(AO94,Qual!$C$8:$C$133,0),IF(Tourn="Dbls",16,IF(Tourn="2-Day",11,IF(Tourn="MSC",14,9)))),"") ->  | AS94: =IF(AP94="x",INDEX(Qual!$C$8:$U$133,MATCH(AO94,Qual!$C$8:$C$133,0),IF(Tourn="Dbls",17,IF(Tourn="2-Day",12,IF(Tourn="MSC",16,10)))),"") -> 
AI95: =IF(AJ95=0,"",'Check-In'!$B100) ->  | AJ95: =IF(Tourn="2-Day",'Check-In'!T100,IF(Tourn="Dbls", 'Check-In'!R100,'Check-In'!P100)) -> 0 | AK95: =IF(AJ95="x",INDEX(Qual!$C$8:$U$133,MATCH(AI95,Qual!$C$8:$C$133,0),IF(Tourn="Dbls",7,IF(Tourn="2-Day",6,IF(Tourn="MSC",6,5)))),"") ->  | AL95: =IF(AJ95="x",INDEX(Qual!$C$8:$U$133,MATCH(AI95,Qual!$C$8:$C$133,0),IF(Tourn="Dbls",8,IF(Tourn="2-Day",7,IF(Tourn="MSC",8,6)))),"") ->  | AM95: =IF(AJ95="x",INDEX(Qual!$C$8:$U$133,MATCH(AI95,Qual!$C$8:$C$133,0),IF(Tourn="Dbls",9,IF(Tourn="2-Day",8,IF(Tourn="MSC",10,7)))),"") ->  | AO95: =IF(AP95=0,"",'Check-In'!$B100) ->  | AP95: =IF(Tourn="2-Day",'Check-In'!U100,IF(Tourn="Dbls", 'Check-In'!S100,'Check-In'!P100)) -> 0 | AQ95: =IF(AP95="x",INDEX(Qual!$C$8:$U$133,MATCH(AO95,Qual!$C$8:$C$133,0),IF(Tourn="Dbls",15,IF(Tourn="2-Day",10,IF(Tourn="MSC",12,8)))),"") ->  | AR95: =IF(AP95="x",INDEX(Qual!$C$8:$U$133,MATCH(AO95,Qual!$C$8:$C$133,0),IF(Tourn="Dbls",16,IF(Tourn="2-Day",11,IF(Tourn="MSC",14,9)))),"") ->  | AS95: =IF(AP95="x",INDEX(Qual!$C$8:$U$133,MATCH(AO95,Qual!$C$8:$C$133,0),IF(Tourn="Dbls",17,IF(Tourn="2-Day",12,IF(Tourn="MSC",16,10)))),"") -> 
AI96: =IF(AJ96=0,"",'Check-In'!$B101) ->  | AJ96: =IF(Tourn="2-Day",'Check-In'!T101,IF(Tourn="Dbls", 'Check-In'!R101,'Check-In'!P101)) -> 0 | AK96: =IF(AJ96="x",INDEX(Qual!$C$8:$U$133,MATCH(AI96,Qual!$C$8:$C$133,0),IF(Tourn="Dbls",7,IF(Tourn="2-Day",6,IF(Tourn="MSC",6,5)))),"") ->  | AL96: =IF(AJ96="x",INDEX(Qual!$C$8:$U$133,MATCH(AI96,Qual!$C$8:$C$133,0),IF(Tourn="Dbls",8,IF(Tourn="2-Day",7,IF(Tourn="MSC",8,6)))),"") ->  | AM96: =IF(AJ96="x",INDEX(Qual!$C$8:$U$133,MATCH(AI96,Qual!$C$8:$C$133,0),IF(Tourn="Dbls",9,IF(Tourn="2-Day",8,IF(Tourn="MSC",10,7)))),"") ->  | AO96: =IF(AP96=0,"",'Check-In'!$B101) ->  | AP96: =IF(Tourn="2-Day",'Check-In'!U101,IF(Tourn="Dbls", 'Check-In'!S101,'Check-In'!P101)) -> 0 | AQ96: =IF(AP96="x",INDEX(Qual!$C$8:$U$133,MATCH(AO96,Qual!$C$8:$C$133,0),IF(Tourn="Dbls",15,IF(Tourn="2-Day",10,IF(Tourn="MSC",12,8)))),"") ->  | AR96: =IF(AP96="x",INDEX(Qual!$C$8:$U$133,MATCH(AO96,Qual!$C$8:$C$133,0),IF(Tourn="Dbls",16,IF(Tourn="2-Day",11,IF(Tourn="MSC",14,9)))),"") ->  | AS96: =IF(AP96="x",INDEX(Qual!$C$8:$U$133,MATCH(AO96,Qual!$C$8:$C$133,0),IF(Tourn="Dbls",17,IF(Tourn="2-Day",12,IF(Tourn="MSC",16,10)))),"") -> 
AI97: =IF(AJ97=0,"",'Check-In'!$B102) ->  | AJ97: =IF(Tourn="2-Day",'Check-In'!T102,IF(Tourn="Dbls", 'Check-In'!R102,'Check-In'!P102)) -> 0 | AK97: =IF(AJ97="x",INDEX(Qual!$C$8:$U$133,MATCH(AI97,Qual!$C$8:$C$133,0),IF(Tourn="Dbls",7,IF(Tourn="2-Day",6,IF(Tourn="MSC",6,5)))),"") ->  | AL97: =IF(AJ97="x",INDEX(Qual!$C$8:$U$133,MATCH(AI97,Qual!$C$8:$C$133,0),IF(Tourn="Dbls",8,IF(Tourn="2-Day",7,IF(Tourn="MSC",8,6)))),"") ->  | AM97: =IF(AJ97="x",INDEX(Qual!$C$8:$U$133,MATCH(AI97,Qual!$C$8:$C$133,0),IF(Tourn="Dbls",9,IF(Tourn="2-Day",8,IF(Tourn="MSC",10,7)))),"") ->  | AO97: =IF(AP97=0,"",'Check-In'!$B102) ->  | AP97: =IF(Tourn="2-Day",'Check-In'!U102,IF(Tourn="Dbls", 'Check-In'!S102,'Check-In'!P102)) -> 0 | AQ97: =IF(AP97="x",INDEX(Qual!$C$8:$U$133,MATCH(AO97,Qual!$C$8:$C$133,0),IF(Tourn="Dbls",15,IF(Tourn="2-Day",10,IF(Tourn="MSC",12,8)))),"") ->  | AR97: =IF(AP97="x",INDEX(Qual!$C$8:$U$133,MATCH(AO97,Qual!$C$8:$C$133,0),IF(Tourn="Dbls",16,IF(Tourn="2-Day",11,IF(Tourn="MSC",14,9)))),"") ->  | AS97: =IF(AP97="x",INDEX(Qual!$C$8:$U$133,MATCH(AO97,Qual!$C$8:$C$133,0),IF(Tourn="Dbls",17,IF(Tourn="2-Day",12,IF(Tourn="MSC",16,10)))),"") -> 
AI98: =IF(AJ98=0,"",'Check-In'!$B103) ->  | AJ98: =IF(Tourn="2-Day",'Check-In'!T103,IF(Tourn="Dbls", 'Check-In'!R103,'Check-In'!P103)) -> 0 | AK98: =IF(AJ98="x",INDEX(Qual!$C$8:$U$133,MATCH(AI98,Qual!$C$8:$C$133,0),IF(Tourn="Dbls",7,IF(Tourn="2-Day",6,IF(Tourn="MSC",6,5)))),"") ->  | AL98: =IF(AJ98="x",INDEX(Qual!$C$8:$U$133,MATCH(AI98,Qual!$C$8:$C$133,0),IF(Tourn="Dbls",8,IF(Tourn="2-Day",7,IF(Tourn="MSC",8,6)))),"") ->  | AM98: =IF(AJ98="x",INDEX(Qual!$C$8:$U$133,MATCH(AI98,Qual!$C$8:$C$133,0),IF(Tourn="Dbls",9,IF(Tourn="2-Day",8,IF(Tourn="MSC",10,7)))),"") ->  | AO98: =IF(AP98=0,"",'Check-In'!$B103) ->  | AP98: =IF(Tourn="2-Day",'Check-In'!U103,IF(Tourn="Dbls", 'Check-In'!S103,'Check-In'!P103)) -> 0 | AQ98: =IF(AP98="x",INDEX(Qual!$C$8:$U$133,MATCH(AO98,Qual!$C$8:$C$133,0),IF(Tourn="Dbls",15,IF(Tourn="2-Day",10,IF(Tourn="MSC",12,8)))),"") ->  | AR98: =IF(AP98="x",INDEX(Qual!$C$8:$U$133,MATCH(AO98,Qual!$C$8:$C$133,0),IF(Tourn="Dbls",16,IF(Tourn="2-Day",11,IF(Tourn="MSC",14,9)))),"") ->  | AS98: =IF(AP98="x",INDEX(Qual!$C$8:$U$133,MATCH(AO98,Qual!$C$8:$C$133,0),IF(Tourn="Dbls",17,IF(Tourn="2-Day",12,IF(Tourn="MSC",16,10)))),"") -> 
AI99: =IF(AJ99=0,"",'Check-In'!$B104) ->  | AJ99: =IF(Tourn="2-Day",'Check-In'!T104,IF(Tourn="Dbls", 'Check-In'!R104,'Check-In'!P104)) -> 0 | AK99: =IF(AJ99="x",INDEX(Qual!$C$8:$U$133,MATCH(AI99,Qual!$C$8:$C$133,0),IF(Tourn="Dbls",7,IF(Tourn="2-Day",6,IF(Tourn="MSC",6,5)))),"") ->  | AL99: =IF(AJ99="x",INDEX(Qual!$C$8:$U$133,MATCH(AI99,Qual!$C$8:$C$133,0),IF(Tourn="Dbls",8,IF(Tourn="2-Day",7,IF(Tourn="MSC",8,6)))),"") ->  | AM99: =IF(AJ99="x",INDEX(Qual!$C$8:$U$133,MATCH(AI99,Qual!$C$8:$C$133,0),IF(Tourn="Dbls",9,IF(Tourn="2-Day",8,IF(Tourn="MSC",10,7)))),"") ->  | AO99: =IF(AP99=0,"",'Check-In'!$B104) ->  | AP99: =IF(Tourn="2-Day",'Check-In'!U104,IF(Tourn="Dbls", 'Check-In'!S104,'Check-In'!P104)) -> 0 | AQ99: =IF(AP99="x",INDEX(Qual!$C$8:$U$133,MATCH(AO99,Qual!$C$8:$C$133,0),IF(Tourn="Dbls",15,IF(Tourn="2-Day",10,IF(Tourn="MSC",12,8)))),"") ->  | AR99: =IF(AP99="x",INDEX(Qual!$C$8:$U$133,MATCH(AO99,Qual!$C$8:$C$133,0),IF(Tourn="Dbls",16,IF(Tourn="2-Day",11,IF(Tourn="MSC",14,9)))),"") ->  | AS99: =IF(AP99="x",INDEX(Qual!$C$8:$U$133,MATCH(AO99,Qual!$C$8:$C$133,0),IF(Tourn="Dbls",17,IF(Tourn="2-Day",12,IF(Tourn="MSC",16,10)))),"") -> 
AI100: =IF(AJ100=0,"",'Check-In'!$B105) ->  | AJ100: =IF(Tourn="2-Day",'Check-In'!T105,IF(Tourn="Dbls", 'Check-In'!R105,'Check-In'!P105)) -> 0 | AK100: =IF(AJ100="x",INDEX(Qual!$C$8:$U$133,MATCH(AI100,Qual!$C$8:$C$133,0),IF(Tourn="Dbls",7,IF(Tourn="2-Day",6,IF(Tourn="MSC",6,5)))),"") ->  | AL100: =IF(AJ100="x",INDEX(Qual!$C$8:$U$133,MATCH(AI100,Qual!$C$8:$C$133,0),IF(Tourn="Dbls",8,IF(Tourn="2-Day",7,IF(Tourn="MSC",8,6)))),"") ->  | AM100: =IF(AJ100="x",INDEX(Qual!$C$8:$U$133,MATCH(AI100,Qual!$C$8:$C$133,0),IF(Tourn="Dbls",9,IF(Tourn="2-Day",8,IF(Tourn="MSC",10,7)))),"") ->  | AO100: =IF(AP100=0,"",'Check-In'!$B105) ->  | AP100: =IF(Tourn="2-Day",'Check-In'!U105,IF(Tourn="Dbls", 'Check-In'!S105,'Check-In'!P105)) -> 0 | AQ100: =IF(AP100="x",INDEX(Qual!$C$8:$U$133,MATCH(AO100,Qual!$C$8:$C$133,0),IF(Tourn="Dbls",15,IF(Tourn="2-Day",10,IF(Tourn="MSC",12,8)))),"") ->  | AR100: =IF(AP100="x",INDEX(Qual!$C$8:$U$133,MATCH(AO100,Qual!$C$8:$C$133,0),IF(Tourn="Dbls",16,IF(Tourn="2-Day",11,IF(Tourn="MSC",14,9)))),"") ->  | AS100: =IF(AP100="x",INDEX(Qual!$C$8:$U$133,MATCH(AO100,Qual!$C$8:$C$133,0),IF(Tourn="Dbls",17,IF(Tourn="2-Day",12,IF(Tourn="MSC",16,10)))),"") -> 
AI101: =IF(AJ101=0,"",'Check-In'!$B106) ->  | AJ101: =IF(Tourn="2-Day",'Check-In'!T106,IF(Tourn="Dbls", 'Check-In'!R106,'Check-In'!P106)) -> 0 | AK101: =IF(AJ101="x",INDEX(Qual!$C$8:$U$133,MATCH(AI101,Qual!$C$8:$C$133,0),IF(Tourn="Dbls",7,IF(Tourn="2-Day",6,IF(Tourn="MSC",6,5)))),"") ->  | AL101: =IF(AJ101="x",INDEX(Qual!$C$8:$U$133,MATCH(AI101,Qual!$C$8:$C$133,0),IF(Tourn="Dbls",8,IF(Tourn="2-Day",7,IF(Tourn="MSC",8,6)))),"") ->  | AM101: =IF(AJ101="x",INDEX(Qual!$C$8:$U$133,MATCH(AI101,Qual!$C$8:$C$133,0),IF(Tourn="Dbls",9,IF(Tourn="2-Day",8,IF(Tourn="MSC",10,7)))),"") ->  | AO101: =IF(AP101=0,"",'Check-In'!$B106) ->  | AP101: =IF(Tourn="2-Day",'Check-In'!U106,IF(Tourn="Dbls", 'Check-In'!S106,'Check-In'!P106)) -> 0 | AQ101: =IF(AP101="x",INDEX(Qual!$C$8:$U$133,MATCH(AO101,Qual!$C$8:$C$133,0),IF(Tourn="Dbls",15,IF(Tourn="2-Day",10,IF(Tourn="MSC",12,8)))),"") ->  | AR101: =IF(AP101="x",INDEX(Qual!$C$8:$U$133,MATCH(AO101,Qual!$C$8:$C$133,0),IF(Tourn="Dbls",16,IF(Tourn="2-Day",11,IF(Tourn="MSC",14,9)))),"") ->  | AS101: =IF(AP101="x",INDEX(Qual!$C$8:$U$133,MATCH(AO101,Qual!$C$8:$C$133,0),IF(Tourn="Dbls",17,IF(Tourn="2-Day",12,IF(Tourn="MSC",16,10)))),"") -> 
AI102: =IF(AJ102=0,"",'Check-In'!$B107) ->  | AJ102: =IF(Tourn="2-Day",'Check-In'!T107,IF(Tourn="Dbls", 'Check-In'!R107,'Check-In'!P107)) -> 0 | AK102: =IF(AJ102="x",INDEX(Qual!$C$8:$U$133,MATCH(AI102,Qual!$C$8:$C$133,0),IF(Tourn="Dbls",7,IF(Tourn="2-Day",6,IF(Tourn="MSC",6,5)))),"") ->  | AL102: =IF(AJ102="x",INDEX(Qual!$C$8:$U$133,MATCH(AI102,Qual!$C$8:$C$133,0),IF(Tourn="Dbls",8,IF(Tourn="2-Day",7,IF(Tourn="MSC",8,6)))),"") ->  | AM102: =IF(AJ102="x",INDEX(Qual!$C$8:$U$133,MATCH(AI102,Qual!$C$8:$C$133,0),IF(Tourn="Dbls",9,IF(Tourn="2-Day",8,IF(Tourn="MSC",10,7)))),"") ->  | AO102: =IF(AP102=0,"",'Check-In'!$B107) ->  | AP102: =IF(Tourn="2-Day",'Check-In'!U107,IF(Tourn="Dbls", 'Check-In'!S107,'Check-In'!P107)) -> 0 | AQ102: =IF(AP102="x",INDEX(Qual!$C$8:$U$133,MATCH(AO102,Qual!$C$8:$C$133,0),IF(Tourn="Dbls",15,IF(Tourn="2-Day",10,IF(Tourn="MSC",12,8)))),"") ->  | AR102: =IF(AP102="x",INDEX(Qual!$C$8:$U$133,MATCH(AO102,Qual!$C$8:$C$133,0),IF(Tourn="Dbls",16,IF(Tourn="2-Day",11,IF(Tourn="MSC",14,9)))),"") ->  | AS102: =IF(AP102="x",INDEX(Qual!$C$8:$U$133,MATCH(AO102,Qual!$C$8:$C$133,0),IF(Tourn="Dbls",17,IF(Tourn="2-Day",12,IF(Tourn="MSC",16,10)))),"") -> 
AI103: =IF(AJ103=0,"",'Check-In'!$B108) ->  | AJ103: =IF(Tourn="2-Day",'Check-In'!T108,IF(Tourn="Dbls", 'Check-In'!R108,'Check-In'!P108)) -> 0 | AK103: =IF(AJ103="x",INDEX(Qual!$C$8:$U$133,MATCH(AI103,Qual!$C$8:$C$133,0),IF(Tourn="Dbls",7,IF(Tourn="2-Day",6,IF(Tourn="MSC",6,5)))),"") ->  | AL103: =IF(AJ103="x",INDEX(Qual!$C$8:$U$133,MATCH(AI103,Qual!$C$8:$C$133,0),IF(Tourn="Dbls",8,IF(Tourn="2-Day",7,IF(Tourn="MSC",8,6)))),"") ->  | AM103: =IF(AJ103="x",INDEX(Qual!$C$8:$U$133,MATCH(AI103,Qual!$C$8:$C$133,0),IF(Tourn="Dbls",9,IF(Tourn="2-Day",8,IF(Tourn="MSC",10,7)))),"") ->  | AO103: =IF(AP103=0,"",'Check-In'!$B108) ->  | AP103: =IF(Tourn="2-Day",'Check-In'!U108,IF(Tourn="Dbls", 'Check-In'!S108,'Check-In'!P108)) -> 0 | AQ103: =IF(AP103="x",INDEX(Qual!$C$8:$U$133,MATCH(AO103,Qual!$C$8:$C$133,0),IF(Tourn="Dbls",15,IF(Tourn="2-Day",10,IF(Tourn="MSC",12,8)))),"") ->  | AR103: =IF(AP103="x",INDEX(Qual!$C$8:$U$133,MATCH(AO103,Qual!$C$8:$C$133,0),IF(Tourn="Dbls",16,IF(Tourn="2-Day",11,IF(Tourn="MSC",14,9)))),"") ->  | AS103: =IF(AP103="x",INDEX(Qual!$C$8:$U$133,MATCH(AO103,Qual!$C$8:$C$133,0),IF(Tourn="Dbls",17,IF(Tourn="2-Day",12,IF(Tourn="MSC",16,10)))),"") -> 
AI104: =IF(AJ104=0,"",'Check-In'!$B109) ->  | AJ104: =IF(Tourn="2-Day",'Check-In'!T109,IF(Tourn="Dbls", 'Check-In'!R109,'Check-In'!P109)) -> 0 | AK104: =IF(AJ104="x",INDEX(Qual!$C$8:$U$133,MATCH(AI104,Qual!$C$8:$C$133,0),IF(Tourn="Dbls",7,IF(Tourn="2-Day",6,IF(Tourn="MSC",6,5)))),"") ->  | AL104: =IF(AJ104="x",INDEX(Qual!$C$8:$U$133,MATCH(AI104,Qual!$C$8:$C$133,0),IF(Tourn="Dbls",8,IF(Tourn="2-Day",7,IF(Tourn="MSC",8,6)))),"") ->  | AM104: =IF(AJ104="x",INDEX(Qual!$C$8:$U$133,MATCH(AI104,Qual!$C$8:$C$133,0),IF(Tourn="Dbls",9,IF(Tourn="2-Day",8,IF(Tourn="MSC",10,7)))),"") ->  | AO104: =IF(AP104=0,"",'Check-In'!$B109) ->  | AP104: =IF(Tourn="2-Day",'Check-In'!U109,IF(Tourn="Dbls", 'Check-In'!S109,'Check-In'!P109)) -> 0 | AQ104: =IF(AP104="x",INDEX(Qual!$C$8:$U$133,MATCH(AO104,Qual!$C$8:$C$133,0),IF(Tourn="Dbls",15,IF(Tourn="2-Day",10,IF(Tourn="MSC",12,8)))),"") ->  | AR104: =IF(AP104="x",INDEX(Qual!$C$8:$U$133,MATCH(AO104,Qual!$C$8:$C$133,0),IF(Tourn="Dbls",16,IF(Tourn="2-Day",11,IF(Tourn="MSC",14,9)))),"") ->  | AS104: =IF(AP104="x",INDEX(Qual!$C$8:$U$133,MATCH(AO104,Qual!$C$8:$C$133,0),IF(Tourn="Dbls",17,IF(Tourn="2-Day",12,IF(Tourn="MSC",16,10)))),"") -> 
AI105: =IF(AJ105=0,"",'Check-In'!$B110) ->  | AJ105: =IF(Tourn="2-Day",'Check-In'!T110,IF(Tourn="Dbls", 'Check-In'!R110,'Check-In'!P110)) -> 0 | AK105: =IF(AJ105="x",INDEX(Qual!$C$8:$U$133,MATCH(AI105,Qual!$C$8:$C$133,0),IF(Tourn="Dbls",7,IF(Tourn="2-Day",6,IF(Tourn="MSC",6,5)))),"") ->  | AL105: =IF(AJ105="x",INDEX(Qual!$C$8:$U$133,MATCH(AI105,Qual!$C$8:$C$133,0),IF(Tourn="Dbls",8,IF(Tourn="2-Day",7,IF(Tourn="MSC",8,6)))),"") ->  | AM105: =IF(AJ105="x",INDEX(Qual!$C$8:$U$133,MATCH(AI105,Qual!$C$8:$C$133,0),IF(Tourn="Dbls",9,IF(Tourn="2-Day",8,IF(Tourn="MSC",10,7)))),"") ->  | AO105: =IF(AP105=0,"",'Check-In'!$B110) ->  | AP105: =IF(Tourn="2-Day",'Check-In'!U110,IF(Tourn="Dbls", 'Check-In'!S110,'Check-In'!P110)) -> 0 | AQ105: =IF(AP105="x",INDEX(Qual!$C$8:$U$133,MATCH(AO105,Qual!$C$8:$C$133,0),IF(Tourn="Dbls",15,IF(Tourn="2-Day",10,IF(Tourn="MSC",12,8)))),"") ->  | AR105: =IF(AP105="x",INDEX(Qual!$C$8:$U$133,MATCH(AO105,Qual!$C$8:$C$133,0),IF(Tourn="Dbls",16,IF(Tourn="2-Day",11,IF(Tourn="MSC",14,9)))),"") ->  | AS105: =IF(AP105="x",INDEX(Qual!$C$8:$U$133,MATCH(AO105,Qual!$C$8:$C$133,0),IF(Tourn="Dbls",17,IF(Tourn="2-Day",12,IF(Tourn="MSC",16,10)))),"") -> 
AI106: =IF(AJ106=0,"",'Check-In'!$B111) ->  | AJ106: =IF(Tourn="2-Day",'Check-In'!T111,IF(Tourn="Dbls", 'Check-In'!R111,'Check-In'!P111)) -> 0 | AK106: =IF(AJ106="x",INDEX(Qual!$C$8:$U$133,MATCH(AI106,Qual!$C$8:$C$133,0),IF(Tourn="Dbls",7,IF(Tourn="2-Day",6,IF(Tourn="MSC",6,5)))),"") ->  | AL106: =IF(AJ106="x",INDEX(Qual!$C$8:$U$133,MATCH(AI106,Qual!$C$8:$C$133,0),IF(Tourn="Dbls",8,IF(Tourn="2-Day",7,IF(Tourn="MSC",8,6)))),"") ->  | AM106: =IF(AJ106="x",INDEX(Qual!$C$8:$U$133,MATCH(AI106,Qual!$C$8:$C$133,0),IF(Tourn="Dbls",9,IF(Tourn="2-Day",8,IF(Tourn="MSC",10,7)))),"") ->  | AO106: =IF(AP106=0,"",'Check-In'!$B111) ->  | AP106: =IF(Tourn="2-Day",'Check-In'!U111,IF(Tourn="Dbls", 'Check-In'!S111,'Check-In'!P111)) -> 0 | AQ106: =IF(AP106="x",INDEX(Qual!$C$8:$U$133,MATCH(AO106,Qual!$C$8:$C$133,0),IF(Tourn="Dbls",15,IF(Tourn="2-Day",10,IF(Tourn="MSC",12,8)))),"") ->  | AR106: =IF(AP106="x",INDEX(Qual!$C$8:$U$133,MATCH(AO106,Qual!$C$8:$C$133,0),IF(Tourn="Dbls",16,IF(Tourn="2-Day",11,IF(Tourn="MSC",14,9)))),"") ->  | AS106: =IF(AP106="x",INDEX(Qual!$C$8:$U$133,MATCH(AO106,Qual!$C$8:$C$133,0),IF(Tourn="Dbls",17,IF(Tourn="2-Day",12,IF(Tourn="MSC",16,10)))),"") -> 
AI107: =IF(AJ107=0,"",'Check-In'!$B112) ->  | AJ107: =IF(Tourn="2-Day",'Check-In'!T112,IF(Tourn="Dbls", 'Check-In'!R112,'Check-In'!P112)) -> 0 | AK107: =IF(AJ107="x",INDEX(Qual!$C$8:$U$133,MATCH(AI107,Qual!$C$8:$C$133,0),IF(Tourn="Dbls",7,IF(Tourn="2-Day",6,IF(Tourn="MSC",6,5)))),"") ->  | AL107: =IF(AJ107="x",INDEX(Qual!$C$8:$U$133,MATCH(AI107,Qual!$C$8:$C$133,0),IF(Tourn="Dbls",8,IF(Tourn="2-Day",7,IF(Tourn="MSC",8,6)))),"") ->  | AM107: =IF(AJ107="x",INDEX(Qual!$C$8:$U$133,MATCH(AI107,Qual!$C$8:$C$133,0),IF(Tourn="Dbls",9,IF(Tourn="2-Day",8,IF(Tourn="MSC",10,7)))),"") ->  | AO107: =IF(AP107=0,"",'Check-In'!$B112) ->  | AP107: =IF(Tourn="2-Day",'Check-In'!U112,IF(Tourn="Dbls", 'Check-In'!S112,'Check-In'!P112)) -> 0 | AQ107: =IF(AP107="x",INDEX(Qual!$C$8:$U$133,MATCH(AO107,Qual!$C$8:$C$133,0),IF(Tourn="Dbls",15,IF(Tourn="2-Day",10,IF(Tourn="MSC",12,8)))),"") ->  | AR107: =IF(AP107="x",INDEX(Qual!$C$8:$U$133,MATCH(AO107,Qual!$C$8:$C$133,0),IF(Tourn="Dbls",16,IF(Tourn="2-Day",11,IF(Tourn="MSC",14,9)))),"") ->  | AS107: =IF(AP107="x",INDEX(Qual!$C$8:$U$133,MATCH(AO107,Qual!$C$8:$C$133,0),IF(Tourn="Dbls",17,IF(Tourn="2-Day",12,IF(Tourn="MSC",16,10)))),"") -> 
AI108: =IF(AJ108=0,"",'Check-In'!$B113) ->  | AJ108: =IF(Tourn="2-Day",'Check-In'!T113,IF(Tourn="Dbls", 'Check-In'!R113,'Check-In'!P113)) -> 0 | AK108: =IF(AJ108="x",INDEX(Qual!$C$8:$U$133,MATCH(AI108,Qual!$C$8:$C$133,0),IF(Tourn="Dbls",7,IF(Tourn="2-Day",6,IF(Tourn="MSC",6,5)))),"") ->  | AL108: =IF(AJ108="x",INDEX(Qual!$C$8:$U$133,MATCH(AI108,Qual!$C$8:$C$133,0),IF(Tourn="Dbls",8,IF(Tourn="2-Day",7,IF(Tourn="MSC",8,6)))),"") ->  | AM108: =IF(AJ108="x",INDEX(Qual!$C$8:$U$133,MATCH(AI108,Qual!$C$8:$C$133,0),IF(Tourn="Dbls",9,IF(Tourn="2-Day",8,IF(Tourn="MSC",10,7)))),"") ->  | AO108: =IF(AP108=0,"",'Check-In'!$B113) ->  | AP108: =IF(Tourn="2-Day",'Check-In'!U113,IF(Tourn="Dbls", 'Check-In'!S113,'Check-In'!P113)) -> 0 | AQ108: =IF(AP108="x",INDEX(Qual!$C$8:$U$133,MATCH(AO108,Qual!$C$8:$C$133,0),IF(Tourn="Dbls",15,IF(Tourn="2-Day",10,IF(Tourn="MSC",12,8)))),"") ->  | AR108: =IF(AP108="x",INDEX(Qual!$C$8:$U$133,MATCH(AO108,Qual!$C$8:$C$133,0),IF(Tourn="Dbls",16,IF(Tourn="2-Day",11,IF(Tourn="MSC",14,9)))),"") ->  | AS108: =IF(AP108="x",INDEX(Qual!$C$8:$U$133,MATCH(AO108,Qual!$C$8:$C$133,0),IF(Tourn="Dbls",17,IF(Tourn="2-Day",12,IF(Tourn="MSC",16,10)))),"") -> 
AI109: =IF(AJ109=0,"",'Check-In'!$B114) ->  | AJ109: =IF(Tourn="2-Day",'Check-In'!T114,IF(Tourn="Dbls", 'Check-In'!R114,'Check-In'!P114)) -> 0 | AK109: =IF(AJ109="x",INDEX(Qual!$C$8:$U$133,MATCH(AI109,Qual!$C$8:$C$133,0),IF(Tourn="Dbls",7,IF(Tourn="2-Day",6,IF(Tourn="MSC",6,5)))),"") ->  | AL109: =IF(AJ109="x",INDEX(Qual!$C$8:$U$133,MATCH(AI109,Qual!$C$8:$C$133,0),IF(Tourn="Dbls",8,IF(Tourn="2-Day",7,IF(Tourn="MSC",8,6)))),"") ->  | AM109: =IF(AJ109="x",INDEX(Qual!$C$8:$U$133,MATCH(AI109,Qual!$C$8:$C$133,0),IF(Tourn="Dbls",9,IF(Tourn="2-Day",8,IF(Tourn="MSC",10,7)))),"") ->  | AO109: =IF(AP109=0,"",'Check-In'!$B114) ->  | AP109: =IF(Tourn="2-Day",'Check-In'!U114,IF(Tourn="Dbls", 'Check-In'!S114,'Check-In'!P114)) -> 0 | AQ109: =IF(AP109="x",INDEX(Qual!$C$8:$U$133,MATCH(AO109,Qual!$C$8:$C$133,0),IF(Tourn="Dbls",15,IF(Tourn="2-Day",10,IF(Tourn="MSC",12,8)))),"") ->  | AR109: =IF(AP109="x",INDEX(Qual!$C$8:$U$133,MATCH(AO109,Qual!$C$8:$C$133,0),IF(Tourn="Dbls",16,IF(Tourn="2-Day",11,IF(Tourn="MSC",14,9)))),"") ->  | AS109: =IF(AP109="x",INDEX(Qual!$C$8:$U$133,MATCH(AO109,Qual!$C$8:$C$133,0),IF(Tourn="Dbls",17,IF(Tourn="2-Day",12,IF(Tourn="MSC",16,10)))),"") -> 
AI110: =IF(AJ110=0,"",'Check-In'!$B115) ->  | AJ110: =IF(Tourn="2-Day",'Check-In'!T115,IF(Tourn="Dbls", 'Check-In'!R115,'Check-In'!P115)) -> 0 | AK110: =IF(AJ110="x",INDEX(Qual!$C$8:$U$133,MATCH(AI110,Qual!$C$8:$C$133,0),IF(Tourn="Dbls",7,IF(Tourn="2-Day",6,IF(Tourn="MSC",6,5)))),"") ->  | AL110: =IF(AJ110="x",INDEX(Qual!$C$8:$U$133,MATCH(AI110,Qual!$C$8:$C$133,0),IF(Tourn="Dbls",8,IF(Tourn="2-Day",7,IF(Tourn="MSC",8,6)))),"") ->  | AM110: =IF(AJ110="x",INDEX(Qual!$C$8:$U$133,MATCH(AI110,Qual!$C$8:$C$133,0),IF(Tourn="Dbls",9,IF(Tourn="2-Day",8,IF(Tourn="MSC",10,7)))),"") ->  | AO110: =IF(AP110=0,"",'Check-In'!$B115) ->  | AP110: =IF(Tourn="2-Day",'Check-In'!U115,IF(Tourn="Dbls", 'Check-In'!S115,'Check-In'!P115)) -> 0 | AQ110: =IF(AP110="x",INDEX(Qual!$C$8:$U$133,MATCH(AO110,Qual!$C$8:$C$133,0),IF(Tourn="Dbls",15,IF(Tourn="2-Day",10,IF(Tourn="MSC",12,8)))),"") ->  | AR110: =IF(AP110="x",INDEX(Qual!$C$8:$U$133,MATCH(AO110,Qual!$C$8:$C$133,0),IF(Tourn="Dbls",16,IF(Tourn="2-Day",11,IF(Tourn="MSC",14,9)))),"") ->  | AS110: =IF(AP110="x",INDEX(Qual!$C$8:$U$133,MATCH(AO110,Qual!$C$8:$C$133,0),IF(Tourn="Dbls",17,IF(Tourn="2-Day",12,IF(Tourn="MSC",16,10)))),"") -> 
AI111: =IF(AJ111=0,"",'Check-In'!$B116) ->  | AJ111: =IF(Tourn="2-Day",'Check-In'!T116,IF(Tourn="Dbls", 'Check-In'!R116,'Check-In'!P116)) -> 0 | AK111: =IF(AJ111="x",INDEX(Qual!$C$8:$U$133,MATCH(AI111,Qual!$C$8:$C$133,0),IF(Tourn="Dbls",7,IF(Tourn="2-Day",6,IF(Tourn="MSC",6,5)))),"") ->  | AL111: =IF(AJ111="x",INDEX(Qual!$C$8:$U$133,MATCH(AI111,Qual!$C$8:$C$133,0),IF(Tourn="Dbls",8,IF(Tourn="2-Day",7,IF(Tourn="MSC",8,6)))),"") ->  | AM111: =IF(AJ111="x",INDEX(Qual!$C$8:$U$133,MATCH(AI111,Qual!$C$8:$C$133,0),IF(Tourn="Dbls",9,IF(Tourn="2-Day",8,IF(Tourn="MSC",10,7)))),"") ->  | AO111: =IF(AP111=0,"",'Check-In'!$B116) ->  | AP111: =IF(Tourn="2-Day",'Check-In'!U116,IF(Tourn="Dbls", 'Check-In'!S116,'Check-In'!P116)) -> 0 | AQ111: =IF(AP111="x",INDEX(Qual!$C$8:$U$133,MATCH(AO111,Qual!$C$8:$C$133,0),IF(Tourn="Dbls",15,IF(Tourn="2-Day",10,IF(Tourn="MSC",12,8)))),"") ->  | AR111: =IF(AP111="x",INDEX(Qual!$C$8:$U$133,MATCH(AO111,Qual!$C$8:$C$133,0),IF(Tourn="Dbls",16,IF(Tourn="2-Day",11,IF(Tourn="MSC",14,9)))),"") ->  | AS111: =IF(AP111="x",INDEX(Qual!$C$8:$U$133,MATCH(AO111,Qual!$C$8:$C$133,0),IF(Tourn="Dbls",17,IF(Tourn="2-Day",12,IF(Tourn="MSC",16,10)))),"") -> 
AI112: =IF(AJ112=0,"",'Check-In'!$B117) ->  | AJ112: =IF(Tourn="2-Day",'Check-In'!T117,IF(Tourn="Dbls", 'Check-In'!R117,'Check-In'!P117)) -> 0 | AK112: =IF(AJ112="x",INDEX(Qual!$C$8:$U$133,MATCH(AI112,Qual!$C$8:$C$133,0),IF(Tourn="Dbls",7,IF(Tourn="2-Day",6,IF(Tourn="MSC",6,5)))),"") ->  | AL112: =IF(AJ112="x",INDEX(Qual!$C$8:$U$133,MATCH(AI112,Qual!$C$8:$C$133,0),IF(Tourn="Dbls",8,IF(Tourn="2-Day",7,IF(Tourn="MSC",8,6)))),"") ->  | AM112: =IF(AJ112="x",INDEX(Qual!$C$8:$U$133,MATCH(AI112,Qual!$C$8:$C$133,0),IF(Tourn="Dbls",9,IF(Tourn="2-Day",8,IF(Tourn="MSC",10,7)))),"") ->  | AO112: =IF(AP112=0,"",'Check-In'!$B117) ->  | AP112: =IF(Tourn="2-Day",'Check-In'!U117,IF(Tourn="Dbls", 'Check-In'!S117,'Check-In'!P117)) -> 0 | AQ112: =IF(AP112="x",INDEX(Qual!$C$8:$U$133,MATCH(AO112,Qual!$C$8:$C$133,0),IF(Tourn="Dbls",15,IF(Tourn="2-Day",10,IF(Tourn="MSC",12,8)))),"") ->  | AR112: =IF(AP112="x",INDEX(Qual!$C$8:$U$133,MATCH(AO112,Qual!$C$8:$C$133,0),IF(Tourn="Dbls",16,IF(Tourn="2-Day",11,IF(Tourn="MSC",14,9)))),"") ->  | AS112: =IF(AP112="x",INDEX(Qual!$C$8:$U$133,MATCH(AO112,Qual!$C$8:$C$133,0),IF(Tourn="Dbls",17,IF(Tourn="2-Day",12,IF(Tourn="MSC",16,10)))),"") -> 
AI113: =IF(AJ113=0,"",'Check-In'!$B118) ->  | AJ113: =IF(Tourn="2-Day",'Check-In'!T118,IF(Tourn="Dbls", 'Check-In'!R118,'Check-In'!P118)) -> 0 | AK113: =IF(AJ113="x",INDEX(Qual!$C$8:$U$133,MATCH(AI113,Qual!$C$8:$C$133,0),IF(Tourn="Dbls",7,IF(Tourn="2-Day",6,IF(Tourn="MSC",6,5)))),"") ->  | AL113: =IF(AJ113="x",INDEX(Qual!$C$8:$U$133,MATCH(AI113,Qual!$C$8:$C$133,0),IF(Tourn="Dbls",8,IF(Tourn="2-Day",7,IF(Tourn="MSC",8,6)))),"") ->  | AM113: =IF(AJ113="x",INDEX(Qual!$C$8:$U$133,MATCH(AI113,Qual!$C$8:$C$133,0),IF(Tourn="Dbls",9,IF(Tourn="2-Day",8,IF(Tourn="MSC",10,7)))),"") ->  | AO113: =IF(AP113=0,"",'Check-In'!$B118) ->  | AP113: =IF(Tourn="2-Day",'Check-In'!U118,IF(Tourn="Dbls", 'Check-In'!S118,'Check-In'!P118)) -> 0 | AQ113: =IF(AP113="x",INDEX(Qual!$C$8:$U$133,MATCH(AO113,Qual!$C$8:$C$133,0),IF(Tourn="Dbls",15,IF(Tourn="2-Day",10,IF(Tourn="MSC",12,8)))),"") ->  | AR113: =IF(AP113="x",INDEX(Qual!$C$8:$U$133,MATCH(AO113,Qual!$C$8:$C$133,0),IF(Tourn="Dbls",16,IF(Tourn="2-Day",11,IF(Tourn="MSC",14,9)))),"") ->  | AS113: =IF(AP113="x",INDEX(Qual!$C$8:$U$133,MATCH(AO113,Qual!$C$8:$C$133,0),IF(Tourn="Dbls",17,IF(Tourn="2-Day",12,IF(Tourn="MSC",16,10)))),"") -> 
AI114: =IF(AJ114=0,"",'Check-In'!$B119) ->  | AJ114: =IF(Tourn="2-Day",'Check-In'!T119,IF(Tourn="Dbls", 'Check-In'!R119,'Check-In'!P119)) -> 0 | AK114: =IF(AJ114="x",INDEX(Qual!$C$8:$U$133,MATCH(AI114,Qual!$C$8:$C$133,0),IF(Tourn="Dbls",7,IF(Tourn="2-Day",6,IF(Tourn="MSC",6,5)))),"") ->  | AL114: =IF(AJ114="x",INDEX(Qual!$C$8:$U$133,MATCH(AI114,Qual!$C$8:$C$133,0),IF(Tourn="Dbls",8,IF(Tourn="2-Day",7,IF(Tourn="MSC",8,6)))),"") ->  | AM114: =IF(AJ114="x",INDEX(Qual!$C$8:$U$133,MATCH(AI114,Qual!$C$8:$C$133,0),IF(Tourn="Dbls",9,IF(Tourn="2-Day",8,IF(Tourn="MSC",10,7)))),"") ->  | AO114: =IF(AP114=0,"",'Check-In'!$B119) ->  | AP114: =IF(Tourn="2-Day",'Check-In'!U119,IF(Tourn="Dbls", 'Check-In'!S119,'Check-In'!P119)) -> 0 | AQ114: =IF(AP114="x",INDEX(Qual!$C$8:$U$133,MATCH(AO114,Qual!$C$8:$C$133,0),IF(Tourn="Dbls",15,IF(Tourn="2-Day",10,IF(Tourn="MSC",12,8)))),"") ->  | AR114: =IF(AP114="x",INDEX(Qual!$C$8:$U$133,MATCH(AO114,Qual!$C$8:$C$133,0),IF(Tourn="Dbls",16,IF(Tourn="2-Day",11,IF(Tourn="MSC",14,9)))),"") ->  | AS114: =IF(AP114="x",INDEX(Qual!$C$8:$U$133,MATCH(AO114,Qual!$C$8:$C$133,0),IF(Tourn="Dbls",17,IF(Tourn="2-Day",12,IF(Tourn="MSC",16,10)))),"") -> 
AI115: =IF(AJ115=0,"",'Check-In'!$B120) ->  | AJ115: =IF(Tourn="2-Day",'Check-In'!T120,IF(Tourn="Dbls", 'Check-In'!R120,'Check-In'!P120)) -> 0 | AK115: =IF(AJ115="x",INDEX(Qual!$C$8:$U$133,MATCH(AI115,Qual!$C$8:$C$133,0),IF(Tourn="Dbls",7,IF(Tourn="2-Day",6,IF(Tourn="MSC",6,5)))),"") ->  | AL115: =IF(AJ115="x",INDEX(Qual!$C$8:$U$133,MATCH(AI115,Qual!$C$8:$C$133,0),IF(Tourn="Dbls",8,IF(Tourn="2-Day",7,IF(Tourn="MSC",8,6)))),"") ->  | AM115: =IF(AJ115="x",INDEX(Qual!$C$8:$U$133,MATCH(AI115,Qual!$C$8:$C$133,0),IF(Tourn="Dbls",9,IF(Tourn="2-Day",8,IF(Tourn="MSC",10,7)))),"") ->  | AO115: =IF(AP115=0,"",'Check-In'!$B120) ->  | AP115: =IF(Tourn="2-Day",'Check-In'!U120,IF(Tourn="Dbls", 'Check-In'!S120,'Check-In'!P120)) -> 0 | AQ115: =IF(AP115="x",INDEX(Qual!$C$8:$U$133,MATCH(AO115,Qual!$C$8:$C$133,0),IF(Tourn="Dbls",15,IF(Tourn="2-Day",10,IF(Tourn="MSC",12,8)))),"") ->  | AR115: =IF(AP115="x",INDEX(Qual!$C$8:$U$133,MATCH(AO115,Qual!$C$8:$C$133,0),IF(Tourn="Dbls",16,IF(Tourn="2-Day",11,IF(Tourn="MSC",14,9)))),"") ->  | AS115: =IF(AP115="x",INDEX(Qual!$C$8:$U$133,MATCH(AO115,Qual!$C$8:$C$133,0),IF(Tourn="Dbls",17,IF(Tourn="2-Day",12,IF(Tourn="MSC",16,10)))),"") -> 
AI116: =IF(AJ116=0,"",'Check-In'!$B121) ->  | AJ116: =IF(Tourn="2-Day",'Check-In'!T121,IF(Tourn="Dbls", 'Check-In'!R121,'Check-In'!P121)) -> 0 | AK116: =IF(AJ116="x",INDEX(Qual!$C$8:$U$133,MATCH(AI116,Qual!$C$8:$C$133,0),IF(Tourn="Dbls",7,IF(Tourn="2-Day",6,IF(Tourn="MSC",6,5)))),"") ->  | AL116: =IF(AJ116="x",INDEX(Qual!$C$8:$U$133,MATCH(AI116,Qual!$C$8:$C$133,0),IF(Tourn="Dbls",8,IF(Tourn="2-Day",7,IF(Tourn="MSC",8,6)))),"") ->  | AM116: =IF(AJ116="x",INDEX(Qual!$C$8:$U$133,MATCH(AI116,Qual!$C$8:$C$133,0),IF(Tourn="Dbls",9,IF(Tourn="2-Day",8,IF(Tourn="MSC",10,7)))),"") ->  | AO116: =IF(AP116=0,"",'Check-In'!$B121) ->  | AP116: =IF(Tourn="2-Day",'Check-In'!U121,IF(Tourn="Dbls", 'Check-In'!S121,'Check-In'!P121)) -> 0 | AQ116: =IF(AP116="x",INDEX(Qual!$C$8:$U$133,MATCH(AO116,Qual!$C$8:$C$133,0),IF(Tourn="Dbls",15,IF(Tourn="2-Day",10,IF(Tourn="MSC",12,8)))),"") ->  | AR116: =IF(AP116="x",INDEX(Qual!$C$8:$U$133,MATCH(AO116,Qual!$C$8:$C$133,0),IF(Tourn="Dbls",16,IF(Tourn="2-Day",11,IF(Tourn="MSC",14,9)))),"") ->  | AS116: =IF(AP116="x",INDEX(Qual!$C$8:$U$133,MATCH(AO116,Qual!$C$8:$C$133,0),IF(Tourn="Dbls",17,IF(Tourn="2-Day",12,IF(Tourn="MSC",16,10)))),"") -> 
AI117: =IF(AJ117=0,"",'Check-In'!$B122) ->  | AJ117: =IF(Tourn="2-Day",'Check-In'!T122,IF(Tourn="Dbls", 'Check-In'!R122,'Check-In'!P122)) -> 0 | AK117: =IF(AJ117="x",INDEX(Qual!$C$8:$U$133,MATCH(AI117,Qual!$C$8:$C$133,0),IF(Tourn="Dbls",7,IF(Tourn="2-Day",6,IF(Tourn="MSC",6,5)))),"") ->  | AL117: =IF(AJ117="x",INDEX(Qual!$C$8:$U$133,MATCH(AI117,Qual!$C$8:$C$133,0),IF(Tourn="Dbls",8,IF(Tourn="2-Day",7,IF(Tourn="MSC",8,6)))),"") ->  | AM117: =IF(AJ117="x",INDEX(Qual!$C$8:$U$133,MATCH(AI117,Qual!$C$8:$C$133,0),IF(Tourn="Dbls",9,IF(Tourn="2-Day",8,IF(Tourn="MSC",10,7)))),"") ->  | AO117: =IF(AP117=0,"",'Check-In'!$B122) ->  | AP117: =IF(Tourn="2-Day",'Check-In'!U122,IF(Tourn="Dbls", 'Check-In'!S122,'Check-In'!P122)) -> 0 | AQ117: =IF(AP117="x",INDEX(Qual!$C$8:$U$133,MATCH(AO117,Qual!$C$8:$C$133,0),IF(Tourn="Dbls",15,IF(Tourn="2-Day",10,IF(Tourn="MSC",12,8)))),"") ->  | AR117: =IF(AP117="x",INDEX(Qual!$C$8:$U$133,MATCH(AO117,Qual!$C$8:$C$133,0),IF(Tourn="Dbls",16,IF(Tourn="2-Day",11,IF(Tourn="MSC",14,9)))),"") ->  | AS117: =IF(AP117="x",INDEX(Qual!$C$8:$U$133,MATCH(AO117,Qual!$C$8:$C$133,0),IF(Tourn="Dbls",17,IF(Tourn="2-Day",12,IF(Tourn="MSC",16,10)))),"") -> 
AI118: =IF(AJ118=0,"",'Check-In'!$B123) ->  | AJ118: =IF(Tourn="2-Day",'Check-In'!T123,IF(Tourn="Dbls", 'Check-In'!R123,'Check-In'!P123)) -> 0 | AK118: =IF(AJ118="x",INDEX(Qual!$C$8:$U$133,MATCH(AI118,Qual!$C$8:$C$133,0),IF(Tourn="Dbls",7,IF(Tourn="2-Day",6,IF(Tourn="MSC",6,5)))),"") ->  | AL118: =IF(AJ118="x",INDEX(Qual!$C$8:$U$133,MATCH(AI118,Qual!$C$8:$C$133,0),IF(Tourn="Dbls",8,IF(Tourn="2-Day",7,IF(Tourn="MSC",8,6)))),"") ->  | AM118: =IF(AJ118="x",INDEX(Qual!$C$8:$U$133,MATCH(AI118,Qual!$C$8:$C$133,0),IF(Tourn="Dbls",9,IF(Tourn="2-Day",8,IF(Tourn="MSC",10,7)))),"") ->  | AO118: =IF(AP118=0,"",'Check-In'!$B123) ->  | AP118: =IF(Tourn="2-Day",'Check-In'!U123,IF(Tourn="Dbls", 'Check-In'!S123,'Check-In'!P123)) -> 0 | AQ118: =IF(AP118="x",INDEX(Qual!$C$8:$U$133,MATCH(AO118,Qual!$C$8:$C$133,0),IF(Tourn="Dbls",15,IF(Tourn="2-Day",10,IF(Tourn="MSC",12,8)))),"") ->  | AR118: =IF(AP118="x",INDEX(Qual!$C$8:$U$133,MATCH(AO118,Qual!$C$8:$C$133,0),IF(Tourn="Dbls",16,IF(Tourn="2-Day",11,IF(Tourn="MSC",14,9)))),"") ->  | AS118: =IF(AP118="x",INDEX(Qual!$C$8:$U$133,MATCH(AO118,Qual!$C$8:$C$133,0),IF(Tourn="Dbls",17,IF(Tourn="2-Day",12,IF(Tourn="MSC",16,10)))),"") -> 
AI119: =IF(AJ119=0,"",'Check-In'!$B124) ->  | AJ119: =IF(Tourn="2-Day",'Check-In'!T124,IF(Tourn="Dbls", 'Check-In'!R124,'Check-In'!P124)) -> 0 | AK119: =IF(AJ119="x",INDEX(Qual!$C$8:$U$133,MATCH(AI119,Qual!$C$8:$C$133,0),IF(Tourn="Dbls",7,IF(Tourn="2-Day",6,IF(Tourn="MSC",6,5)))),"") ->  | AL119: =IF(AJ119="x",INDEX(Qual!$C$8:$U$133,MATCH(AI119,Qual!$C$8:$C$133,0),IF(Tourn="Dbls",8,IF(Tourn="2-Day",7,IF(Tourn="MSC",8,6)))),"") ->  | AM119: =IF(AJ119="x",INDEX(Qual!$C$8:$U$133,MATCH(AI119,Qual!$C$8:$C$133,0),IF(Tourn="Dbls",9,IF(Tourn="2-Day",8,IF(Tourn="MSC",10,7)))),"") ->  | AO119: =IF(AP119=0,"",'Check-In'!$B124) ->  | AP119: =IF(Tourn="2-Day",'Check-In'!U124,IF(Tourn="Dbls", 'Check-In'!S124,'Check-In'!P124)) -> 0 | AQ119: =IF(AP119="x",INDEX(Qual!$C$8:$U$133,MATCH(AO119,Qual!$C$8:$C$133,0),IF(Tourn="Dbls",15,IF(Tourn="2-Day",10,IF(Tourn="MSC",12,8)))),"") ->  | AR119: =IF(AP119="x",INDEX(Qual!$C$8:$U$133,MATCH(AO119,Qual!$C$8:$C$133,0),IF(Tourn="Dbls",16,IF(Tourn="2-Day",11,IF(Tourn="MSC",14,9)))),"") ->  | AS119: =IF(AP119="x",INDEX(Qual!$C$8:$U$133,MATCH(AO119,Qual!$C$8:$C$133,0),IF(Tourn="Dbls",17,IF(Tourn="2-Day",12,IF(Tourn="MSC",16,10)))),"") -> 
AI120: =IF(AJ120=0,"",'Check-In'!$B125) ->  | AJ120: =IF(Tourn="2-Day",'Check-In'!T125,IF(Tourn="Dbls", 'Check-In'!R125,'Check-In'!P125)) -> 0 | AK120: =IF(AJ120="x",INDEX(Qual!$C$8:$U$133,MATCH(AI120,Qual!$C$8:$C$133,0),IF(Tourn="Dbls",7,IF(Tourn="2-Day",6,IF(Tourn="MSC",6,5)))),"") ->  | AL120: =IF(AJ120="x",INDEX(Qual!$C$8:$U$133,MATCH(AI120,Qual!$C$8:$C$133,0),IF(Tourn="Dbls",8,IF(Tourn="2-Day",7,IF(Tourn="MSC",8,6)))),"") ->  | AM120: =IF(AJ120="x",INDEX(Qual!$C$8:$U$133,MATCH(AI120,Qual!$C$8:$C$133,0),IF(Tourn="Dbls",9,IF(Tourn="2-Day",8,IF(Tourn="MSC",10,7)))),"") ->  | AO120: =IF(AP120=0,"",'Check-In'!$B125) ->  | AP120: =IF(Tourn="2-Day",'Check-In'!U125,IF(Tourn="Dbls", 'Check-In'!S125,'Check-In'!P125)) -> 0 | AQ120: =IF(AP120="x",INDEX(Qual!$C$8:$U$133,MATCH(AO120,Qual!$C$8:$C$133,0),IF(Tourn="Dbls",15,IF(Tourn="2-Day",10,IF(Tourn="MSC",12,8)))),"") ->  | AR120: =IF(AP120="x",INDEX(Qual!$C$8:$U$133,MATCH(AO120,Qual!$C$8:$C$133,0),IF(Tourn="Dbls",16,IF(Tourn="2-Day",11,IF(Tourn="MSC",14,9)))),"") ->  | AS120: =IF(AP120="x",INDEX(Qual!$C$8:$U$133,MATCH(AO120,Qual!$C$8:$C$133,0),IF(Tourn="Dbls",17,IF(Tourn="2-Day",12,IF(Tourn="MSC",16,10)))),"") -> 
